Workbook

Sheet Navigation Pane
C2: Torres Shire Council
C3: Refer to the accompanying User Manual for detailed instructions on how to use the Spreadsheet
B6: Version No | D6: 1 | F6: Date | G6: 2020-09-04 | J6: Author | K6: MW
B8: Comments
D10: Inputs | I10: Calculation | N10: Outputs
C12: General Input Sheet | H12: Calculation Function | M12: Summary Cost Schedule
C13: l Financial Inputs l Other "generic" inputs | H13: l Catchment based summary of demand, infrastructure (existing and new) and cost allocation l Infrastructure Cost calculation for each catchment ("Average Cost" approach) l Optional Discounted Cashflow | M13: l Summary of demand and cost allocation by catchment l Final costs by catchment
M15: Summary Cash flow Projections
C16: l Unit Cost of Passive Assets l Unit Cost of Land | M16: l Summary of forecast Cap X and anticipated IC revenues
C19: l Estimates of current and future demand (per cost catchment)
C21: Asset Inputs
C29: Appendix C - Schedule of works model V11Feb2016

Sheet General Input Sheet
B2: Torres Shire Council
A3: Return to Navigation Pane
B4: General Input Sheet
B6: General Inputs | E6: Reference | G6: Value | I6: Comments
C8: Base Year | E8: YEAR | G8: 2020
G9: =YEAR -> 2020
C10: Term (between 15 and 30 years) | E10: TERM | G10: 20
B12: Application of Discounted Cash flow
C14: Calculate charges using Discounted Cash flow? (Y/N) | E14: DCFTRIGGER | G14: Yes
B16: General Financial Inputs
B18: Discount Rate (WACC):
C19: Average 10 Year Bond Rate | E19: TenYr
B21: Option 1 | C21: Basic Margin on 10 Yr. Bond Rate | E21: Margin | I21: 3.5% is the baseline figure quoted in LG Bulletin 06/01
C23: WACC: | E23: WACC1 | G23: 0.0399
B25: Option 2 | C25: Capital Structure (% Debt) | E25: Capstr
C26: Market Risk Premium | E26: Risk
C27: Asset Beta | E27: AssetBeta
C28: Cost of Debt | E28: Debt
C30: WACC: | E30: WACC2 | G30: 0.0399
C32: WACC Option to be applied in the calculation? | E32: WACC2 | G32: =IF(G14="No",0,IF(E32="WACC1",WACC1,IF(E32="WACC2",WACC2,"Error"))) -> 0.0399
B34: Escalation Rates
C35: Capital Escalation - Future Cap X | E35: PPI | G35: =0.0205 -> 0.0205 | I35: ten (10) yr. average Roads and Bridges Index (ABS 6427, Table 15, Index 3101)
C37: Capital Indexation Rates - Historical (June Qtr.)
E38: =YEAR -> 2020 | G38: 112.6 | I38: Roads and Bridges Index (ABS 6427, Table 15, Index 3101)
E39: =E38-1 -> 2019 | G39: 111.2
E40: =E39-1 -> 2018 | G40: 109.1
E41: 2017 | G41: 107.3
E42: 2016 | G42: 105.9
E43: 2015 | G43: 104.6
E44: 2014 | G44: 103.9
C46: Land Escalation | E46: LandInd | G46: 0.0193
C48: Charges Escalation Rate | E48: Chargeind | G48: 0.0193
G49: =Chargeind -> 0.0193
G51: =Chargeind -> 0.0193

Sheet Unit Rates (hidden)
B2: ='Navigation Pane'!C2 -> Torres Shire Council
B4: Unit Rates
B6: Land Cost | D6: Transportation
B8: Water Supply | D8: Sewerage
B10: Stormwater | D10: Parks & Community Facilities

Sheet Catchment Demand
B2: ='Navigation Pane'!C2 -> Torres Shire Council
B4: Demand Forecast
B6: Anticpated Growth Residential | D6: Anticpated Growth - NON Residential
B8: Water Supply | D8: Transportation
B10: Sewerage | D10: Parks & Community Facilities
B12: Stormwater

Sheet Existing Trunk Assets
B2: ='Navigation Pane'!C2 -> Torres Shire Council
B4: Existing Trunk Assets
B6: Water Supply | D6: Transportation
B8: Sewerage | D8: Parks & Community Facilities
B10: Stormwater

Sheet Existing Trunk Assets - Water
B2: ='Navigation Pane'!C2 -> Torres Shire Council
B3: Water Supply
A4: Return to "Existing Trunk Assets"
B5: EXISTING TRUNK ASSETS
B8: Land Valuation Type | E8: Location
I10: Asset Data | W10: Catchment Asset Allocation | BP10: Asset Usage | CV10: Cost Allocation
B11: Basic Asset Data | H11: Asset Attributes | K11: Baseline Asset Valuation | P11: Land Attributes | T11: Refined Asset Value | W11: ='Catchment Demand - Water Supply'!$C8 -> Thursday Island | X11: ='Catchment Demand - Water Supply'!$C9 -> Horn Island | Y11: ='Catchment Demand - Water Supply'!$C10 -> 0 | Z11: ='Catchment Demand - Water Supply'!$C11 -> 0 | AA11: ='Catchment Demand - Water Supply'!$C12 -> 0 | AB11: ='Catchment Demand - Water Supply'!$C13 -> 0 | AC11: ='Catchment Demand - Water Supply'!$C14 -> 0 | AD11: ='Catchment Demand - Water Supply'!$C15 -> 0 | AE11: ='Catchment Demand - Water Supply'!$C16 -> 0 | AF11: ='Catchment Demand - Water Supply'!$C17 -> 0 | AG11: ='Catchment Demand - Water Supply'!$C18 -> 0 | AH11: ='Catchment Demand - Water Supply'!$C19 -> 0 | AI11: ='Catchment Demand - Water Supply'!$C20 -> 0 | AJ11: ='Catchment Demand - Water Supply'!$C21 -> 0 | AK11: ='Catchment Demand - Water Supply'!$C22 -> 0 | AL11: ='Catchment Demand - Water Supply'!$C23 -> 0 | AM11: ='Catchment Demand - Water Supply'!$C24 -> 0 | AN11: ='Catchment Demand - Water Supply'!$C25 -> 0 | AO11: ='Catchment Demand - Water Supply'!$C26 -> 0 | AP11: ='Catchment Demand - Water Supply'!$C27 -> 0 | AQ11: ='Catchment Demand - Water Supply'!$C28 -> 0 | AR11: ='Catchment Demand - Water Supply'!$C29 -> 0 | AS11: ='Catchment Demand - Water Supply'!$C30 -> 0 | AT11: ='Catchment Demand - Water Supply'!$C31 -> 0 | AU11: ='Catchment Demand - Water Supply'!$C32 -> 0 | AV11: ='Catchment Demand - Water Supply'!$C33 -> 0 | AW11: ='Catchment Demand - Water Supply'!$C34 -> 0 | AX11: ='Catchment Demand - Water Supply'!$C35 -> 0 | AY11: ='Catchment Demand - Water Supply'!$C36 -> 0 | AZ11: ='Catchment Demand - Water Supply'!$C37 -> 0 | BB11: ='Catchment Demand - Water Supply'!$C8 -> Thursday Island | BC11: ='Catchment Demand - Water Supply'!$C9 -> Horn Island | BD11: ='Catchment Demand - Water Supply'!$C10 -> 0 | BE11: ='Catchment Demand - Water Supply'!$C11 -> 0 | BF11: ='Catchment Demand - Water Supply'!$C12 -> 0 | BG11: ='Catchment Demand - Water Supply'!$C13 -> 0 | BH11: ='Catchment Demand - Water Supply'!$C14 -> 0 | BI11: ='Catchment Demand - Water Supply'!$C15 -> 0 | BJ11: ='Catchment Demand - Water Supply'!$C16 -> 0 | BK11: ='Catchment Demand - Water Supply'!$C17 -> 0 | BL11: ='Catchment Demand - Water Supply'!$C18 -> 0 | BM11: ='Catchment Demand - Water Supply'!$C19 -> 0 | BN11: ='Catchment Demand - Water Supply'!$C20 -> 0 | BO11: ='Catchment Demand - Water Supply'!$C21 -> 0 | BP11: ='Catchment Demand - Water Supply'!$C22 -> 0 | BQ11: ='Catchment Demand - Water Supply'!$C23 -> 0 | BR11: ='Catchment Demand - Water Supply'!$C24 -> 0 | BS11: ='Catchment Demand - Water Supply'!$C25 -> 0 | BT11: ='Catchment Demand - Water Supply'!$C26 -> 0 | BU11: ='Catchment Demand - Water Supply'!$C27 -> 0 | BV11: ='Catchment Demand - Water Supply'!$C28 -> 0 | BW11: ='Catchment Demand - Water Supply'!$C29 -> 0 | BX11: ='Catchment Demand - Water Supply'!$C30 -> 0 | BY11: ='Catchment Demand - Water Supply'!$C31 -> 0 | BZ11: ='Catchment Demand - Water Supply'!$C32 -> 0 | CA11: ='Catchment Demand - Water Supply'!$C33 -> 0 | CB11: ='Catchment Demand - Water Supply'!$C34 -> 0 | CC11: ='Catchment Demand - Water Supply'!$C35 -> 0 | CD11: ='Catchment Demand - Water Supply'!$C36 -> 0 | CE11: ='Catchment Demand - Water Supply'!$C37 -> 0 | CF11: TOTALS | CH11: ='Catchment Demand - Water Supply'!$C8 -> Thursday Island | CI11: ='Catchment Demand - Water Supply'!$C9 -> Horn Island | CJ11: ='Catchment Demand - Water Supply'!$C10 -> 0 | CK11: ='Catchment Demand - Water Supply'!$C11 -> 0 | CL11: ='Catchment Demand - Water Supply'!$C12 -> 0 | CM11: ='Catchment Demand - Water Supply'!$C13 -> 0 | CN11: ='Catchment Demand - Water Supply'!$C14 -> 0 | CO11: ='Catchment Demand - Water Supply'!$C15 -> 0 | CP11: ='Catchment Demand - Water Supply'!$C16 -> 0 | CQ11: ='Catchment Demand - Water Supply'!$C17 -> 0 | CR11: ='Catchment Demand - Water Supply'!$C18 -> 0 | CS11: ='Catchment Demand - Water Supply'!$C19 -> 0 | CT11: ='Catchment Demand - Water Supply'!$C20 -> 0 | CU11: ='Catchment Demand - Water Supply'!$C21 -> 0 | CV11: ='Catchment Demand - Water Supply'!$C22 -> 0 | CW11: ='Catchment Demand - Water Supply'!$C23 -> 0 | CX11: ='Catchment Demand - Water Supply'!$C24 -> 0 | CY11: ='Catchment Demand - Water Supply'!$C25 -> 0 | CZ11: ='Catchment Demand - Water Supply'!$C26 -> 0 | DA11: ='Catchment Demand - Water Supply'!$C27 -> 0 | DB11: ='Catchment Demand - Water Supply'!$C28 -> 0 | DC11: ='Catchment Demand - Water Supply'!$C29 -> 0 | DD11: ='Catchment Demand - Water Supply'!$C30 -> 0 | DE11: ='Catchment Demand - Water Supply'!$C31 -> 0 | DF11: ='Catchment Demand - Water Supply'!$C32 -> 0 | DG11: ='Catchment Demand - Water Supply'!$C33 -> 0 | DH11: ='Catchment Demand - Water Supply'!$C34 -> 0 | DI11: ='Catchment Demand - Water Supply'!$C35 -> 0 | DJ11: ='Catchment Demand - Water Supply'!$C36 -> 0 | DK11: ='Catchment Demand - Water Supply'!$C37 -> 0 | DL11: Checksum 2
B12: Asset ID | C12: LGIP ID | D12: Asset Type (*) | E12: Asset Class | F12: Asset Name | G12: Description | H12: Unit Rate Type (*) | I12: Length/unit (*) | J12: Diameter (*) | K12: Unit Rate | L12: Baseline Valuation | M12: Site/Condition | N12: Multiplier | O12: Gross Value | P12: Land Location/Type | Q12: Size of land (ha) (*) | R12: Unit Cost | S12: Land Value | T12: Valuation Year | U12: Escalation | V12: Current Replacement Cost
W13: 1 | X13: =W13+1 -> 2 | Y13: =X13+1 -> 3 | Z13: 4 | AA13: 5 | AB13: 6 | AC13: 7 | AD13: 8 | AE13: 9 | AF13: 10 | AG13: 11 | AH13: 12 | AI13: 13 | AJ13: 14 | AK13: 15 | AL13: 16 | AM13: 17 | AN13: 18 | AO13: 19 | AP13: 20 | AQ13: 21 | AR13: 22 | AS13: 23 | AT13: 24 | AU13: 25 | AV13: 26 | AW13: 27 | AX13: 28 | AY13: 29 | AZ13: 30
B14: Councils ID (from GIS, FAR, AMA etc.) | C14: ID from the LGIP drawings | E14: Reservoir, Trunk Main, etc. | L14: May be calculated from unit rates OR unique values can be direct entered | V14: CRC | W14: =IFERROR(VLOOKUP(W11,watercatch,6,FALSE),"") -> 4501 | X14: 1546 | BB14: =VLOOKUP(BB11,'Catchment Demand - Water Supply'!$C$8:$H$37,6,FALSE) -> 4501 | BC14: =VLOOKUP(BC11,'Catchment Demand - Water Supply'!$C$8:$H$37,6,FALSE) -> 1546 | BD14: =VLOOKUP(BD11,'Catchment Demand - Water Supply'!$C$8:$H$37,6,FALSE) ->  | BE14: =VLOOKUP(BE11,'Catchment Demand - Water Supply'!$C$8:$H$37,6,FALSE) ->  | BF14: =VLOOKUP(BF11,'Catchment Demand - Water Supply'!$C$8:$H$37,6,FALSE) ->  | BG14: =VLOOKUP(BG11,'Catchment Demand - Water Supply'!$C$8:$H$37,6,FALSE) ->  | BH14: =VLOOKUP(BH11,'Catchment Demand - Water Supply'!$C$8:$H$37,6,FALSE) ->  | BI14: =VLOOKUP(BI11,'Catchment Demand - Water Supply'!$C$8:$H$37,6,FALSE) ->  | BJ14: =VLOOKUP(BJ11,'Catchment Demand - Water Supply'!$C$8:$H$37,6,FALSE) ->  | BK14: =VLOOKUP(BK11,'Catchment Demand - Water Supply'!$C$8:$H$37,6,FALSE) ->  | BL14: =VLOOKUP(BL11,'Catchment Demand - Water Supply'!$C$8:$H$37,6,FALSE) ->  | BM14: =VLOOKUP(BM11,'Catchment Demand - Water Supply'!$C$8:$H$37,6,FALSE) ->  | BN14: =VLOOKUP(BN11,'Catchment Demand - Water Supply'!$C$8:$H$37,6,FALSE) ->  | BO14: =VLOOKUP(BO11,'Catchment Demand - Water Supply'!$C$8:$H$37,6,FALSE) ->  | BP14: =VLOOKUP(BP11,'Catchment Demand - Water Supply'!$C$8:$H$37,6,FALSE) ->  | BQ14: =VLOOKUP(BQ11,'Catchment Demand - Water Supply'!$C$8:$H$37,6,FALSE) ->  | BR14: =VLOOKUP(BR11,'Catchment Demand - Water Supply'!$C$8:$H$37,6,FALSE) ->  | BS14: =VLOOKUP(BS11,'Catchment Demand - Water Supply'!$C$8:$H$37,6,FALSE) ->  | BT14: =VLOOKUP(BT11,'Catchment Demand - Water Supply'!$C$8:$H$37,6,FALSE) ->  | BU14: =VLOOKUP(BU11,'Catchment Demand - Water Supply'!$C$8:$H$37,6,FALSE) ->  | BV14: =VLOOKUP(BV11,'Catchment Demand - Water Supply'!$C$8:$H$37,6,FALSE) ->  | BW14: =VLOOKUP(BW11,'Catchment Demand - Water Supply'!$C$8:$H$37,6,FALSE) ->  | BX14: =VLOOKUP(BX11,'Catchment Demand - Water Supply'!$C$8:$H$37,6,FALSE) ->  | BY14: =VLOOKUP(BY11,'Catchment Demand - Water Supply'!$C$8:$H$37,6,FALSE) ->  | BZ14: =VLOOKUP(BZ11,'Catchment Demand - Water Supply'!$C$8:$H$37,6,FALSE) ->  | CA14: =VLOOKUP(CA11,'Catchment Demand - Water Supply'!$C$8:$H$37,6,FALSE) ->  | CB14: =VLOOKUP(CB11,'Catchment Demand - Water Supply'!$C$8:$H$37,6,FALSE) ->  | CC14: =VLOOKUP(CC11,'Catchment Demand - Water Supply'!$C$8:$H$37,6,FALSE) ->  | CD14: =VLOOKUP(CD11,'Catchment Demand - Water Supply'!$C$8:$H$37,6,FALSE) ->  | CE14: =VLOOKUP(CE11,'Catchment Demand - Water Supply'!$C$8:$H$37,6,FALSE) ->  | CH14: =SUM(CH15:CH401) -> 35819273.43 | CI14: 9769994.662 | CJ14: 0 | CK14: 0 | CL14: 0 | CM14: 0 | CN14: 0 | CO14: 0 | CP14: 0 | CQ14: 0 | CR14: 0 | CS14: 0 | CT14: 0 | CU14: 0 | CV14: 0 | CW14: 0 | CX14: 0 | CY14: 0 | CZ14: 0 | DA14: 0 | DB14: 0 | DC14: 0 | DD14: 0 | DE14: 0 | DF14: 0 | DG14: 0 | DH14: 0 | DI14: 0 | DJ14: 0 | DK14: 0 | DL14: 0
C15: HI_GEN 001 | D15: Generator | G15: Backup Generator to Loggy Creek Pump Stations | K15: =IF(H15=TYPE1,VLOOKUP(J15,WaterUnitrates1,2,FALSE),IF(H15=TYPE2,VLOOKUP(J15,Unitrates2,2,FALSE),0)) -> 0 | L15: 63636.36364 | N15: =IF(M15="",1,VLOOKUP(M15,'Unit Rates - Water'!$H$12:$I$23,2,FALSE)) -> 1 | O15: =L15*N15 -> 63636.36364 | R15: =IF(P15="",'Unit Rates - Land'!landcst,IF($E$8="Landuse",VLOOKUP(P15,LAndcost3,2,FALSE),IF($E$8="Location",VLOOKUP(P15,Landcost2,2,FALSE),"Error"))) -> 0 | S15: =IF(R15="",0,R15*10000*Q15) -> 0 | U15: =IFERROR(('General Input Sheet'!$G$38/(VLOOKUP('Existing Trunk Assets - Water'!T15,Histindex,3,FALSE))),1) -> 1 | V15: =IFERROR((O15+S15)*U15,0) -> 63636.36364 | W15: Y | X15: Y | BB15: =IF(W15="y",BB$14,IF(AND(W15>0,W15<=1),W15*BB$14,"")) -> 4501 | BC15: =IF(X15="y",BC$14,IF(AND(X15>0,X15<=1),X15*BC$14,"")) -> 1546 | CF15: =SUM(BB15:CE15) -> 6047 | CH15: =IF(BB15="","",(BB15/$CF15)*$V15) -> 47366.83855 | CI15: =IF(BC15="","",(BC15/$CF15)*$V15) -> 16269.52508 | CX15: =IF(BR15="","",(BR15/$CF15)*$V15) ->  | DL15: =IF(SUM(CH15:DK15)=V15,"","ERROR") -> 
C16: HI_RES_001 | D16: Dam | G16: Loggy Creek Dam | K16: 0 | L16: 18066248.68 | N16: =IF(M16="",1,VLOOKUP(M16,'Unit Rates - Water'!$H$12:$I$23,2,FALSE)) -> 1 | O16: =L16*N16 -> 18066248.68 | R16: =IF(P16="",'Unit Rates - Land'!landcst,IF($E$8="Landuse",VLOOKUP(P16,LAndcost3,2,FALSE),IF($E$8="Location",VLOOKUP(P16,Landcost2,2,FALSE),"Error"))) -> 0 | S16: =IF(R16="",0,R16*10000*Q16) -> 0 | U16: =IFERROR(('General Input Sheet'!$G$38/(VLOOKUP('Existing Trunk Assets - Water'!T16,'General Input Sheet'!$E$38:$G$44,3,FALSE))),1) -> 1 | V16: =IFERROR((O16+S16)*U16,0) -> 18066248.68 | W16: Y | X16: Y | BB16: =IF(W16="y",BB$14,IF(AND(W16>0,W16<=1),W16*BB$14,"")) -> 4501 | BC16: =IF(X16="y",BC$14,IF(AND(X16>0,X16<=1),X16*BC$14,"")) -> 1546 | BD16: =IF(Y16="y",BD$14,IF(AND(Y16>0,Y16<=1),Y16*BD$14,"")) ->  | BE16: =IF(Z16="y",BE$14,IF(AND(Z16>0,Z16<=1),Z16*BE$14,"")) ->  | BF16: =IF(AA16="y",BF$14,IF(AND(AA16>0,AA16<=1),AA16*BF$14,"")) ->  | BG16: =IF(AB16="y",BG$14,IF(AND(AB16>0,AB16<=1),AB16*BG$14,"")) ->  | BH16: =IF(AC16="y",BH$14,IF(AND(AC16>0,AC16<=1),AC16*BH$14,"")) ->  | BI16: =IF(AD16="y",BI$14,IF(AND(AD16>0,AD16<=1),AD16*BI$14,"")) ->  | BJ16: =IF(AE16="y",BJ$14,IF(AND(AE16>0,AE16<=1),AE16*BJ$14,"")) ->  | BK16: =IF(AF16="y",BK$14,IF(AND(AF16>0,AF16<=1),AF16*BK$14,"")) ->  | BL16: =IF(AG16="y",BL$14,IF(AND(AG16>0,AG16<=1),AG16*BL$14,"")) ->  | BM16: =IF(AH16="y",BM$14,IF(AND(AH16>0,AH16<=1),AH16*BM$14,"")) ->  | BN16: =IF(AI16="y",BN$14,IF(AND(AI16>0,AI16<=1),AI16*BN$14,"")) ->  | BO16: =IF(AJ16="y",BO$14,IF(AND(AJ16>0,AJ16<=1),AJ16*BO$14,"")) ->  | BP16: =IF(AK16="y",BP$14,IF(AND(AK16>0,AK16<=1),AK16*BP$14,"")) ->  | BQ16: =IF(AL16="y",BQ$14,IF(AND(AL16>0,AL16<=1),AL16*BQ$14,"")) ->  | BR16: =IF(AM16="y",BR$14,IF(AND(AM16>0,AM16<=1),AM16*BR$14,"")) ->  | BS16: =IF(AN16="y",BS$14,IF(AND(AN16>0,AN16<=1),AN16*BS$14,"")) ->  | BT16: =IF(AO16="y",BT$14,IF(AND(AO16>0,AO16<=1),AO16*BT$14,"")) ->  | BU16: =IF(AP16="y",BU$14,IF(AND(AP16>0,AP16<=1),AP16*BU$14,"")) ->  | BV16: =IF(AQ16="y",BV$14,IF(AND(AQ16>0,AQ16<=1),AQ16*BV$14,"")) ->  | BW16: =IF(AR16="y",BW$14,IF(AND(AR16>0,AR16<=1),AR16*BW$14,"")) ->  | BX16: =IF(AS16="y",BX$14,IF(AND(AS16>0,AS16<=1),AS16*BX$14,"")) ->  | BY16: =IF(AT16="y",BY$14,IF(AND(AT16>0,AT16<=1),AT16*BY$14,"")) ->  | BZ16: =IF(AU16="y",BZ$14,IF(AND(AU16>0,AU16<=1),AU16*BZ$14,"")) ->  | CA16: =IF(AV16="y",CA$14,IF(AND(AV16>0,AV16<=1),AV16*CA$14,"")) ->  | CB16: =IF(AW16="y",CB$14,IF(AND(AW16>0,AW16<=1),AW16*CB$14,"")) ->  | CC16: =IF(AX16="y",CC$14,IF(AND(AX16>0,AX16<=1),AX16*CC$14,"")) ->  | CD16: =IF(AY16="y",CD$14,IF(AND(AY16>0,AY16<=1),AY16*CD$14,"")) ->  | CE16: =IF(AZ16="y",CE$14,IF(AND(AZ16>0,AZ16<=1),AZ16*CE$14,"")) ->  | CF16: =SUM(BB16:CE16) -> 6047 | CH16: 13447359.9 | CI16: 4618888.782 | DL16: =IF(SUM(CH16:DK16)=V16,"","ERROR") -> 
C17: HI_RES_002 | D17: Reservoir | G17: Reservoir (2ML) | K17: 0 | L17: 1809192.364 | N17: =IF(M17="",1,VLOOKUP(M17,'Unit Rates - Water'!$H$12:$I$23,2,FALSE)) -> 1 | O17: 1809192.364 | R17: =IF(P17="",'Unit Rates - Land'!landcst,IF($E$8="Landuse",VLOOKUP(P17,LAndcost3,2,FALSE),IF($E$8="Location",VLOOKUP(P17,Landcost2,2,FALSE),"Error"))) -> 0 | S17: 0 | U17: =IFERROR(('General Input Sheet'!$G$38/(VLOOKUP('Existing Trunk Assets - Water'!T17,'General Input Sheet'!$E$38:$G$44,3,FALSE))),1) -> 1 | V17: 1809192.364 | X17: Y | BC17: 1546 | CF17: =SUM(BB17:CE17) -> 1546 | CI17: 1809192.364 | DL17: =IF(SUM(CH17:DK17)=V17,"","ERROR") -> 
C18: HI_WPS 001 | D18: Pump Station | G18: Loggy Creek Pump Station Pump 1 | K18: 0 | L18: 303030.303 | N18: =IF(M18="",1,VLOOKUP(M18,'Unit Rates - Water'!$H$12:$I$23,2,FALSE)) -> 1 | O18: 303030.303 | R18: =IF(P18="",'Unit Rates - Land'!landcst,IF($E$8="Landuse",VLOOKUP(P18,LAndcost3,2,FALSE),IF($E$8="Location",VLOOKUP(P18,Landcost2,2,FALSE),"Error"))) -> 0 | S18: 0 | U18: =IFERROR(('General Input Sheet'!$G$38/(VLOOKUP('Existing Trunk Assets - Water'!T18,'General Input Sheet'!$E$38:$G$44,3,FALSE))),1) -> 1 | V18: 303030.303 | W18: Y | X18: Y | BB18: 4501 | BC18: 1546 | CF18: =SUM(BB18:CE18) -> 6047 | CH18: 225556.3741 | CI18: 77473.92897 | DL18: =IF(SUM(CH18:DK18)=V18,"","ERROR") -> 
C19: HI_WPS 002 | D19: Pump Station | G19: Loggy Creek Pump Station Pump 2 | K19: 0 | L19: 303030.303 | N19: =IF(M19="",1,VLOOKUP(M19,'Unit Rates - Water'!$H$12:$I$23,2,FALSE)) -> 1 | O19: 303030.303 | R19: =IF(P19="",'Unit Rates - Land'!landcst,IF($E$8="Landuse",VLOOKUP(P19,LAndcost3,2,FALSE),IF($E$8="Location",VLOOKUP(P19,Landcost2,2,FALSE),"Error"))) -> 0 | S19: 0 | U19: =IFERROR(('General Input Sheet'!$G$38/(VLOOKUP('Existing Trunk Assets - Water'!T19,'General Input Sheet'!$E$38:$G$44,3,FALSE))),1) -> 1 | V19: 303030.303 | W19: Y | X19: Y | BB19: 4501 | BC19: 1546 | CF19: 6047 | CH19: 225556.3741 | CI19: 77473.92897
C20: HI_WPS 003 | D20: Pump Station | G20: Loggy Creek Pump Station Pump 3 | K20: 0 | L20: 303030.303 | N20: =IF(M20="",1,VLOOKUP(M20,'Unit Rates - Water'!$H$12:$I$23,2,FALSE)) -> 1 | O20: 303030.303 | R20: =IF(P20="",'Unit Rates - Land'!landcst,IF($E$8="Landuse",VLOOKUP(P20,LAndcost3,2,FALSE),IF($E$8="Location",VLOOKUP(P20,Landcost2,2,FALSE),"Error"))) -> 0 | S20: 0 | U20: =IFERROR(('General Input Sheet'!$G$38/(VLOOKUP('Existing Trunk Assets - Water'!T20,'General Input Sheet'!$E$38:$G$44,3,FALSE))),1) -> 1 | V20: 303030.303 | W20: Y | X20: Y | BB20: =IF(W20="y",BB$14,IF(AND(W20>0,W20<=1),W20*BB$14,"")) -> 4501 | BC20: =IF(X20="y",BC$14,IF(AND(X20>0,X20<=1),X20*BC$14,"")) -> 1546 | BD20: =IF(Y20="y",BD$14,IF(AND(Y20>0,Y20<=1),Y20*BD$14,"")) ->  | BE20: =IF(Z20="y",BE$14,IF(AND(Z20>0,Z20<=1),Z20*BE$14,"")) ->  | BF20: =IF(AA20="y",BF$14,IF(AND(AA20>0,AA20<=1),AA20*BF$14,"")) ->  | BG20: =IF(AB20="y",BG$14,IF(AND(AB20>0,AB20<=1),AB20*BG$14,"")) ->  | BH20: =IF(AC20="y",BH$14,IF(AND(AC20>0,AC20<=1),AC20*BH$14,"")) ->  | BI20: =IF(AD20="y",BI$14,IF(AND(AD20>0,AD20<=1),AD20*BI$14,"")) ->  | BJ20: =IF(AE20="y",BJ$14,IF(AND(AE20>0,AE20<=1),AE20*BJ$14,"")) ->  | BK20: =IF(AF20="y",BK$14,IF(AND(AF20>0,AF20<=1),AF20*BK$14,"")) ->  | BL20: =IF(AG20="y",BL$14,IF(AND(AG20>0,AG20<=1),AG20*BL$14,"")) ->  | BM20: =IF(AH20="y",BM$14,IF(AND(AH20>0,AH20<=1),AH20*BM$14,"")) ->  | BN20: =IF(AI20="y",BN$14,IF(AND(AI20>0,AI20<=1),AI20*BN$14,"")) ->  | BO20: =IF(AJ20="y",BO$14,IF(AND(AJ20>0,AJ20<=1),AJ20*BO$14,"")) ->  | BP20: =IF(AK20="y",BP$14,IF(AND(AK20>0,AK20<=1),AK20*BP$14,"")) ->  | BQ20: =IF(AL20="y",BQ$14,IF(AND(AL20>0,AL20<=1),AL20*BQ$14,"")) ->  | BR20: =IF(AM20="y",BR$14,IF(AND(AM20>0,AM20<=1),AM20*BR$14,"")) ->  | BS20: =IF(AN20="y",BS$14,IF(AND(AN20>0,AN20<=1),AN20*BS$14,"")) ->  | BT20: =IF(AO20="y",BT$14,IF(AND(AO20>0,AO20<=1),AO20*BT$14,"")) ->  | BU20: =IF(AP20="y",BU$14,IF(AND(AP20>0,AP20<=1),AP20*BU$14,"")) ->  | BV20: =IF(AQ20="y",BV$14,IF(AND(AQ20>0,AQ20<=1),AQ20*BV$14,"")) ->  | BW20: =IF(AR20="y",BW$14,IF(AND(AR20>0,AR20<=1),AR20*BW$14,"")) ->  | BX20: =IF(AS20="y",BX$14,IF(AND(AS20>0,AS20<=1),AS20*BX$14,"")) ->  | BY20: =IF(AT20="y",BY$14,IF(AND(AT20>0,AT20<=1),AT20*BY$14,"")) ->  | BZ20: =IF(AU20="y",BZ$14,IF(AND(AU20>0,AU20<=1),AU20*BZ$14,"")) ->  | CA20: =IF(AV20="y",CA$14,IF(AND(AV20>0,AV20<=1),AV20*CA$14,"")) ->  | CB20: =IF(AW20="y",CB$14,IF(AND(AW20>0,AW20<=1),AW20*CB$14,"")) ->  | CC20: =IF(AX20="y",CC$14,IF(AND(AX20>0,AX20<=1),AX20*CC$14,"")) ->  | CD20: =IF(AY20="y",CD$14,IF(AND(AY20>0,AY20<=1),AY20*CD$14,"")) ->  | CE20: =IF(AZ20="y",CE$14,IF(AND(AZ20>0,AZ20<=1),AZ20*CE$14,"")) ->  | CF20: 6047 | CH20: 225556.3741 | CI20: 77473.92897
C21: TI_FM_001 | D21: Flow Meter | G21: TI Supply Flow Meter | K21: 0 | L21: 5435.233161 | N21: =IF(M21="",1,VLOOKUP(M21,'Unit Rates - Water'!$H$12:$I$23,2,FALSE)) -> 1 | O21: 5435.233161 | R21: =IF(P21="",'Unit Rates - Land'!landcst,IF($E$8="Landuse",VLOOKUP(P21,LAndcost3,2,FALSE),IF($E$8="Location",VLOOKUP(P21,Landcost2,2,FALSE),"Error"))) -> 0 | S21: 0 | U21: =IFERROR(('General Input Sheet'!$G$38/(VLOOKUP('Existing Trunk Assets - Water'!T21,'General Input Sheet'!$E$38:$G$44,3,FALSE))),1) -> 1 | V21: 5435.233161 | W21: Y | BB21: 4501 | CF21: 4501 | CH21: 5435.233161
C22: TI_FM_001 | D22: Flow Meter | G22: High Level Supply Flow Meter | K22: 0 | L22: 5435.233161 | N22: =IF(M22="",1,VLOOKUP(M22,'Unit Rates - Water'!$H$12:$I$23,2,FALSE)) -> 1 | O22: 5435.233161 | R22: =IF(P22="",'Unit Rates - Land'!landcst,IF($E$8="Landuse",VLOOKUP(P22,LAndcost3,2,FALSE),IF($E$8="Location",VLOOKUP(P22,Landcost2,2,FALSE),"Error"))) -> 0 | S22: 0 | U22: =IFERROR(('General Input Sheet'!$G$38/(VLOOKUP('Existing Trunk Assets - Water'!T22,'General Input Sheet'!$E$38:$G$44,3,FALSE))),1) -> 1 | V22: 5435.233161 | W22: Y | BB22: 4501 | CF22: 4501 | CH22: 5435.233161
C23: TI_GEN 001 | D23: Generator | G23: Backup Generator for High Lift Pumps | K23: 0 | L23: 63636.36364 | N23: =IF(M23="",1,VLOOKUP(M23,'Unit Rates - Water'!$H$12:$I$23,2,FALSE)) -> 1 | O23: 63636.36364 | R23: =IF(P23="",'Unit Rates - Land'!landcst,IF($E$8="Landuse",VLOOKUP(P23,LAndcost3,2,FALSE),IF($E$8="Location",VLOOKUP(P23,Landcost2,2,FALSE),"Error"))) -> 0 | S23: 0 | U23: =IFERROR(('General Input Sheet'!$G$38/(VLOOKUP('Existing Trunk Assets - Water'!T23,'General Input Sheet'!$E$38:$G$44,3,FALSE))),1) -> 1 | V23: 63636.36364 | W23: Y | BB23: 4501 | CF23: 4501 | CH23: 63636.36364
C24: TI_RES_001 | D24: Clarifier | G24: Clarifier (10ML) | K24: 0 | L24: 3454545.455 | N24: =IF(M24="",1,VLOOKUP(M24,'Unit Rates - Water'!$H$12:$I$23,2,FALSE)) -> 1 | O24: 3454545.455 | R24: =IF(P24="",'Unit Rates - Land'!landcst,IF($E$8="Landuse",VLOOKUP(P24,LAndcost3,2,FALSE),IF($E$8="Location",VLOOKUP(P24,Landcost2,2,FALSE),"Error"))) -> 0 | S24: 0 | U24: =IFERROR(('General Input Sheet'!$G$38/(VLOOKUP('Existing Trunk Assets - Water'!T24,'General Input Sheet'!$E$38:$G$44,3,FALSE))),1) -> 1 | V24: 3454545.455 | W24: Y | BB24: 4501 | CF24: 4501 | CH24: 3454545.455
C25: TI_RES_002 | D25: Reservoir | G25: Reservoir (4ML) | K25: 0 | L25: 2808074.079 | N25: =IF(M25="",1,VLOOKUP(M25,'Unit Rates - Water'!$H$12:$I$23,2,FALSE)) -> 1 | O25: 2808074.079 | R25: =IF(P25="",'Unit Rates - Land'!landcst,IF($E$8="Landuse",VLOOKUP(P25,LAndcost3,2,FALSE),IF($E$8="Location",VLOOKUP(P25,Landcost2,2,FALSE),"Error"))) -> 0 | S25: 0 | U25: =IFERROR(('General Input Sheet'!$G$38/(VLOOKUP('Existing Trunk Assets - Water'!T25,'General Input Sheet'!$E$38:$G$44,3,FALSE))),1) -> 1 | V25: 2808074.079 | W25: Y | BB25: 4501 | CF25: 4501 | CH25: 2808074.079
C26: TI_RES_003 | D26: Reservoir | G26: Reservoir (1ML) | K26: 0 | L26: 904596.7254 | N26: =IF(M26="",1,VLOOKUP(M26,'Unit Rates - Water'!$H$12:$I$23,2,FALSE)) -> 1 | O26: 904596.7254 | R26: =IF(P26="",'Unit Rates - Land'!landcst,IF($E$8="Landuse",VLOOKUP(P26,LAndcost3,2,FALSE),IF($E$8="Location",VLOOKUP(P26,Landcost2,2,FALSE),"Error"))) -> 0 | S26: 0 | U26: =IFERROR(('General Input Sheet'!$G$38/(VLOOKUP('Existing Trunk Assets - Water'!T26,'General Input Sheet'!$E$38:$G$44,3,FALSE))),1) -> 1 | V26: 904596.7254 | W26: Y | BB26: 4501 | CF26: 4501 | CH26: 904596.7254
C27: TI_WPS 001 | D27: Pump Station | G27: Low Lift Pump Station 1 | K27: 0 | L27: 68181.81818 | N27: =IF(M27="",1,VLOOKUP(M27,'Unit Rates - Water'!$H$12:$I$23,2,FALSE)) -> 1 | O27: 68181.81818 | R27: =IF(P27="",'Unit Rates - Land'!landcst,IF($E$8="Landuse",VLOOKUP(P27,LAndcost3,2,FALSE),IF($E$8="Location",VLOOKUP(P27,Landcost2,2,FALSE),"Error"))) -> 0 | S27: 0 | U27: =IFERROR(('General Input Sheet'!$G$38/(VLOOKUP('Existing Trunk Assets - Water'!T27,'General Input Sheet'!$E$38:$G$44,3,FALSE))),1) -> 1 | V27: 68181.81818 | W27: Y | BB27: 4501 | CF27: 4501 | CH27: 68181.81818
C28: TI_WPS 002 | D28: Pump Station | G28: Low Lift Pump Station 2 | K28: 0 | L28: 68181.81818 | N28: =IF(M28="",1,VLOOKUP(M28,'Unit Rates - Water'!$H$12:$I$23,2,FALSE)) -> 1 | O28: 68181.81818 | R28: =IF(P28="",'Unit Rates - Land'!landcst,IF($E$8="Landuse",VLOOKUP(P28,LAndcost3,2,FALSE),IF($E$8="Location",VLOOKUP(P28,Landcost2,2,FALSE),"Error"))) -> 0 | S28: 0 | U28: =IFERROR(('General Input Sheet'!$G$38/(VLOOKUP('Existing Trunk Assets - Water'!T28,'General Input Sheet'!$E$38:$G$44,3,FALSE))),1) -> 1 | V28: 68181.81818 | W28: Y | BB28: 4501 | CF28: 4501 | CH28: 68181.81818
C29: TI_WPS 003 | D29: Pump Station | G29: High Lift Pump Station 1 | K29: 0 | L29: 68181.81818 | N29: =IF(M29="",1,VLOOKUP(M29,'Unit Rates - Water'!$H$12:$I$23,2,FALSE)) -> 1 | O29: 68181.81818 | R29: =IF(P29="",'Unit Rates - Land'!landcst,IF($E$8="Landuse",VLOOKUP(P29,LAndcost3,2,FALSE),IF($E$8="Location",VLOOKUP(P29,Landcost2,2,FALSE),"Error"))) -> 0 | S29: 0 | U29: =IFERROR(('General Input Sheet'!$G$38/(VLOOKUP('Existing Trunk Assets - Water'!T29,'General Input Sheet'!$E$38:$G$44,3,FALSE))),1) -> 1 | V29: 68181.81818 | W29: Y | BB29: 4501 | CF29: 4501 | CH29: 68181.81818
C30: TI_WPS 004 | D30: Pump Station | G30: High Lift Pump Station 2 | K30: 0 | L30: 68181.81818 | N30: =IF(M30="",1,VLOOKUP(M30,'Unit Rates - Water'!$H$12:$I$23,2,FALSE)) -> 1 | O30: 68181.81818 | R30: =IF(P30="",'Unit Rates - Land'!landcst,IF($E$8="Landuse",VLOOKUP(P30,LAndcost3,2,FALSE),IF($E$8="Location",VLOOKUP(P30,Landcost2,2,FALSE),"Error"))) -> 0 | S30: 0 | U30: =IFERROR(('General Input Sheet'!$G$38/(VLOOKUP('Existing Trunk Assets - Water'!T30,'General Input Sheet'!$E$38:$G$44,3,FALSE))),1) -> 1 | V30: 68181.81818 | W30: Y | BB30: 4501 | CF30: 4501 | CH30: 68181.81818 | CW30: =IF(BQ30="","",(BQ30/$CF30)*$V30) -> 
C31: FWS_02 | D31: Water Treatment | G31: Upgrade filtration at Loggy Creek | K31: 0 | L31: 7272727.273 | N31: =IF(M31="",1,VLOOKUP(M31,'Unit Rates - Water'!$H$12:$I$23,2,FALSE)) -> 1 | O31: 7272727.273 | R31: =IF(P31="",'Unit Rates - Land'!landcst,IF($E$8="Landuse",VLOOKUP(P31,LAndcost3,2,FALSE),IF($E$8="Location",VLOOKUP(P31,Landcost2,2,FALSE),"Error"))) -> 0 | S31: 0 | U31: =IFERROR(('General Input Sheet'!$G$38/(VLOOKUP('Existing Trunk Assets - Water'!T31,'General Input Sheet'!$E$38:$G$44,3,FALSE))),1) -> 1 | V31: 7272727.273 | W31: Y | X31: Y | BB31: 4501 | BC31: 1546 | CF31: 6047 | CH31: =IF(BB31="","",(BB31/$CF31)*$V31) -> 5413352.977 | CI31: 1859374.295
K32: 0 | L32: =K32*I32 -> 0 | N32: =IF(M32="",1,VLOOKUP(M32,'Unit Rates - Water'!$H$12:$I$23,2,FALSE)) -> 1 | O32: 0 | R32: =IF(P32="",'Unit Rates - Land'!landcst,IF($E$8="Landuse",VLOOKUP(P32,LAndcost3,2,FALSE),IF($E$8="Location",VLOOKUP(P32,Landcost2,2,FALSE),"Error"))) -> 0 | S32: 0 | U32: =IFERROR(('General Input Sheet'!$G$38/(VLOOKUP('Existing Trunk Assets - Water'!T32,'General Input Sheet'!$E$38:$G$44,3,FALSE))),1) -> 1 | V32: 0 | CF32: 0
C33: HI_WM 109 | D33: Water Main | E33: UPVC | I33: 17.9112 | J33: 150 | K33: 0 | L33: 3750.129794 | N33: =IF(M33="",1,VLOOKUP(M33,'Unit Rates - Water'!$H$12:$I$23,2,FALSE)) -> 1 | O33: 3750.129794 | R33: =IF(P33="",'Unit Rates - Land'!landcst,IF($E$8="Landuse",VLOOKUP(P33,LAndcost3,2,FALSE),IF($E$8="Location",VLOOKUP(P33,Landcost2,2,FALSE),"Error"))) -> 0 | S33: 0 | U33: =IFERROR(('General Input Sheet'!$G$38/(VLOOKUP('Existing Trunk Assets - Water'!T33,'General Input Sheet'!$E$38:$G$44,3,FALSE))),1) -> 1 | V33: 3750.129794 | X33: Y | BC33: 1546 | CF33: 1546 | CI33: 3750.129794
C34: HI_WM 110 | D34: Water Main | E34: UPVC | I34: 44.8715 | J34: 150 | K34: 0 | L34: 9394.899213 | N34: =IF(M34="",1,VLOOKUP(M34,'Unit Rates - Water'!$H$12:$I$23,2,FALSE)) -> 1 | O34: 9394.899213 | R34: =IF(P34="",'Unit Rates - Land'!landcst,IF($E$8="Landuse",VLOOKUP(P34,LAndcost3,2,FALSE),IF($E$8="Location",VLOOKUP(P34,Landcost2,2,FALSE),"Error"))) -> 0 | S34: 0 | U34: =IFERROR(('General Input Sheet'!$G$38/(VLOOKUP('Existing Trunk Assets - Water'!T34,'General Input Sheet'!$E$38:$G$44,3,FALSE))),1) -> 1 | V34: 9394.899213 | X34: Y | BC34: 1546 | CF34: 1546 | CI34: 9394.899213
C35: HI_WM 111 | D35: Water Main | E35: UPVC | I35: 71.1512 | J35: 150 | K35: 0 | L35: 14894.07658 | N35: =IF(M35="",1,VLOOKUP(M35,'Unit Rates - Water'!$H$12:$I$23,2,FALSE)) -> 1 | O35: 14894.07658 | R35: =IF(P35="",'Unit Rates - Land'!landcst,IF($E$8="Landuse",VLOOKUP(P35,LAndcost3,2,FALSE),IF($E$8="Location",VLOOKUP(P35,Landcost2,2,FALSE),"Error"))) -> 0 | S35: 0 | U35: =IFERROR(('General Input Sheet'!$G$38/(VLOOKUP('Existing Trunk Assets - Water'!T35,'General Input Sheet'!$E$38:$G$44,3,FALSE))),1) -> 1 | V35: 14894.07658 | X35: Y | BC35: 1546 | CF35: 1546 | CI35: 14894.07658
C36: HI_WM 112 | D36: Water Main | E36: UPVC | I36: 71.8326 | J36: 150 | K36: 0 | L36: 15035.80788 | N36: =IF(M36="",1,VLOOKUP(M36,'Unit Rates - Water'!$H$12:$I$23,2,FALSE)) -> 1 | O36: 15035.80788 | R36: =IF(P36="",'Unit Rates - Land'!landcst,IF($E$8="Landuse",VLOOKUP(P36,LAndcost3,2,FALSE),IF($E$8="Location",VLOOKUP(P36,Landcost2,2,FALSE),"Error"))) -> 0 | S36: 0 | U36: =IFERROR(('General Input Sheet'!$G$38/(VLOOKUP('Existing Trunk Assets - Water'!T36,'General Input Sheet'!$E$38:$G$44,3,FALSE))),1) -> 1 | V36: 15035.80788 | X36: Y | BC36: 1546 | CF36: 1546 | CI36: 15035.80788
C37: HI_WM 113 | D37: Water Main | E37: UPVC | I37: 71.8672 | J37: 150 | K37: 0 | L37: 15044.38614 | N37: =IF(M37="",1,VLOOKUP(M37,'Unit Rates - Water'!$H$12:$I$23,2,FALSE)) -> 1 | O37: 15044.38614 | R37: =IF(P37="",'Unit Rates - Land'!landcst,IF($E$8="Landuse",VLOOKUP(P37,LAndcost3,2,FALSE),IF($E$8="Location",VLOOKUP(P37,Landcost2,2,FALSE),"Error"))) -> 0 | S37: 0 | U37: =IFERROR(('General Input Sheet'!$G$38/(VLOOKUP('Existing Trunk Assets - Water'!T37,'General Input Sheet'!$E$38:$G$44,3,FALSE))),1) -> 1 | V37: 15044.38614 | X37: Y | BC37: 1546 | CF37: 1546 | CI37: 15044.38614
C38: HI_WM 114 | D38: Water Main | E38: UPVC | I38: 18.8838 | J38: 150 | K38: 0 | L38: 3952.48163 | N38: =IF(M38="",1,VLOOKUP(M38,'Unit Rates - Water'!$H$12:$I$23,2,FALSE)) -> 1 | O38: 3952.48163 | R38: =IF(P38="",'Unit Rates - Land'!landcst,IF($E$8="Landuse",VLOOKUP(P38,LAndcost3,2,FALSE),IF($E$8="Location",VLOOKUP(P38,Landcost2,2,FALSE),"Error"))) -> 0 | S38: 0 | U38: =IFERROR(('General Input Sheet'!$G$38/(VLOOKUP('Existing Trunk Assets - Water'!T38,'General Input Sheet'!$E$38:$G$44,3,FALSE))),1) -> 1 | V38: 3952.48163 | X38: Y | BC38: 1546 | CF38: 1546 | CI38: 3952.48163
C39: HI_WM 115 | D39: Water Main | E39: UPVC | I39: 124.06 | J39: 150 | K39: 0 | L39: 25979.25524 | N39: =IF(M39="",1,VLOOKUP(M39,'Unit Rates - Water'!$H$12:$I$23,2,FALSE)) -> 1 | O39: 25979.25524 | R39: =IF(P39="",'Unit Rates - Land'!landcst,IF($E$8="Landuse",VLOOKUP(P39,LAndcost3,2,FALSE),IF($E$8="Location",VLOOKUP(P39,Landcost2,2,FALSE),"Error"))) -> 0 | S39: 0 | U39: =IFERROR(('General Input Sheet'!$G$38/(VLOOKUP('Existing Trunk Assets - Water'!T39,'General Input Sheet'!$E$38:$G$44,3,FALSE))),1) -> 1 | V39: 25979.25524 | X39: Y | BC39: 1546 | CF39: 1546 | CI39: 25979.25524
C40: HI_WM 116 | D40: Water Main | E40: UPVC | I40: 135.995 | J40: 150 | K40: 0 | L40: 28532.15892 | N40: =IF(M40="",1,VLOOKUP(M40,'Unit Rates - Water'!$H$12:$I$23,2,FALSE)) -> 1 | O40: 28532.15892 | R40: =IF(P40="",'Unit Rates - Land'!landcst,IF($E$8="Landuse",VLOOKUP(P40,LAndcost3,2,FALSE),IF($E$8="Location",VLOOKUP(P40,Landcost2,2,FALSE),"Error"))) -> 0 | S40: 0 | U40: =IFERROR(('General Input Sheet'!$G$38/(VLOOKUP('Existing Trunk Assets - Water'!T40,'General Input Sheet'!$E$38:$G$44,3,FALSE))),1) -> 1 | V40: 28532.15892 | X40: Y | BC40: 1546 | CF40: 1546 | CI40: 28532.15892
C41: HI_WM 117 | D41: Water Main | E41: UPVC | I41: 154.472 | J41: 150 | K41: 0 | L41: 32411.21511 | N41: =IF(M41="",1,VLOOKUP(M41,'Unit Rates - Water'!$H$12:$I$23,2,FALSE)) -> 1 | O41: 32411.21511 | R41: =IF(P41="",'Unit Rates - Land'!landcst,IF($E$8="Landuse",VLOOKUP(P41,LAndcost3,2,FALSE),IF($E$8="Location",VLOOKUP(P41,Landcost2,2,FALSE),"Error"))) -> 0 | S41: 0 | U41: =IFERROR(('General Input Sheet'!$G$38/(VLOOKUP('Existing Trunk Assets - Water'!T41,'General Input Sheet'!$E$38:$G$44,3,FALSE))),1) -> 1 | V41: 32411.21511 | X41: Y | BC41: 1546 | CF41: 1546 | CI41: 32411.21511
C42: HI_WM 118 | D42: Water Main | E42: UPVC | G42: Supply from HI 2ML reservoir to Clarifier on TI | I42: 984.582 | J42: 300 | K42: 0 | L42: 773792.9059 | N42: =IF(M42="",1,VLOOKUP(M42,'Unit Rates - Water'!$H$12:$I$23,2,FALSE)) -> 1 | O42: 773792.9059 | R42: =IF(P42="",'Unit Rates - Land'!landcst,IF($E$8="Landuse",VLOOKUP(P42,LAndcost3,2,FALSE),IF($E$8="Location",VLOOKUP(P42,Landcost2,2,FALSE),"Error"))) -> 0 | S42: 0 | U42: =IFERROR(('General Input Sheet'!$G$38/(VLOOKUP('Existing Trunk Assets - Water'!T42,'General Input Sheet'!$E$38:$G$44,3,FALSE))),1) -> 1 | V42: 773792.9059 | W42: Y | BB42: 4501 | CF42: 4501 | CH42: 773792.9059
C43: HI_WM 119 | D43: Water Main | E43: UPVC | I43: 71.1924 | J43: 150 | K43: 0 | L43: 14937.30692 | N43: =IF(M43="",1,VLOOKUP(M43,'Unit Rates - Water'!$H$12:$I$23,2,FALSE)) -> 1 | O43: 14937.30692 | R43: =IF(P43="",'Unit Rates - Land'!landcst,IF($E$8="Landuse",VLOOKUP(P43,LAndcost3,2,FALSE),IF($E$8="Location",VLOOKUP(P43,Landcost2,2,FALSE),"Error"))) -> 0 | S43: 0 | U43: =IFERROR(('General Input Sheet'!$G$38/(VLOOKUP('Existing Trunk Assets - Water'!T43,'General Input Sheet'!$E$38:$G$44,3,FALSE))),1) -> 1 | V43: 14937.30692 | X43: Y | BC43: 1546 | CF43: 1546 | CI43: 14937.30692
C44: HI_WM 120 | D44: Water Main | E44: UPVC | I44: 59.588 | J44: 150 | K44: 0 | L44: 12502.91465 | N44: =IF(M44="",1,VLOOKUP(M44,'Unit Rates - Water'!$H$12:$I$23,2,FALSE)) -> 1 | O44: 12502.91465 | R44: =IF(P44="",'Unit Rates - Land'!landcst,IF($E$8="Landuse",VLOOKUP(P44,LAndcost3,2,FALSE),IF($E$8="Location",VLOOKUP(P44,Landcost2,2,FALSE),"Error"))) -> 0 | S44: 0 | U44: =IFERROR(('General Input Sheet'!$G$38/(VLOOKUP('Existing Trunk Assets - Water'!T44,'General Input Sheet'!$E$38:$G$44,3,FALSE))),1) -> 1 | V44: 12502.91465 | X44: Y | BC44: 1546 | CF44: 1546 | CI44: 12502.91465
C45: HI_WM 121 | D45: Water Main | E45: UPVC | I45: 24.8152 | J45: 150 | K45: 0 | L45: 5173.540184 | N45: =IF(M45="",1,VLOOKUP(M45,'Unit Rates - Water'!$H$12:$I$23,2,FALSE)) -> 1 | O45: 5173.540184 | R45: =IF(P45="",'Unit Rates - Land'!landcst,IF($E$8="Landuse",VLOOKUP(P45,LAndcost3,2,FALSE),IF($E$8="Location",VLOOKUP(P45,Landcost2,2,FALSE),"Error"))) -> 0 | S45: 0 | U45: =IFERROR(('General Input Sheet'!$G$38/(VLOOKUP('Existing Trunk Assets - Water'!T45,'General Input Sheet'!$E$38:$G$44,3,FALSE))),1) -> 1 | V45: 5173.540184 | X45: Y | BC45: 1546 | CF45: 1546 | CI45: 5173.540184
C46: HI_WM 122 | D46: Water Main | E46: UPVC | I46: 1695.16 | J46: 300 | K46: 0 | L46: 1332836.087 | N46: =IF(M46="",1,VLOOKUP(M46,'Unit Rates - Water'!$H$12:$I$23,2,FALSE)) -> 1 | O46: 1332836.087 | R46: =IF(P46="",'Unit Rates - Land'!landcst,IF($E$8="Landuse",VLOOKUP(P46,LAndcost3,2,FALSE),IF($E$8="Location",VLOOKUP(P46,Landcost2,2,FALSE),"Error"))) -> 0 | S46: 0 | U46: =IFERROR(('General Input Sheet'!$G$38/(VLOOKUP('Existing Trunk Assets - Water'!T46,'General Input Sheet'!$E$38:$G$44,3,FALSE))),1) -> 1 | V46: 1332836.087 | W46: Y | X46: Y | BB46: 4501 | BC46: 1546 | CF46: 6047 | CH46: 992077.9273 | CI46: 340758.1594
C47: HI_WM 123 | D47: Water Main | E47: UPVC | I47: 1681.95 | J47: 150 | K47: 0 | L47: 352652.7788 | N47: =IF(M47="",1,VLOOKUP(M47,'Unit Rates - Water'!$H$12:$I$23,2,FALSE)) -> 1 | O47: 352652.7788 | R47: =IF(P47="",'Unit Rates - Land'!landcst,IF($E$8="Landuse",VLOOKUP(P47,LAndcost3,2,FALSE),IF($E$8="Location",VLOOKUP(P47,Landcost2,2,FALSE),"Error"))) -> 0 | S47: 0 | U47: =IFERROR(('General Input Sheet'!$G$38/(VLOOKUP('Existing Trunk Assets - Water'!T47,'General Input Sheet'!$E$38:$G$44,3,FALSE))),1) -> 1 | V47: 352652.7788 | W47: Y | X47: Y | BB47: 4501 | BC47: 1546 | CF47: 6047 | CH47: 262492.1709 | CI47: 90160.60792 | DK47: =IF(CE47="","",(CE47/$CF47)*$V47) -> 
C48: HI_WM 124 | D48: Water Main | E48: UPVC | I48: 1491.95 | J48: 150 | K48: 0 | L48: 312590.099 | N48: =IF(M48="",1,VLOOKUP(M48,'Unit Rates - Water'!$H$12:$I$23,2,FALSE)) -> 1 | O48: 312590.099 | R48: =IF(P48="",'Unit Rates - Land'!landcst,IF($E$8="Landuse",VLOOKUP(P48,LAndcost3,2,FALSE),IF($E$8="Location",VLOOKUP(P48,Landcost2,2,FALSE),"Error"))) -> 0 | S48: 0 | U48: =IFERROR(('General Input Sheet'!$G$38/(VLOOKUP('Existing Trunk Assets - Water'!T48,'General Input Sheet'!$E$38:$G$44,3,FALSE))),1) -> 1 | V48: 312590.099 | W48: Y | X48: Y | BB48: 4501 | BC48: 1546 | CF48: 6047 | CH48: =IF(BB48="","",(BB48/$CF48)*$V48) -> 232672.0747 | CI48: 79918.02433 | CX48: =IF(BR48="","",(BR48/$CF48)*$V48) -> 
C49: HI_WM 125 | D49: Water Main | E49: UPVC | I49: 21.3844 | J49: 300 | K49: 0 | L49: 16818.17074 | N49: =IF(M49="",1,VLOOKUP(M49,'Unit Rates - Water'!$H$12:$I$23,2,FALSE)) -> 1 | O49: 16818.17074 | R49: =IF(P49="",'Unit Rates - Land'!landcst,IF($E$8="Landuse",VLOOKUP(P49,LAndcost3,2,FALSE),IF($E$8="Location",VLOOKUP(P49,Landcost2,2,FALSE),"Error"))) -> 0 | S49: 0 | U49: =IFERROR(('General Input Sheet'!$G$38/(VLOOKUP('Existing Trunk Assets - Water'!T49,'General Input Sheet'!$E$38:$G$44,3,FALSE))),1) -> 1 | V49: 16818.17074 | W49: Y | X49: Y | BB49: 4501 | BC49: 1546 | CF49: 6047 | CH49: 12518.37051 | CI49: 4299.800226
C50: HI_WM 131 | D50: Water Main | E50: UPVC | I50: 17.1573 | J50: 300 | K50: 0 | L50: 13479.54876 | N50: =IF(M50="",1,VLOOKUP(M50,'Unit Rates - Water'!$H$12:$I$23,2,FALSE)) -> 1 | O50: 13479.54876 | R50: =IF(P50="",'Unit Rates - Land'!landcst,IF($E$8="Landuse",VLOOKUP(P50,LAndcost3,2,FALSE),IF($E$8="Location",VLOOKUP(P50,Landcost2,2,FALSE),"Error"))) -> 0 | S50: 0 | U50: =IFERROR(('General Input Sheet'!$G$38/(VLOOKUP('Existing Trunk Assets - Water'!T50,'General Input Sheet'!$E$38:$G$44,3,FALSE))),1) -> 1 | V50: 13479.54876 | W50: Y | X50: Y | BB50: 4501 | BC50: 1546 | CF50: 6047 | CH50: 10033.31387 | CI50: 3446.23489
C51: HI_WM 132 | D51: Water Main | E51: UPVC | I51: 3.98834 | J51: 300 | K51: 0 | L51: 3119.066917 | N51: =IF(M51="",1,VLOOKUP(M51,'Unit Rates - Water'!$H$12:$I$23,2,FALSE)) -> 1 | O51: 3119.066917 | R51: =IF(P51="",'Unit Rates - Land'!landcst,IF($E$8="Landuse",VLOOKUP(P51,LAndcost3,2,FALSE),IF($E$8="Location",VLOOKUP(P51,Landcost2,2,FALSE),"Error"))) -> 0 | S51: 0 | U51: =IFERROR(('General Input Sheet'!$G$38/(VLOOKUP('Existing Trunk Assets - Water'!T51,'General Input Sheet'!$E$38:$G$44,3,FALSE))),1) -> 1 | V51: 3119.066917 | W51: Y | X51: Y | BB51: 4501 | BC51: 1546 | CF51: 6047 | CH51: 2321.6339 | CI51: 797.433017
C52: HI_WM 133 | D52: Water Main | E52: UPVC | I52: 5.45111 | J52: 300 | K52: 0 | L52: 4269.905328 | N52: =IF(M52="",1,VLOOKUP(M52,'Unit Rates - Water'!$H$12:$I$23,2,FALSE)) -> 1 | O52: 4269.905328 | R52: =IF(P52="",'Unit Rates - Land'!landcst,IF($E$8="Landuse",VLOOKUP(P52,LAndcost3,2,FALSE),IF($E$8="Location",VLOOKUP(P52,Landcost2,2,FALSE),"Error"))) -> 0 | S52: 0 | U52: =IFERROR(('General Input Sheet'!$G$38/(VLOOKUP('Existing Trunk Assets - Water'!T52,'General Input Sheet'!$E$38:$G$44,3,FALSE))),1) -> 1 | V52: 4269.905328 | W52: Y | X52: Y | BB52: 4501 | BC52: 1546 | CF52: 6047 | CH52: 3178.244399 | CI52: 1091.660929
C53: HI_WM 134 | D53: Water Main | E53: UPVC | I53: 3.26042 | J53: 300 | K53: 0 | L53: 2564.354744 | N53: =IF(M53="",1,VLOOKUP(M53,'Unit Rates - Water'!$H$12:$I$23,2,FALSE)) -> 1 | O53: 2564.354744 | R53: =IF(P53="",'Unit Rates - Land'!landcst,IF($E$8="Landuse",VLOOKUP(P53,LAndcost3,2,FALSE),IF($E$8="Location",VLOOKUP(P53,Landcost2,2,FALSE),"Error"))) -> 0 | S53: 0 | U53: =IFERROR(('General Input Sheet'!$G$38/(VLOOKUP('Existing Trunk Assets - Water'!T53,'General Input Sheet'!$E$38:$G$44,3,FALSE))),1) -> 1 | V53: 2564.354744 | W53: Y | X53: Y | BB53: 4501 | BC53: 1546 | CF53: 6047 | CH53: 1908.741641 | CI53: 655.6131031
C54: HI_WM 135 | D54: Water Main | E54: UPVC | I54: 3.39146 | J54: 300 | K54: 0 | L54: 2667.629974 | N54: =IF(M54="",1,VLOOKUP(M54,'Unit Rates - Water'!$H$12:$I$23,2,FALSE)) -> 1 | O54: 2667.629974 | R54: =IF(P54="",'Unit Rates - Land'!landcst,IF($E$8="Landuse",VLOOKUP(P54,LAndcost3,2,FALSE),IF($E$8="Location",VLOOKUP(P54,Landcost2,2,FALSE),"Error"))) -> 0 | S54: 0 | U54: =IFERROR(('General Input Sheet'!$G$38/(VLOOKUP('Existing Trunk Assets - Water'!T54,'General Input Sheet'!$E$38:$G$44,3,FALSE))),1) -> 1 | V54: 2667.629974 | W54: Y | X54: Y | BB54: 4501 | BC54: 1546 | CF54: 6047 | CH54: 1985.613116 | CI54: 682.0168579
C55: HI_WM 136 | D55: Water Main | E55: UPVC | I55: 1.52616 | J55: 300 | K55: 0 | L55: 1200.433486 | N55: =IF(M55="",1,VLOOKUP(M55,'Unit Rates - Water'!$H$12:$I$23,2,FALSE)) -> 1 | O55: 1200.433486 | R55: =IF(P55="",'Unit Rates - Land'!landcst,IF($E$8="Landuse",VLOOKUP(P55,LAndcost3,2,FALSE),IF($E$8="Location",VLOOKUP(P55,Landcost2,2,FALSE),"Error"))) -> 0 | S55: 0 | U55: =IFERROR(('General Input Sheet'!$G$38/(VLOOKUP('Existing Trunk Assets - Water'!T55,'General Input Sheet'!$E$38:$G$44,3,FALSE))),1) -> 1 | V55: 1200.433486 | W55: Y | X55: Y | BB55: 4501 | BC55: 1546 | CF55: 6047 | CH55: 893.5259005 | CI55: 306.9075855
C56: HI_WM 137 | D56: Water Main | E56: UPVC | I56: 3.40047 | J56: 300 | K56: 0 | L56: 2674.797481 | N56: =IF(M56="",1,VLOOKUP(M56,'Unit Rates - Water'!$H$12:$I$23,2,FALSE)) -> 1 | O56: 2674.797481 | R56: =IF(P56="",'Unit Rates - Land'!landcst,IF($E$8="Landuse",VLOOKUP(P56,LAndcost3,2,FALSE),IF($E$8="Location",VLOOKUP(P56,Landcost2,2,FALSE),"Error"))) -> 0 | S56: 0 | U56: =IFERROR(('General Input Sheet'!$G$38/(VLOOKUP('Existing Trunk Assets - Water'!T56,'General Input Sheet'!$E$38:$G$44,3,FALSE))),1) -> 1 | V56: 2674.797481 | W56: Y | X56: Y | BB56: 4501 | BC56: 1546 | CF56: 6047 | CH56: 1990.94815 | CI56: 683.8493313
C57: HI_WM 138 | D57: Water Main | E57: UPVC | I57: 1.43674 | J57: 300 | K57: 0 | L57: 1130.142032 | N57: =IF(M57="",1,VLOOKUP(M57,'Unit Rates - Water'!$H$12:$I$23,2,FALSE)) -> 1 | O57: 1130.142032 | R57: =IF(P57="",'Unit Rates - Land'!landcst,IF($E$8="Landuse",VLOOKUP(P57,LAndcost3,2,FALSE),IF($E$8="Location",VLOOKUP(P57,Landcost2,2,FALSE),"Error"))) -> 0 | S57: 0 | U57: =IFERROR(('General Input Sheet'!$G$38/(VLOOKUP('Existing Trunk Assets - Water'!T57,'General Input Sheet'!$E$38:$G$44,3,FALSE))),1) -> 1 | V57: 1130.142032 | W57: Y | X57: Y | BB57: 4501 | BC57: 1546 | CF57: 6047 | CH57: 841.2054383 | CI57: 288.9365936
C58: HI_WM 139 | D58: Water Main | E58: UPVC | I58: 8.26397 | J58: 300 | K58: 0 | L58: 6482.590318 | N58: =IF(M58="",1,VLOOKUP(M58,'Unit Rates - Water'!$H$12:$I$23,2,FALSE)) -> 1 | O58: 6482.590318 | R58: =IF(P58="",'Unit Rates - Land'!landcst,IF($E$8="Landuse",VLOOKUP(P58,LAndcost3,2,FALSE),IF($E$8="Location",VLOOKUP(P58,Landcost2,2,FALSE),"Error"))) -> 0 | S58: 0 | U58: =IFERROR(('General Input Sheet'!$G$38/(VLOOKUP('Existing Trunk Assets - Water'!T58,'General Input Sheet'!$E$38:$G$44,3,FALSE))),1) -> 1 | V58: 6482.590318 | W58: Y | X58: Y | BB58: 4501 | BC58: 1546 | CF58: 6047 | CH58: 4825.22557 | CI58: 1657.364748
C59: HI_WM 140 | D59: Water Main | E59: UPVC | I59: 4.12972 | J59: 300 | K59: 0 | L59: 3229.112699 | N59: =IF(M59="",1,VLOOKUP(M59,'Unit Rates - Water'!$H$12:$I$23,2,FALSE)) -> 1 | O59: 3229.112699 | R59: =IF(P59="",'Unit Rates - Land'!landcst,IF($E$8="Landuse",VLOOKUP(P59,LAndcost3,2,FALSE),IF($E$8="Location",VLOOKUP(P59,Landcost2,2,FALSE),"Error"))) -> 0 | S59: 0 | U59: =IFERROR(('General Input Sheet'!$G$38/(VLOOKUP('Existing Trunk Assets - Water'!T59,'General Input Sheet'!$E$38:$G$44,3,FALSE))),1) -> 1 | V59: 3229.112699 | W59: Y | X59: Y | BB59: 4501 | BC59: 1546 | CF59: 6047 | CH59: 2403.544941 | CI59: 825.567758
C60: HI_WM 141 | D60: Water Main | E60: UPVC | I60: 146.221 | J60: 300 | K60: 0 | L60: 114980.7405 | N60: =IF(M60="",1,VLOOKUP(M60,'Unit Rates - Water'!$H$12:$I$23,2,FALSE)) -> 1 | O60: 114980.7405 | R60: =IF(P60="",'Unit Rates - Land'!landcst,IF($E$8="Landuse",VLOOKUP(P60,LAndcost3,2,FALSE),IF($E$8="Location",VLOOKUP(P60,Landcost2,2,FALSE),"Error"))) -> 0 | S60: 0 | U60: =IFERROR(('General Input Sheet'!$G$38/(VLOOKUP('Existing Trunk Assets - Water'!T60,'General Input Sheet'!$E$38:$G$44,3,FALSE))),1) -> 1 | V60: 114980.7405 | W60: Y | X60: Y | BB60: 4501 | BC60: 1546 | CF60: 6047 | CH60: 85584.3084 | CI60: 29396.43208
C61: HI_WM 142 | D61: Water Main | E61: UPVC | I61: 4.82143 | J61: 300 | K61: 0 | L61: 3792.756688 | N61: =IF(M61="",1,VLOOKUP(M61,'Unit Rates - Water'!$H$12:$I$23,2,FALSE)) -> 1 | O61: 3792.756688 | R61: =IF(P61="",'Unit Rates - Land'!landcst,IF($E$8="Landuse",VLOOKUP(P61,LAndcost3,2,FALSE),IF($E$8="Location",VLOOKUP(P61,Landcost2,2,FALSE),"Error"))) -> 0 | S61: 0 | U61: =IFERROR(('General Input Sheet'!$G$38/(VLOOKUP('Existing Trunk Assets - Water'!T61,'General Input Sheet'!$E$38:$G$44,3,FALSE))),1) -> 1 | V61: 3792.756688 | W61: Y | X61: Y | BB61: 4501 | BC61: 1546 | CF61: 6047 | CH61: 2823.085473 | CI61: 969.6712154
C62: HI_WM 143 | D62: Water Main | E62: UPVC | I62: 4.46511 | J62: 300 | K62: 0 | L62: 3512.651725 | N62: =IF(M62="",1,VLOOKUP(M62,'Unit Rates - Water'!$H$12:$I$23,2,FALSE)) -> 1 | O62: 3512.651725 | R62: =IF(P62="",'Unit Rates - Land'!landcst,IF($E$8="Landuse",VLOOKUP(P62,LAndcost3,2,FALSE),IF($E$8="Location",VLOOKUP(P62,Landcost2,2,FALSE),"Error"))) -> 0 | S62: 0 | U62: =IFERROR(('General Input Sheet'!$G$38/(VLOOKUP('Existing Trunk Assets - Water'!T62,'General Input Sheet'!$E$38:$G$44,3,FALSE))),1) -> 1 | V62: 3512.651725 | W62: Y | X62: Y | BB62: 4501 | BC62: 1546 | CF62: 6047 | CH62: 2614.593255 | CI62: 898.0584699
C63: HI_WM 144 | D63: Water Main | E63: UPVC | I63: 1874.69 | J63: 300 | K63: 0 | L63: 1474042.982 | N63: =IF(M63="",1,VLOOKUP(M63,'Unit Rates - Water'!$H$12:$I$23,2,FALSE)) -> 1 | O63: 1474042.982 | R63: =IF(P63="",'Unit Rates - Land'!landcst,IF($E$8="Landuse",VLOOKUP(P63,LAndcost3,2,FALSE),IF($E$8="Location",VLOOKUP(P63,Landcost2,2,FALSE),"Error"))) -> 0 | S63: 0 | U63: =IFERROR(('General Input Sheet'!$G$38/(VLOOKUP('Existing Trunk Assets - Water'!T63,'General Input Sheet'!$E$38:$G$44,3,FALSE))),1) -> 1 | V63: 1474042.982 | W63: Y | X63: Y | BB63: 4501 | BC63: 1546 | CF63: 6047 | CH63: 1097183.308 | CI63: 376859.6742 | CW63: =IF(BQ63="","",(BQ63/$CF63)*$V63) -> 
C64: HI_WM 145 | D64: Water Main | E64: UPVC | I64: 29.2888 | J64: 300 | K64: 0 | L64: 23034.71711 | N64: =IF(M64="",1,VLOOKUP(M64,'Unit Rates - Water'!$H$12:$I$23,2,FALSE)) -> 1 | O64: 23034.71711 | R64: =IF(P64="",'Unit Rates - Land'!landcst,IF($E$8="Landuse",VLOOKUP(P64,LAndcost3,2,FALSE),IF($E$8="Location",VLOOKUP(P64,Landcost2,2,FALSE),"Error"))) -> 0 | S64: 0 | U64: =IFERROR(('General Input Sheet'!$G$38/(VLOOKUP('Existing Trunk Assets - Water'!T64,'General Input Sheet'!$E$38:$G$44,3,FALSE))),1) -> 1 | V64: 23034.71711 | W64: Y | X64: Y | BB64: 4501 | BC64: 1546 | CF64: 6047 | CH64: =IF(BB64="","",(BB64/$CF64)*$V64) -> 17145.56999 | CI64: 5889.147123
C65: HI_WM 148 | D65: Water Main | E65: UPVC | G65: Supply from HI 2ML reservoir to Clarifier on TI | I65: 32.4162 | J65: 300 | K65: 0 | L65: 25383.85523 | N65: =IF(M65="",1,VLOOKUP(M65,'Unit Rates - Water'!$H$12:$I$23,2,FALSE)) -> 1 | O65: 25383.85523 | R65: =IF(P65="",'Unit Rates - Land'!landcst,IF($E$8="Landuse",VLOOKUP(P65,LAndcost3,2,FALSE),IF($E$8="Location",VLOOKUP(P65,Landcost2,2,FALSE),"Error"))) -> 0 | S65: 0 | U65: =IFERROR(('General Input Sheet'!$G$38/(VLOOKUP('Existing Trunk Assets - Water'!T65,'General Input Sheet'!$E$38:$G$44,3,FALSE))),1) -> 1 | V65: 25383.85523 | W65: Y | BB65: 4501 | CF65: 4501 | CH65: 25383.85523
C66: HI_WM 149 | D66: Water Main | E66: UPVC | G66: Supply from HI 2ML reservoir to Clarifier on TI | I66: 702.354 | J66: 300 | K66: 0 | L66: 550821.2761 | N66: =IF(M66="",1,VLOOKUP(M66,'Unit Rates - Water'!$H$12:$I$23,2,FALSE)) -> 1 | O66: 550821.2761 | R66: =IF(P66="",'Unit Rates - Land'!landcst,IF($E$8="Landuse",VLOOKUP(P66,LAndcost3,2,FALSE),IF($E$8="Location",VLOOKUP(P66,Landcost2,2,FALSE),"Error"))) -> 0 | S66: 0 | U66: =IFERROR(('General Input Sheet'!$G$38/(VLOOKUP('Existing Trunk Assets - Water'!T66,'General Input Sheet'!$E$38:$G$44,3,FALSE))),1) -> 1 | V66: 550821.2761 | W66: Y | BB66: 4501 | CF66: 4501 | CH66: 550821.2761
C67: HI_WM 150 | D67: Water Main | E67: UPVC | I67: 509.709 | J67: 150 | K67: 0 | L67: 106535.8401 | N67: =IF(M67="",1,VLOOKUP(M67,'Unit Rates - Water'!$H$12:$I$23,2,FALSE)) -> 1 | O67: 106535.8401 | R67: =IF(P67="",'Unit Rates - Land'!landcst,IF($E$8="Landuse",VLOOKUP(P67,LAndcost3,2,FALSE),IF($E$8="Location",VLOOKUP(P67,Landcost2,2,FALSE),"Error"))) -> 0 | S67: 0 | U67: =IFERROR(('General Input Sheet'!$G$38/(VLOOKUP('Existing Trunk Assets - Water'!T67,'General Input Sheet'!$E$38:$G$44,3,FALSE))),1) -> 1 | V67: 106535.8401 | X67: Y | BC67: 1546 | CF67: 1546 | CI67: 106535.8401 | DF67: =IF(BZ67="","",(BZ67/$CF67)*$V67) -> 
C68: HI_WM 151 | D68: Water Main | E68: UPVC | I68: 29.2994 | J68: 150 | K68: 0 | L68: 6118.736945 | N68: =IF(M68="",1,VLOOKUP(M68,'Unit Rates - Water'!$H$12:$I$23,2,FALSE)) -> 1 | O68: 6118.736945 | R68: =IF(P68="",'Unit Rates - Land'!landcst,IF($E$8="Landuse",VLOOKUP(P68,LAndcost3,2,FALSE),IF($E$8="Location",VLOOKUP(P68,Landcost2,2,FALSE),"Error"))) -> 0 | S68: 0 | U68: =IFERROR(('General Input Sheet'!$G$38/(VLOOKUP('Existing Trunk Assets - Water'!T68,'General Input Sheet'!$E$38:$G$44,3,FALSE))),1) -> 1 | V68: 6118.736945 | X68: Y | BC68: 1546 | CF68: 1546 | CI68: 6118.736945
C69: SUM_WM 001 | D69: Water Main | E69: UPVC | G69: Supply from HI 2ML reservoir to Clarifier on TI | I69: 1977.71 | J69: 300 | K69: 0 | L69: 1551887.888 | N69: =IF(M69="",1,VLOOKUP(M69,'Unit Rates - Water'!$H$12:$I$23,2,FALSE)) -> 1 | O69: 1551887.888 | R69: =IF(P69="",'Unit Rates - Land'!landcst,IF($E$8="Landuse",VLOOKUP(P69,LAndcost3,2,FALSE),IF($E$8="Location",VLOOKUP(P69,Landcost2,2,FALSE),"Error"))) -> 0 | S69: 0 | U69: =IFERROR(('General Input Sheet'!$G$38/(VLOOKUP('Existing Trunk Assets - Water'!T69,'General Input Sheet'!$E$38:$G$44,3,FALSE))),1) -> 1 | V69: 1551887.888 | W69: Y | BB69: 4501 | CF69: 4501 | CH69: 1551887.888
C70: TI_WM 007 | D70: Water Main | E70: AC | G70: Underground | I70: 203.304 | J70: 150 | K70: 0 | L70: 42534.14717 | N70: =IF(M70="",1,VLOOKUP(M70,'Unit Rates - Water'!$H$12:$I$23,2,FALSE)) -> 1 | O70: 42534.14717 | R70: =IF(P70="",'Unit Rates - Land'!landcst,IF($E$8="Landuse",VLOOKUP(P70,LAndcost3,2,FALSE),IF($E$8="Location",VLOOKUP(P70,Landcost2,2,FALSE),"Error"))) -> 0 | S70: 0 | U70: =IFERROR(('General Input Sheet'!$G$38/(VLOOKUP('Existing Trunk Assets - Water'!T70,'General Input Sheet'!$E$38:$G$44,3,FALSE))),1) -> 1 | V70: 42534.14717 | W70: Y | BB70: 4501 | CF70: 4501 | CH70: 42534.14717
C71: TI_WM 009 | D71: Water Main | E71: DICL | G71: Supply from Clarifier to 1ML Reservoir | I71: 2.0294 | J71: 250 | K71: 0 | L71: 881.4205035 | N71: =IF(M71="",1,VLOOKUP(M71,'Unit Rates - Water'!$H$12:$I$23,2,FALSE)) -> 1 | O71: 881.4205035 | R71: =IF(P71="",'Unit Rates - Land'!landcst,IF($E$8="Landuse",VLOOKUP(P71,LAndcost3,2,FALSE),IF($E$8="Location",VLOOKUP(P71,Landcost2,2,FALSE),"Error"))) -> 0 | S71: 0 | U71: =IFERROR(('General Input Sheet'!$G$38/(VLOOKUP('Existing Trunk Assets - Water'!T71,'General Input Sheet'!$E$38:$G$44,3,FALSE))),1) -> 1 | V71: 881.4205035 | W71: Y | BB71: 4501 | CF71: 4501 | CH71: 881.4205035
C72: TI_WM 014 | D72: Water Main | E72: UPVC | G72: Supply from HI 2ML reservoir to Clarifier on TI | I72: 85.5739 | J72: 300 | K72: 0 | L72: 67181.97079 | N72: =IF(M72="",1,VLOOKUP(M72,'Unit Rates - Water'!$H$12:$I$23,2,FALSE)) -> 1 | O72: 67181.97079 | R72: =IF(P72="",'Unit Rates - Land'!landcst,IF($E$8="Landuse",VLOOKUP(P72,LAndcost3,2,FALSE),IF($E$8="Location",VLOOKUP(P72,Landcost2,2,FALSE),"Error"))) -> 0 | S72: 0 | U72: =IFERROR(('General Input Sheet'!$G$38/(VLOOKUP('Existing Trunk Assets - Water'!T72,'General Input Sheet'!$E$38:$G$44,3,FALSE))),1) -> 1 | V72: 67181.97079 | W72: Y | BB72: 4501 | CF72: 4501 | CH72: 67181.97079
C73: TI_WM 015 | D73: Water Main | E73: UPVC | G73: Supply from HI 2ML reservoir to Clarifier on TI | I73: 94.0411 | J73: 300 | K73: 0 | L73: 73515.81061 | N73: =IF(M73="",1,VLOOKUP(M73,'Unit Rates - Water'!$H$12:$I$23,2,FALSE)) -> 1 | O73: 73515.81061 | R73: =IF(P73="",'Unit Rates - Land'!landcst,IF($E$8="Landuse",VLOOKUP(P73,LAndcost3,2,FALSE),IF($E$8="Location",VLOOKUP(P73,Landcost2,2,FALSE),"Error"))) -> 0 | S73: 0 | U73: =IFERROR(('General Input Sheet'!$G$38/(VLOOKUP('Existing Trunk Assets - Water'!T73,'General Input Sheet'!$E$38:$G$44,3,FALSE))),1) -> 1 | V73: 73515.81061 | W73: Y | BB73: 4501 | CF73: 4501 | CH73: 73515.81061
C74: TI_WM 016 | D74: Water Main | E74: UPVC | G74: Supply from HI 2ML reservoir to Clarifier on TI | I74: 279.01 | J74: 300 | K74: 0 | L74: 218846.7557 | N74: =IF(M74="",1,VLOOKUP(M74,'Unit Rates - Water'!$H$12:$I$23,2,FALSE)) -> 1 | O74: 218846.7557 | R74: =IF(P74="",'Unit Rates - Land'!landcst,IF($E$8="Landuse",VLOOKUP(P74,LAndcost3,2,FALSE),IF($E$8="Location",VLOOKUP(P74,Landcost2,2,FALSE),"Error"))) -> 0 | S74: 0 | U74: =IFERROR(('General Input Sheet'!$G$38/(VLOOKUP('Existing Trunk Assets - Water'!T74,'General Input Sheet'!$E$38:$G$44,3,FALSE))),1) -> 1 | V74: 218846.7557 | W74: Y | BB74: 4501 | CF74: 4501 | CH74: 218846.7557
C75: TI_WM 017 | D75: Water Main | E75: UPVC | G75: Supply from HI 2ML reservoir to Clarifier on TI | I75: 373.43 | J75: 300 | K75: 0 | L75: 293301.1747 | N75: =IF(M75="",1,VLOOKUP(M75,'Unit Rates - Water'!$H$12:$I$23,2,FALSE)) -> 1 | O75: 293301.1747 | R75: =IF(P75="",'Unit Rates - Land'!landcst,IF($E$8="Landuse",VLOOKUP(P75,LAndcost3,2,FALSE),IF($E$8="Location",VLOOKUP(P75,Landcost2,2,FALSE),"Error"))) -> 0 | S75: 0 | U75: =IFERROR(('General Input Sheet'!$G$38/(VLOOKUP('Existing Trunk Assets - Water'!T75,'General Input Sheet'!$E$38:$G$44,3,FALSE))),1) -> 1 | V75: 293301.1747 | W75: Y | BB75: 4501 | CF75: 4501 | CH75: 293301.1747
C76: TI_WM 018 | D76: Water Main | E76: UPVC | G76: Supply from HI 2ML reservoir to Clarifier on TI | I76: 742.703 | J76: 300 | K76: 0 | L76: 583172.2479 | N76: =IF(M76="",1,VLOOKUP(M76,'Unit Rates - Water'!$H$12:$I$23,2,FALSE)) -> 1 | O76: 583172.2479 | R76: =IF(P76="",'Unit Rates - Land'!landcst,IF($E$8="Landuse",VLOOKUP(P76,LAndcost3,2,FALSE),IF($E$8="Location",VLOOKUP(P76,Landcost2,2,FALSE),"Error"))) -> 0 | S76: 0 | U76: =IFERROR(('General Input Sheet'!$G$38/(VLOOKUP('Existing Trunk Assets - Water'!T76,'General Input Sheet'!$E$38:$G$44,3,FALSE))),1) -> 1 | V76: 583172.2479 | W76: Y | BB76: 4501 | CF76: 4501 | CH76: 583172.2479
C77: TI_WM 019 | D77: Water Main | E77: AC | G77: Underground | I77: 54.4092 | J77: 150 | K77: 0 | L77: 11408.09968 | N77: =IF(M77="",1,VLOOKUP(M77,'Unit Rates - Water'!$H$12:$I$23,2,FALSE)) -> 1 | O77: 11408.09968 | R77: =IF(P77="",'Unit Rates - Land'!landcst,IF($E$8="Landuse",VLOOKUP(P77,LAndcost3,2,FALSE),IF($E$8="Location",VLOOKUP(P77,Landcost2,2,FALSE),"Error"))) -> 0 | S77: 0 | U77: =IFERROR(('General Input Sheet'!$G$38/(VLOOKUP('Existing Trunk Assets - Water'!T77,'General Input Sheet'!$E$38:$G$44,3,FALSE))),1) -> 1 | V77: 11408.09968 | W77: Y | BB77: 4501 | CF77: 4501 | CH77: 11408.09968
C78: TI_WM 020 | D78: Water Main | E78: AC | G78: Underground | I78: 147.741 | J78: 150 | K78: 0 | L78: 30966.37814 | N78: =IF(M78="",1,VLOOKUP(M78,'Unit Rates - Water'!$H$12:$I$23,2,FALSE)) -> 1 | O78: 30966.37814 | R78: =IF(P78="",'Unit Rates - Land'!landcst,IF($E$8="Landuse",VLOOKUP(P78,LAndcost3,2,FALSE),IF($E$8="Location",VLOOKUP(P78,Landcost2,2,FALSE),"Error"))) -> 0 | S78: 0 | U78: =IFERROR(('General Input Sheet'!$G$38/(VLOOKUP('Existing Trunk Assets - Water'!T78,'General Input Sheet'!$E$38:$G$44,3,FALSE))),1) -> 1 | V78: 30966.37814 | W78: Y | BB78: 4501 | CF78: 4501 | CH78: 30966.37814
C79: TI_WM 022 | D79: Water Main | E79: AC | G79: Underground | I79: 7.40766 | J79: 225 | K79: =IF(H79=TYPE1,VLOOKUP(J79,WaterUnitrates1,2,FALSE),IF(H79=TYPE2,VLOOKUP(J79,Unitrates2,2,FALSE),0)) -> 0 | L79: 1932.888523 | N79: =IF(M79="",1,VLOOKUP(M79,'Unit Rates - Water'!$H$12:$I$23,2,FALSE)) -> 1 | O79: 1932.888523 | R79: =IF(P79="",'Unit Rates - Land'!landcst,IF($E$8="Landuse",VLOOKUP(P79,LAndcost3,2,FALSE),IF($E$8="Location",VLOOKUP(P79,Landcost2,2,FALSE),"Error"))) -> 0 | S79: 0 | U79: =IFERROR(('General Input Sheet'!$G$38/(VLOOKUP('Existing Trunk Assets - Water'!T79,'General Input Sheet'!$E$38:$G$44,3,FALSE))),1) -> 1 | V79: 1932.888523 | W79: Y | BB79: 4501 | CF79: 4501 | CH79: 1932.888523
C80: TI_WM 023 | D80: Water Main | E80: AC | G80: Underground | I80: 261.038 | J80: 225 | K80: 0 | L80: 68055.78145 | N80: =IF(M80="",1,VLOOKUP(M80,'Unit Rates - Water'!$H$12:$I$23,2,FALSE)) -> 1 | O80: =L80*N80 -> 68055.78145 | R80: =IF(P80="",'Unit Rates - Land'!landcst,IF($E$8="Landuse",VLOOKUP(P80,LAndcost3,2,FALSE),IF($E$8="Location",VLOOKUP(P80,Landcost2,2,FALSE),"Error"))) -> 0 | S80: =IF(R80="",0,R80*10000*Q80) -> 0 | U80: =IFERROR(('General Input Sheet'!$G$38/(VLOOKUP('Existing Trunk Assets - Water'!T80,'General Input Sheet'!$E$38:$G$44,3,FALSE))),1) -> 1 | V80: =IFERROR((O80+S80)*U80,0) -> 68055.78145 | W80: Y | BB80: 4501 | CF80: 4501 | CH80: 68055.78145
C81: TI_WM 024 | D81: Water Main | E81: AC | G81: Underground | I81: 2.45755 | J81: 225 | K81: 0 | L81: 641.319375 | N81: =IF(M81="",1,VLOOKUP(M81,'Unit Rates - Water'!$H$12:$I$23,2,FALSE)) -> 1 | O81: 641.319375 | R81: =IF(P81="",'Unit Rates - Land'!landcst,IF($E$8="Landuse",VLOOKUP(P81,LAndcost3,2,FALSE),IF($E$8="Location",VLOOKUP(P81,Landcost2,2,FALSE),"Error"))) -> 0 | S81: 0 | U81: =IFERROR(('General Input Sheet'!$G$38/(VLOOKUP('Existing Trunk Assets - Water'!T81,'General Input Sheet'!$E$38:$G$44,3,FALSE))),1) -> 1 | V81: 641.319375 | W81: Y | BB81: 4501 | CF81: 4501 | CH81: =IF(BB81="","",(BB81/$CF81)*$V81) -> 641.319375
C82: TI_WM 030 | D82: Water Main | E82: AC | G82: Underground | I82: 15.276 | J82: 225 | K82: 0 | L82: 3986.255857 | N82: =IF(M82="",1,VLOOKUP(M82,'Unit Rates - Water'!$H$12:$I$23,2,FALSE)) -> 1 | O82: 3986.255857 | R82: =IF(P82="",'Unit Rates - Land'!landcst,IF($E$8="Landuse",VLOOKUP(P82,LAndcost3,2,FALSE),IF($E$8="Location",VLOOKUP(P82,Landcost2,2,FALSE),"Error"))) -> 0 | S82: 0 | U82: =IFERROR(('General Input Sheet'!$G$38/(VLOOKUP('Existing Trunk Assets - Water'!T82,'General Input Sheet'!$E$38:$G$44,3,FALSE))),1) -> 1 | V82: 3986.255857 | W82: Y | BB82: 4501 | CF82: =SUM(BB82:CE82) -> 4501 | CH82: 3986.255857 | DL82: =IF(SUM(CH82:DK82)=V82,"","ERROR") -> 
C83: TI_WM 031 | D83: Water Main | E83: DICL | G83: Supply from Clarifier to 1ML Reservoir | I83: 18.7487 | J83: 250 | K83: 0 | L83: 8189.884522 | N83: =IF(M83="",1,VLOOKUP(M83,'Unit Rates - Water'!$H$12:$I$23,2,FALSE)) -> 1 | O83: 8189.884522 | R83: =IF(P83="",'Unit Rates - Land'!landcst,IF($E$8="Landuse",VLOOKUP(P83,LAndcost3,2,FALSE),IF($E$8="Location",VLOOKUP(P83,Landcost2,2,FALSE),"Error"))) -> 0 | S83: 0 | U83: =IFERROR(('General Input Sheet'!$G$38/(VLOOKUP('Existing Trunk Assets - Water'!T83,'General Input Sheet'!$E$38:$G$44,3,FALSE))),1) -> 1 | V83: 8189.884522 | W83: Y | BB83: 4501 | CF83: 4501 | CH83: 8189.884522
C84: TI_WM 032 | D84: Water Main | E84: DICL | G84: Supply from Clarifier to 1ML Reservoir | I84: 5.87677 | J84: 250 | K84: 0 | L84: 2568.305753 | N84: =IF(M84="",1,VLOOKUP(M84,'Unit Rates - Water'!$H$12:$I$23,2,FALSE)) -> 1 | O84: 2568.305753 | R84: =IF(P84="",'Unit Rates - Land'!landcst,IF($E$8="Landuse",VLOOKUP(P84,LAndcost3,2,FALSE),IF($E$8="Location",VLOOKUP(P84,Landcost2,2,FALSE),"Error"))) -> 0 | S84: 0 | U84: =IFERROR(('General Input Sheet'!$G$38/(VLOOKUP('Existing Trunk Assets - Water'!T84,'General Input Sheet'!$E$38:$G$44,3,FALSE))),1) -> 1 | V84: 2568.305753 | W84: Y | BB84: =IF(W84="y",BB$14,IF(AND(W84>0,W84<=1),W84*BB$14,"")) -> 4501 | BC84: =IF(X84="y",BC$14,IF(AND(X84>0,X84<=1),X84*BC$14,"")) ->  | BD84: =IF(Y84="y",BD$14,IF(AND(Y84>0,Y84<=1),Y84*BD$14,"")) ->  | BE84: =IF(Z84="y",BE$14,IF(AND(Z84>0,Z84<=1),Z84*BE$14,"")) ->  | BF84: =IF(AA84="y",BF$14,IF(AND(AA84>0,AA84<=1),AA84*BF$14,"")) ->  | BG84: =IF(AB84="y",BG$14,IF(AND(AB84>0,AB84<=1),AB84*BG$14,"")) ->  | BH84: =IF(AC84="y",BH$14,IF(AND(AC84>0,AC84<=1),AC84*BH$14,"")) ->  | BI84: =IF(AD84="y",BI$14,IF(AND(AD84>0,AD84<=1),AD84*BI$14,"")) ->  | BJ84: =IF(AE84="y",BJ$14,IF(AND(AE84>0,AE84<=1),AE84*BJ$14,"")) ->  | BK84: =IF(AF84="y",BK$14,IF(AND(AF84>0,AF84<=1),AF84*BK$14,"")) ->  | BL84: =IF(AG84="y",BL$14,IF(AND(AG84>0,AG84<=1),AG84*BL$14,"")) ->  | BM84: =IF(AH84="y",BM$14,IF(AND(AH84>0,AH84<=1),AH84*BM$14,"")) ->  | BN84: =IF(AI84="y",BN$14,IF(AND(AI84>0,AI84<=1),AI84*BN$14,"")) ->  | BO84: =IF(AJ84="y",BO$14,IF(AND(AJ84>0,AJ84<=1),AJ84*BO$14,"")) ->  | BP84: =IF(AK84="y",BP$14,IF(AND(AK84>0,AK84<=1),AK84*BP$14,"")) ->  | BQ84: =IF(AL84="y",BQ$14,IF(AND(AL84>0,AL84<=1),AL84*BQ$14,"")) ->  | BR84: =IF(AM84="y",BR$14,IF(AND(AM84>0,AM84<=1),AM84*BR$14,"")) ->  | BS84: =IF(AN84="y",BS$14,IF(AND(AN84>0,AN84<=1),AN84*BS$14,"")) ->  | BT84: =IF(AO84="y",BT$14,IF(AND(AO84>0,AO84<=1),AO84*BT$14,"")) ->  | BU84: =IF(AP84="y",BU$14,IF(AND(AP84>0,AP84<=1),AP84*BU$14,"")) ->  | BV84: =IF(AQ84="y",BV$14,IF(AND(AQ84>0,AQ84<=1),AQ84*BV$14,"")) ->  | BW84: =IF(AR84="y",BW$14,IF(AND(AR84>0,AR84<=1),AR84*BW$14,"")) ->  | BX84: =IF(AS84="y",BX$14,IF(AND(AS84>0,AS84<=1),AS84*BX$14,"")) ->  | BY84: =IF(AT84="y",BY$14,IF(AND(AT84>0,AT84<=1),AT84*BY$14,"")) ->  | BZ84: =IF(AU84="y",BZ$14,IF(AND(AU84>0,AU84<=1),AU84*BZ$14,"")) ->  | CA84: =IF(AV84="y",CA$14,IF(AND(AV84>0,AV84<=1),AV84*CA$14,"")) ->  | CB84: =IF(AW84="y",CB$14,IF(AND(AW84>0,AW84<=1),AW84*CB$14,"")) ->  | CC84: =IF(AX84="y",CC$14,IF(AND(AX84>0,AX84<=1),AX84*CC$14,"")) ->  | CD84: =IF(AY84="y",CD$14,IF(AND(AY84>0,AY84<=1),AY84*CD$14,"")) ->  | CE84: =IF(AZ84="y",CE$14,IF(AND(AZ84>0,AZ84<=1),AZ84*CE$14,"")) ->  | CF84: 4501 | CH84: 2568.305753
C85: TI_WM 033 | D85: Water Main | G85: Line connecting 4ML to1ML | I85: 12.0717 | J85: 300 | K85: 0 | L85: 9437.061873 | N85: =IF(M85="",1,VLOOKUP(M85,'Unit Rates - Water'!$H$12:$I$23,2,FALSE)) -> 1 | O85: 9437.061873 | R85: =IF(P85="",'Unit Rates - Land'!landcst,IF($E$8="Landuse",VLOOKUP(P85,LAndcost3,2,FALSE),IF($E$8="Location",VLOOKUP(P85,Landcost2,2,FALSE),"Error"))) -> 0 | S85: 0 | U85: =IFERROR(('General Input Sheet'!$G$38/(VLOOKUP('Existing Trunk Assets - Water'!T85,'General Input Sheet'!$E$38:$G$44,3,FALSE))),1) -> 1 | V85: 9437.061873 | W85: Y | BB85: 4501 | CF85: 4501 | CH85: 9437.061873
C86: TI_WM 034 | D86: Water Main | G86: Line connecting 4ML to1ML | I86: 226.277 | J86: 300 | K86: 0 | L86: 177786.3003 | N86: =IF(M86="",1,VLOOKUP(M86,'Unit Rates - Water'!$H$12:$I$23,2,FALSE)) -> 1 | O86: 177786.3003 | R86: =IF(P86="",'Unit Rates - Land'!landcst,IF($E$8="Landuse",VLOOKUP(P86,LAndcost3,2,FALSE),IF($E$8="Location",VLOOKUP(P86,Landcost2,2,FALSE),"Error"))) -> 0 | S86: 0 | U86: =IFERROR(('General Input Sheet'!$G$38/(VLOOKUP('Existing Trunk Assets - Water'!T86,'General Input Sheet'!$E$38:$G$44,3,FALSE))),1) -> 1 | V86: 177786.3003 | W86: Y | BB86: 4501 | CF86: 4501 | CH86: 177786.3003
C87: TI_WM 035 | D87: Water Main | G87: Line connecting 4ML to1ML | I87: 14.4401 | J87: 300 | K87: 0 | L87: 11288.43048 | N87: =IF(M87="",1,VLOOKUP(M87,'Unit Rates - Water'!$H$12:$I$23,2,FALSE)) -> 1 | O87: 11288.43048 | R87: =IF(P87="",'Unit Rates - Land'!landcst,IF($E$8="Landuse",VLOOKUP(P87,LAndcost3,2,FALSE),IF($E$8="Location",VLOOKUP(P87,Landcost2,2,FALSE),"Error"))) -> 0 | S87: 0 | U87: =IFERROR(('General Input Sheet'!$G$38/(VLOOKUP('Existing Trunk Assets - Water'!T87,'General Input Sheet'!$E$38:$G$44,3,FALSE))),1) -> 1 | V87: 11288.43048 | W87: Y | BB87: 4501 | CF87: 4501 | CH87: 11288.43048
C88: TI_WM 036 | D88: Water Main | G88: Supply from 1ML Reservoir to Town | I88: 21.9062 | J88: 300 | K88: 0 | L88: 17230.53585 | N88: =IF(M88="",1,VLOOKUP(M88,'Unit Rates - Water'!$H$12:$I$23,2,FALSE)) -> 1 | O88: 17230.53585 | R88: =IF(P88="",'Unit Rates - Land'!landcst,IF($E$8="Landuse",VLOOKUP(P88,LAndcost3,2,FALSE),IF($E$8="Location",VLOOKUP(P88,Landcost2,2,FALSE),"Error"))) -> 0 | S88: 0 | U88: =IFERROR(('General Input Sheet'!$G$38/(VLOOKUP('Existing Trunk Assets - Water'!T88,'General Input Sheet'!$E$38:$G$44,3,FALSE))),1) -> 1 | V88: 17230.53585 | W88: Y | BB88: 4501 | CF88: 4501 | CH88: 17230.53585
C89: TI_WM 037 | D89: Water Main | G89: Line connecting 4ML to1ML | I89: 7.8752 | J89: 300 | K89: 0 | L89: 6176.266326 | N89: =IF(M89="",1,VLOOKUP(M89,'Unit Rates - Water'!$H$12:$I$23,2,FALSE)) -> 1 | O89: 6176.266326 | R89: =IF(P89="",'Unit Rates - Land'!landcst,IF($E$8="Landuse",VLOOKUP(P89,LAndcost3,2,FALSE),IF($E$8="Location",VLOOKUP(P89,Landcost2,2,FALSE),"Error"))) -> 0 | S89: 0 | U89: =IFERROR(('General Input Sheet'!$G$38/(VLOOKUP('Existing Trunk Assets - Water'!T89,'General Input Sheet'!$E$38:$G$44,3,FALSE))),1) -> 1 | V89: 6176.266326 | W89: Y | BB89: 4501 | CF89: 4501 | CH89: 6176.266326
C90: TI_WM 038 | D90: Water Main | G90: Line connecting 4ML to1ML | I90: 2.07082 | J90: 300 | K90: 0 | L90: 1618.843338 | N90: =IF(M90="",1,VLOOKUP(M90,'Unit Rates - Water'!$H$12:$I$23,2,FALSE)) -> 1 | O90: 1618.843338 | R90: =IF(P90="",'Unit Rates - Land'!landcst,IF($E$8="Landuse",VLOOKUP(P90,LAndcost3,2,FALSE),IF($E$8="Location",VLOOKUP(P90,Landcost2,2,FALSE),"Error"))) -> 0 | S90: 0 | U90: =IFERROR(('General Input Sheet'!$G$38/(VLOOKUP('Existing Trunk Assets - Water'!T90,'General Input Sheet'!$E$38:$G$44,3,FALSE))),1) -> 1 | V90: 1618.843338 | W90: Y | BB90: 4501 | CF90: 4501 | CH90: 1618.843338
C91: TI_WM 039 | D91: Water Main | E91: UPVC | G91: Underground | I91: 294.224 | J91: 300 | K91: 0 | L91: 231324.7302 | N91: =IF(M91="",1,VLOOKUP(M91,'Unit Rates - Water'!$H$12:$I$23,2,FALSE)) -> 1 | O91: 231324.7302 | R91: =IF(P91="",'Unit Rates - Land'!landcst,IF($E$8="Landuse",VLOOKUP(P91,LAndcost3,2,FALSE),IF($E$8="Location",VLOOKUP(P91,Landcost2,2,FALSE),"Error"))) -> 0 | S91: 0 | U91: =IFERROR(('General Input Sheet'!$G$38/(VLOOKUP('Existing Trunk Assets - Water'!T91,'General Input Sheet'!$E$38:$G$44,3,FALSE))),1) -> 1 | V91: 231324.7302 | W91: Y | BB91: 4501 | CF91: 4501 | CH91: 231324.7302
C92: TI_WM 040 | D92: Water Main | E92: UPVC | G92: Underground | I92: 125.547 | J92: 300 | K92: 0 | L92: 98233.95303 | N92: =IF(M92="",1,VLOOKUP(M92,'Unit Rates - Water'!$H$12:$I$23,2,FALSE)) -> 1 | O92: 98233.95303 | R92: =IF(P92="",'Unit Rates - Land'!landcst,IF($E$8="Landuse",VLOOKUP(P92,LAndcost3,2,FALSE),IF($E$8="Location",VLOOKUP(P92,Landcost2,2,FALSE),"Error"))) -> 0 | S92: 0 | U92: =IFERROR(('General Input Sheet'!$G$38/(VLOOKUP('Existing Trunk Assets - Water'!T92,'General Input Sheet'!$E$38:$G$44,3,FALSE))),1) -> 1 | V92: 98233.95303 | W92: Y | BB92: 4501 | CF92: 4501 | CH92: 98233.95303
C93: TI_WM 041 | D93: Water Main | E93: UPVC | G93: Underground | I93: 12.4829 | J93: 300 | K93: 0 | L93: 9758.999695 | N93: =IF(M93="",1,VLOOKUP(M93,'Unit Rates - Water'!$H$12:$I$23,2,FALSE)) -> 1 | O93: 9758.999695 | R93: =IF(P93="",'Unit Rates - Land'!landcst,IF($E$8="Landuse",VLOOKUP(P93,LAndcost3,2,FALSE),IF($E$8="Location",VLOOKUP(P93,Landcost2,2,FALSE),"Error"))) -> 0 | S93: 0 | U93: =IFERROR(('General Input Sheet'!$G$38/(VLOOKUP('Existing Trunk Assets - Water'!T93,'General Input Sheet'!$E$38:$G$44,3,FALSE))),1) -> 1 | V93: 9758.999695 | W93: Y | BB93: 4501 | CF93: 4501 | CH93: 9758.999695
C94: TI_WM 042 | D94: Water Main | E94: UPVC | G94: Underground | I94: 5.77665 | J94: 300 | K94: 0 | L94: 4516.276415 | N94: =IF(M94="",1,VLOOKUP(M94,'Unit Rates - Water'!$H$12:$I$23,2,FALSE)) -> 1 | O94: 4516.276415 | R94: =IF(P94="",'Unit Rates - Land'!landcst,IF($E$8="Landuse",VLOOKUP(P94,LAndcost3,2,FALSE),IF($E$8="Location",VLOOKUP(P94,Landcost2,2,FALSE),"Error"))) -> 0 | S94: 0 | U94: =IFERROR(('General Input Sheet'!$G$38/(VLOOKUP('Existing Trunk Assets - Water'!T94,'General Input Sheet'!$E$38:$G$44,3,FALSE))),1) -> 1 | V94: 4516.276415 | W94: Y | BB94: 4501 | CF94: 4501 | CH94: 4516.276415
C95: TI_WM 043 | D95: Water Main | E95: UPVC | G95: Underground | I95: 37.78 | J95: 250 | K95: 0 | L95: 16513.96055 | N95: =IF(M95="",1,VLOOKUP(M95,'Unit Rates - Water'!$H$12:$I$23,2,FALSE)) -> 1 | O95: 16513.96055 | R95: =IF(P95="",'Unit Rates - Land'!landcst,IF($E$8="Landuse",VLOOKUP(P95,LAndcost3,2,FALSE),IF($E$8="Location",VLOOKUP(P95,Landcost2,2,FALSE),"Error"))) -> 0 | S95: 0 | U95: =IFERROR(('General Input Sheet'!$G$38/(VLOOKUP('Existing Trunk Assets - Water'!T95,'General Input Sheet'!$E$38:$G$44,3,FALSE))),1) -> 1 | V95: 16513.96055 | W95: Y | BB95: 4501 | CF95: 4501 | CH95: 16513.96055 | DD95: =IF(BX95="","",(BX95/$CF95)*$V95) -> 
C96: TI_WM 044 | D96: Water Main | E96: UPVC | G96: Underground | I96: 14.5418 | J96: 250 | K96: 0 | L96: 6356.328458 | N96: =IF(M96="",1,VLOOKUP(M96,'Unit Rates - Water'!$H$12:$I$23,2,FALSE)) -> 1 | O96: 6356.328458 | R96: =IF(P96="",'Unit Rates - Land'!landcst,IF($E$8="Landuse",VLOOKUP(P96,LAndcost3,2,FALSE),IF($E$8="Location",VLOOKUP(P96,Landcost2,2,FALSE),"Error"))) -> 0 | S96: 0 | U96: =IFERROR(('General Input Sheet'!$G$38/(VLOOKUP('Existing Trunk Assets - Water'!T96,'General Input Sheet'!$E$38:$G$44,3,FALSE))),1) -> 1 | V96: 6356.328458 | W96: Y | BB96: 4501 | CF96: 4501 | CH96: 6356.328458 | CX96: =IF(BR96="","",(BR96/$CF96)*$V96) -> 
C97: TI_WM 065 | D97: Water Main | E97: AC | G97: Underground | I97: 25.6109 | J97: 150 | K97: 0 | L97: 5346.084307 | N97: =IF(M97="",1,VLOOKUP(M97,'Unit Rates - Water'!$H$12:$I$23,2,FALSE)) -> 1 | O97: 5346.084307 | R97: =IF(P97="",'Unit Rates - Land'!landcst,IF($E$8="Landuse",VLOOKUP(P97,LAndcost3,2,FALSE),IF($E$8="Location",VLOOKUP(P97,Landcost2,2,FALSE),"Error"))) -> 0 | S97: 0 | U97: =IFERROR(('General Input Sheet'!$G$38/(VLOOKUP('Existing Trunk Assets - Water'!T97,'General Input Sheet'!$E$38:$G$44,3,FALSE))),1) -> 1 | V97: 5346.084307 | W97: Y | BB97: 4501 | CF97: 4501 | CH97: 5346.084307 | CV97: =IF(BP97="","",(BP97/$CF97)*$V97) -> 
C98: TI_WM 066 | D98: Water Main | E98: AC | G98: Underground | I98: 33.4469 | J98: 150 | K98: 0 | L98: 6998.094839 | N98: =IF(M98="",1,VLOOKUP(M98,'Unit Rates - Water'!$H$12:$I$23,2,FALSE)) -> 1 | O98: 6998.094839 | R98: =IF(P98="",'Unit Rates - Land'!landcst,IF($E$8="Landuse",VLOOKUP(P98,LAndcost3,2,FALSE),IF($E$8="Location",VLOOKUP(P98,Landcost2,2,FALSE),"Error"))) -> 0 | S98: 0 | U98: =IFERROR(('General Input Sheet'!$G$38/(VLOOKUP('Existing Trunk Assets - Water'!T98,'General Input Sheet'!$E$38:$G$44,3,FALSE))),1) -> 1 | V98: 6998.094839 | W98: Y | BB98: 4501 | CF98: 4501 | CH98: =IF(BB98="","",(BB98/$CF98)*$V98) -> 6998.094839
C99: TI_WM 073 | D99: Water Main | E99: AC | G99: Underground | I99: 141.852 | J99: 150 | K99: 0 | L99: 29682.15093 | N99: =IF(M99="",1,VLOOKUP(M99,'Unit Rates - Water'!$H$12:$I$23,2,FALSE)) -> 1 | O99: 29682.15093 | R99: =IF(P99="",'Unit Rates - Land'!landcst,IF($E$8="Landuse",VLOOKUP(P99,LAndcost3,2,FALSE),IF($E$8="Location",VLOOKUP(P99,Landcost2,2,FALSE),"Error"))) -> 0 | S99: 0 | U99: =IFERROR(('General Input Sheet'!$G$38/(VLOOKUP('Existing Trunk Assets - Water'!T99,'General Input Sheet'!$E$38:$G$44,3,FALSE))),1) -> 1 | V99: 29682.15093 | W99: Y | BB99: 4501 | CF99: 4501 | CH99: 29682.15093
C100: TI_WM 086 | D100: Water Main | E100: CI | I100: 65.6003 | J100: 75 | K100: 0 | L100: 7013.655416 | N100: =IF(M100="",1,VLOOKUP(M100,'Unit Rates - Water'!$H$12:$I$23,2,FALSE)) -> 1 | O100: 7013.655416 | R100: =IF(P100="",'Unit Rates - Land'!landcst,IF($E$8="Landuse",VLOOKUP(P100,LAndcost3,2,FALSE),IF($E$8="Location",VLOOKUP(P100,Landcost2,2,FALSE),"Error"))) -> 0 | S100: 0 | U100: =IFERROR(('General Input Sheet'!$G$38/(VLOOKUP('Existing Trunk Assets - Water'!T100,'General Input Sheet'!$E$38:$G$44,3,FALSE))),1) -> 1 | V100: 7013.655416 | W100: Y | BB100: 4501 | CF100: 4501 | CH100: 7013.655416
C101: TI_WM 087 | D101: Water Main | E101: AC | I101: 135.721 | J101: 100 | K101: 0 | L101: 23590.57293 | N101: =IF(M101="",1,VLOOKUP(M101,'Unit Rates - Water'!$H$12:$I$23,2,FALSE)) -> 1 | O101: 23590.57293 | R101: =IF(P101="",'Unit Rates - Land'!landcst,IF($E$8="Landuse",VLOOKUP(P101,LAndcost3,2,FALSE),IF($E$8="Location",VLOOKUP(P101,Landcost2,2,FALSE),"Error"))) -> 0 | S101: 0 | U101: =IFERROR(('General Input Sheet'!$G$38/(VLOOKUP('Existing Trunk Assets - Water'!T101,'General Input Sheet'!$E$38:$G$44,3,FALSE))),1) -> 1 | V101: 23590.57293 | W101: Y | BB101: 4501 | CF101: 4501 | CH101: 23590.57293
C102: TI_WM 089 | D102: Water Main | E102: BB | I102: 11.9405 | J102: 100 | K102: 0 | L102: 2074.399662 | N102: =IF(M102="",1,VLOOKUP(M102,'Unit Rates - Water'!$H$12:$I$23,2,FALSE)) -> 1 | O102: 2074.399662 | R102: =IF(P102="",'Unit Rates - Land'!landcst,IF($E$8="Landuse",VLOOKUP(P102,LAndcost3,2,FALSE),IF($E$8="Location",VLOOKUP(P102,Landcost2,2,FALSE),"Error"))) -> 0 | S102: 0 | U102: =IFERROR(('General Input Sheet'!$G$38/(VLOOKUP('Existing Trunk Assets - Water'!T102,'General Input Sheet'!$E$38:$G$44,3,FALSE))),1) -> 1 | V102: 2074.399662 | W102: Y | BB102: 4501 | CF102: 4501 | CH102: 2074.399662
C103: TI_WM 090 | D103: Water Main | E103: BB | I103: 25.3672 | J103: 100 | K103: 0 | L103: 4406.943738 | N103: =IF(M103="",1,VLOOKUP(M103,'Unit Rates - Water'!$H$12:$I$23,2,FALSE)) -> 1 | O103: 4406.943738 | R103: =IF(P103="",'Unit Rates - Land'!landcst,IF($E$8="Landuse",VLOOKUP(P103,LAndcost3,2,FALSE),IF($E$8="Location",VLOOKUP(P103,Landcost2,2,FALSE),"Error"))) -> 0 | S103: 0 | U103: =IFERROR(('General Input Sheet'!$G$38/(VLOOKUP('Existing Trunk Assets - Water'!T103,'General Input Sheet'!$E$38:$G$44,3,FALSE))),1) -> 1 | V103: 4406.943738 | W103: Y | BB103: 4501 | CF103: 4501 | CH103: 4406.943738
C104: TI_WM 133 | D104: Water Main | E104: AC | G104: Underground | I104: 11.9269 | J104: 100 | K104: 0 | L104: 2085.349694 | N104: =IF(M104="",1,VLOOKUP(M104,'Unit Rates - Water'!$H$12:$I$23,2,FALSE)) -> 1 | O104: 2085.349694 | R104: =IF(P104="",'Unit Rates - Land'!landcst,IF($E$8="Landuse",VLOOKUP(P104,LAndcost3,2,FALSE),IF($E$8="Location",VLOOKUP(P104,Landcost2,2,FALSE),"Error"))) -> 0 | S104: 0 | U104: =IFERROR(('General Input Sheet'!$G$38/(VLOOKUP('Existing Trunk Assets - Water'!T104,'General Input Sheet'!$E$38:$G$44,3,FALSE))),1) -> 1 | V104: 2085.349694 | W104: Y | BB104: 4501 | CF104: 4501 | CH104: 2085.349694
C105: TI_WM 134 | D105: Water Main | E105: AC | G105: Underground | I105: 39.8151 | J105: 100 | K105: 0 | L105: 6961.404803 | N105: =IF(M105="",1,VLOOKUP(M105,'Unit Rates - Water'!$H$12:$I$23,2,FALSE)) -> 1 | O105: 6961.404803 | R105: =IF(P105="",'Unit Rates - Land'!landcst,IF($E$8="Landuse",VLOOKUP(P105,LAndcost3,2,FALSE),IF($E$8="Location",VLOOKUP(P105,Landcost2,2,FALSE),"Error"))) -> 0 | S105: 0 | U105: =IFERROR(('General Input Sheet'!$G$38/(VLOOKUP('Existing Trunk Assets - Water'!T105,'General Input Sheet'!$E$38:$G$44,3,FALSE))),1) -> 1 | V105: 6961.404803 | W105: Y | BB105: 4501 | CF105: 4501 | CH105: 6961.404803
C106: TI_WM 135 | D106: Water Main | E106: AC | G106: Underground | I106: 80.003 | J106: 100 | K106: 0 | L106: 13987.99152 | N106: =IF(M106="",1,VLOOKUP(M106,'Unit Rates - Water'!$H$12:$I$23,2,FALSE)) -> 1 | O106: 13987.99152 | R106: =IF(P106="",'Unit Rates - Land'!landcst,IF($E$8="Landuse",VLOOKUP(P106,LAndcost3,2,FALSE),IF($E$8="Location",VLOOKUP(P106,Landcost2,2,FALSE),"Error"))) -> 0 | S106: 0 | U106: =IFERROR(('General Input Sheet'!$G$38/(VLOOKUP('Existing Trunk Assets - Water'!T106,'General Input Sheet'!$E$38:$G$44,3,FALSE))),1) -> 1 | V106: 13987.99152 | W106: Y | BB106: 4501 | CF106: 4501 | CH106: 13987.99152
C107: TI_WM 136 | D107: Water Main | E107: AC | G107: Underground | I107: 83.6078 | J107: 100 | K107: 0 | L107: 14618.33793 | N107: =IF(M107="",1,VLOOKUP(M107,'Unit Rates - Water'!$H$12:$I$23,2,FALSE)) -> 1 | O107: 14618.33793 | R107: =IF(P107="",'Unit Rates - Land'!landcst,IF($E$8="Landuse",VLOOKUP(P107,LAndcost3,2,FALSE),IF($E$8="Location",VLOOKUP(P107,Landcost2,2,FALSE),"Error"))) -> 0 | S107: 0 | U107: =IFERROR(('General Input Sheet'!$G$38/(VLOOKUP('Existing Trunk Assets - Water'!T107,'General Input Sheet'!$E$38:$G$44,3,FALSE))),1) -> 1 | V107: 14618.33793 | W107: Y | BB107: 4501 | CF107: 4501 | CH107: 14618.33793
C108: TI_WM 141 | D108: Water Main | E108: AC | G108: Underground | I108: 4.8601 | J108: 150 | K108: 0 | L108: 1019.708307 | N108: =IF(M108="",1,VLOOKUP(M108,'Unit Rates - Water'!$H$12:$I$23,2,FALSE)) -> 1 | O108: 1019.708307 | R108: =IF(P108="",'Unit Rates - Land'!landcst,IF($E$8="Landuse",VLOOKUP(P108,LAndcost3,2,FALSE),IF($E$8="Location",VLOOKUP(P108,Landcost2,2,FALSE),"Error"))) -> 0 | S108: 0 | U108: =IFERROR(('General Input Sheet'!$G$38/(VLOOKUP('Existing Trunk Assets - Water'!T108,'General Input Sheet'!$E$38:$G$44,3,FALSE))),1) -> 1 | V108: 1019.708307 | W108: Y | BB108: 4501 | CF108: 4501 | CH108: 1019.708307
C109: TI_WM 142 | D109: Water Main | E109: AC | G109: Underground | I109: 301.211 | J109: 150 | K109: 0 | L109: 63197.64226 | N109: =IF(M109="",1,VLOOKUP(M109,'Unit Rates - Water'!$H$12:$I$23,2,FALSE)) -> 1 | O109: 63197.64226 | R109: =IF(P109="",'Unit Rates - Land'!landcst,IF($E$8="Landuse",VLOOKUP(P109,LAndcost3,2,FALSE),IF($E$8="Location",VLOOKUP(P109,Landcost2,2,FALSE),"Error"))) -> 0 | S109: 0 | U109: =IFERROR(('General Input Sheet'!$G$38/(VLOOKUP('Existing Trunk Assets - Water'!T109,'General Input Sheet'!$E$38:$G$44,3,FALSE))),1) -> 1 | V109: 63197.64226 | W109: Y | BB109: 4501 | CF109: 4501 | CH109: 63197.64226
C110: TI_WM 143 | D110: Water Main | E110: AC | G110: Underground | I110: 35.519 | J110: 150 | K110: 0 | L110: 7452.312944 | N110: =IF(M110="",1,VLOOKUP(M110,'Unit Rates - Water'!$H$12:$I$23,2,FALSE)) -> 1 | O110: 7452.312944 | R110: =IF(P110="",'Unit Rates - Land'!landcst,IF($E$8="Landuse",VLOOKUP(P110,LAndcost3,2,FALSE),IF($E$8="Location",VLOOKUP(P110,Landcost2,2,FALSE),"Error"))) -> 0 | S110: 0 | U110: =IFERROR(('General Input Sheet'!$G$38/(VLOOKUP('Existing Trunk Assets - Water'!T110,'General Input Sheet'!$E$38:$G$44,3,FALSE))),1) -> 1 | V110: 7452.312944 | W110: Y | BB110: 4501 | CF110: 4501 | CH110: 7452.312944
C111: TI_WM 144 | D111: Water Main | E111: AC | G111: Underground | I111: 92.5558 | J111: 100 | K111: 0 | L111: 16079.30597 | N111: =IF(M111="",1,VLOOKUP(M111,'Unit Rates - Water'!$H$12:$I$23,2,FALSE)) -> 1 | O111: 16079.30597 | R111: =IF(P111="",'Unit Rates - Land'!landcst,IF($E$8="Landuse",VLOOKUP(P111,LAndcost3,2,FALSE),IF($E$8="Location",VLOOKUP(P111,Landcost2,2,FALSE),"Error"))) -> 0 | S111: 0 | U111: =IFERROR(('General Input Sheet'!$G$38/(VLOOKUP('Existing Trunk Assets - Water'!T111,'General Input Sheet'!$E$38:$G$44,3,FALSE))),1) -> 1 | V111: 16079.30597 | W111: Y | BB111: 4501 | CF111: 4501 | CH111: 16079.30597
C112: TI_WM 145 | D112: Water Main | E112: AC | G112: Underground | I112: 9.32744 | J112: 100 | K112: 0 | L112: 1620.415766 | N112: =IF(M112="",1,VLOOKUP(M112,'Unit Rates - Water'!$H$12:$I$23,2,FALSE)) -> 1 | O112: 1620.415766 | R112: =IF(P112="",'Unit Rates - Land'!landcst,IF($E$8="Landuse",VLOOKUP(P112,LAndcost3,2,FALSE),IF($E$8="Location",VLOOKUP(P112,Landcost2,2,FALSE),"Error"))) -> 0 | S112: 0 | U112: =IFERROR(('General Input Sheet'!$G$38/(VLOOKUP('Existing Trunk Assets - Water'!T112,'General Input Sheet'!$E$38:$G$44,3,FALSE))),1) -> 1 | V112: 1620.415766 | W112: Y | BB112: 4501 | CF112: 4501 | CH112: 1620.415766
C113: TI_WM 146 | D113: Water Main | E113: AC | G113: Underground | I113: 34.5126 | J113: 150 | K113: 0 | L113: 7194.960676 | N113: =IF(M113="",1,VLOOKUP(M113,'Unit Rates - Water'!$H$12:$I$23,2,FALSE)) -> 1 | O113: 7194.960676 | R113: =IF(P113="",'Unit Rates - Land'!landcst,IF($E$8="Landuse",VLOOKUP(P113,LAndcost3,2,FALSE),IF($E$8="Location",VLOOKUP(P113,Landcost2,2,FALSE),"Error"))) -> 0 | S113: 0 | U113: =IFERROR(('General Input Sheet'!$G$38/(VLOOKUP('Existing Trunk Assets - Water'!T113,'General Input Sheet'!$E$38:$G$44,3,FALSE))),1) -> 1 | V113: 7194.960676 | W113: Y | BB113: 4501 | CF113: 4501 | CH113: 7194.960676
C114: TI_WM 151 | D114: Water Main | E114: AC | G114: Underground | I114: 39.7093 | J114: 200 | K114: 0 | L114: 10414.24098 | N114: =IF(M114="",1,VLOOKUP(M114,'Unit Rates - Water'!$H$12:$I$23,2,FALSE)) -> 1 | O114: 10414.24098 | R114: =IF(P114="",'Unit Rates - Land'!landcst,IF($E$8="Landuse",VLOOKUP(P114,LAndcost3,2,FALSE),IF($E$8="Location",VLOOKUP(P114,Landcost2,2,FALSE),"Error"))) -> 0 | S114: 0 | U114: =IFERROR(('General Input Sheet'!$G$38/(VLOOKUP('Existing Trunk Assets - Water'!T114,'General Input Sheet'!$E$38:$G$44,3,FALSE))),1) -> 1 | V114: 10414.24098 | W114: Y | BB114: 4501 | CF114: 4501 | CH114: 10414.24098
C115: TI_WM 152 | D115: Water Main | E115: AC | G115: Underground | I115: 94.2537 | J115: 200 | K115: 0 | L115: 24719.17209 | N115: =IF(M115="",1,VLOOKUP(M115,'Unit Rates - Water'!$H$12:$I$23,2,FALSE)) -> 1 | O115: 24719.17209 | R115: =IF(P115="",'Unit Rates - Land'!landcst,IF($E$8="Landuse",VLOOKUP(P115,LAndcost3,2,FALSE),IF($E$8="Location",VLOOKUP(P115,Landcost2,2,FALSE),"Error"))) -> 0 | S115: 0 | U115: =IFERROR(('General Input Sheet'!$G$38/(VLOOKUP('Existing Trunk Assets - Water'!T115,'General Input Sheet'!$E$38:$G$44,3,FALSE))),1) -> 1 | V115: 24719.17209 | W115: Y | BB115: 4501 | CF115: 4501 | CH115: 24719.17209
C116: TI_WM 153 | D116: Water Main | E116: AC | G116: Underground | I116: 77.9784 | J116: 200 | K116: 0 | L116: 20450.78742 | N116: =IF(M116="",1,VLOOKUP(M116,'Unit Rates - Water'!$H$12:$I$23,2,FALSE)) -> 1 | O116: 20450.78742 | R116: =IF(P116="",'Unit Rates - Land'!landcst,IF($E$8="Landuse",VLOOKUP(P116,LAndcost3,2,FALSE),IF($E$8="Location",VLOOKUP(P116,Landcost2,2,FALSE),"Error"))) -> 0 | S116: 0 | U116: =IFERROR(('General Input Sheet'!$G$38/(VLOOKUP('Existing Trunk Assets - Water'!T116,'General Input Sheet'!$E$38:$G$44,3,FALSE))),1) -> 1 | V116: 20450.78742 | W116: Y | BB116: 4501 | CF116: 4501 | CH116: 20450.78742 | CK116: =IF(BE116="","",(BE116/$CF116)*$V116) ->  | DK116: =IF(CE116="","",(CE116/$CF116)*$V116) -> 
C117: TI_WM 154 | D117: Water Main | E117: AC | G117: Underground | I117: 34.389 | J117: 200 | K117: 0 | L117: 9018.936434 | N117: =IF(M117="",1,VLOOKUP(M117,'Unit Rates - Water'!$H$12:$I$23,2,FALSE)) -> 1 | O117: 9018.936434 | R117: =IF(P117="",'Unit Rates - Land'!landcst,IF($E$8="Landuse",VLOOKUP(P117,LAndcost3,2,FALSE),IF($E$8="Location",VLOOKUP(P117,Landcost2,2,FALSE),"Error"))) -> 0 | S117: 0 | U117: =IFERROR(('General Input Sheet'!$G$38/(VLOOKUP('Existing Trunk Assets - Water'!T117,'General Input Sheet'!$E$38:$G$44,3,FALSE))),1) -> 1 | V117: 9018.936434 | W117: Y | BB117: 4501 | CF117: 4501 | CH117: =IF(BB117="","",(BB117/$CF117)*$V117) -> 9018.936434
C118: TI_WM 155 | D118: Water Main | E118: AC | G118: Underground | I118: 34.1566 | J118: 200 | K118: 0 | L118: 8957.973499 | N118: =IF(M118="",1,VLOOKUP(M118,'Unit Rates - Water'!$H$12:$I$23,2,FALSE)) -> 1 | O118: 8957.973499 | R118: =IF(P118="",'Unit Rates - Land'!landcst,IF($E$8="Landuse",VLOOKUP(P118,LAndcost3,2,FALSE),IF($E$8="Location",VLOOKUP(P118,Landcost2,2,FALSE),"Error"))) -> 0 | S118: 0 | U118: =IFERROR(('General Input Sheet'!$G$38/(VLOOKUP('Existing Trunk Assets - Water'!T118,'General Input Sheet'!$E$38:$G$44,3,FALSE))),1) -> 1 | V118: 8957.973499 | W118: Y | BB118: 4501 | CF118: 4501 | CH118: 8957.973499
C119: TI_WM 158 | D119: Water Main | E119: AC | G119: Underground | I119: 23.0018 | J119: 225 | K119: 0 | L119: 6002.676403 | N119: =IF(M119="",1,VLOOKUP(M119,'Unit Rates - Water'!$H$12:$I$23,2,FALSE)) -> 1 | O119: 6002.676403 | R119: =IF(P119="",'Unit Rates - Land'!landcst,IF($E$8="Landuse",VLOOKUP(P119,LAndcost3,2,FALSE),IF($E$8="Location",VLOOKUP(P119,Landcost2,2,FALSE),"Error"))) -> 0 | S119: 0 | U119: =IFERROR(('General Input Sheet'!$G$38/(VLOOKUP('Existing Trunk Assets - Water'!T119,'General Input Sheet'!$E$38:$G$44,3,FALSE))),1) -> 1 | V119: 6002.676403 | W119: Y | BB119: 4501 | CF119: 4501 | CH119: 6002.676403
C120: TI_WM 159 | D120: Water Main | E120: AC | G120: Underground | I120: 27.7736 | J120: 225 | K120: 0 | L120: 7247.96811 | N120: =IF(M120="",1,VLOOKUP(M120,'Unit Rates - Water'!$H$12:$I$23,2,FALSE)) -> 1 | O120: 7247.96811 | R120: =IF(P120="",'Unit Rates - Land'!landcst,IF($E$8="Landuse",VLOOKUP(P120,LAndcost3,2,FALSE),IF($E$8="Location",VLOOKUP(P120,Landcost2,2,FALSE),"Error"))) -> 0 | S120: 0 | U120: =IFERROR(('General Input Sheet'!$G$38/(VLOOKUP('Existing Trunk Assets - Water'!T120,'General Input Sheet'!$E$38:$G$44,3,FALSE))),1) -> 1 | V120: 7247.96811 | W120: Y | BB120: 4501 | CF120: 4501 | CH120: 7247.96811
C121: TI_WM 169 | D121: Water Main | E121: UPVC | G121: Underground | I121: 9.45752 | J121: 250 | K121: 0 | L121: 4133.964017 | N121: =IF(M121="",1,VLOOKUP(M121,'Unit Rates - Water'!$H$12:$I$23,2,FALSE)) -> 1 | O121: 4133.964017 | R121: =IF(P121="",'Unit Rates - Land'!landcst,IF($E$8="Landuse",VLOOKUP(P121,LAndcost3,2,FALSE),IF($E$8="Location",VLOOKUP(P121,Landcost2,2,FALSE),"Error"))) -> 0 | S121: 0 | U121: =IFERROR(('General Input Sheet'!$G$38/(VLOOKUP('Existing Trunk Assets - Water'!T121,'General Input Sheet'!$E$38:$G$44,3,FALSE))),1) -> 1 | V121: 4133.964017 | W121: Y | BB121: 4501 | CF121: 4501 | CH121: 4133.964017
C122: TI_WM 170 | D122: Water Main | E122: UPVC | G122: Underground | I122: 9.29988 | J122: 250 | K122: 0 | L122: 4065.058956 | N122: =IF(M122="",1,VLOOKUP(M122,'Unit Rates - Water'!$H$12:$I$23,2,FALSE)) -> 1 | O122: 4065.058956 | R122: =IF(P122="",'Unit Rates - Land'!landcst,IF($E$8="Landuse",VLOOKUP(P122,LAndcost3,2,FALSE),IF($E$8="Location",VLOOKUP(P122,Landcost2,2,FALSE),"Error"))) -> 0 | S122: 0 | U122: =IFERROR(('General Input Sheet'!$G$38/(VLOOKUP('Existing Trunk Assets - Water'!T122,'General Input Sheet'!$E$38:$G$44,3,FALSE))),1) -> 1 | V122: 4065.058956 | W122: Y | BB122: 4501 | CF122: 4501 | CH122: 4065.058956
C123: TI_WM 171 | D123: Water Main | E123: UPVC | G123: Underground | I123: 76.9236 | J123: 250 | K123: 0 | L123: 33623.96772 | N123: =IF(M123="",1,VLOOKUP(M123,'Unit Rates - Water'!$H$12:$I$23,2,FALSE)) -> 1 | O123: 33623.96772 | R123: =IF(P123="",'Unit Rates - Land'!landcst,IF($E$8="Landuse",VLOOKUP(P123,LAndcost3,2,FALSE),IF($E$8="Location",VLOOKUP(P123,Landcost2,2,FALSE),"Error"))) -> 0 | S123: 0 | U123: =IFERROR(('General Input Sheet'!$G$38/(VLOOKUP('Existing Trunk Assets - Water'!T123,'General Input Sheet'!$E$38:$G$44,3,FALSE))),1) -> 1 | V123: 33623.96772 | W123: Y | BB123: 4501 | CF123: 4501 | CH123: 33623.96772
C124: TI_WM 172 | D124: Water Main | E124: UPVC | G124: Underground | I124: 49.8826 | J124: 250 | K124: 0 | L124: 21804.13906 | N124: =IF(M124="",1,VLOOKUP(M124,'Unit Rates - Water'!$H$12:$I$23,2,FALSE)) -> 1 | O124: 21804.13906 | R124: =IF(P124="",'Unit Rates - Land'!landcst,IF($E$8="Landuse",VLOOKUP(P124,LAndcost3,2,FALSE),IF($E$8="Location",VLOOKUP(P124,Landcost2,2,FALSE),"Error"))) -> 0 | S124: 0 | U124: =IFERROR(('General Input Sheet'!$G$38/(VLOOKUP('Existing Trunk Assets - Water'!T124,'General Input Sheet'!$E$38:$G$44,3,FALSE))),1) -> 1 | V124: 21804.13906 | W124: Y | BB124: 4501 | CF124: 4501 | CH124: 21804.13906
C125: TI_WM 173 | D125: Water Main | E125: UPVC | G125: Underground | I125: 14.4506 | J125: 250 | K125: 0 | L125: 6316.49377 | N125: =IF(M125="",1,VLOOKUP(M125,'Unit Rates - Water'!$H$12:$I$23,2,FALSE)) -> 1 | O125: 6316.49377 | R125: =IF(P125="",'Unit Rates - Land'!landcst,IF($E$8="Landuse",VLOOKUP(P125,LAndcost3,2,FALSE),IF($E$8="Location",VLOOKUP(P125,Landcost2,2,FALSE),"Error"))) -> 0 | S125: 0 | U125: =IFERROR(('General Input Sheet'!$G$38/(VLOOKUP('Existing Trunk Assets - Water'!T125,'General Input Sheet'!$E$38:$G$44,3,FALSE))),1) -> 1 | V125: 6316.49377 | W125: Y | BB125: 4501 | CF125: 4501 | CH125: 6316.49377
C126: TI_WM 177 | D126: Water Main | E126: AC | G126: Underground | I126: 114.676 | J126: 100 | K126: 0 | L126: 19929.32183 | N126: =IF(M126="",1,VLOOKUP(M126,'Unit Rates - Water'!$H$12:$I$23,2,FALSE)) -> 1 | O126: 19929.32183 | R126: =IF(P126="",'Unit Rates - Land'!landcst,IF($E$8="Landuse",VLOOKUP(P126,LAndcost3,2,FALSE),IF($E$8="Location",VLOOKUP(P126,Landcost2,2,FALSE),"Error"))) -> 0 | S126: 0 | U126: =IFERROR(('General Input Sheet'!$G$38/(VLOOKUP('Existing Trunk Assets - Water'!T126,'General Input Sheet'!$E$38:$G$44,3,FALSE))),1) -> 1 | V126: 19929.32183 | W126: Y | BB126: 4501 | CF126: 4501 | CH126: 19929.32183
C127: TI_WM 188 | D127: Water Main | E127: BB | G127: Underground | I127: 54.2245 | J127: 100 | K127: 0 | L127: 9420.210087 | N127: =IF(M127="",1,VLOOKUP(M127,'Unit Rates - Water'!$H$12:$I$23,2,FALSE)) -> 1 | O127: 9420.210087 | R127: =IF(P127="",'Unit Rates - Land'!landcst,IF($E$8="Landuse",VLOOKUP(P127,LAndcost3,2,FALSE),IF($E$8="Location",VLOOKUP(P127,Landcost2,2,FALSE),"Error"))) -> 0 | S127: 0 | U127: =IFERROR(('General Input Sheet'!$G$38/(VLOOKUP('Existing Trunk Assets - Water'!T127,'General Input Sheet'!$E$38:$G$44,3,FALSE))),1) -> 1 | V127: 9420.210087 | W127: Y | BB127: 4501 | CF127: 4501 | CH127: 9420.210087
C128: TI_WM 189 | D128: Water Main | E128: BB | G128: Underground | I128: 47.094 | J128: 100 | K128: 0 | L128: 8181.459369 | N128: =IF(M128="",1,VLOOKUP(M128,'Unit Rates - Water'!$H$12:$I$23,2,FALSE)) -> 1 | O128: 8181.459369 | R128: =IF(P128="",'Unit Rates - Land'!landcst,IF($E$8="Landuse",VLOOKUP(P128,LAndcost3,2,FALSE),IF($E$8="Location",VLOOKUP(P128,Landcost2,2,FALSE),"Error"))) -> 0 | S128: 0 | U128: =IFERROR(('General Input Sheet'!$G$38/(VLOOKUP('Existing Trunk Assets - Water'!T128,'General Input Sheet'!$E$38:$G$44,3,FALSE))),1) -> 1 | V128: 8181.459369 | W128: Y | BB128: 4501 | CF128: 4501 | CH128: 8181.459369
C129: TI_WM 190 | D129: Water Main | E129: BB | G129: Underground | I129: 9.75358 | J129: 100 | K129: 0 | L129: 1694.451991 | N129: =IF(M129="",1,VLOOKUP(M129,'Unit Rates - Water'!$H$12:$I$23,2,FALSE)) -> 1 | O129: 1694.451991 | R129: =IF(P129="",'Unit Rates - Land'!landcst,IF($E$8="Landuse",VLOOKUP(P129,LAndcost3,2,FALSE),IF($E$8="Location",VLOOKUP(P129,Landcost2,2,FALSE),"Error"))) -> 0 | S129: 0 | U129: =IFERROR(('General Input Sheet'!$G$38/(VLOOKUP('Existing Trunk Assets - Water'!T129,'General Input Sheet'!$E$38:$G$44,3,FALSE))),1) -> 1 | V129: 1694.451991 | W129: Y | BB129: 4501 | CF129: 4501 | CH129: 1694.451991
C130: TI_WM 252 | D130: Water Main | E130: AC | G130: Underground | I130: 6.63485 | J130: 150 | K130: 0 | L130: 1388.25899 | N130: =IF(M130="",1,VLOOKUP(M130,'Unit Rates - Water'!$H$12:$I$23,2,FALSE)) -> 1 | O130: 1388.25899 | R130: =IF(P130="",'Unit Rates - Land'!landcst,IF($E$8="Landuse",VLOOKUP(P130,LAndcost3,2,FALSE),IF($E$8="Location",VLOOKUP(P130,Landcost2,2,FALSE),"Error"))) -> 0 | S130: 0 | U130: =IFERROR(('General Input Sheet'!$G$38/(VLOOKUP('Existing Trunk Assets - Water'!T130,'General Input Sheet'!$E$38:$G$44,3,FALSE))),1) -> 1 | V130: 1388.25899 | W130: Y | BB130: 4501 | CF130: 4501 | CH130: 1388.25899
C131: TI_WM 253 | D131: Water Main | E131: AC | G131: Underground | I131: 144.053 | J131: 150 | K131: 0 | L131: 30141.38236 | N131: =IF(M131="",1,VLOOKUP(M131,'Unit Rates - Water'!$H$12:$I$23,2,FALSE)) -> 1 | O131: 30141.38236 | R131: =IF(P131="",'Unit Rates - Land'!landcst,IF($E$8="Landuse",VLOOKUP(P131,LAndcost3,2,FALSE),IF($E$8="Location",VLOOKUP(P131,Landcost2,2,FALSE),"Error"))) -> 0 | S131: 0 | U131: =IFERROR(('General Input Sheet'!$G$38/(VLOOKUP('Existing Trunk Assets - Water'!T131,'General Input Sheet'!$E$38:$G$44,3,FALSE))),1) -> 1 | V131: 30141.38236 | W131: Y | BB131: 4501 | CF131: 4501 | CH131: 30141.38236
C132: TI_WM 254 | D132: Water Main | E132: AC | G132: Underground | I132: 8.10885 | J132: 100 | K132: 0 | L132: 1409.278779 | N132: =IF(M132="",1,VLOOKUP(M132,'Unit Rates - Water'!$H$12:$I$23,2,FALSE)) -> 1 | O132: 1409.278779 | R132: =IF(P132="",'Unit Rates - Land'!landcst,IF($E$8="Landuse",VLOOKUP(P132,LAndcost3,2,FALSE),IF($E$8="Location",VLOOKUP(P132,Landcost2,2,FALSE),"Error"))) -> 0 | S132: 0 | U132: =IFERROR(('General Input Sheet'!$G$38/(VLOOKUP('Existing Trunk Assets - Water'!T132,'General Input Sheet'!$E$38:$G$44,3,FALSE))),1) -> 1 | V132: 1409.278779 | W132: Y | BB132: 4501 | CF132: 4501 | CH132: 1409.278779
C133: TI_WM 255 | D133: Water Main | E133: AC | G133: Underground | I133: 7.22384 | J133: 100 | K133: 0 | L133: 1255.464647 | N133: =IF(M133="",1,VLOOKUP(M133,'Unit Rates - Water'!$H$12:$I$23,2,FALSE)) -> 1 | O133: 1255.464647 | R133: =IF(P133="",'Unit Rates - Land'!landcst,IF($E$8="Landuse",VLOOKUP(P133,LAndcost3,2,FALSE),IF($E$8="Location",VLOOKUP(P133,Landcost2,2,FALSE),"Error"))) -> 0 | S133: 0 | U133: =IFERROR(('General Input Sheet'!$G$38/(VLOOKUP('Existing Trunk Assets - Water'!T133,'General Input Sheet'!$E$38:$G$44,3,FALSE))),1) -> 1 | V133: 1255.464647 | W133: Y | BB133: 4501 | CF133: 4501 | CH133: 1255.464647
C134: TI_WM 256 | D134: Water Main | E134: AC | G134: Underground | I134: 63.6813 | J134: 150 | K134: 0 | L134: 13324.6748 | N134: =IF(M134="",1,VLOOKUP(M134,'Unit Rates - Water'!$H$12:$I$23,2,FALSE)) -> 1 | O134: 13324.6748 | R134: =IF(P134="",'Unit Rates - Land'!landcst,IF($E$8="Landuse",VLOOKUP(P134,LAndcost3,2,FALSE),IF($E$8="Location",VLOOKUP(P134,Landcost2,2,FALSE),"Error"))) -> 0 | S134: 0 | U134: =IFERROR(('General Input Sheet'!$G$38/(VLOOKUP('Existing Trunk Assets - Water'!T134,'General Input Sheet'!$E$38:$G$44,3,FALSE))),1) -> 1 | V134: 13324.6748 | W134: Y | BB134: 4501 | CF134: 4501 | CH134: 13324.6748
C135: TI_WM 257 | D135: Water Main | E135: AC | I135: 17.9279 | J135: 150 | K135: 0 | L135: 3751.238619 | N135: =IF(M135="",1,VLOOKUP(M135,'Unit Rates - Water'!$H$12:$I$23,2,FALSE)) -> 1 | O135: 3751.238619 | R135: =IF(P135="",'Unit Rates - Land'!landcst,IF($E$8="Landuse",VLOOKUP(P135,LAndcost3,2,FALSE),IF($E$8="Location",VLOOKUP(P135,Landcost2,2,FALSE),"Error"))) -> 0 | S135: 0 | U135: =IFERROR(('General Input Sheet'!$G$38/(VLOOKUP('Existing Trunk Assets - Water'!T135,'General Input Sheet'!$E$38:$G$44,3,FALSE))),1) -> 1 | V135: 3751.238619 | W135: Y | BB135: 4501 | CF135: 4501 | CH135: 3751.238619
C136: TI_WM 261 | D136: Water Main | E136: AC | I136: 7.76701 | J136: 150 | K136: 0 | L136: 1625.352557 | N136: =IF(M136="",1,VLOOKUP(M136,'Unit Rates - Water'!$H$12:$I$23,2,FALSE)) -> 1 | O136: 1625.352557 | R136: =IF(P136="",'Unit Rates - Land'!landcst,IF($E$8="Landuse",VLOOKUP(P136,LAndcost3,2,FALSE),IF($E$8="Location",VLOOKUP(P136,Landcost2,2,FALSE),"Error"))) -> 0 | S136: 0 | U136: =IFERROR(('General Input Sheet'!$G$38/(VLOOKUP('Existing Trunk Assets - Water'!T136,'General Input Sheet'!$E$38:$G$44,3,FALSE))),1) -> 1 | V136: 1625.352557 | W136: Y | BB136: 4501 | CF136: 4501 | CH136: 1625.352557
C137: TI_WM 309 | D137: Water Main | E137: UPVC | I137: 210.934 | J137: 150 | K137: 0 | L137: 44189.80704 | N137: =IF(M137="",1,VLOOKUP(M137,'Unit Rates - Water'!$H$12:$I$23,2,FALSE)) -> 1 | O137: 44189.80704 | R137: =IF(P137="",'Unit Rates - Land'!landcst,IF($E$8="Landuse",VLOOKUP(P137,LAndcost3,2,FALSE),IF($E$8="Location",VLOOKUP(P137,Landcost2,2,FALSE),"Error"))) -> 0 | S137: 0 | U137: =IFERROR(('General Input Sheet'!$G$38/(VLOOKUP('Existing Trunk Assets - Water'!T137,'General Input Sheet'!$E$38:$G$44,3,FALSE))),1) -> 1 | V137: 44189.80704 | W137: Y | BB137: 4501 | CF137: 4501 | CH137: 44189.80704
C138: TI_WM 310 | D138: Water Main | E138: UPVC | G138: Supply from Clarifier to Millman Hill Reservoirs | I138: 163.522 | J138: 150 | K138: 0 | L138: 34271.57711 | N138: =IF(M138="",1,VLOOKUP(M138,'Unit Rates - Water'!$H$12:$I$23,2,FALSE)) -> 1 | O138: 34271.57711 | R138: =IF(P138="",'Unit Rates - Land'!landcst,IF($E$8="Landuse",VLOOKUP(P138,LAndcost3,2,FALSE),IF($E$8="Location",VLOOKUP(P138,Landcost2,2,FALSE),"Error"))) -> 0 | S138: 0 | U138: =IFERROR(('General Input Sheet'!$G$38/(VLOOKUP('Existing Trunk Assets - Water'!T138,'General Input Sheet'!$E$38:$G$44,3,FALSE))),1) -> 1 | V138: 34271.57711 | W138: Y | BB138: 4501 | CF138: 4501 | CH138: 34271.57711 | CX138: =IF(BR138="","",(BR138/$CF138)*$V138) -> 
C139: TI_WM 311 | D139: Water Main | E139: UPVC | G139: Supply from Clarifier to Millman Hill Reservoirs | I139: 69.9734 | J139: 150 | K139: 0 | L139: 14660.98343 | N139: =IF(M139="",1,VLOOKUP(M139,'Unit Rates - Water'!$H$12:$I$23,2,FALSE)) -> 1 | O139: 14660.98343 | R139: =IF(P139="",'Unit Rates - Land'!landcst,IF($E$8="Landuse",VLOOKUP(P139,LAndcost3,2,FALSE),IF($E$8="Location",VLOOKUP(P139,Landcost2,2,FALSE),"Error"))) -> 0 | S139: 0 | U139: =IFERROR(('General Input Sheet'!$G$38/(VLOOKUP('Existing Trunk Assets - Water'!T139,'General Input Sheet'!$E$38:$G$44,3,FALSE))),1) -> 1 | V139: 14660.98343 | W139: Y | BB139: 4501 | CF139: 4501 | CH139: 14660.98343
C140: TI_WM 312 | D140: Water Main | E140: UPVC | G140: Supply from Clarifier to Millman Hill Reservoirs | I140: 165.16 | J140: 150 | K140: 0 | L140: 34604.62591 | N140: =IF(M140="",1,VLOOKUP(M140,'Unit Rates - Water'!$H$12:$I$23,2,FALSE)) -> 1 | O140: 34604.62591 | R140: =IF(P140="",'Unit Rates - Land'!landcst,IF($E$8="Landuse",VLOOKUP(P140,LAndcost3,2,FALSE),IF($E$8="Location",VLOOKUP(P140,Landcost2,2,FALSE),"Error"))) -> 0 | S140: 0 | U140: =IFERROR(('General Input Sheet'!$G$38/(VLOOKUP('Existing Trunk Assets - Water'!T140,'General Input Sheet'!$E$38:$G$44,3,FALSE))),1) -> 1 | V140: 34604.62591 | W140: Y | BB140: 4501 | CF140: 4501 | CH140: 34604.62591
C141: TI_WM 313 | D141: Water Main | E141: UPVC | G141: Supply from Clarifier to Millman Hill Reservoirs | I141: 247.703 | J141: 150 | K141: 0 | L141: 51899.35603 | N141: =IF(M141="",1,VLOOKUP(M141,'Unit Rates - Water'!$H$12:$I$23,2,FALSE)) -> 1 | O141: 51899.35603 | R141: =IF(P141="",'Unit Rates - Land'!landcst,IF($E$8="Landuse",VLOOKUP(P141,LAndcost3,2,FALSE),IF($E$8="Location",VLOOKUP(P141,Landcost2,2,FALSE),"Error"))) -> 0 | S141: 0 | U141: =IFERROR(('General Input Sheet'!$G$38/(VLOOKUP('Existing Trunk Assets - Water'!T141,'General Input Sheet'!$E$38:$G$44,3,FALSE))),1) -> 1 | V141: 51899.35603 | W141: Y | BB141: 4501 | CF141: 4501 | CH141: 51899.35603
C142: TI_WM 314 | D142: Water Main | E142: AC | G142: Supply from Clarifier to Millman Hill Reservoirs | I142: 14.346 | J142: 100 | K142: 0 | L142: 2492.596805 | N142: =IF(M142="",1,VLOOKUP(M142,'Unit Rates - Water'!$H$12:$I$23,2,FALSE)) -> 1 | O142: 2492.596805 | R142: =IF(P142="",'Unit Rates - Land'!landcst,IF($E$8="Landuse",VLOOKUP(P142,LAndcost3,2,FALSE),IF($E$8="Location",VLOOKUP(P142,Landcost2,2,FALSE),"Error"))) -> 0 | S142: 0 | U142: =IFERROR(('General Input Sheet'!$G$38/(VLOOKUP('Existing Trunk Assets - Water'!T142,'General Input Sheet'!$E$38:$G$44,3,FALSE))),1) -> 1 | V142: 2492.596805 | W142: Y | BB142: 4501 | CF142: 4501 | CH142: 2492.596805
C143: TI_WM 315 | D143: Water Main | E143: AC | G143: Supply from Clarifier to Millman Hill Reservoirs | I143: 363.991 | J143: 100 | K143: =IF(H143=TYPE1,VLOOKUP(J143,WaterUnitrates1,2,FALSE),IF(H143=TYPE2,VLOOKUP(J143,Unitrates2,2,FALSE),0)) -> 0 | L143: 63293.94166 | N143: =IF(M143="",1,VLOOKUP(M143,'Unit Rates - Water'!$H$12:$I$23,2,FALSE)) -> 1 | O143: 63293.94166 | R143: =IF(P143="",'Unit Rates - Land'!landcst,IF($E$8="Landuse",VLOOKUP(P143,LAndcost3,2,FALSE),IF($E$8="Location",VLOOKUP(P143,Landcost2,2,FALSE),"Error"))) -> 0 | S143: 0 | U143: =IFERROR(('General Input Sheet'!$G$38/(VLOOKUP('Existing Trunk Assets - Water'!T143,'General Input Sheet'!$E$38:$G$44,3,FALSE))),1) -> 1 | V143: 63293.94166 | W143: Y | BB143: 4501 | CF143: 4501 | CH143: 63293.94166
C144: TI_WM 316 | D144: Water Main | E144: UPVC | G144: Supply from Clarifier to Millman Hill Reservoirs | I144: 276.692 | J144: 150 | K144: 0 | L144: 58037.14794 | N144: =IF(M144="",1,VLOOKUP(M144,'Unit Rates - Water'!$H$12:$I$23,2,FALSE)) -> 1 | O144: =L144*N144 -> 58037.14794 | R144: =IF(P144="",'Unit Rates - Land'!landcst,IF($E$8="Landuse",VLOOKUP(P144,LAndcost3,2,FALSE),IF($E$8="Location",VLOOKUP(P144,Landcost2,2,FALSE),"Error"))) -> 0 | S144: =IF(R144="",0,R144*10000*Q144) -> 0 | U144: =IFERROR(('General Input Sheet'!$G$38/(VLOOKUP('Existing Trunk Assets - Water'!T144,'General Input Sheet'!$E$38:$G$44,3,FALSE))),1) -> 1 | V144: =IFERROR((O144+S144)*U144,0) -> 58037.14794 | W144: Y | BB144: 4501 | CF144: 4501 | CH144: 58037.14794
C145: TI_WM 317 | D145: Water Main | E145: UPVC | G145: Supply from 1ML Reservoir to Town | I145: 12.559 | J145: 150 | K145: 0 | L145: 2626.6409 | N145: =IF(M145="",1,VLOOKUP(M145,'Unit Rates - Water'!$H$12:$I$23,2,FALSE)) -> 1 | O145: 2626.6409 | R145: =IF(P145="",'Unit Rates - Land'!landcst,IF($E$8="Landuse",VLOOKUP(P145,LAndcost3,2,FALSE),IF($E$8="Location",VLOOKUP(P145,Landcost2,2,FALSE),"Error"))) -> 0 | S145: 0 | U145: =IFERROR(('General Input Sheet'!$G$38/(VLOOKUP('Existing Trunk Assets - Water'!T145,'General Input Sheet'!$E$38:$G$44,3,FALSE))),1) -> 1 | V145: 2626.6409 | W145: Y | BB145: 4501 | CF145: 4501 | CH145: 2626.6409
C146: TI_WM 318 | D146: Water Main | E146: AC | G146: Supply from 1ML Reservoir to Town | I146: 108.976 | J146: 225 | K146: 0 | L146: 28438.99176 | N146: =IF(M146="",1,VLOOKUP(M146,'Unit Rates - Water'!$H$12:$I$23,2,FALSE)) -> 1 | O146: 28438.99176 | R146: =IF(P146="",'Unit Rates - Land'!landcst,IF($E$8="Landuse",VLOOKUP(P146,LAndcost3,2,FALSE),IF($E$8="Location",VLOOKUP(P146,Landcost2,2,FALSE),"Error"))) -> 0 | S146: 0 | U146: =IFERROR(('General Input Sheet'!$G$38/(VLOOKUP('Existing Trunk Assets - Water'!T146,'General Input Sheet'!$E$38:$G$44,3,FALSE))),1) -> 1 | V146: 28438.99176 | W146: Y | BB146: 4501 | CF146: =SUM(BB146:CE146) -> 4501 | CH146: 28438.99176 | DL146: =IF(SUM(CH146:DK146)=V146,"","ERROR") -> 
C147: TI_WM 319 | D147: Water Main | E147: AC | G147: Supply from Clarifier to 1ML Reservoir | I147: 12.5814 | J147: 225 | K147: 0 | L147: 3283.307024 | N147: =IF(M147="",1,VLOOKUP(M147,'Unit Rates - Water'!$H$12:$I$23,2,FALSE)) -> 1 | O147: 3283.307024 | R147: =IF(P147="",'Unit Rates - Land'!landcst,IF($E$8="Landuse",VLOOKUP(P147,LAndcost3,2,FALSE),IF($E$8="Location",VLOOKUP(P147,Landcost2,2,FALSE),"Error"))) -> 0 | S147: 0 | U147: =IFERROR(('General Input Sheet'!$G$38/(VLOOKUP('Existing Trunk Assets - Water'!T147,'General Input Sheet'!$E$38:$G$44,3,FALSE))),1) -> 1 | V147: 3283.307024 | W147: Y | BB147: 4501 | CF147: 4501 | CH147: 3283.307024
C148: TI_WM 333 | D148: Water Main | E148: AC | G148: Supply from Clarifier to 1ML Reservoir | I148: 7.568 | J148: 225 | K148: 0 | L148: 1974.149379 | N148: =IF(M148="",1,VLOOKUP(M148,'Unit Rates - Water'!$H$12:$I$23,2,FALSE)) -> 1 | O148: 1974.149379 | R148: =IF(P148="",'Unit Rates - Land'!landcst,IF($E$8="Landuse",VLOOKUP(P148,LAndcost3,2,FALSE),IF($E$8="Location",VLOOKUP(P148,Landcost2,2,FALSE),"Error"))) -> 0 | S148: 0 | U148: =IFERROR(('General Input Sheet'!$G$38/(VLOOKUP('Existing Trunk Assets - Water'!T148,'General Input Sheet'!$E$38:$G$44,3,FALSE))),1) -> 1 | V148: 1974.149379 | W148: Y | BB148: =IF(W148="y",BB$14,IF(AND(W148>0,W148<=1),W148*BB$14,"")) -> 4501 | BC148: =IF(X148="y",BC$14,IF(AND(X148>0,X148<=1),X148*BC$14,"")) ->  | BD148: =IF(Y148="y",BD$14,IF(AND(Y148>0,Y148<=1),Y148*BD$14,"")) ->  | BE148: =IF(Z148="y",BE$14,IF(AND(Z148>0,Z148<=1),Z148*BE$14,"")) ->  | BF148: =IF(AA148="y",BF$14,IF(AND(AA148>0,AA148<=1),AA148*BF$14,"")) ->  | BG148: =IF(AB148="y",BG$14,IF(AND(AB148>0,AB148<=1),AB148*BG$14,"")) ->  | BH148: =IF(AC148="y",BH$14,IF(AND(AC148>0,AC148<=1),AC148*BH$14,"")) ->  | BI148: =IF(AD148="y",BI$14,IF(AND(AD148>0,AD148<=1),AD148*BI$14,"")) ->  | BJ148: =IF(AE148="y",BJ$14,IF(AND(AE148>0,AE148<=1),AE148*BJ$14,"")) ->  | BK148: =IF(AF148="y",BK$14,IF(AND(AF148>0,AF148<=1),AF148*BK$14,"")) ->  | BL148: =IF(AG148="y",BL$14,IF(AND(AG148>0,AG148<=1),AG148*BL$14,"")) ->  | BM148: =IF(AH148="y",BM$14,IF(AND(AH148>0,AH148<=1),AH148*BM$14,"")) ->  | BN148: =IF(AI148="y",BN$14,IF(AND(AI148>0,AI148<=1),AI148*BN$14,"")) ->  | BO148: =IF(AJ148="y",BO$14,IF(AND(AJ148>0,AJ148<=1),AJ148*BO$14,"")) ->  | BP148: =IF(AK148="y",BP$14,IF(AND(AK148>0,AK148<=1),AK148*BP$14,"")) ->  | BQ148: =IF(AL148="y",BQ$14,IF(AND(AL148>0,AL148<=1),AL148*BQ$14,"")) ->  | BR148: =IF(AM148="y",BR$14,IF(AND(AM148>0,AM148<=1),AM148*BR$14,"")) ->  | BS148: =IF(AN148="y",BS$14,IF(AND(AN148>0,AN148<=1),AN148*BS$14,"")) ->  | BT148: =IF(AO148="y",BT$14,IF(AND(AO148>0,AO148<=1),AO148*BT$14,"")) ->  | BU148: =IF(AP148="y",BU$14,IF(AND(AP148>0,AP148<=1),AP148*BU$14,"")) ->  | BV148: =IF(AQ148="y",BV$14,IF(AND(AQ148>0,AQ148<=1),AQ148*BV$14,"")) ->  | BW148: =IF(AR148="y",BW$14,IF(AND(AR148>0,AR148<=1),AR148*BW$14,"")) ->  | BX148: =IF(AS148="y",BX$14,IF(AND(AS148>0,AS148<=1),AS148*BX$14,"")) ->  | BY148: =IF(AT148="y",BY$14,IF(AND(AT148>0,AT148<=1),AT148*BY$14,"")) ->  | BZ148: =IF(AU148="y",BZ$14,IF(AND(AU148>0,AU148<=1),AU148*BZ$14,"")) ->  | CA148: =IF(AV148="y",CA$14,IF(AND(AV148>0,AV148<=1),AV148*CA$14,"")) ->  | CB148: =IF(AW148="y",CB$14,IF(AND(AW148>0,AW148<=1),AW148*CB$14,"")) ->  | CC148: =IF(AX148="y",CC$14,IF(AND(AX148>0,AX148<=1),AX148*CC$14,"")) ->  | CD148: =IF(AY148="y",CD$14,IF(AND(AY148>0,AY148<=1),AY148*CD$14,"")) ->  | CE148: =IF(AZ148="y",CE$14,IF(AND(AZ148>0,AZ148<=1),AZ148*CE$14,"")) ->  | CF148: 4501 | CH148: 1974.149379
C149: TI_WM 334 | D149: Water Main | E149: AC | I149: 49.5624 | J149: 225 | K149: 0 | L149: 12929.53975 | N149: =IF(M149="",1,VLOOKUP(M149,'Unit Rates - Water'!$H$12:$I$23,2,FALSE)) -> 1 | O149: 12929.53975 | R149: =IF(P149="",'Unit Rates - Land'!landcst,IF($E$8="Landuse",VLOOKUP(P149,LAndcost3,2,FALSE),IF($E$8="Location",VLOOKUP(P149,Landcost2,2,FALSE),"Error"))) -> 0 | S149: 0 | U149: =IFERROR(('General Input Sheet'!$G$38/(VLOOKUP('Existing Trunk Assets - Water'!T149,'General Input Sheet'!$E$38:$G$44,3,FALSE))),1) -> 1 | V149: 12929.53975 | W149: Y | BB149: 4501 | CF149: 4501 | CH149: 12929.53975
C150: TI_WM 335 | D150: Water Main | E150: AC | I150: 100.237 | J150: 200 | K150: 0 | L150: 26121.0129 | N150: =IF(M150="",1,VLOOKUP(M150,'Unit Rates - Water'!$H$12:$I$23,2,FALSE)) -> 1 | O150: 26121.0129 | R150: =IF(P150="",'Unit Rates - Land'!landcst,IF($E$8="Landuse",VLOOKUP(P150,LAndcost3,2,FALSE),IF($E$8="Location",VLOOKUP(P150,Landcost2,2,FALSE),"Error"))) -> 0 | S150: 0 | U150: =IFERROR(('General Input Sheet'!$G$38/(VLOOKUP('Existing Trunk Assets - Water'!T150,'General Input Sheet'!$E$38:$G$44,3,FALSE))),1) -> 1 | V150: 26121.0129 | W150: Y | BB150: 4501 | CF150: 4501 | CH150: 26121.0129 | CU150: =IF(BO150="","",(BO150/$CF150)*$V150) -> 
C151: TI_WM 336 | D151: Water Main | E151: AC | I151: 5.17828 | J151: 200 | K151: 0 | L151: 1349.416732 | N151: =IF(M151="",1,VLOOKUP(M151,'Unit Rates - Water'!$H$12:$I$23,2,FALSE)) -> 1 | O151: 1349.416732 | R151: =IF(P151="",'Unit Rates - Land'!landcst,IF($E$8="Landuse",VLOOKUP(P151,LAndcost3,2,FALSE),IF($E$8="Location",VLOOKUP(P151,Landcost2,2,FALSE),"Error"))) -> 0 | S151: 0 | U151: =IFERROR(('General Input Sheet'!$G$38/(VLOOKUP('Existing Trunk Assets - Water'!T151,'General Input Sheet'!$E$38:$G$44,3,FALSE))),1) -> 1 | V151: 1349.416732 | W151: Y | BB151: 4501 | CF151: 4501 | CH151: =IF(BB151="","",(BB151/$CF151)*$V151) -> 1349.416732
C152: TI_WM 337 | D152: Water Main | E152: AC | I152: 4.36066 | J152: 200 | K152: 0 | L152: 1136.350935 | N152: =IF(M152="",1,VLOOKUP(M152,'Unit Rates - Water'!$H$12:$I$23,2,FALSE)) -> 1 | O152: 1136.350935 | R152: =IF(P152="",'Unit Rates - Land'!landcst,IF($E$8="Landuse",VLOOKUP(P152,LAndcost3,2,FALSE),IF($E$8="Location",VLOOKUP(P152,Landcost2,2,FALSE),"Error"))) -> 0 | S152: 0 | U152: =IFERROR(('General Input Sheet'!$G$38/(VLOOKUP('Existing Trunk Assets - Water'!T152,'General Input Sheet'!$E$38:$G$44,3,FALSE))),1) -> 1 | V152: 1136.350935 | W152: Y | BB152: 4501 | CF152: 4501 | CH152: 1136.350935
C153: TI_WM 347 | D153: Water Main | E153: CI | I153: 44.0081 | J153: 75 | K153: 0 | L153: 4705.244454 | N153: =IF(M153="",1,VLOOKUP(M153,'Unit Rates - Water'!$H$12:$I$23,2,FALSE)) -> 1 | O153: 4705.244454 | R153: =IF(P153="",'Unit Rates - Land'!landcst,IF($E$8="Landuse",VLOOKUP(P153,LAndcost3,2,FALSE),IF($E$8="Location",VLOOKUP(P153,Landcost2,2,FALSE),"Error"))) -> 0 | S153: 0 | U153: =IFERROR(('General Input Sheet'!$G$38/(VLOOKUP('Existing Trunk Assets - Water'!T153,'General Input Sheet'!$E$38:$G$44,3,FALSE))),1) -> 1 | V153: 4705.244454 | W153: Y | BB153: 4501 | CF153: 4501 | CH153: 4705.244454
C154: TI_WM 348 | D154: Water Main | E154: CI | I154: 6.16802 | J154: 75 | K154: 0 | L154: 659.4705633 | N154: =IF(M154="",1,VLOOKUP(M154,'Unit Rates - Water'!$H$12:$I$23,2,FALSE)) -> 1 | O154: 659.4705633 | R154: =IF(P154="",'Unit Rates - Land'!landcst,IF($E$8="Landuse",VLOOKUP(P154,LAndcost3,2,FALSE),IF($E$8="Location",VLOOKUP(P154,Landcost2,2,FALSE),"Error"))) -> 0 | S154: 0 | U154: =IFERROR(('General Input Sheet'!$G$38/(VLOOKUP('Existing Trunk Assets - Water'!T154,'General Input Sheet'!$E$38:$G$44,3,FALSE))),1) -> 1 | V154: 659.4705633 | W154: Y | BB154: 4501 | CF154: 4501 | CH154: 659.4705633
C155: TI_WM 365 | D155: Water Main | E155: DICL | I155: 13.7323 | J155: 250 | K155: 0 | L155: 5993.82407 | N155: =IF(M155="",1,VLOOKUP(M155,'Unit Rates - Water'!$H$12:$I$23,2,FALSE)) -> 1 | O155: 5993.82407 | R155: =IF(P155="",'Unit Rates - Land'!landcst,IF($E$8="Landuse",VLOOKUP(P155,LAndcost3,2,FALSE),IF($E$8="Location",VLOOKUP(P155,Landcost2,2,FALSE),"Error"))) -> 0 | S155: 0 | U155: =IFERROR(('General Input Sheet'!$G$38/(VLOOKUP('Existing Trunk Assets - Water'!T155,'General Input Sheet'!$E$38:$G$44,3,FALSE))),1) -> 1 | V155: 5993.82407 | W155: Y | BB155: 4501 | CF155: 4501 | CH155: 5993.82407
C156: TI_WM 366 | D156: Water Main | E156: DICL | I156: 9.88906 | J156: 250 | K156: 0 | L156: 4316.311458 | N156: =IF(M156="",1,VLOOKUP(M156,'Unit Rates - Water'!$H$12:$I$23,2,FALSE)) -> 1 | O156: 4316.311458 | R156: =IF(P156="",'Unit Rates - Land'!landcst,IF($E$8="Landuse",VLOOKUP(P156,LAndcost3,2,FALSE),IF($E$8="Location",VLOOKUP(P156,Landcost2,2,FALSE),"Error"))) -> 0 | S156: 0 | U156: =IFERROR(('General Input Sheet'!$G$38/(VLOOKUP('Existing Trunk Assets - Water'!T156,'General Input Sheet'!$E$38:$G$44,3,FALSE))),1) -> 1 | V156: 4316.311458 | W156: Y | BB156: 4501 | CF156: 4501 | CH156: 4316.311458
C157: TI_WM 367 | D157: Water Main | E157: DICL | I157: 8.38871 | J157: 250 | K157: 0 | L157: 3654.261418 | N157: =IF(M157="",1,VLOOKUP(M157,'Unit Rates - Water'!$H$12:$I$23,2,FALSE)) -> 1 | O157: 3654.261418 | R157: =IF(P157="",'Unit Rates - Land'!landcst,IF($E$8="Landuse",VLOOKUP(P157,LAndcost3,2,FALSE),IF($E$8="Location",VLOOKUP(P157,Landcost2,2,FALSE),"Error"))) -> 0 | S157: 0 | U157: =IFERROR(('General Input Sheet'!$G$38/(VLOOKUP('Existing Trunk Assets - Water'!T157,'General Input Sheet'!$E$38:$G$44,3,FALSE))),1) -> 1 | V157: 3654.261418 | W157: Y | BB157: 4501 | CF157: 4501 | CH157: 3654.261418 | DF157: =IF(BZ157="","",(BZ157/$CF157)*$V157) -> 
C158: TI_WM 368 | D158: Water Main | E158: DICL | I158: 9.90456 | J158: 250 | K158: 0 | L158: 4322.850882 | N158: =IF(M158="",1,VLOOKUP(M158,'Unit Rates - Water'!$H$12:$I$23,2,FALSE)) -> 1 | O158: 4322.850882 | R158: =IF(P158="",'Unit Rates - Land'!landcst,IF($E$8="Landuse",VLOOKUP(P158,LAndcost3,2,FALSE),IF($E$8="Location",VLOOKUP(P158,Landcost2,2,FALSE),"Error"))) -> 0 | S158: 0 | U158: =IFERROR(('General Input Sheet'!$G$38/(VLOOKUP('Existing Trunk Assets - Water'!T158,'General Input Sheet'!$E$38:$G$44,3,FALSE))),1) -> 1 | V158: 4322.850882 | W158: Y | BB158: 4501 | CF158: 4501 | CH158: 4322.850882
C159: TI_WM 369 | D159: Water Main | E159: DICL | I159: 8.57376 | J159: 250 | K159: 0 | L159: 3735.18933 | N159: =IF(M159="",1,VLOOKUP(M159,'Unit Rates - Water'!$H$12:$I$23,2,FALSE)) -> 1 | O159: 3735.18933 | R159: =IF(P159="",'Unit Rates - Land'!landcst,IF($E$8="Landuse",VLOOKUP(P159,LAndcost3,2,FALSE),IF($E$8="Location",VLOOKUP(P159,Landcost2,2,FALSE),"Error"))) -> 0 | S159: 0 | U159: =IFERROR(('General Input Sheet'!$G$38/(VLOOKUP('Existing Trunk Assets - Water'!T159,'General Input Sheet'!$E$38:$G$44,3,FALSE))),1) -> 1 | V159: 3735.18933 | W159: Y | BB159: 4501 | CF159: 4501 | CH159: 3735.18933
C160: TI_WM 370 | D160: Water Main | E160: DICL | I160: 18.3439 | J160: 250 | K160: 0 | L160: 8000.312876 | N160: =IF(M160="",1,VLOOKUP(M160,'Unit Rates - Water'!$H$12:$I$23,2,FALSE)) -> 1 | O160: 8000.312876 | R160: =IF(P160="",'Unit Rates - Land'!landcst,IF($E$8="Landuse",VLOOKUP(P160,LAndcost3,2,FALSE),IF($E$8="Location",VLOOKUP(P160,Landcost2,2,FALSE),"Error"))) -> 0 | S160: 0 | U160: =IFERROR(('General Input Sheet'!$G$38/(VLOOKUP('Existing Trunk Assets - Water'!T160,'General Input Sheet'!$E$38:$G$44,3,FALSE))),1) -> 1 | V160: 8000.312876 | W160: Y | BB160: 4501 | CF160: 4501 | CH160: 8000.312876
C161: TI_WM 371 | D161: Water Main | E161: DICL | I161: 18.0223 | J161: 250 | K161: 0 | L161: 7860.655861 | N161: =IF(M161="",1,VLOOKUP(M161,'Unit Rates - Water'!$H$12:$I$23,2,FALSE)) -> 1 | O161: 7860.655861 | R161: =IF(P161="",'Unit Rates - Land'!landcst,IF($E$8="Landuse",VLOOKUP(P161,LAndcost3,2,FALSE),IF($E$8="Location",VLOOKUP(P161,Landcost2,2,FALSE),"Error"))) -> 0 | S161: 0 | U161: =IFERROR(('General Input Sheet'!$G$38/(VLOOKUP('Existing Trunk Assets - Water'!T161,'General Input Sheet'!$E$38:$G$44,3,FALSE))),1) -> 1 | V161: 7860.655861 | W161: Y | BB161: 4501 | CF161: 4501 | CH161: 7860.655861
C162: TI_WM 372 | D162: Water Main | I162: 12.5035 | J162: 300 | K162: 0 | L162: 9836.79185 | N162: =IF(M162="",1,VLOOKUP(M162,'Unit Rates - Water'!$H$12:$I$23,2,FALSE)) -> 1 | O162: 9836.79185 | R162: =IF(P162="",'Unit Rates - Land'!landcst,IF($E$8="Landuse",VLOOKUP(P162,LAndcost3,2,FALSE),IF($E$8="Location",VLOOKUP(P162,Landcost2,2,FALSE),"Error"))) -> 0 | S162: 0 | U162: =IFERROR(('General Input Sheet'!$G$38/(VLOOKUP('Existing Trunk Assets - Water'!T162,'General Input Sheet'!$E$38:$G$44,3,FALSE))),1) -> 1 | V162: 9836.79185 | W162: Y | BB162: 4501 | CF162: 4501 | CH162: 9836.79185
C163: TI_WM 373 | D163: Water Main | I163: 7.13725 | J163: 300 | K163: 0 | L163: 5615.054937 | N163: =IF(M163="",1,VLOOKUP(M163,'Unit Rates - Water'!$H$12:$I$23,2,FALSE)) -> 1 | O163: 5615.054937 | R163: =IF(P163="",'Unit Rates - Land'!landcst,IF($E$8="Landuse",VLOOKUP(P163,LAndcost3,2,FALSE),IF($E$8="Location",VLOOKUP(P163,Landcost2,2,FALSE),"Error"))) -> 0 | S163: 0 | U163: =IFERROR(('General Input Sheet'!$G$38/(VLOOKUP('Existing Trunk Assets - Water'!T163,'General Input Sheet'!$E$38:$G$44,3,FALSE))),1) -> 1 | V163: 5615.054937 | W163: Y | BB163: 4501 | CF163: 4501 | CH163: 5615.054937
C164: TI_WM 374 | D164: Water Main | E164: DICL | I164: 6.9931 | J164: 250 | K164: 0 | L164: 3052.604933 | N164: =IF(M164="",1,VLOOKUP(M164,'Unit Rates - Water'!$H$12:$I$23,2,FALSE)) -> 1 | O164: 3052.604933 | R164: =IF(P164="",'Unit Rates - Land'!landcst,IF($E$8="Landuse",VLOOKUP(P164,LAndcost3,2,FALSE),IF($E$8="Location",VLOOKUP(P164,Landcost2,2,FALSE),"Error"))) -> 0 | S164: 0 | U164: =IFERROR(('General Input Sheet'!$G$38/(VLOOKUP('Existing Trunk Assets - Water'!T164,'General Input Sheet'!$E$38:$G$44,3,FALSE))),1) -> 1 | V164: 3052.604933 | W164: Y | BB164: 4501 | CF164: 4501 | CH164: 3052.604933
C165: TI_WM 375 | D165: Water Main | E165: DICL | I165: 413.352 | J165: 250 | K165: 0 | L165: 180002.9501 | N165: =IF(M165="",1,VLOOKUP(M165,'Unit Rates - Water'!$H$12:$I$23,2,FALSE)) -> 1 | O165: 180002.9501 | R165: =IF(P165="",'Unit Rates - Land'!landcst,IF($E$8="Landuse",VLOOKUP(P165,LAndcost3,2,FALSE),IF($E$8="Location",VLOOKUP(P165,Landcost2,2,FALSE),"Error"))) -> 0 | S165: 0 | U165: =IFERROR(('General Input Sheet'!$G$38/(VLOOKUP('Existing Trunk Assets - Water'!T165,'General Input Sheet'!$E$38:$G$44,3,FALSE))),1) -> 1 | V165: 180002.9501 | W165: Y | BB165: 4501 | CF165: 4501 | CH165: 180002.9501
K166: 0 | L166: =K166*I166 -> 0 | N166: =IF(M166="",1,VLOOKUP(M166,'Unit Rates - Water'!$H$12:$I$23,2,FALSE)) -> 1 | O166: 0 | R166: =IF(P166="",'Unit Rates - Land'!landcst,IF($E$8="Landuse",VLOOKUP(P166,LAndcost3,2,FALSE),IF($E$8="Location",VLOOKUP(P166,Landcost2,2,FALSE),"Error"))) -> 0 | S166: 0 | U166: =IFERROR(('General Input Sheet'!$G$38/(VLOOKUP('Existing Trunk Assets - Water'!T166,'General Input Sheet'!$E$38:$G$44,3,FALSE))),1) -> 1 | V166: 0 | CF166: 0
K167: 0 | L167: 0 | N167: =IF(M167="",1,VLOOKUP(M167,'Unit Rates - Water'!$H$12:$I$23,2,FALSE)) -> 1 | O167: 0 | R167: =IF(P167="",'Unit Rates - Land'!landcst,IF($E$8="Landuse",VLOOKUP(P167,LAndcost3,2,FALSE),IF($E$8="Location",VLOOKUP(P167,Landcost2,2,FALSE),"Error"))) -> 0 | S167: 0 | U167: =IFERROR(('General Input Sheet'!$G$38/(VLOOKUP('Existing Trunk Assets - Water'!T167,'General Input Sheet'!$E$38:$G$44,3,FALSE))),1) -> 1 | V167: 0 | CF167: 0
K168: 0 | L168: 0 | N168: =IF(M168="",1,VLOOKUP(M168,'Unit Rates - Water'!$H$12:$I$23,2,FALSE)) -> 1 | O168: 0 | R168: =IF(P168="",'Unit Rates - Land'!landcst,IF($E$8="Landuse",VLOOKUP(P168,LAndcost3,2,FALSE),IF($E$8="Location",VLOOKUP(P168,Landcost2,2,FALSE),"Error"))) -> 0 | S168: 0 | U168: =IFERROR(('General Input Sheet'!$G$38/(VLOOKUP('Existing Trunk Assets - Water'!T168,'General Input Sheet'!$E$38:$G$44,3,FALSE))),1) -> 1 | V168: 0 | CF168: 0
K169: 0 | L169: 0 | N169: =IF(M169="",1,VLOOKUP(M169,'Unit Rates - Water'!$H$12:$I$23,2,FALSE)) -> 1 | O169: 0 | R169: =IF(P169="",'Unit Rates - Land'!landcst,IF($E$8="Landuse",VLOOKUP(P169,LAndcost3,2,FALSE),IF($E$8="Location",VLOOKUP(P169,Landcost2,2,FALSE),"Error"))) -> 0 | S169: 0 | U169: =IFERROR(('General Input Sheet'!$G$38/(VLOOKUP('Existing Trunk Assets - Water'!T169,'General Input Sheet'!$E$38:$G$44,3,FALSE))),1) -> 1 | V169: 0 | CF169: 0
K170: 0 | L170: 0 | N170: =IF(M170="",1,VLOOKUP(M170,'Unit Rates - Water'!$H$12:$I$23,2,FALSE)) -> 1 | O170: 0 | R170: =IF(P170="",'Unit Rates - Land'!landcst,IF($E$8="Landuse",VLOOKUP(P170,LAndcost3,2,FALSE),IF($E$8="Location",VLOOKUP(P170,Landcost2,2,FALSE),"Error"))) -> 0 | S170: 0 | U170: =IFERROR(('General Input Sheet'!$G$38/(VLOOKUP('Existing Trunk Assets - Water'!T170,'General Input Sheet'!$E$38:$G$44,3,FALSE))),1) -> 1 | V170: 0 | CF170: 0 | CP170: =IF(BJ170="","",(BJ170/$CF170)*$V170) -> 
K171: 0 | L171: 0 | N171: =IF(M171="",1,VLOOKUP(M171,'Unit Rates - Water'!$H$12:$I$23,2,FALSE)) -> 1 | O171: 0 | R171: =IF(P171="",'Unit Rates - Land'!landcst,IF($E$8="Landuse",VLOOKUP(P171,LAndcost3,2,FALSE),IF($E$8="Location",VLOOKUP(P171,Landcost2,2,FALSE),"Error"))) -> 0 | S171: 0 | U171: =IFERROR(('General Input Sheet'!$G$38/(VLOOKUP('Existing Trunk Assets - Water'!T171,'General Input Sheet'!$E$38:$G$44,3,FALSE))),1) -> 1 | V171: 0 | CF171: 0 | CH171: =IF(BB171="","",(BB171/$CF171)*$V171) -> 
K172: 0 | L172: 0 | N172: =IF(M172="",1,VLOOKUP(M172,'Unit Rates - Water'!$H$12:$I$23,2,FALSE)) -> 1 | O172: 0 | R172: =IF(P172="",'Unit Rates - Land'!landcst,IF($E$8="Landuse",VLOOKUP(P172,LAndcost3,2,FALSE),IF($E$8="Location",VLOOKUP(P172,Landcost2,2,FALSE),"Error"))) -> 0 | S172: 0 | U172: =IFERROR(('General Input Sheet'!$G$38/(VLOOKUP('Existing Trunk Assets - Water'!T172,'General Input Sheet'!$E$38:$G$44,3,FALSE))),1) -> 1 | V172: 0 | CF172: 0
K173: 0 | L173: 0 | N173: =IF(M173="",1,VLOOKUP(M173,'Unit Rates - Water'!$H$12:$I$23,2,FALSE)) -> 1 | O173: 0 | R173: =IF(P173="",'Unit Rates - Land'!landcst,IF($E$8="Landuse",VLOOKUP(P173,LAndcost3,2,FALSE),IF($E$8="Location",VLOOKUP(P173,Landcost2,2,FALSE),"Error"))) -> 0 | S173: 0 | U173: =IFERROR(('General Input Sheet'!$G$38/(VLOOKUP('Existing Trunk Assets - Water'!T173,'General Input Sheet'!$E$38:$G$44,3,FALSE))),1) -> 1 | V173: 0 | CF173: 0
K174: 0 | L174: 0 | N174: =IF(M174="",1,VLOOKUP(M174,'Unit Rates - Water'!$H$12:$I$23,2,FALSE)) -> 1 | O174: 0 | R174: =IF(P174="",'Unit Rates - Land'!landcst,IF($E$8="Landuse",VLOOKUP(P174,LAndcost3,2,FALSE),IF($E$8="Location",VLOOKUP(P174,Landcost2,2,FALSE),"Error"))) -> 0 | S174: 0 | U174: =IFERROR(('General Input Sheet'!$G$38/(VLOOKUP('Existing Trunk Assets - Water'!T174,'General Input Sheet'!$E$38:$G$44,3,FALSE))),1) -> 1 | V174: 0 | CF174: 0
K175: 0 | L175: 0 | N175: =IF(M175="",1,VLOOKUP(M175,'Unit Rates - Water'!$H$12:$I$23,2,FALSE)) -> 1 | O175: 0 | R175: =IF(P175="",'Unit Rates - Land'!landcst,IF($E$8="Landuse",VLOOKUP(P175,LAndcost3,2,FALSE),IF($E$8="Location",VLOOKUP(P175,Landcost2,2,FALSE),"Error"))) -> 0 | S175: 0 | U175: =IFERROR(('General Input Sheet'!$G$38/(VLOOKUP('Existing Trunk Assets - Water'!T175,'General Input Sheet'!$E$38:$G$44,3,FALSE))),1) -> 1 | V175: 0 | CF175: 0
K176: 0 | L176: 0 | N176: =IF(M176="",1,VLOOKUP(M176,'Unit Rates - Water'!$H$12:$I$23,2,FALSE)) -> 1 | O176: 0 | R176: =IF(P176="",'Unit Rates - Land'!landcst,IF($E$8="Landuse",VLOOKUP(P176,LAndcost3,2,FALSE),IF($E$8="Location",VLOOKUP(P176,Landcost2,2,FALSE),"Error"))) -> 0 | S176: 0 | U176: =IFERROR(('General Input Sheet'!$G$38/(VLOOKUP('Existing Trunk Assets - Water'!T176,'General Input Sheet'!$E$38:$G$44,3,FALSE))),1) -> 1 | V176: 0 | CF176: 0
K177: 0 | L177: 0 | N177: =IF(M177="",1,VLOOKUP(M177,'Unit Rates - Water'!$H$12:$I$23,2,FALSE)) -> 1 | O177: 0 | R177: =IF(P177="",'Unit Rates - Land'!landcst,IF($E$8="Landuse",VLOOKUP(P177,LAndcost3,2,FALSE),IF($E$8="Location",VLOOKUP(P177,Landcost2,2,FALSE),"Error"))) -> 0 | S177: 0 | U177: =IFERROR(('General Input Sheet'!$G$38/(VLOOKUP('Existing Trunk Assets - Water'!T177,'General Input Sheet'!$E$38:$G$44,3,FALSE))),1) -> 1 | V177: 0 | CF177: 0
K178: 0 | L178: 0 | N178: =IF(M178="",1,VLOOKUP(M178,'Unit Rates - Water'!$H$12:$I$23,2,FALSE)) -> 1 | O178: 0 | R178: =IF(P178="",'Unit Rates - Land'!landcst,IF($E$8="Landuse",VLOOKUP(P178,LAndcost3,2,FALSE),IF($E$8="Location",VLOOKUP(P178,Landcost2,2,FALSE),"Error"))) -> 0 | S178: 0 | U178: =IFERROR(('General Input Sheet'!$G$38/(VLOOKUP('Existing Trunk Assets - Water'!T178,'General Input Sheet'!$E$38:$G$44,3,FALSE))),1) -> 1 | V178: 0 | CF178: 0
K179: 0 | L179: 0 | N179: =IF(M179="",1,VLOOKUP(M179,'Unit Rates - Water'!$H$12:$I$23,2,FALSE)) -> 1 | O179: 0 | R179: =IF(P179="",'Unit Rates - Land'!landcst,IF($E$8="Landuse",VLOOKUP(P179,LAndcost3,2,FALSE),IF($E$8="Location",VLOOKUP(P179,Landcost2,2,FALSE),"Error"))) -> 0 | S179: 0 | U179: =IFERROR(('General Input Sheet'!$G$38/(VLOOKUP('Existing Trunk Assets - Water'!T179,'General Input Sheet'!$E$38:$G$44,3,FALSE))),1) -> 1 | V179: 0 | CF179: 0
K180: 0 | L180: 0 | N180: =IF(M180="",1,VLOOKUP(M180,'Unit Rates - Water'!$H$12:$I$23,2,FALSE)) -> 1 | O180: 0 | R180: =IF(P180="",'Unit Rates - Land'!landcst,IF($E$8="Landuse",VLOOKUP(P180,LAndcost3,2,FALSE),IF($E$8="Location",VLOOKUP(P180,Landcost2,2,FALSE),"Error"))) -> 0 | S180: 0 | U180: =IFERROR(('General Input Sheet'!$G$38/(VLOOKUP('Existing Trunk Assets - Water'!T180,'General Input Sheet'!$E$38:$G$44,3,FALSE))),1) -> 1 | V180: 0 | CF180: 0
K181: 0 | L181: 0 | N181: =IF(M181="",1,VLOOKUP(M181,'Unit Rates - Water'!$H$12:$I$23,2,FALSE)) -> 1 | O181: 0 | R181: =IF(P181="",'Unit Rates - Land'!landcst,IF($E$8="Landuse",VLOOKUP(P181,LAndcost3,2,FALSE),IF($E$8="Location",VLOOKUP(P181,Landcost2,2,FALSE),"Error"))) -> 0 | S181: 0 | U181: =IFERROR(('General Input Sheet'!$G$38/(VLOOKUP('Existing Trunk Assets - Water'!T181,'General Input Sheet'!$E$38:$G$44,3,FALSE))),1) -> 1 | V181: 0 | CF181: 0
K182: 0 | L182: 0 | N182: =IF(M182="",1,VLOOKUP(M182,'Unit Rates - Water'!$H$12:$I$23,2,FALSE)) -> 1 | O182: 0 | R182: =IF(P182="",'Unit Rates - Land'!landcst,IF($E$8="Landuse",VLOOKUP(P182,LAndcost3,2,FALSE),IF($E$8="Location",VLOOKUP(P182,Landcost2,2,FALSE),"Error"))) -> 0 | S182: 0 | U182: =IFERROR(('General Input Sheet'!$G$38/(VLOOKUP('Existing Trunk Assets - Water'!T182,'General Input Sheet'!$E$38:$G$44,3,FALSE))),1) -> 1 | V182: 0 | CF182: 0
K183: 0 | L183: 0 | N183: =IF(M183="",1,VLOOKUP(M183,'Unit Rates - Water'!$H$12:$I$23,2,FALSE)) -> 1 | O183: 0 | R183: =IF(P183="",'Unit Rates - Land'!landcst,IF($E$8="Landuse",VLOOKUP(P183,LAndcost3,2,FALSE),IF($E$8="Location",VLOOKUP(P183,Landcost2,2,FALSE),"Error"))) -> 0 | S183: 0 | U183: =IFERROR(('General Input Sheet'!$G$38/(VLOOKUP('Existing Trunk Assets - Water'!T183,'General Input Sheet'!$E$38:$G$44,3,FALSE))),1) -> 1 | V183: 0 | CF183: 0
K184: 0 | L184: 0 | N184: =IF(M184="",1,VLOOKUP(M184,'Unit Rates - Water'!$H$12:$I$23,2,FALSE)) -> 1 | O184: 0 | R184: =IF(P184="",'Unit Rates - Land'!landcst,IF($E$8="Landuse",VLOOKUP(P184,LAndcost3,2,FALSE),IF($E$8="Location",VLOOKUP(P184,Landcost2,2,FALSE),"Error"))) -> 0 | S184: 0 | U184: =IFERROR(('General Input Sheet'!$G$38/(VLOOKUP('Existing Trunk Assets - Water'!T184,'General Input Sheet'!$E$38:$G$44,3,FALSE))),1) -> 1 | V184: 0 | CF184: 0
K185: 0 | L185: 0 | N185: =IF(M185="",1,VLOOKUP(M185,'Unit Rates - Water'!$H$12:$I$23,2,FALSE)) -> 1 | O185: 0 | R185: =IF(P185="",'Unit Rates - Land'!landcst,IF($E$8="Landuse",VLOOKUP(P185,LAndcost3,2,FALSE),IF($E$8="Location",VLOOKUP(P185,Landcost2,2,FALSE),"Error"))) -> 0 | S185: 0 | U185: =IFERROR(('General Input Sheet'!$G$38/(VLOOKUP('Existing Trunk Assets - Water'!T185,'General Input Sheet'!$E$38:$G$44,3,FALSE))),1) -> 1 | V185: 0 | CF185: 0
K186: 0 | L186: 0 | N186: =IF(M186="",1,VLOOKUP(M186,'Unit Rates - Water'!$H$12:$I$23,2,FALSE)) -> 1 | O186: 0 | R186: =IF(P186="",'Unit Rates - Land'!landcst,IF($E$8="Landuse",VLOOKUP(P186,LAndcost3,2,FALSE),IF($E$8="Location",VLOOKUP(P186,Landcost2,2,FALSE),"Error"))) -> 0 | S186: 0 | U186: =IFERROR(('General Input Sheet'!$G$38/(VLOOKUP('Existing Trunk Assets - Water'!T186,'General Input Sheet'!$E$38:$G$44,3,FALSE))),1) -> 1 | V186: 0 | CF186: 0
K187: 0 | L187: 0 | N187: =IF(M187="",1,VLOOKUP(M187,'Unit Rates - Water'!$H$12:$I$23,2,FALSE)) -> 1 | O187: 0 | R187: =IF(P187="",'Unit Rates - Land'!landcst,IF($E$8="Landuse",VLOOKUP(P187,LAndcost3,2,FALSE),IF($E$8="Location",VLOOKUP(P187,Landcost2,2,FALSE),"Error"))) -> 0 | S187: 0 | U187: =IFERROR(('General Input Sheet'!$G$38/(VLOOKUP('Existing Trunk Assets - Water'!T187,'General Input Sheet'!$E$38:$G$44,3,FALSE))),1) -> 1 | V187: 0 | CF187: 0
K188: 0 | L188: 0 | N188: =IF(M188="",1,VLOOKUP(M188,'Unit Rates - Water'!$H$12:$I$23,2,FALSE)) -> 1 | O188: 0 | R188: =IF(P188="",'Unit Rates - Land'!landcst,IF($E$8="Landuse",VLOOKUP(P188,LAndcost3,2,FALSE),IF($E$8="Location",VLOOKUP(P188,Landcost2,2,FALSE),"Error"))) -> 0 | S188: 0 | U188: =IFERROR(('General Input Sheet'!$G$38/(VLOOKUP('Existing Trunk Assets - Water'!T188,'General Input Sheet'!$E$38:$G$44,3,FALSE))),1) -> 1 | V188: 0 | CF188: 0
K189: 0 | L189: 0 | N189: =IF(M189="",1,VLOOKUP(M189,'Unit Rates - Water'!$H$12:$I$23,2,FALSE)) -> 1 | O189: 0 | R189: =IF(P189="",'Unit Rates - Land'!landcst,IF($E$8="Landuse",VLOOKUP(P189,LAndcost3,2,FALSE),IF($E$8="Location",VLOOKUP(P189,Landcost2,2,FALSE),"Error"))) -> 0 | S189: 0 | U189: =IFERROR(('General Input Sheet'!$G$38/(VLOOKUP('Existing Trunk Assets - Water'!T189,'General Input Sheet'!$E$38:$G$44,3,FALSE))),1) -> 1 | V189: 0 | CF189: 0
K190: 0 | L190: 0 | N190: =IF(M190="",1,VLOOKUP(M190,'Unit Rates - Water'!$H$12:$I$23,2,FALSE)) -> 1 | O190: 0 | R190: =IF(P190="",'Unit Rates - Land'!landcst,IF($E$8="Landuse",VLOOKUP(P190,LAndcost3,2,FALSE),IF($E$8="Location",VLOOKUP(P190,Landcost2,2,FALSE),"Error"))) -> 0 | S190: 0 | U190: =IFERROR(('General Input Sheet'!$G$38/(VLOOKUP('Existing Trunk Assets - Water'!T190,'General Input Sheet'!$E$38:$G$44,3,FALSE))),1) -> 1 | V190: 0 | CF190: 0
K191: 0 | L191: 0 | N191: =IF(M191="",1,VLOOKUP(M191,'Unit Rates - Water'!$H$12:$I$23,2,FALSE)) -> 1 | O191: 0 | R191: =IF(P191="",'Unit Rates - Land'!landcst,IF($E$8="Landuse",VLOOKUP(P191,LAndcost3,2,FALSE),IF($E$8="Location",VLOOKUP(P191,Landcost2,2,FALSE),"Error"))) -> 0 | S191: 0 | U191: =IFERROR(('General Input Sheet'!$G$38/(VLOOKUP('Existing Trunk Assets - Water'!T191,'General Input Sheet'!$E$38:$G$44,3,FALSE))),1) -> 1 | V191: 0 | CF191: 0
K192: 0 | L192: 0 | N192: =IF(M192="",1,VLOOKUP(M192,'Unit Rates - Water'!$H$12:$I$23,2,FALSE)) -> 1 | O192: 0 | R192: =IF(P192="",'Unit Rates - Land'!landcst,IF($E$8="Landuse",VLOOKUP(P192,LAndcost3,2,FALSE),IF($E$8="Location",VLOOKUP(P192,Landcost2,2,FALSE),"Error"))) -> 0 | S192: 0 | U192: =IFERROR(('General Input Sheet'!$G$38/(VLOOKUP('Existing Trunk Assets - Water'!T192,'General Input Sheet'!$E$38:$G$44,3,FALSE))),1) -> 1 | V192: 0 | CF192: 0 | CR192: =IF(BL192="","",(BL192/$CF192)*$V192) -> 
K193: 0 | L193: 0 | N193: =IF(M193="",1,VLOOKUP(M193,'Unit Rates - Water'!$H$12:$I$23,2,FALSE)) -> 1 | O193: 0 | R193: =IF(P193="",'Unit Rates - Land'!landcst,IF($E$8="Landuse",VLOOKUP(P193,LAndcost3,2,FALSE),IF($E$8="Location",VLOOKUP(P193,Landcost2,2,FALSE),"Error"))) -> 0 | S193: 0 | U193: =IFERROR(('General Input Sheet'!$G$38/(VLOOKUP('Existing Trunk Assets - Water'!T193,'General Input Sheet'!$E$38:$G$44,3,FALSE))),1) -> 1 | V193: 0 | CF193: 0
K194: 0 | L194: 0 | N194: =IF(M194="",1,VLOOKUP(M194,'Unit Rates - Water'!$H$12:$I$23,2,FALSE)) -> 1 | O194: 0 | R194: =IF(P194="",'Unit Rates - Land'!landcst,IF($E$8="Landuse",VLOOKUP(P194,LAndcost3,2,FALSE),IF($E$8="Location",VLOOKUP(P194,Landcost2,2,FALSE),"Error"))) -> 0 | S194: 0 | U194: =IFERROR(('General Input Sheet'!$G$38/(VLOOKUP('Existing Trunk Assets - Water'!T194,'General Input Sheet'!$E$38:$G$44,3,FALSE))),1) -> 1 | V194: 0 | CF194: 0
K195: 0 | L195: 0 | N195: =IF(M195="",1,VLOOKUP(M195,'Unit Rates - Water'!$H$12:$I$23,2,FALSE)) -> 1 | O195: 0 | R195: =IF(P195="",'Unit Rates - Land'!landcst,IF($E$8="Landuse",VLOOKUP(P195,LAndcost3,2,FALSE),IF($E$8="Location",VLOOKUP(P195,Landcost2,2,FALSE),"Error"))) -> 0 | S195: 0 | U195: =IFERROR(('General Input Sheet'!$G$38/(VLOOKUP('Existing Trunk Assets - Water'!T195,'General Input Sheet'!$E$38:$G$44,3,FALSE))),1) -> 1 | V195: 0 | CF195: 0
K196: 0 | L196: 0 | N196: =IF(M196="",1,VLOOKUP(M196,'Unit Rates - Water'!$H$12:$I$23,2,FALSE)) -> 1 | O196: 0 | R196: =IF(P196="",'Unit Rates - Land'!landcst,IF($E$8="Landuse",VLOOKUP(P196,LAndcost3,2,FALSE),IF($E$8="Location",VLOOKUP(P196,Landcost2,2,FALSE),"Error"))) -> 0 | S196: 0 | U196: =IFERROR(('General Input Sheet'!$G$38/(VLOOKUP('Existing Trunk Assets - Water'!T196,'General Input Sheet'!$E$38:$G$44,3,FALSE))),1) -> 1 | V196: 0 | CF196: 0
K197: 0 | L197: 0 | N197: =IF(M197="",1,VLOOKUP(M197,'Unit Rates - Water'!$H$12:$I$23,2,FALSE)) -> 1 | O197: 0 | R197: =IF(P197="",'Unit Rates - Land'!landcst,IF($E$8="Landuse",VLOOKUP(P197,LAndcost3,2,FALSE),IF($E$8="Location",VLOOKUP(P197,Landcost2,2,FALSE),"Error"))) -> 0 | S197: 0 | U197: =IFERROR(('General Input Sheet'!$G$38/(VLOOKUP('Existing Trunk Assets - Water'!T197,'General Input Sheet'!$E$38:$G$44,3,FALSE))),1) -> 1 | V197: 0 | CF197: 0
K198: 0 | L198: 0 | N198: =IF(M198="",1,VLOOKUP(M198,'Unit Rates - Water'!$H$12:$I$23,2,FALSE)) -> 1 | O198: 0 | R198: =IF(P198="",'Unit Rates - Land'!landcst,IF($E$8="Landuse",VLOOKUP(P198,LAndcost3,2,FALSE),IF($E$8="Location",VLOOKUP(P198,Landcost2,2,FALSE),"Error"))) -> 0 | S198: 0 | U198: =IFERROR(('General Input Sheet'!$G$38/(VLOOKUP('Existing Trunk Assets - Water'!T198,'General Input Sheet'!$E$38:$G$44,3,FALSE))),1) -> 1 | V198: 0 | CF198: 0
K199: 0 | L199: 0 | N199: =IF(M199="",1,VLOOKUP(M199,'Unit Rates - Water'!$H$12:$I$23,2,FALSE)) -> 1 | O199: 0 | R199: =IF(P199="",'Unit Rates - Land'!landcst,IF($E$8="Landuse",VLOOKUP(P199,LAndcost3,2,FALSE),IF($E$8="Location",VLOOKUP(P199,Landcost2,2,FALSE),"Error"))) -> 0 | S199: 0 | U199: =IFERROR(('General Input Sheet'!$G$38/(VLOOKUP('Existing Trunk Assets - Water'!T199,'General Input Sheet'!$E$38:$G$44,3,FALSE))),1) -> 1 | V199: 0 | CF199: 0
K200: 0 | L200: 0 | N200: =IF(M200="",1,VLOOKUP(M200,'Unit Rates - Water'!$H$12:$I$23,2,FALSE)) -> 1 | O200: 0 | R200: =IF(P200="",'Unit Rates - Land'!landcst,IF($E$8="Landuse",VLOOKUP(P200,LAndcost3,2,FALSE),IF($E$8="Location",VLOOKUP(P200,Landcost2,2,FALSE),"Error"))) -> 0 | S200: 0 | U200: =IFERROR(('General Input Sheet'!$G$38/(VLOOKUP('Existing Trunk Assets - Water'!T200,'General Input Sheet'!$E$38:$G$44,3,FALSE))),1) -> 1 | V200: 0 | CF200: 0 | CQ200: =IF(BK200="","",(BK200/$CF200)*$V200) -> 
K201: 0 | L201: 0 | N201: =IF(M201="",1,VLOOKUP(M201,'Unit Rates - Water'!$H$12:$I$23,2,FALSE)) -> 1 | O201: 0 | R201: =IF(P201="",'Unit Rates - Land'!landcst,IF($E$8="Landuse",VLOOKUP(P201,LAndcost3,2,FALSE),IF($E$8="Location",VLOOKUP(P201,Landcost2,2,FALSE),"Error"))) -> 0 | S201: 0 | U201: =IFERROR(('General Input Sheet'!$G$38/(VLOOKUP('Existing Trunk Assets - Water'!T201,'General Input Sheet'!$E$38:$G$44,3,FALSE))),1) -> 1 | V201: 0 | CF201: 0 | CH201: =IF(BB201="","",(BB201/$CF201)*$V201) -> 
K202: 0 | L202: 0 | N202: =IF(M202="",1,VLOOKUP(M202,'Unit Rates - Water'!$H$12:$I$23,2,FALSE)) -> 1 | O202: 0 | R202: =IF(P202="",'Unit Rates - Land'!landcst,IF($E$8="Landuse",VLOOKUP(P202,LAndcost3,2,FALSE),IF($E$8="Location",VLOOKUP(P202,Landcost2,2,FALSE),"Error"))) -> 0 | S202: 0 | U202: =IFERROR(('General Input Sheet'!$G$38/(VLOOKUP('Existing Trunk Assets - Water'!T202,'General Input Sheet'!$E$38:$G$44,3,FALSE))),1) -> 1 | V202: 0 | CF202: 0
K203: 0 | L203: 0 | N203: =IF(M203="",1,VLOOKUP(M203,'Unit Rates - Water'!$H$12:$I$23,2,FALSE)) -> 1 | O203: 0 | R203: =IF(P203="",'Unit Rates - Land'!landcst,IF($E$8="Landuse",VLOOKUP(P203,LAndcost3,2,FALSE),IF($E$8="Location",VLOOKUP(P203,Landcost2,2,FALSE),"Error"))) -> 0 | S203: 0 | U203: =IFERROR(('General Input Sheet'!$G$38/(VLOOKUP('Existing Trunk Assets - Water'!T203,'General Input Sheet'!$E$38:$G$44,3,FALSE))),1) -> 1 | V203: 0 | CF203: 0 | DH203: =IF(CB203="","",(CB203/$CF203)*$V203) -> 
K204: 0 | L204: 0 | N204: =IF(M204="",1,VLOOKUP(M204,'Unit Rates - Water'!$H$12:$I$23,2,FALSE)) -> 1 | O204: 0 | R204: =IF(P204="",'Unit Rates - Land'!landcst,IF($E$8="Landuse",VLOOKUP(P204,LAndcost3,2,FALSE),IF($E$8="Location",VLOOKUP(P204,Landcost2,2,FALSE),"Error"))) -> 0 | S204: 0 | U204: =IFERROR(('General Input Sheet'!$G$38/(VLOOKUP('Existing Trunk Assets - Water'!T204,'General Input Sheet'!$E$38:$G$44,3,FALSE))),1) -> 1 | V204: 0 | CF204: 0
... 224 more rows

Sheet Existing Trunk Assets - Sewer
B2: ='Navigation Pane'!C2 -> Torres Shire Council
B3: Wastewater
A4: Return to "Existing Trunk Assets"
B5: EXISTING TRUNK ASSETS
B8: Land Valuation Type | E8: Location | R8: =IF(H15=TYPE2,VLOOKUP((J15&"_"&K15),Sewerrates2,2,FALSE),"") -> 
I10: Asset Data | X10: Catchment Asset Allocation | BQ10: Asset Usage | CW10: Cost Allocation
B11: Basic Asset Data | H11: Asset Attributes | L11: Basic Asset Valuation | Q11: Land Attributes | U11: Refined Asset Value | X11: ='Catchment Demand- Sewer'!C8 -> Thursday Island | Y11: ='Catchment Demand- Sewer'!$C9 -> Horn Island | Z11: ='Catchment Demand- Sewer'!$C10 -> 0 | AA11: ='Catchment Demand- Sewer'!$C11 -> 0 | AB11: ='Catchment Demand- Sewer'!$C12 -> 0 | AC11: ='Catchment Demand- Sewer'!$C13 -> 0 | AD11: ='Catchment Demand- Sewer'!$C14 -> 0 | AE11: ='Catchment Demand- Sewer'!$C15 -> 0 | AF11: ='Catchment Demand- Sewer'!$C16 -> 0 | AG11: ='Catchment Demand- Sewer'!$C17 -> 0 | AH11: ='Catchment Demand- Sewer'!$C18 -> 0 | AI11: ='Catchment Demand- Sewer'!$C19 -> 0 | AJ11: ='Catchment Demand- Sewer'!$C20 -> 0 | AK11: ='Catchment Demand- Sewer'!$C21 -> 0 | AL11: ='Catchment Demand- Sewer'!$C22 -> 0 | AM11: ='Catchment Demand- Sewer'!$C23 -> 0 | AN11: ='Catchment Demand- Sewer'!$C24 -> 0 | AO11: ='Catchment Demand- Sewer'!$C25 -> 0 | AP11: ='Catchment Demand- Sewer'!$C26 -> 0 | AQ11: ='Catchment Demand- Sewer'!$C27 -> 0 | AR11: ='Catchment Demand- Sewer'!$C28 -> 0 | AS11: ='Catchment Demand- Sewer'!$C29 -> 0 | AT11: ='Catchment Demand- Sewer'!$C30 -> 0 | AU11: ='Catchment Demand- Sewer'!$C31 -> 0 | AV11: ='Catchment Demand- Sewer'!$C32 -> 0 | AW11: ='Catchment Demand- Sewer'!$C33 -> 0 | AX11: ='Catchment Demand- Sewer'!$C34 -> 0 | AY11: ='Catchment Demand- Sewer'!$C35 -> 0 | AZ11: ='Catchment Demand- Sewer'!$C36 -> 0 | BA11: ='Catchment Demand- Sewer'!$C37 -> 0 | BC11: =X11 -> Thursday Island | BD11: =Y11 -> Horn Island | BE11: 0 | BF11: 0 | BG11: 0 | BH11: 0 | BI11: 0 | BJ11: 0 | BK11: 0 | BL11: 0 | BM11: 0 | BN11: 0 | BO11: 0 | BP11: 0 | BQ11: 0 | BR11: 0 | BS11: 0 | BT11: 0 | BU11: 0 | BV11: 0 | BW11: 0 | BX11: 0 | BY11: 0 | BZ11: 0 | CA11: 0 | CB11: 0 | CC11: 0 | CD11: 0 | CE11: 0 | CF11: 0 | CG11: TOTALS | CI11: =BC11 -> Thursday Island | CJ11: =BD11 -> Horn Island | CK11: 0 | CL11: 0 | CM11: 0 | CN11: 0 | CO11: 0 | CP11: 0 | CQ11: 0 | CR11: 0 | CS11: 0 | CT11: 0 | CU11: 0 | CV11: 0 | CW11: 0 | CX11: 0 | CY11: 0 | CZ11: 0 | DA11: 0 | DB11: 0 | DC11: 0 | DD11: 0 | DE11: 0 | DF11: 0 | DG11: 0 | DH11: 0 | DI11: 0 | DJ11: 0 | DK11: 0 | DL11: 0 | DM11: Checksum 2
B12: Asset ID | C12: LGIP ID | D12: Asset Type (*) | E12: Asset Class | F12: Asset Name | G12: Description | H12: Unit Rate Type (*) | I12: Length/unit (*) | J12: Diameter (*) | K12: Depth (*) | L12: Unit Rate | M12: Baseline Valuation | N12: Site/Condition | O12: Multiplier | P12: Gross Value | Q12: Land Location/Type | R12: Size of land (ha) (*) | S12: Unit Cost | T12: Land Value | U12: Valuation Year | V12: Escalation | W12: Current Replaceement Costs
X13: 1 | Y13: =X13+1 -> 2 | Z13: =Y13+1 -> 3 | AA13: 4 | AB13: 5 | AC13: 6 | AD13: 7 | AE13: 8 | AF13: 9 | AG13: 10 | AH13: 11 | AI13: 12 | AJ13: 13 | AK13: 14 | AL13: 15 | AM13: 16 | AN13: 17 | AO13: 18 | AP13: 19 | AQ13: 20 | AR13: 21 | AS13: 22 | AT13: 23 | AU13: 24 | AV13: 25 | AW13: 26 | AX13: 27 | AY13: 28 | AZ13: 29 | BA13: 30
B14: Councils ID (from GIS, FAR, AMA etc.) | C14: ID from the LGIP drawings | E14: Pump Station, Gravity Main, Rising Main etc | M14: May be calculated from unit rates OR unique values can be direct entered | W14: CRC | X14: =IFERROR(VLOOKUP(X11,Sewcatch,6,FALSE),"") -> 4494 | Y14: 1546 | BC14: =X14 -> 4494 | BD14: =Y14 -> 1546 | CI14: =SUM(CI15:CI401) -> 9564831.055 | CJ14: 5750370.819 | CK14: 0 | CL14: 0 | CM14: 0 | CN14: 0 | CO14: 0 | CP14: 0 | CQ14: 0 | CR14: 0 | CS14: 0 | CT14: 0 | CU14: 0 | CV14: 0 | CW14: 0 | CX14: 0 | CY14: 0 | CZ14: 0 | DA14: 0 | DB14: 0 | DC14: 0 | DD14: 0 | DE14: 0 | DF14: 0 | DG14: 0 | DH14: 0 | DI14: 0 | DJ14: 0 | DK14: 0 | DL14: 0 | DM14: 0
L15: =IF(H15=SewerTYPE1,VLOOKUP(J15,SewerUnitrates1,2,FALSE),IF(H15=SEWERTYPE2,VLOOKUP((J15&"_"&K15),Sewerrates2,2,FALSE),0)) -> 0 | O15: =IF(N15="",1,VLOOKUP(N15,Sewersitecond,2,FALSE)) -> 1 | P15: =IF(M15="","",M15*O15) ->  | S15: =IF(Q15="",'Unit Rates - Land'!landcst,IF($E$8="Landuse",VLOOKUP(Q15,LAndcost3,2,FALSE),IF($E$8="Location",VLOOKUP(Q15,Landcost2,2,FALSE),"Error"))) -> 0 | T15: =IF(S15="",0,S15*10000*R15) -> 0 | V15: =IFERROR(('General Input Sheet'!$G$38/(VLOOKUP(U15,'General Input Sheet'!$E$38:$G$44,3,FALSE))),1) -> 1 | W15: =IFERROR((P15+T15)*V15,0) -> 0 | BC15: =IF(X15="y",BC$14,IF(AND(X15>0,X15<=1),X15*BC$14,"")) ->  | BD15: =IF(Y15="y",BD$14,IF(AND(Y15>0,Y15<=1),Y15*BD$14,"")) ->  | CG15: =SUM(BC15:CF15) -> 0 | CI15: =IF(BC15="","",(BC15/$CG15)*$W15) ->  | CY15: =IF(BS15="","",(BS15/$CG15)*$W15) ->  | DM15: =IF(SUM(CI15:DL15)=W15,"","ERROR") -> 
C16: HI_PSF 01 | D16: Pump Station | G16: Pump Station - Affordable Housing Subdivision - Wasaga | L16: 0 | M16: 250000 | O16: 1 | P16: =IF(M16="","",M16*O16) -> 250000 | S16: =IF(Q16="",'Unit Rates - Land'!landcst,IF($E$8="Landuse",VLOOKUP(Q16,LAndcost3,2,FALSE),IF($E$8="Location",VLOOKUP(Q16,Landcost2,2,FALSE),"Error"))) -> 0 | T16: =IF(S16="",0,S16*10000*R16) -> 0 | V16: =IFERROR(('General Input Sheet'!$G$38/(VLOOKUP(U16,'General Input Sheet'!$E$38:$G$44,3,FALSE))),1) -> 1 | W16: =IFERROR((P16+T16)*V16,0) -> 250000 | Y16: Y | BC16: =IF(X16="y",BC$14,IF(AND(X16>0,X16<=1),X16*BC$14,"")) ->  | BD16: 1546 | CG16: =SUM(BC16:CF16) -> 1546 | CJ16: 250000 | DM16: =IF(SUM(CI16:DL16)=W16,"","ERROR") -> 
C17: HI_PS 1 | D17: Pump Station | G17: Pump Station (HI PS1) | L17: 0 | M17: 245947.8552 | O17: 1 | P17: 245947.8552 | S17: =IF(Q17="",'Unit Rates - Land'!landcst,IF($E$8="Landuse",VLOOKUP(Q17,LAndcost3,2,FALSE),IF($E$8="Location",VLOOKUP(Q17,Landcost2,2,FALSE),"Error"))) -> 0 | T17: 0 | V17: =IFERROR(('General Input Sheet'!$G$38/(VLOOKUP(U17,'General Input Sheet'!$E$38:$G$44,3,FALSE))),1) -> 1 | W17: 245947.8552 | Y17: Y | BD17: 1546 | CG17: =SUM(BC17:CF17) -> 1546 | CJ17: 245947.8552 | DM17: =IF(SUM(CI17:DL17)=W17,"","ERROR") -> 
C18: HI_PS 2 | D18: Pump Station | G18: Pump Station (HI PS2) | L18: 0 | M18: 289838.4717 | O18: 1 | P18: 289838.4717 | S18: =IF(Q18="",'Unit Rates - Land'!landcst,IF($E$8="Landuse",VLOOKUP(Q18,LAndcost3,2,FALSE),IF($E$8="Location",VLOOKUP(Q18,Landcost2,2,FALSE),"Error"))) -> 0 | T18: 0 | V18: =IFERROR(('General Input Sheet'!$G$38/(VLOOKUP(U18,'General Input Sheet'!$E$38:$G$44,3,FALSE))),1) -> 1 | W18: 289838.4717 | Y18: Y | BD18: 1546 | CG18: =SUM(BC18:CF18) -> 1546 | CJ18: 289838.4717 | DM18: =IF(SUM(CI18:DL18)=W18,"","ERROR") -> 
C19: HI_PS 3 | D19: Pump Station | G19: Terminal Pump Station | L19: 0 | M19: 100000 | O19: 1 | P19: 100000 | S19: =IF(Q19="",'Unit Rates - Land'!landcst,IF($E$8="Landuse",VLOOKUP(Q19,LAndcost3,2,FALSE),IF($E$8="Location",VLOOKUP(Q19,Landcost2,2,FALSE),"Error"))) -> 0 | T19: 0 | V19: =IFERROR(('General Input Sheet'!$G$38/(VLOOKUP(U19,'General Input Sheet'!$E$38:$G$44,3,FALSE))),1) -> 1 | W19: 100000 | X19: Y | Y19: Y | BC19: 4494 | BD19: 1546 | CG19: 6040 | CI19: 74403.97351 | CJ19: 25596.02649
C20: HI_PS 4 | D20: Pump Station | G20: Airport Pump Station | L20: 0 | M20: 100000 | O20: 1 | P20: 100000 | S20: =IF(Q20="",'Unit Rates - Land'!landcst,IF($E$8="Landuse",VLOOKUP(Q20,LAndcost3,2,FALSE),IF($E$8="Location",VLOOKUP(Q20,Landcost2,2,FALSE),"Error"))) -> 0 | T20: 0 | V20: =IFERROR(('General Input Sheet'!$G$38/(VLOOKUP(U20,'General Input Sheet'!$E$38:$G$44,3,FALSE))),1) -> 1 | W20: 100000 | X20: Y | Y20: Y | BC20: 4494 | BD20: 1546 | CG20: 6040 | CI20: 74403.97351 | CJ20: 25596.02649
C21: HI_SA 1 | D21: Soakage Area | G21: Airport Soakage Area | L21: 0 | M21: 50000 | O21: 1 | P21: 50000 | S21: =IF(Q21="",'Unit Rates - Land'!landcst,IF($E$8="Landuse",VLOOKUP(Q21,LAndcost3,2,FALSE),IF($E$8="Location",VLOOKUP(Q21,Landcost2,2,FALSE),"Error"))) -> 0 | T21: 0 | V21: =IFERROR(('General Input Sheet'!$G$38/(VLOOKUP(U21,'General Input Sheet'!$E$38:$G$44,3,FALSE))),1) -> 1 | W21: 50000 | X21: Y | Y21: Y | BC21: 4494 | BD21: 1546 | CG21: 6040 | CI21: 37201.98675 | CJ21: 12798.01325
C22: HI_SA 2 | D22: Soakage Area | G22: Terminal Soakage Area | L22: 0 | M22: 50000 | O22: 1 | P22: 50000 | S22: =IF(Q22="",'Unit Rates - Land'!landcst,IF($E$8="Landuse",VLOOKUP(Q22,LAndcost3,2,FALSE),IF($E$8="Location",VLOOKUP(Q22,Landcost2,2,FALSE),"Error"))) -> 0 | T22: 0 | V22: =IFERROR(('General Input Sheet'!$G$38/(VLOOKUP(U22,'General Input Sheet'!$E$38:$G$44,3,FALSE))),1) -> 1 | W22: 50000 | X22: Y | Y22: Y | BC22: 4494 | BD22: 1546 | CG22: 6040 | CI22: 37201.98675 | CJ22: 12798.01325
C23: HI_ST 1 | D23: Storage Tank | G23: 2000L Fibreglass Tank | L23: 0 | M23: 50000 | O23: 1 | P23: 50000 | S23: =IF(Q23="",'Unit Rates - Land'!landcst,IF($E$8="Landuse",VLOOKUP(Q23,LAndcost3,2,FALSE),IF($E$8="Location",VLOOKUP(Q23,Landcost2,2,FALSE),"Error"))) -> 0 | T23: 0 | V23: =IFERROR(('General Input Sheet'!$G$38/(VLOOKUP(U23,'General Input Sheet'!$E$38:$G$44,3,FALSE))),1) -> 1 | W23: 50000 | X23: Y | Y23: Y | BC23: 4494 | BD23: 1546 | CA23: =IF(AV23="y",CA$14,IF(AND(AV23>0,AV23<=1),AV23*CA$14,"")) ->  | CG23: 6040 | CI23: 37201.98675 | CJ23: 12798.01325
C24: HI_WWTP | D24: Wastewater Treatment Plant | L24: 0 | M24: 3223060.49 | O24: 1 | P24: 3223060.49 | S24: =IF(Q24="",'Unit Rates - Land'!landcst,IF($E$8="Landuse",VLOOKUP(Q24,LAndcost3,2,FALSE),IF($E$8="Location",VLOOKUP(Q24,Landcost2,2,FALSE),"Error"))) -> 0 | T24: 0 | V24: =IFERROR(('General Input Sheet'!$G$38/(VLOOKUP(U24,'General Input Sheet'!$E$38:$G$44,3,FALSE))),1) -> 1 | W24: 3223060.49 | Y24: Y | BD24: 1546 | BS24: =IF(AN24="y",BS$14,IF(AND(AN24>0,AN24<=1),AN24*BS$14,"")) ->  | CG24: 1546 | CJ24: 3223060.49
C25: TI_PS 1 | D25: Pump Station | G25: PS 1 - Sea Swift | L25: 0 | M25: 202263.984 | O25: 1 | P25: 202263.984 | S25: =IF(Q25="",'Unit Rates - Land'!landcst,IF($E$8="Landuse",VLOOKUP(Q25,LAndcost3,2,FALSE),IF($E$8="Location",VLOOKUP(Q25,Landcost2,2,FALSE),"Error"))) -> 0 | T25: 0 | V25: =IFERROR(('General Input Sheet'!$G$38/(VLOOKUP(U25,'General Input Sheet'!$E$38:$G$44,3,FALSE))),1) -> 1 | W25: 202263.984 | X25: Y | BC25: 4494 | CG25: 4494 | CI25: 202263.984
C26: TI_PS 10 | D26: Pump Station | G26: PS 10 - Stephen St | L26: 0 | M26: 118860.6573 | O26: 1 | P26: 118860.6573 | S26: =IF(Q26="",'Unit Rates - Land'!landcst,IF($E$8="Landuse",VLOOKUP(Q26,LAndcost3,2,FALSE),IF($E$8="Location",VLOOKUP(Q26,Landcost2,2,FALSE),"Error"))) -> 0 | T26: 0 | V26: =IFERROR(('General Input Sheet'!$G$38/(VLOOKUP(U26,'General Input Sheet'!$E$38:$G$44,3,FALSE))),1) -> 1 | W26: 118860.6573 | X26: Y | BC26: 4494 | CG26: 4494 | CI26: 118860.6573
C27: TI_PS 11 | D27: Pump Station | G27: PS 11 - Heli Pad | L27: 0 | M27: 127244.6566 | O27: 1 | P27: 127244.6566 | S27: =IF(Q27="",'Unit Rates - Land'!landcst,IF($E$8="Landuse",VLOOKUP(Q27,LAndcost3,2,FALSE),IF($E$8="Location",VLOOKUP(Q27,Landcost2,2,FALSE),"Error"))) -> 0 | T27: 0 | V27: =IFERROR(('General Input Sheet'!$G$38/(VLOOKUP(U27,'General Input Sheet'!$E$38:$G$44,3,FALSE))),1) -> 1 | W27: 127244.6566 | X27: Y | BC27: 4494 | CG27: 4494 | CI27: 127244.6566
C28: TI_PS 2 | D28: Pump Station | G28: PS 2 - TSRA | L28: 0 | M28: 161741.3205 | O28: 1 | P28: 161741.3205 | S28: =IF(Q28="",'Unit Rates - Land'!landcst,IF($E$8="Landuse",VLOOKUP(Q28,LAndcost3,2,FALSE),IF($E$8="Location",VLOOKUP(Q28,Landcost2,2,FALSE),"Error"))) -> 0 | T28: 0 | V28: =IFERROR(('General Input Sheet'!$G$38/(VLOOKUP(U28,'General Input Sheet'!$E$38:$G$44,3,FALSE))),1) -> 1 | W28: 161741.3205 | X28: Y | BC28: 4494 | CG28: 4494 | CI28: 161741.3205
C29: TI_PS 3 | D29: Pump Station | G29: PS 3 - Cook Esplanade | L29: 0 | M29: 152658.6546 | O29: 1 | P29: 152658.6546 | S29: =IF(Q29="",'Unit Rates - Land'!landcst,IF($E$8="Landuse",VLOOKUP(Q29,LAndcost3,2,FALSE),IF($E$8="Location",VLOOKUP(Q29,Landcost2,2,FALSE),"Error"))) -> 0 | T29: 0 | V29: =IFERROR(('General Input Sheet'!$G$38/(VLOOKUP(U29,'General Input Sheet'!$E$38:$G$44,3,FALSE))),1) -> 1 | W29: 152658.6546 | X29: Y | BC29: 4494 | CG29: 4494 | CI29: 152658.6546
C30: TI_PS 4 | D30: Pump Station | G30: PS 4 - Rosehill Ramp | L30: 0 | M30: 148815.9882 | O30: 1 | P30: 148815.9882 | S30: =IF(Q30="",'Unit Rates - Land'!landcst,IF($E$8="Landuse",VLOOKUP(Q30,LAndcost3,2,FALSE),IF($E$8="Location",VLOOKUP(Q30,Landcost2,2,FALSE),"Error"))) -> 0 | T30: 0 | V30: =IFERROR(('General Input Sheet'!$G$38/(VLOOKUP(U30,'General Input Sheet'!$E$38:$G$44,3,FALSE))),1) -> 1 | W30: 148815.9882 | X30: Y | BC30: 4494 | CG30: 4494 | CI30: 148815.9882 | CX30: =IF(BR30="","",(BR30/$CG30)*$W30) -> 
C31: TI_PS 5 | D31: Pump Station | G31: PS 5 - T.I. Hospital | L31: 0 | M31: 127244.6566 | O31: 1 | P31: 127244.6566 | S31: =IF(Q31="",'Unit Rates - Land'!landcst,IF($E$8="Landuse",VLOOKUP(Q31,LAndcost3,2,FALSE),IF($E$8="Location",VLOOKUP(Q31,Landcost2,2,FALSE),"Error"))) -> 0 | T31: 0 | V31: =IFERROR(('General Input Sheet'!$G$38/(VLOOKUP(U31,'General Input Sheet'!$E$38:$G$44,3,FALSE))),1) -> 1 | W31: 127244.6566 | X31: Y | BC31: 4494 | CG31: 4494 | CI31: =IF(BC31="","",(BC31/$CG31)*$W31) -> 127244.6566
C32: TI_PS 6 | D32: Pump Station | G32: PS 6 - Waiben Estate | L32: 0 | M32: 149951.3215 | O32: 1 | P32: 149951.3215 | S32: =IF(Q32="",'Unit Rates - Land'!landcst,IF($E$8="Landuse",VLOOKUP(Q32,LAndcost3,2,FALSE),IF($E$8="Location",VLOOKUP(Q32,Landcost2,2,FALSE),"Error"))) -> 0 | T32: 0 | V32: =IFERROR(('General Input Sheet'!$G$38/(VLOOKUP(U32,'General Input Sheet'!$E$38:$G$44,3,FALSE))),1) -> 1 | W32: 149951.3215 | X32: Y | BC32: =IF(X32="y",BC$14,IF(AND(X32>0,X32<=1),X32*BC$14,"")) -> 4494 | CG32: 4494 | CI32: 149951.3215
C33: TI_PS 7 | D33: Pump Station | G33: PS 7 - Engineer Res | L33: 0 | M33: 127244.6566 | O33: 1 | P33: 127244.6566 | S33: =IF(Q33="",'Unit Rates - Land'!landcst,IF($E$8="Landuse",VLOOKUP(Q33,LAndcost3,2,FALSE),IF($E$8="Location",VLOOKUP(Q33,Landcost2,2,FALSE),"Error"))) -> 0 | T33: 0 | V33: =IFERROR(('General Input Sheet'!$G$38/(VLOOKUP(U33,'General Input Sheet'!$E$38:$G$44,3,FALSE))),1) -> 1 | W33: 127244.6566 | X33: Y | BC33: 4494 | CG33: 4494 | CI33: 127244.6566
C34: TI_PS 8 | D34: Pump Station | G34: PS 8 - Army Barracks | L34: 0 | M34: 127244.6566 | O34: 1 | P34: 127244.6566 | S34: =IF(Q34="",'Unit Rates - Land'!landcst,IF($E$8="Landuse",VLOOKUP(Q34,LAndcost3,2,FALSE),IF($E$8="Location",VLOOKUP(Q34,Landcost2,2,FALSE),"Error"))) -> 0 | T34: 0 | V34: =IFERROR(('General Input Sheet'!$G$38/(VLOOKUP(U34,'General Input Sheet'!$E$38:$G$44,3,FALSE))),1) -> 1 | W34: 127244.6566 | X34: Y | BC34: 4494 | CG34: 4494 | CI34: 127244.6566
C35: TI_PS 9 | D35: Pump Station | G35: PS 9 - Fire Station | L35: 0 | M35: 118860.6573 | O35: 1 | P35: 118860.6573 | S35: =IF(Q35="",'Unit Rates - Land'!landcst,IF($E$8="Landuse",VLOOKUP(Q35,LAndcost3,2,FALSE),IF($E$8="Location",VLOOKUP(Q35,Landcost2,2,FALSE),"Error"))) -> 0 | T35: 0 | V35: =IFERROR(('General Input Sheet'!$G$38/(VLOOKUP(U35,'General Input Sheet'!$E$38:$G$44,3,FALSE))),1) -> 1 | W35: 118860.6573 | X35: Y | BC35: 4494 | CG35: 4494 | CI35: 118860.6573
C36: TI_WWTP | D36: Wastewater Treatment Plant | L36: 0 | M36: 4501902.608 | O36: 1 | P36: 4501902.608 | S36: =IF(Q36="",'Unit Rates - Land'!landcst,IF($E$8="Landuse",VLOOKUP(Q36,LAndcost3,2,FALSE),IF($E$8="Location",VLOOKUP(Q36,Landcost2,2,FALSE),"Error"))) -> 0 | T36: 0 | V36: =IFERROR(('General Input Sheet'!$G$38/(VLOOKUP(U36,'General Input Sheet'!$E$38:$G$44,3,FALSE))),1) -> 1 | W36: 4501902.608 | X36: Y | BC36: 4494 | CG36: 4494 | CI36: 4501902.608
L37: 0 | M37: =L37*I37 -> 0 | O37: 1 | P37: 0 | S37: =IF(Q37="",'Unit Rates - Land'!landcst,IF($E$8="Landuse",VLOOKUP(Q37,LAndcost3,2,FALSE),IF($E$8="Location",VLOOKUP(Q37,Landcost2,2,FALSE),"Error"))) -> 0 | T37: 0 | V37: =IFERROR(('General Input Sheet'!$G$38/(VLOOKUP(U37,'General Input Sheet'!$E$38:$G$44,3,FALSE))),1) -> 1 | W37: 0 | CG37: 0
L38: 0 | M38: 0 | O38: 1 | P38: 0 | S38: =IF(Q38="",'Unit Rates - Land'!landcst,IF($E$8="Landuse",VLOOKUP(Q38,LAndcost3,2,FALSE),IF($E$8="Location",VLOOKUP(Q38,Landcost2,2,FALSE),"Error"))) -> 0 | T38: 0 | V38: =IFERROR(('General Input Sheet'!$G$38/(VLOOKUP(U38,'General Input Sheet'!$E$38:$G$44,3,FALSE))),1) -> 1 | W38: 0 | CG38: 0
C39: HI_GM 008 | D39: Gravity Main | I39: 23.3 | L39: 0 | M39: 7473.991587 | O39: 1 | P39: 7473.991587 | S39: =IF(Q39="",'Unit Rates - Land'!landcst,IF($E$8="Landuse",VLOOKUP(Q39,LAndcost3,2,FALSE),IF($E$8="Location",VLOOKUP(Q39,Landcost2,2,FALSE),"Error"))) -> 0 | T39: 0 | V39: =IFERROR(('General Input Sheet'!$G$38/(VLOOKUP(U39,'General Input Sheet'!$E$38:$G$44,3,FALSE))),1) -> 1 | W39: 7473.991587 | Y39: Y | BD39: 1546 | CG39: 1546 | CJ39: 7473.991587
C40: HI_GM 009 | D40: Gravity Main | I40: 110.5 | L40: 0 | M40: 35396.44457 | O40: 1 | P40: 35396.44457 | S40: =IF(Q40="",'Unit Rates - Land'!landcst,IF($E$8="Landuse",VLOOKUP(Q40,LAndcost3,2,FALSE),IF($E$8="Location",VLOOKUP(Q40,Landcost2,2,FALSE),"Error"))) -> 0 | T40: 0 | V40: =IFERROR(('General Input Sheet'!$G$38/(VLOOKUP(U40,'General Input Sheet'!$E$38:$G$44,3,FALSE))),1) -> 1 | W40: 35396.44457 | Y40: Y | BD40: 1546 | CG40: 1546 | CJ40: 35396.44457
C41: HI_GM 010 | D41: Gravity Main | I41: 41.1 | L41: 0 | M41: 13146.13718 | O41: 1 | P41: 13146.13718 | S41: =IF(Q41="",'Unit Rates - Land'!landcst,IF($E$8="Landuse",VLOOKUP(Q41,LAndcost3,2,FALSE),IF($E$8="Location",VLOOKUP(Q41,Landcost2,2,FALSE),"Error"))) -> 0 | T41: 0 | V41: =IFERROR(('General Input Sheet'!$G$38/(VLOOKUP(U41,'General Input Sheet'!$E$38:$G$44,3,FALSE))),1) -> 1 | W41: 13146.13718 | Y41: Y | BD41: 1546 | CG41: 1546 | CJ41: 13146.13718
C42: HI_GM 011 | D42: Gravity Main | I42: 44.9 | L42: 0 | M42: 14407.84642 | O42: 1 | P42: 14407.84642 | S42: =IF(Q42="",'Unit Rates - Land'!landcst,IF($E$8="Landuse",VLOOKUP(Q42,LAndcost3,2,FALSE),IF($E$8="Location",VLOOKUP(Q42,Landcost2,2,FALSE),"Error"))) -> 0 | T42: 0 | V42: =IFERROR(('General Input Sheet'!$G$38/(VLOOKUP(U42,'General Input Sheet'!$E$38:$G$44,3,FALSE))),1) -> 1 | W42: 14407.84642 | Y42: Y | BD42: 1546 | CG42: 1546 | CJ42: 14407.84642
C43: HI_GM 012 | D43: Gravity Main | I43: 26.5 | L43: 0 | M43: 8499.872379 | O43: 1 | P43: 8499.872379 | S43: =IF(Q43="",'Unit Rates - Land'!landcst,IF($E$8="Landuse",VLOOKUP(Q43,LAndcost3,2,FALSE),IF($E$8="Location",VLOOKUP(Q43,Landcost2,2,FALSE),"Error"))) -> 0 | T43: 0 | V43: =IFERROR(('General Input Sheet'!$G$38/(VLOOKUP(U43,'General Input Sheet'!$E$38:$G$44,3,FALSE))),1) -> 1 | W43: 8499.872379 | Y43: Y | BD43: 1546 | CG43: 1546 | CJ43: 8499.872379
C44: HI_GM 013 | D44: Gravity Main | I44: 50.2 | L44: 0 | M44: 16116.91593 | O44: 1 | P44: 16116.91593 | S44: =IF(Q44="",'Unit Rates - Land'!landcst,IF($E$8="Landuse",VLOOKUP(Q44,LAndcost3,2,FALSE),IF($E$8="Location",VLOOKUP(Q44,Landcost2,2,FALSE),"Error"))) -> 0 | T44: 0 | V44: =IFERROR(('General Input Sheet'!$G$38/(VLOOKUP(U44,'General Input Sheet'!$E$38:$G$44,3,FALSE))),1) -> 1 | W44: 16116.91593 | Y44: Y | BD44: 1546 | CG44: 1546 | CJ44: 16116.91593
C45: HI_GM 014 | D45: Gravity Main | I45: 51.9 | L45: 0 | M45: 16634.9053 | O45: 1 | P45: 16634.9053 | S45: =IF(Q45="",'Unit Rates - Land'!landcst,IF($E$8="Landuse",VLOOKUP(Q45,LAndcost3,2,FALSE),IF($E$8="Location",VLOOKUP(Q45,Landcost2,2,FALSE),"Error"))) -> 0 | T45: 0 | V45: =IFERROR(('General Input Sheet'!$G$38/(VLOOKUP(U45,'General Input Sheet'!$E$38:$G$44,3,FALSE))),1) -> 1 | W45: 16634.9053 | Y45: Y | BD45: 1546 | CG45: 1546 | CJ45: 16634.9053
C46: HI_GM 015 | D46: Gravity Main | I46: 15 | L46: 0 | M46: 4819.16969 | O46: 1 | P46: 4819.16969 | S46: =IF(Q46="",'Unit Rates - Land'!landcst,IF($E$8="Landuse",VLOOKUP(Q46,LAndcost3,2,FALSE),IF($E$8="Location",VLOOKUP(Q46,Landcost2,2,FALSE),"Error"))) -> 0 | T46: 0 | V46: =IFERROR(('General Input Sheet'!$G$38/(VLOOKUP(U46,'General Input Sheet'!$E$38:$G$44,3,FALSE))),1) -> 1 | W46: 4819.16969 | Y46: Y | BD46: 1546 | CG46: 1546 | CJ46: 4819.16969
C47: HI_GM 016 | D47: Gravity Main | I47: 60.5 | L47: 0 | M47: 19394.5402 | O47: 1 | P47: 19394.5402 | S47: =IF(Q47="",'Unit Rates - Land'!landcst,IF($E$8="Landuse",VLOOKUP(Q47,LAndcost3,2,FALSE),IF($E$8="Location",VLOOKUP(Q47,Landcost2,2,FALSE),"Error"))) -> 0 | T47: 0 | V47: =IFERROR(('General Input Sheet'!$G$38/(VLOOKUP(U47,'General Input Sheet'!$E$38:$G$44,3,FALSE))),1) -> 1 | W47: 19394.5402 | Y47: Y | BD47: 1546 | BR47: =IF(AM47="y",BR$14,IF(AND(AM47>0,AM47<=1),AM47*BR$14,"")) ->  | CG47: 1546 | CJ47: 19394.5402 | DL47: =IF(CF47="","",(CF47/$CG47)*$W47) -> 
C48: HI_GM 017 | D48: Gravity Main | I48: 53.1 | L48: 0 | M48: 17033.04534 | O48: 1 | P48: 17033.04534 | S48: =IF(Q48="",'Unit Rates - Land'!landcst,IF($E$8="Landuse",VLOOKUP(Q48,LAndcost3,2,FALSE),IF($E$8="Location",VLOOKUP(Q48,Landcost2,2,FALSE),"Error"))) -> 0 | T48: 0 | V48: =IFERROR(('General Input Sheet'!$G$38/(VLOOKUP(U48,'General Input Sheet'!$E$38:$G$44,3,FALSE))),1) -> 1 | W48: 17033.04534 | Y48: Y | BC48: =IF(X48="y",BC$14,IF(AND(X48>0,X48<=1),X48*BC$14,"")) ->  | BD48: 1546 | CG48: 1546 | CI48: =IF(BC48="","",(BC48/$CG48)*$W48) ->  | CJ48: 17033.04534 | CY48: =IF(BS48="","",(BS48/$CG48)*$W48) -> 
C49: HI_GM 018 | D49: Gravity Main | I49: 72.5 | L49: 0 | M49: 23302.72026 | O49: 1 | P49: 23302.72026 | S49: =IF(Q49="",'Unit Rates - Land'!landcst,IF($E$8="Landuse",VLOOKUP(Q49,LAndcost3,2,FALSE),IF($E$8="Location",VLOOKUP(Q49,Landcost2,2,FALSE),"Error"))) -> 0 | T49: 0 | V49: =IFERROR(('General Input Sheet'!$G$38/(VLOOKUP(U49,'General Input Sheet'!$E$38:$G$44,3,FALSE))),1) -> 1 | W49: 23302.72026 | Y49: Y | BD49: 1546 | CG49: 1546 | CJ49: 23302.72026
C50: HI_GM 019 | D50: Gravity Main | I50: 74.8 | L50: 0 | M50: 23996.50044 | O50: 1 | P50: 23996.50044 | S50: =IF(Q50="",'Unit Rates - Land'!landcst,IF($E$8="Landuse",VLOOKUP(Q50,LAndcost3,2,FALSE),IF($E$8="Location",VLOOKUP(Q50,Landcost2,2,FALSE),"Error"))) -> 0 | T50: 0 | V50: =IFERROR(('General Input Sheet'!$G$38/(VLOOKUP(U50,'General Input Sheet'!$E$38:$G$44,3,FALSE))),1) -> 1 | W50: 23996.50044 | Y50: Y | BD50: 1546 | CG50: 1546 | CJ50: 23996.50044
C51: HI_GM 034 | D51: Gravity Main | I51: 54.7 | L51: 0 | M51: 17534.8462 | O51: 1 | P51: 17534.8462 | S51: =IF(Q51="",'Unit Rates - Land'!landcst,IF($E$8="Landuse",VLOOKUP(Q51,LAndcost3,2,FALSE),IF($E$8="Location",VLOOKUP(Q51,Landcost2,2,FALSE),"Error"))) -> 0 | T51: 0 | V51: =IFERROR(('General Input Sheet'!$G$38/(VLOOKUP(U51,'General Input Sheet'!$E$38:$G$44,3,FALSE))),1) -> 1 | W51: 17534.8462 | Y51: Y | BD51: 1546 | CG51: 1546 | CJ51: 17534.8462
C52: HI_GM 089 | D52: Gravity Main | I52: 50.4 | L52: 0 | M52: 11766.76028 | O52: 1 | P52: 11766.76028 | S52: =IF(Q52="",'Unit Rates - Land'!landcst,IF($E$8="Landuse",VLOOKUP(Q52,LAndcost3,2,FALSE),IF($E$8="Location",VLOOKUP(Q52,Landcost2,2,FALSE),"Error"))) -> 0 | T52: 0 | V52: =IFERROR(('General Input Sheet'!$G$38/(VLOOKUP(U52,'General Input Sheet'!$E$38:$G$44,3,FALSE))),1) -> 1 | W52: 11766.76028 | Y52: Y | BD52: 1546 | CG52: 1546 | CJ52: 11766.76028
C53: HI_GM 090 | D53: Gravity Main | I53: 22.9 | L53: 0 | M53: 5358.942284 | O53: 1 | P53: 5358.942284 | S53: =IF(Q53="",'Unit Rates - Land'!landcst,IF($E$8="Landuse",VLOOKUP(Q53,LAndcost3,2,FALSE),IF($E$8="Location",VLOOKUP(Q53,Landcost2,2,FALSE),"Error"))) -> 0 | T53: 0 | V53: =IFERROR(('General Input Sheet'!$G$38/(VLOOKUP(U53,'General Input Sheet'!$E$38:$G$44,3,FALSE))),1) -> 1 | W53: 5358.942284 | Y53: Y | BD53: 1546 | CG53: 1546 | CJ53: 5358.942284
C54: HI_GM 098 | D54: Gravity Main | I54: 17.9 | L54: 0 | M54: 5728.850025 | O54: 1 | P54: 5728.850025 | S54: =IF(Q54="",'Unit Rates - Land'!landcst,IF($E$8="Landuse",VLOOKUP(Q54,LAndcost3,2,FALSE),IF($E$8="Location",VLOOKUP(Q54,Landcost2,2,FALSE),"Error"))) -> 0 | T54: 0 | V54: =IFERROR(('General Input Sheet'!$G$38/(VLOOKUP(U54,'General Input Sheet'!$E$38:$G$44,3,FALSE))),1) -> 1 | W54: 5728.850025 | Y54: Y | BD54: 1546 | CG54: 1546 | CJ54: 5728.850025
C55: HI_GM 099 | D55: Gravity Main | I55: 106.3 | L55: 0 | M55: 34049.12232 | O55: 1 | P55: 34049.12232 | S55: =IF(Q55="",'Unit Rates - Land'!landcst,IF($E$8="Landuse",VLOOKUP(Q55,LAndcost3,2,FALSE),IF($E$8="Location",VLOOKUP(Q55,Landcost2,2,FALSE),"Error"))) -> 0 | T55: 0 | V55: =IFERROR(('General Input Sheet'!$G$38/(VLOOKUP(U55,'General Input Sheet'!$E$38:$G$44,3,FALSE))),1) -> 1 | W55: 34049.12232 | Y55: Y | BD55: 1546 | BZ55: =IF(AU55="y",BZ$14,IF(AND(AU55>0,AU55<=1),AU55*BZ$14,"")) ->  | CG55: 1546 | CJ55: 34049.12232
C56: HI_GM 106 | D56: Gravity Main | I56: 2.8 | L56: 0 | M56: 643.5733454 | O56: 1 | P56: 643.5733454 | S56: =IF(Q56="",'Unit Rates - Land'!landcst,IF($E$8="Landuse",VLOOKUP(Q56,LAndcost3,2,FALSE),IF($E$8="Location",VLOOKUP(Q56,Landcost2,2,FALSE),"Error"))) -> 0 | T56: 0 | V56: =IFERROR(('General Input Sheet'!$G$38/(VLOOKUP(U56,'General Input Sheet'!$E$38:$G$44,3,FALSE))),1) -> 1 | W56: 643.5733454 | Y56: Y | BD56: 1546 | CG56: 1546 | CJ56: 643.5733454
C57: HI_GM 107 | D57: Gravity Main | I57: 3 | L57: 0 | M57: 694.85767 | O57: 1 | P57: 694.85767 | S57: =IF(Q57="",'Unit Rates - Land'!landcst,IF($E$8="Landuse",VLOOKUP(Q57,LAndcost3,2,FALSE),IF($E$8="Location",VLOOKUP(Q57,Landcost2,2,FALSE),"Error"))) -> 0 | T57: 0 | V57: =IFERROR(('General Input Sheet'!$G$38/(VLOOKUP(U57,'General Input Sheet'!$E$38:$G$44,3,FALSE))),1) -> 1 | W57: 694.85767 | Y57: Y | BD57: 1546 | CG57: 1546 | CJ57: 694.85767
C58: HI_OM 001 | D58: Outfall Main | G58: Horn Island STP Outfall | I58: 14.6 | L58: 0 | M58: 4133.8988 | O58: 1 | P58: 4133.8988 | S58: =IF(Q58="",'Unit Rates - Land'!landcst,IF($E$8="Landuse",VLOOKUP(Q58,LAndcost3,2,FALSE),IF($E$8="Location",VLOOKUP(Q58,Landcost2,2,FALSE),"Error"))) -> 0 | T58: 0 | V58: =IFERROR(('General Input Sheet'!$G$38/(VLOOKUP(U58,'General Input Sheet'!$E$38:$G$44,3,FALSE))),1) -> 1 | W58: 4133.8988 | Y58: Y | BD58: 1546 | CG58: 1546 | CJ58: 4133.8988
C59: HI_OM 002 | D59: Outfall Main | G59: Horn Island STP Outfall | I59: 266.8 | L59: 0 | M59: 76193.68227 | O59: 1 | P59: 76193.68227 | S59: =IF(Q59="",'Unit Rates - Land'!landcst,IF($E$8="Landuse",VLOOKUP(Q59,LAndcost3,2,FALSE),IF($E$8="Location",VLOOKUP(Q59,Landcost2,2,FALSE),"Error"))) -> 0 | T59: 0 | V59: =IFERROR(('General Input Sheet'!$G$38/(VLOOKUP(U59,'General Input Sheet'!$E$38:$G$44,3,FALSE))),1) -> 1 | W59: 76193.68227 | Y59: Y | BD59: 1546 | CG59: 1546 | CJ59: 76193.68227
C60: HI_OM 003 | D60: Outfall Main | G60: Horn Island STP Outfall | I60: 167.2 | L60: 0 | M60: 47742.07231 | O60: 1 | P60: 47742.07231 | S60: =IF(Q60="",'Unit Rates - Land'!landcst,IF($E$8="Landuse",VLOOKUP(Q60,LAndcost3,2,FALSE),IF($E$8="Location",VLOOKUP(Q60,Landcost2,2,FALSE),"Error"))) -> 0 | T60: 0 | V60: =IFERROR(('General Input Sheet'!$G$38/(VLOOKUP(U60,'General Input Sheet'!$E$38:$G$44,3,FALSE))),1) -> 1 | W60: 47742.07231 | Y60: Y | BD60: 1546 | CG60: 1546 | CJ60: 47742.07231
C61: HI_OM 004 | D61: Outfall Main | G61: Horn Island STP Outfall | I61: 279.5 | L61: 0 | M61: 79827.38186 | O61: 1 | P61: 79827.38186 | S61: =IF(Q61="",'Unit Rates - Land'!landcst,IF($E$8="Landuse",VLOOKUP(Q61,LAndcost3,2,FALSE),IF($E$8="Location",VLOOKUP(Q61,Landcost2,2,FALSE),"Error"))) -> 0 | T61: 0 | V61: =IFERROR(('General Input Sheet'!$G$38/(VLOOKUP(U61,'General Input Sheet'!$E$38:$G$44,3,FALSE))),1) -> 1 | W61: 79827.38186 | Y61: Y | BD61: 1546 | CG61: 1546 | CJ61: 79827.38186
C62: HI_OM 005 | D62: Outfall Main | G62: Horn Island STP Outfall | I62: 168.1 | L62: 0 | M62: 48003.91659 | O62: 1 | P62: 48003.91659 | S62: =IF(Q62="",'Unit Rates - Land'!landcst,IF($E$8="Landuse",VLOOKUP(Q62,LAndcost3,2,FALSE),IF($E$8="Location",VLOOKUP(Q62,Landcost2,2,FALSE),"Error"))) -> 0 | T62: 0 | V62: =IFERROR(('General Input Sheet'!$G$38/(VLOOKUP(U62,'General Input Sheet'!$E$38:$G$44,3,FALSE))),1) -> 1 | W62: 48003.91659 | Y62: Y | BD62: 1546 | CG62: 1546 | CJ62: 48003.91659
C63: HI_OM 006 | D63: Outfall Main | G63: Horn Island STP Outfall | I63: 117.5 | L63: 0 | M63: 33563.48409 | O63: 1 | P63: 33563.48409 | S63: =IF(Q63="",'Unit Rates - Land'!landcst,IF($E$8="Landuse",VLOOKUP(Q63,LAndcost3,2,FALSE),IF($E$8="Location",VLOOKUP(Q63,Landcost2,2,FALSE),"Error"))) -> 0 | T63: 0 | V63: =IFERROR(('General Input Sheet'!$G$38/(VLOOKUP(U63,'General Input Sheet'!$E$38:$G$44,3,FALSE))),1) -> 1 | W63: 33563.48409 | Y63: Y | BD63: 1546 | CG63: 1546 | CJ63: 33563.48409 | CX63: =IF(BR63="","",(BR63/$CG63)*$W63) -> 
C64: HI_OM 007 | D64: Outfall Main | G64: Horn Island STP Outfall | I64: 134.6 | L64: 0 | M64: 38349.43917 | O64: 1 | P64: 38349.43917 | S64: =IF(Q64="",'Unit Rates - Land'!landcst,IF($E$8="Landuse",VLOOKUP(Q64,LAndcost3,2,FALSE),IF($E$8="Location",VLOOKUP(Q64,Landcost2,2,FALSE),"Error"))) -> 0 | T64: 0 | V64: =IFERROR(('General Input Sheet'!$G$38/(VLOOKUP(U64,'General Input Sheet'!$E$38:$G$44,3,FALSE))),1) -> 1 | W64: 38349.43917 | Y64: Y | BD64: 1546 | CG64: 1546 | CI64: =IF(BC64="","",(BC64/$CG64)*$W64) ->  | CJ64: 38349.43917
C65: HI_OM 008 | D65: Outfall Main | G65: Horn Island STP Outfall | I65: 197.2 | L65: 0 | M65: 56308.8174 | O65: 1 | P65: 56308.8174 | S65: =IF(Q65="",'Unit Rates - Land'!landcst,IF($E$8="Landuse",VLOOKUP(Q65,LAndcost3,2,FALSE),IF($E$8="Location",VLOOKUP(Q65,Landcost2,2,FALSE),"Error"))) -> 0 | T65: 0 | V65: =IFERROR(('General Input Sheet'!$G$38/(VLOOKUP(U65,'General Input Sheet'!$E$38:$G$44,3,FALSE))),1) -> 1 | W65: 56308.8174 | Y65: Y | BC65: =IF(X65="y",BC$14,IF(AND(X65>0,X65<=1),X65*BC$14,"")) ->  | BD65: 1546 | CD65: =IF(AY65="y",CD$14,IF(AND(AY65>0,AY65<=1),AY65*CD$14,"")) ->  | CG65: 1546 | CJ65: 56308.8174
C66: HI_OM 009 | D66: Outfall Main | G66: Horn Island STP Outfall | I66: 176.2 | L66: 0 | M66: 50333.05451 | O66: 1 | P66: 50333.05451 | S66: =IF(Q66="",'Unit Rates - Land'!landcst,IF($E$8="Landuse",VLOOKUP(Q66,LAndcost3,2,FALSE),IF($E$8="Location",VLOOKUP(Q66,Landcost2,2,FALSE),"Error"))) -> 0 | T66: 0 | V66: =IFERROR(('General Input Sheet'!$G$38/(VLOOKUP(U66,'General Input Sheet'!$E$38:$G$44,3,FALSE))),1) -> 1 | W66: 50333.05451 | Y66: Y | BD66: 1546 | CG66: 1546 | CJ66: 50333.05451
C67: HI_OM 010 | D67: Outfall Main | G67: Horn Island STP Outfall | I67: 189.1 | L67: 0 | M67: 54018.02819 | O67: 1 | P67: 54018.02819 | S67: =IF(Q67="",'Unit Rates - Land'!landcst,IF($E$8="Landuse",VLOOKUP(Q67,LAndcost3,2,FALSE),IF($E$8="Location",VLOOKUP(Q67,Landcost2,2,FALSE),"Error"))) -> 0 | T67: 0 | V67: =IFERROR(('General Input Sheet'!$G$38/(VLOOKUP(U67,'General Input Sheet'!$E$38:$G$44,3,FALSE))),1) -> 1 | W67: 54018.02819 | Y67: Y | BD67: 1546 | CG67: 1546 | CJ67: 54018.02819 | DG67: =IF(CA67="","",(CA67/$CG67)*$W67) -> 
C68: HI_OM 011 | D68: Outfall Main | G68: Horn Island STP Outfall | I68: 130.3 | L68: 0 | M68: 37134.42093 | O68: 1 | P68: 37134.42093 | S68: =IF(Q68="",'Unit Rates - Land'!landcst,IF($E$8="Landuse",VLOOKUP(Q68,LAndcost3,2,FALSE),IF($E$8="Location",VLOOKUP(Q68,Landcost2,2,FALSE),"Error"))) -> 0 | T68: 0 | V68: =IFERROR(('General Input Sheet'!$G$38/(VLOOKUP(U68,'General Input Sheet'!$E$38:$G$44,3,FALSE))),1) -> 1 | W68: 37134.42093 | Y68: Y | BD68: 1546 | CG68: 1546 | CJ68: 37134.42093
C69: HI_OM 012 | D69: Outfall Main | G69: Horn Island STP Outfall | I69: 68.4 | L69: 0 | M69: 19482.9147 | O69: 1 | P69: 19482.9147 | S69: =IF(Q69="",'Unit Rates - Land'!landcst,IF($E$8="Landuse",VLOOKUP(Q69,LAndcost3,2,FALSE),IF($E$8="Location",VLOOKUP(Q69,Landcost2,2,FALSE),"Error"))) -> 0 | T69: 0 | V69: =IFERROR(('General Input Sheet'!$G$38/(VLOOKUP(U69,'General Input Sheet'!$E$38:$G$44,3,FALSE))),1) -> 1 | W69: 19482.9147 | Y69: Y | BD69: 1546 | CG69: 1546 | CJ69: 19482.9147
C70: HI_OM 013 | D70: Outfall Main | G70: Horn Island STP Outfall | I70: 92.4 | L70: 0 | M70: 26383.47696 | O70: 1 | P70: 26383.47696 | S70: =IF(Q70="",'Unit Rates - Land'!landcst,IF($E$8="Landuse",VLOOKUP(Q70,LAndcost3,2,FALSE),IF($E$8="Location",VLOOKUP(Q70,Landcost2,2,FALSE),"Error"))) -> 0 | T70: 0 | V70: =IFERROR(('General Input Sheet'!$G$38/(VLOOKUP(U70,'General Input Sheet'!$E$38:$G$44,3,FALSE))),1) -> 1 | W70: 26383.47696 | Y70: Y | BD70: 1546 | CG70: 1546 | CJ70: 26383.47696
C71: HI_OM 014 | D71: Outfall Main | G71: Horn Island STP Outfall | I71: 23.9 | L71: 0 | M71: 6827.241498 | O71: 1 | P71: 6827.241498 | S71: =IF(Q71="",'Unit Rates - Land'!landcst,IF($E$8="Landuse",VLOOKUP(Q71,LAndcost3,2,FALSE),IF($E$8="Location",VLOOKUP(Q71,Landcost2,2,FALSE),"Error"))) -> 0 | T71: 0 | V71: =IFERROR(('General Input Sheet'!$G$38/(VLOOKUP(U71,'General Input Sheet'!$E$38:$G$44,3,FALSE))),1) -> 1 | W71: 6827.241498 | Y71: Y | BD71: 1546 | CG71: 1546 | CJ71: 6827.241498
C72: HI_OM 015 | D72: Outfall Main | G72: Horn Island STP Outfall | I72: 28.6 | L72: 0 | M72: 8136.248777 | O72: 1 | P72: 8136.248777 | S72: =IF(Q72="",'Unit Rates - Land'!landcst,IF($E$8="Landuse",VLOOKUP(Q72,LAndcost3,2,FALSE),IF($E$8="Location",VLOOKUP(Q72,Landcost2,2,FALSE),"Error"))) -> 0 | T72: 0 | V72: =IFERROR(('General Input Sheet'!$G$38/(VLOOKUP(U72,'General Input Sheet'!$E$38:$G$44,3,FALSE))),1) -> 1 | W72: 8136.248777 | Y72: Y | BD72: 1546 | CG72: 1546 | CJ72: 8136.248777
C73: HI_OM 016 | D73: Outfall Main | G73: Horn Island STP Outfall | I73: 153.4 | L73: 0 | M73: 43687.9027 | O73: 1 | P73: 43687.9027 | S73: =IF(Q73="",'Unit Rates - Land'!landcst,IF($E$8="Landuse",VLOOKUP(Q73,LAndcost3,2,FALSE),IF($E$8="Location",VLOOKUP(Q73,Landcost2,2,FALSE),"Error"))) -> 0 | T73: 0 | V73: =IFERROR(('General Input Sheet'!$G$38/(VLOOKUP(U73,'General Input Sheet'!$E$38:$G$44,3,FALSE))),1) -> 1 | W73: 43687.9027 | Y73: Y | BD73: 1546 | CG73: 1546 | CJ73: 43687.9027
C74: HI_RM 001 | D74: Rising Main | G74: Rising Main No 1 (HI PS1 to MH) | I74: 8 | L74: 0 | M74: 1526.342979 | O74: 1 | P74: 1526.342979 | S74: =IF(Q74="",'Unit Rates - Land'!landcst,IF($E$8="Landuse",VLOOKUP(Q74,LAndcost3,2,FALSE),IF($E$8="Location",VLOOKUP(Q74,Landcost2,2,FALSE),"Error"))) -> 0 | T74: 0 | V74: =IFERROR(('General Input Sheet'!$G$38/(VLOOKUP(U74,'General Input Sheet'!$E$38:$G$44,3,FALSE))),1) -> 1 | W74: 1526.342979 | Y74: Y | BD74: 1546 | CG74: 1546 | CJ74: 1526.342979
C75: HI_RM 002 | D75: Rising Main | G75: Rising Main No 1 (HI PS1 to MH) | I75: 77.1 | L75: 0 | M75: 14606.65186 | O75: 1 | P75: 14606.65186 | S75: =IF(Q75="",'Unit Rates - Land'!landcst,IF($E$8="Landuse",VLOOKUP(Q75,LAndcost3,2,FALSE),IF($E$8="Location",VLOOKUP(Q75,Landcost2,2,FALSE),"Error"))) -> 0 | T75: 0 | V75: =IFERROR(('General Input Sheet'!$G$38/(VLOOKUP(U75,'General Input Sheet'!$E$38:$G$44,3,FALSE))),1) -> 1 | W75: 14606.65186 | Y75: Y | BD75: 1546 | CG75: 1546 | CJ75: 14606.65186
C76: HI_RM 003 | D76: Rising Main | G76: Rising Main No 1 (HI PS1 to MH) | I76: 134.4 | L76: 0 | M76: 25542.03056 | O76: 1 | P76: 25542.03056 | S76: =IF(Q76="",'Unit Rates - Land'!landcst,IF($E$8="Landuse",VLOOKUP(Q76,LAndcost3,2,FALSE),IF($E$8="Location",VLOOKUP(Q76,Landcost2,2,FALSE),"Error"))) -> 0 | T76: 0 | V76: =IFERROR(('General Input Sheet'!$G$38/(VLOOKUP(U76,'General Input Sheet'!$E$38:$G$44,3,FALSE))),1) -> 1 | W76: 25542.03056 | Y76: Y | BD76: 1546 | CG76: 1546 | CJ76: 25542.03056
C77: HI_RM 004 | D77: Rising Main | G77: Rising Main No 1 (HI PS1 to MH) | I77: 104.4 | L77: 0 | M77: 19873.8555 | O77: 1 | P77: 19873.8555 | S77: =IF(Q77="",'Unit Rates - Land'!landcst,IF($E$8="Landuse",VLOOKUP(Q77,LAndcost3,2,FALSE),IF($E$8="Location",VLOOKUP(Q77,Landcost2,2,FALSE),"Error"))) -> 0 | T77: 0 | V77: =IFERROR(('General Input Sheet'!$G$38/(VLOOKUP(U77,'General Input Sheet'!$E$38:$G$44,3,FALSE))),1) -> 1 | W77: 19873.8555 | Y77: Y | BD77: 1546 | CG77: 1546 | CJ77: 19873.8555
C78: HI_RM 005 | D78: Rising Main | G78: Rising Main No 1 (HI PS1 to MH) | I78: 11.3 | L78: 0 | M78: 2155.076395 | O78: 1 | P78: 2155.076395 | S78: =IF(Q78="",'Unit Rates - Land'!landcst,IF($E$8="Landuse",VLOOKUP(Q78,LAndcost3,2,FALSE),IF($E$8="Location",VLOOKUP(Q78,Landcost2,2,FALSE),"Error"))) -> 0 | T78: 0 | V78: =IFERROR(('General Input Sheet'!$G$38/(VLOOKUP(U78,'General Input Sheet'!$E$38:$G$44,3,FALSE))),1) -> 1 | W78: 2155.076395 | Y78: Y | BD78: 1546 | CG78: 1546 | CJ78: 2155.076395
C79: HI_RM 006 | D79: Rising Main | G79: Rising Main No 2 (HI PS2 to STP) | I79: 171.7 | L79: =IF(H79=SewerTYPE1,VLOOKUP(J79,SewerUnitrates1,2,FALSE),IF(H79=SEWERTYPE2,VLOOKUP((J79&"_"&K79),Sewerrates2,2,FALSE),0)) -> 0 | M79: 48935.67005 | O79: =IF(N79="",1,VLOOKUP(N79,Sewersitecond,2,FALSE)) -> 1 | P79: 48935.67005 | S79: =IF(Q79="",'Unit Rates - Land'!landcst,IF($E$8="Landuse",VLOOKUP(Q79,LAndcost3,2,FALSE),IF($E$8="Location",VLOOKUP(Q79,Landcost2,2,FALSE),"Error"))) -> 0 | T79: 0 | V79: =IFERROR(('General Input Sheet'!$G$38/(VLOOKUP(U79,'General Input Sheet'!$E$38:$G$44,3,FALSE))),1) -> 1 | W79: 48935.67005 | Y79: Y | BD79: 1546 | CG79: 1546 | CJ79: 48935.67005
C80: HI_RM 007 | D80: Rising Main | G80: Rising Main No 2 (HI PS2 to STP) | I80: 140.5 | L80: 0 | M80: 40096.01919 | O80: 1 | P80: =IF(M80="","",M80*O80) -> 40096.01919 | S80: =IF(Q80="",'Unit Rates - Land'!landcst,IF($E$8="Landuse",VLOOKUP(Q80,LAndcost3,2,FALSE),IF($E$8="Location",VLOOKUP(Q80,Landcost2,2,FALSE),"Error"))) -> 0 | T80: =IF(S80="",0,S80*10000*R80) -> 0 | V80: =IFERROR(('General Input Sheet'!$G$38/(VLOOKUP(U80,'General Input Sheet'!$E$38:$G$44,3,FALSE))),1) -> 1 | W80: =IFERROR((P80+T80)*V80,0) -> 40096.01919 | Y80: Y | BD80: 1546 | CG80: 1546 | CJ80: 40096.01919
C81: HI_RM 008 | D81: Rising Main | G81: Rising Main No 2 (HI PS2 to STP) | I81: 232.5 | L81: 0 | M81: 66319.79019 | O81: 1 | P81: 66319.79019 | S81: =IF(Q81="",'Unit Rates - Land'!landcst,IF($E$8="Landuse",VLOOKUP(Q81,LAndcost3,2,FALSE),IF($E$8="Location",VLOOKUP(Q81,Landcost2,2,FALSE),"Error"))) -> 0 | T81: 0 | V81: =IFERROR(('General Input Sheet'!$G$38/(VLOOKUP(U81,'General Input Sheet'!$E$38:$G$44,3,FALSE))),1) -> 1 | W81: 66319.79019 | Y81: Y | BD81: 1546 | CG81: 1546 | CI81: =IF(BC81="","",(BC81/$CG81)*$W81) ->  | CJ81: 66319.79019
C82: HI_RM 009 | D82: Rising Main | G82: Rising Main No 2 (HI PS2 to STP) | I82: 183.3 | L82: 0 | M82: 52297.95353 | O82: 1 | P82: 52297.95353 | S82: =IF(Q82="",'Unit Rates - Land'!landcst,IF($E$8="Landuse",VLOOKUP(Q82,LAndcost3,2,FALSE),IF($E$8="Location",VLOOKUP(Q82,Landcost2,2,FALSE),"Error"))) -> 0 | T82: 0 | V82: =IFERROR(('General Input Sheet'!$G$38/(VLOOKUP(U82,'General Input Sheet'!$E$38:$G$44,3,FALSE))),1) -> 1 | W82: 52297.95353 | Y82: Y | BC82: =IF(X82="y",BC$14,IF(AND(X82>0,X82<=1),X82*BC$14,"")) ->  | BD82: 1546 | CG82: =SUM(BC82:CF82) -> 1546 | CJ82: 52297.95353 | DM82: =IF(SUM(CI82:DL82)=W82,"","ERROR") -> 
C83: HI_RM 010 | D83: Rising Main | G83: Rising Main No 2 (HI PS2 to STP) | I83: 149.7 | L83: 0 | M83: 42697.52998 | O83: 1 | P83: 42697.52998 | S83: =IF(Q83="",'Unit Rates - Land'!landcst,IF($E$8="Landuse",VLOOKUP(Q83,LAndcost3,2,FALSE),IF($E$8="Location",VLOOKUP(Q83,Landcost2,2,FALSE),"Error"))) -> 0 | T83: 0 | V83: =IFERROR(('General Input Sheet'!$G$38/(VLOOKUP(U83,'General Input Sheet'!$E$38:$G$44,3,FALSE))),1) -> 1 | W83: 42697.52998 | Y83: Y | BD83: 1546 | CG83: 1546 | CJ83: 42697.52998
C84: HI_RM 011 | D84: Rising Main | G84: Rising Main No 2 (HI PS2 to STP) | I84: 235 | L84: 0 | M84: 67054.72696 | O84: 1 | P84: 67054.72696 | S84: =IF(Q84="",'Unit Rates - Land'!landcst,IF($E$8="Landuse",VLOOKUP(Q84,LAndcost3,2,FALSE),IF($E$8="Location",VLOOKUP(Q84,Landcost2,2,FALSE),"Error"))) -> 0 | T84: 0 | V84: =IFERROR(('General Input Sheet'!$G$38/(VLOOKUP(U84,'General Input Sheet'!$E$38:$G$44,3,FALSE))),1) -> 1 | W84: 67054.72696 | Y84: Y | BD84: 1546 | CG84: 1546 | CJ84: 67054.72696
C85: HI_RM 012 | D85: Rising Main | G85: Rising Main No 2 (HI PS2 to STP) | I85: 6.1 | L85: 0 | M85: 1730.300241 | O85: 1 | P85: 1730.300241 | S85: =IF(Q85="",'Unit Rates - Land'!landcst,IF($E$8="Landuse",VLOOKUP(Q85,LAndcost3,2,FALSE),IF($E$8="Location",VLOOKUP(Q85,Landcost2,2,FALSE),"Error"))) -> 0 | T85: 0 | V85: =IFERROR(('General Input Sheet'!$G$38/(VLOOKUP(U85,'General Input Sheet'!$E$38:$G$44,3,FALSE))),1) -> 1 | W85: 1730.300241 | Y85: Y | BD85: 1546 | CG85: 1546 | CJ85: 1730.300241
C86: HI_RM 013 | D86: Rising Main | G86: Rising Main No 2 (HI PS2 to STP) | I86: 70.9 | L86: 0 | M86: 20161.49074 | O86: 1 | P86: 20161.49074 | S86: =IF(Q86="",'Unit Rates - Land'!landcst,IF($E$8="Landuse",VLOOKUP(Q86,LAndcost3,2,FALSE),IF($E$8="Location",VLOOKUP(Q86,Landcost2,2,FALSE),"Error"))) -> 0 | T86: 0 | V86: =IFERROR(('General Input Sheet'!$G$38/(VLOOKUP(U86,'General Input Sheet'!$E$38:$G$44,3,FALSE))),1) -> 1 | W86: 20161.49074 | Y86: Y | BD86: 1546 | BX86: =IF(AS86="y",BX$14,IF(AND(AS86>0,AS86<=1),AS86*BX$14,"")) ->  | CG86: 1546 | CJ86: 20161.49074
C87: HI_RM 014 | D87: Rising Main | G87: Rising Main No 2 (HI PS2 to STP) | I87: 118.4 | L87: 0 | M87: 33692.73461 | O87: 1 | P87: 33692.73461 | S87: =IF(Q87="",'Unit Rates - Land'!landcst,IF($E$8="Landuse",VLOOKUP(Q87,LAndcost3,2,FALSE),IF($E$8="Location",VLOOKUP(Q87,Landcost2,2,FALSE),"Error"))) -> 0 | T87: 0 | V87: =IFERROR(('General Input Sheet'!$G$38/(VLOOKUP(U87,'General Input Sheet'!$E$38:$G$44,3,FALSE))),1) -> 1 | W87: 33692.73461 | Y87: Y | BD87: 1546 | BS87: =IF(AN87="y",BS$14,IF(AND(AN87>0,AN87<=1),AN87*BS$14,"")) ->  | CG87: 1546 | CJ87: 33692.73461
C88: HI_RM 015 | D88: Rising Main | G88: Rising Main No 2 (HI PS2 to STP) | I88: 131.9 | L88: 0 | M88: 37435.41908 | O88: 1 | P88: 37435.41908 | S88: =IF(Q88="",'Unit Rates - Land'!landcst,IF($E$8="Landuse",VLOOKUP(Q88,LAndcost3,2,FALSE),IF($E$8="Location",VLOOKUP(Q88,Landcost2,2,FALSE),"Error"))) -> 0 | T88: 0 | V88: =IFERROR(('General Input Sheet'!$G$38/(VLOOKUP(U88,'General Input Sheet'!$E$38:$G$44,3,FALSE))),1) -> 1 | W88: 37435.41908 | Y88: Y | BD88: 1546 | CG88: 1546 | CJ88: 37435.41908
C89: HI_RM 016 | D89: Rising Main | G89: Rising Main No 2 (HI PS2 to STP) | I89: 151.5 | L89: 0 | M89: 43045.10586 | O89: 1 | P89: 43045.10586 | S89: =IF(Q89="",'Unit Rates - Land'!landcst,IF($E$8="Landuse",VLOOKUP(Q89,LAndcost3,2,FALSE),IF($E$8="Location",VLOOKUP(Q89,Landcost2,2,FALSE),"Error"))) -> 0 | T89: 0 | V89: =IFERROR(('General Input Sheet'!$G$38/(VLOOKUP(U89,'General Input Sheet'!$E$38:$G$44,3,FALSE))),1) -> 1 | W89: 43045.10586 | Y89: Y | BD89: 1546 | CG89: 1546 | CJ89: 43045.10586
C90: HI_RM 017 | D90: Rising Main | G90: Rising Main No 2 (HI PS2 to STP) | I90: 198.4 | L90: 0 | M90: 56477.22224 | O90: 1 | P90: 56477.22224 | S90: =IF(Q90="",'Unit Rates - Land'!landcst,IF($E$8="Landuse",VLOOKUP(Q90,LAndcost3,2,FALSE),IF($E$8="Location",VLOOKUP(Q90,Landcost2,2,FALSE),"Error"))) -> 0 | T90: 0 | V90: =IFERROR(('General Input Sheet'!$G$38/(VLOOKUP(U90,'General Input Sheet'!$E$38:$G$44,3,FALSE))),1) -> 1 | W90: 56477.22224 | Y90: Y | BD90: 1546 | CG90: 1546 | CJ90: 56477.22224
C91: HI_RM 018 | D91: Rising Main | G91: Rising Main No 2 (HI PS2 to STP) | I91: 153.2 | L91: 0 | M91: 43545.23796 | O91: 1 | P91: 43545.23796 | S91: =IF(Q91="",'Unit Rates - Land'!landcst,IF($E$8="Landuse",VLOOKUP(Q91,LAndcost3,2,FALSE),IF($E$8="Location",VLOOKUP(Q91,Landcost2,2,FALSE),"Error"))) -> 0 | T91: 0 | V91: =IFERROR(('General Input Sheet'!$G$38/(VLOOKUP(U91,'General Input Sheet'!$E$38:$G$44,3,FALSE))),1) -> 1 | W91: 43545.23796 | Y91: Y | BD91: 1546 | CG91: 1546 | CJ91: 43545.23796
C92: HI_RM 019 | D92: Rising Main | G92: Rising Main No 2 (HI PS2 to STP) | I92: 27.3 | L92: 0 | M92: 7766.82802 | O92: 1 | P92: 7766.82802 | S92: =IF(Q92="",'Unit Rates - Land'!landcst,IF($E$8="Landuse",VLOOKUP(Q92,LAndcost3,2,FALSE),IF($E$8="Location",VLOOKUP(Q92,Landcost2,2,FALSE),"Error"))) -> 0 | T92: 0 | V92: =IFERROR(('General Input Sheet'!$G$38/(VLOOKUP(U92,'General Input Sheet'!$E$38:$G$44,3,FALSE))),1) -> 1 | W92: 7766.82802 | Y92: Y | BD92: 1546 | CG92: 1546 | CJ92: 7766.82802
C93: HI_RM 020 | D93: Rising Main | G93: Rising Main No 2 (HI PS2 to STP) | I93: 225 | L93: 0 | M93: 64160.72416 | O93: 1 | P93: 64160.72416 | S93: =IF(Q93="",'Unit Rates - Land'!landcst,IF($E$8="Landuse",VLOOKUP(Q93,LAndcost3,2,FALSE),IF($E$8="Location",VLOOKUP(Q93,Landcost2,2,FALSE),"Error"))) -> 0 | T93: 0 | V93: =IFERROR(('General Input Sheet'!$G$38/(VLOOKUP(U93,'General Input Sheet'!$E$38:$G$44,3,FALSE))),1) -> 1 | W93: 64160.72416 | Y93: Y | BD93: 1546 | CG93: 1546 | CJ93: 64160.72416
C94: HI_RM 021 | D94: Rising Main | G94: Rising Main No 2 (HI PS2 to STP) | I94: 56.3 | L94: 0 | M94: 15994.39697 | O94: 1 | P94: 15994.39697 | S94: =IF(Q94="",'Unit Rates - Land'!landcst,IF($E$8="Landuse",VLOOKUP(Q94,LAndcost3,2,FALSE),IF($E$8="Location",VLOOKUP(Q94,Landcost2,2,FALSE),"Error"))) -> 0 | T94: 0 | V94: =IFERROR(('General Input Sheet'!$G$38/(VLOOKUP(U94,'General Input Sheet'!$E$38:$G$44,3,FALSE))),1) -> 1 | W94: 15994.39697 | Y94: Y | BD94: 1546 | CG94: 1546 | CJ94: 15994.39697
C95: HI_RM 022 | D95: Rising Main | G95: Rising Main No 2 (HI PS2 to STP) | I95: 23.3 | L95: 0 | M95: 6641.154396 | O95: 1 | P95: 6641.154396 | S95: =IF(Q95="",'Unit Rates - Land'!landcst,IF($E$8="Landuse",VLOOKUP(Q95,LAndcost3,2,FALSE),IF($E$8="Location",VLOOKUP(Q95,Landcost2,2,FALSE),"Error"))) -> 0 | T95: 0 | V95: =IFERROR(('General Input Sheet'!$G$38/(VLOOKUP(U95,'General Input Sheet'!$E$38:$G$44,3,FALSE))),1) -> 1 | W95: 6641.154396 | Y95: Y | BD95: 1546 | CG95: 1546 | CJ95: 6641.154396 | DE95: =IF(BY95="","",(BY95/$CG95)*$W95) -> 
C96: HI_RM 023 | D96: Rising Main | G96: Rising Main No 2 (HI PS2 to STP) | I96: 0.2 | L96: 0 | M96: 56.01371762 | O96: 1 | P96: 56.01371762 | S96: =IF(Q96="",'Unit Rates - Land'!landcst,IF($E$8="Landuse",VLOOKUP(Q96,LAndcost3,2,FALSE),IF($E$8="Location",VLOOKUP(Q96,Landcost2,2,FALSE),"Error"))) -> 0 | T96: 0 | V96: =IFERROR(('General Input Sheet'!$G$38/(VLOOKUP(U96,'General Input Sheet'!$E$38:$G$44,3,FALSE))),1) -> 1 | W96: 56.01371762 | Y96: Y | BD96: 1546 | CG96: 1546 | CJ96: 56.01371762 | CY96: =IF(BS96="","",(BS96/$CG96)*$W96) -> 
C97: HI_RM 024 | D97: Rising Main | G97: Rising Main No 2 (HI PS2 to STP) | I97: 0.2 | L97: 0 | M97: 44.15425276 | O97: 1 | P97: 44.15425276 | S97: =IF(Q97="",'Unit Rates - Land'!landcst,IF($E$8="Landuse",VLOOKUP(Q97,LAndcost3,2,FALSE),IF($E$8="Location",VLOOKUP(Q97,Landcost2,2,FALSE),"Error"))) -> 0 | T97: 0 | V97: =IFERROR(('General Input Sheet'!$G$38/(VLOOKUP(U97,'General Input Sheet'!$E$38:$G$44,3,FALSE))),1) -> 1 | W97: 44.15425276 | Y97: Y | BD97: 1546 | CG97: 1546 | CJ97: 44.15425276 | CW97: =IF(BQ97="","",(BQ97/$CG97)*$W97) -> 
C98: HI_RM 025 | D98: Rising Main | G98: Rising Main No 2 (HI PS2 to STP) | I98: 5.2 | L98: 0 | M98: 1476.03253 | O98: 1 | P98: 1476.03253 | S98: =IF(Q98="",'Unit Rates - Land'!landcst,IF($E$8="Landuse",VLOOKUP(Q98,LAndcost3,2,FALSE),IF($E$8="Location",VLOOKUP(Q98,Landcost2,2,FALSE),"Error"))) -> 0 | T98: 0 | V98: =IFERROR(('General Input Sheet'!$G$38/(VLOOKUP(U98,'General Input Sheet'!$E$38:$G$44,3,FALSE))),1) -> 1 | W98: 1476.03253 | Y98: Y | BD98: 1546 | BG98: =IF(AB98="y",BG$14,IF(AND(AB98>0,AB98<=1),AB98*BG$14,"")) ->  | CG98: 1546 | CI98: =IF(BC98="","",(BC98/$CG98)*$W98) ->  | CJ98: 1476.03253
C99: HI_RM 026 | D99: Rising Main | G99: Rising Main No 2 (HI PS2 to STP) | I99: 7.6 | L99: 0 | M99: 2152.016262 | O99: 1 | P99: 2152.016262 | S99: =IF(Q99="",'Unit Rates - Land'!landcst,IF($E$8="Landuse",VLOOKUP(Q99,LAndcost3,2,FALSE),IF($E$8="Location",VLOOKUP(Q99,Landcost2,2,FALSE),"Error"))) -> 0 | T99: 0 | V99: =IFERROR(('General Input Sheet'!$G$38/(VLOOKUP(U99,'General Input Sheet'!$E$38:$G$44,3,FALSE))),1) -> 1 | W99: 2152.016262 | Y99: Y | BC99: =IF(X99="y",BC$14,IF(AND(X99>0,X99<=1),X99*BC$14,"")) ->  | BD99: 1546 | CG99: 1546 | CJ99: 2152.016262
C100: HI_RM 027 | D100: Rising Main | G100: Rising Main No 2 (HI PS2 to STP) | I100: 5.4 | L100: 0 | M100: 1541.555576 | O100: 1 | P100: 1541.555576 | S100: =IF(Q100="",'Unit Rates - Land'!landcst,IF($E$8="Landuse",VLOOKUP(Q100,LAndcost3,2,FALSE),IF($E$8="Location",VLOOKUP(Q100,Landcost2,2,FALSE),"Error"))) -> 0 | T100: 0 | V100: =IFERROR(('General Input Sheet'!$G$38/(VLOOKUP(U100,'General Input Sheet'!$E$38:$G$44,3,FALSE))),1) -> 1 | W100: 1541.555576 | Y100: Y | BD100: 1546 | CG100: 1546 | CJ100: 1541.555576
C101: HI_RM 028 | D101: Rising Main | G101: Rising Main No 1 (HI PS1 to MH) | I101: 0.2 | L101: 0 | M101: 31.91404393 | O101: 1 | P101: 31.91404393 | S101: =IF(Q101="",'Unit Rates - Land'!landcst,IF($E$8="Landuse",VLOOKUP(Q101,LAndcost3,2,FALSE),IF($E$8="Location",VLOOKUP(Q101,Landcost2,2,FALSE),"Error"))) -> 0 | T101: 0 | V101: =IFERROR(('General Input Sheet'!$G$38/(VLOOKUP(U101,'General Input Sheet'!$E$38:$G$44,3,FALSE))),1) -> 1 | W101: 31.91404393 | Y101: Y | BD101: 1546 | CG101: 1546 | CJ101: 31.91404393
C102: HI_RM 029 | D102: Rising Main | G102: Rising Main No 1 (HI PS1 to MH) | I102: 0.2 | L102: 0 | M102: 34.08072902 | O102: 1 | P102: 34.08072902 | S102: =IF(Q102="",'Unit Rates - Land'!landcst,IF($E$8="Landuse",VLOOKUP(Q102,LAndcost3,2,FALSE),IF($E$8="Location",VLOOKUP(Q102,Landcost2,2,FALSE),"Error"))) -> 0 | T102: 0 | V102: =IFERROR(('General Input Sheet'!$G$38/(VLOOKUP(U102,'General Input Sheet'!$E$38:$G$44,3,FALSE))),1) -> 1 | W102: 34.08072902 | Y102: Y | BD102: 1546 | CG102: 1546 | CJ102: 34.08072902
C103: HI_RM 030 | D103: Rising Main | G103: Rising Main No 1 (HI PS1 to MH) | I103: 7.9 | L103: 0 | M103: 1493.451274 | O103: 1 | P103: 1493.451274 | S103: =IF(Q103="",'Unit Rates - Land'!landcst,IF($E$8="Landuse",VLOOKUP(Q103,LAndcost3,2,FALSE),IF($E$8="Location",VLOOKUP(Q103,Landcost2,2,FALSE),"Error"))) -> 0 | T103: 0 | V103: =IFERROR(('General Input Sheet'!$G$38/(VLOOKUP(U103,'General Input Sheet'!$E$38:$G$44,3,FALSE))),1) -> 1 | W103: 1493.451274 | Y103: Y | BD103: 1546 | CG103: 1546 | CJ103: 1493.451274
C104: HI_RM 031 | D104: Rising Main | G104: Rising Main No 1 (HI PS1 to MH) | I104: 3.4 | L104: 0 | M104: 651.3076448 | O104: 1 | P104: 651.3076448 | S104: =IF(Q104="",'Unit Rates - Land'!landcst,IF($E$8="Landuse",VLOOKUP(Q104,LAndcost3,2,FALSE),IF($E$8="Location",VLOOKUP(Q104,Landcost2,2,FALSE),"Error"))) -> 0 | T104: 0 | V104: =IFERROR(('General Input Sheet'!$G$38/(VLOOKUP(U104,'General Input Sheet'!$E$38:$G$44,3,FALSE))),1) -> 1 | W104: 651.3076448 | Y104: Y | BD104: 1546 | CG104: 1546 | CJ104: 651.3076448
C105: HI_RM 032 | D105: Rising Main | G105: Rising Main No 1 (HI PS1 to MH) | I105: 4.3 | L105: 0 | M105: 821.6717822 | O105: 1 | P105: 821.6717822 | S105: =IF(Q105="",'Unit Rates - Land'!landcst,IF($E$8="Landuse",VLOOKUP(Q105,LAndcost3,2,FALSE),IF($E$8="Location",VLOOKUP(Q105,Landcost2,2,FALSE),"Error"))) -> 0 | T105: 0 | V105: =IFERROR(('General Input Sheet'!$G$38/(VLOOKUP(U105,'General Input Sheet'!$E$38:$G$44,3,FALSE))),1) -> 1 | W105: 821.6717822 | Y105: Y | BD105: 1546 | CG105: 1546 | CJ105: 821.6717822
C106: HI_RM 033 | D106: Rising Main | G106: Rising Main No 1 (HI PS1 to MH) | I106: 6.8 | L106: 0 | M106: 1301.948288 | O106: 1 | P106: 1301.948288 | S106: =IF(Q106="",'Unit Rates - Land'!landcst,IF($E$8="Landuse",VLOOKUP(Q106,LAndcost3,2,FALSE),IF($E$8="Location",VLOOKUP(Q106,Landcost2,2,FALSE),"Error"))) -> 0 | T106: 0 | V106: =IFERROR(('General Input Sheet'!$G$38/(VLOOKUP(U106,'General Input Sheet'!$E$38:$G$44,3,FALSE))),1) -> 1 | W106: 1301.948288 | Y106: Y | BD106: 1546 | CG106: 1546 | CJ106: 1301.948288
C107: HI_RM 034 | D107: Rising Main | G107: Rising Main No 1 (HI PS1 to MH) | I107: 24.1 | L107: 0 | M107: 4561.114757 | O107: 1 | P107: 4561.114757 | S107: =IF(Q107="",'Unit Rates - Land'!landcst,IF($E$8="Landuse",VLOOKUP(Q107,LAndcost3,2,FALSE),IF($E$8="Location",VLOOKUP(Q107,Landcost2,2,FALSE),"Error"))) -> 0 | T107: 0 | V107: =IFERROR(('General Input Sheet'!$G$38/(VLOOKUP(U107,'General Input Sheet'!$E$38:$G$44,3,FALSE))),1) -> 1 | W107: 4561.114757 | Y107: Y | BD107: 1546 | CG107: 1546 | CJ107: 4561.114757
C108: HI_RM 035 | D108: Rising Main | G108: Rising Main No 2 (HI PS2 to STP) | I108: 50.6 | L108: 0 | M108: 14386.83927 | O108: 1 | P108: 14386.83927 | S108: =IF(Q108="",'Unit Rates - Land'!landcst,IF($E$8="Landuse",VLOOKUP(Q108,LAndcost3,2,FALSE),IF($E$8="Location",VLOOKUP(Q108,Landcost2,2,FALSE),"Error"))) -> 0 | T108: 0 | V108: =IFERROR(('General Input Sheet'!$G$38/(VLOOKUP(U108,'General Input Sheet'!$E$38:$G$44,3,FALSE))),1) -> 1 | W108: 14386.83927 | Y108: Y | BD108: 1546 | CG108: 1546 | CJ108: 14386.83927
C109: TI_GM 011 | D109: Gravity Main | I109: 59.3 | L109: 0 | M109: 50067.10895 | O109: 1 | P109: 50067.10895 | S109: =IF(Q109="",'Unit Rates - Land'!landcst,IF($E$8="Landuse",VLOOKUP(Q109,LAndcost3,2,FALSE),IF($E$8="Location",VLOOKUP(Q109,Landcost2,2,FALSE),"Error"))) -> 0 | T109: 0 | V109: =IFERROR(('General Input Sheet'!$G$38/(VLOOKUP(U109,'General Input Sheet'!$E$38:$G$44,3,FALSE))),1) -> 1 | W109: 50067.10895 | X109: Y | BC109: 4494 | CG109: 4494 | CI109: 50067.10895
C110: TI_GM 015 | D110: Gravity Main | I110: 63.1 | L110: 0 | M110: 53086.5059 | O110: 1 | P110: 53086.5059 | S110: =IF(Q110="",'Unit Rates - Land'!landcst,IF($E$8="Landuse",VLOOKUP(Q110,LAndcost3,2,FALSE),IF($E$8="Location",VLOOKUP(Q110,Landcost2,2,FALSE),"Error"))) -> 0 | T110: 0 | V110: =IFERROR(('General Input Sheet'!$G$38/(VLOOKUP(U110,'General Input Sheet'!$E$38:$G$44,3,FALSE))),1) -> 1 | W110: 53086.5059 | X110: Y | BC110: 4494 | CG110: 4494 | CI110: 53086.5059
C111: TI_GM 016 | D111: Gravity Main | I111: 48.3 | L111: 0 | M111: 40739.53139 | O111: 1 | P111: 40739.53139 | S111: =IF(Q111="",'Unit Rates - Land'!landcst,IF($E$8="Landuse",VLOOKUP(Q111,LAndcost3,2,FALSE),IF($E$8="Location",VLOOKUP(Q111,Landcost2,2,FALSE),"Error"))) -> 0 | T111: 0 | V111: =IFERROR(('General Input Sheet'!$G$38/(VLOOKUP(U111,'General Input Sheet'!$E$38:$G$44,3,FALSE))),1) -> 1 | W111: 40739.53139 | X111: Y | BC111: 4494 | CG111: 4494 | CI111: 40739.53139
C112: TI_GM 021 | D112: Gravity Main | I112: 39.2 | L112: 0 | M112: 33046.67011 | O112: 1 | P112: 33046.67011 | S112: =IF(Q112="",'Unit Rates - Land'!landcst,IF($E$8="Landuse",VLOOKUP(Q112,LAndcost3,2,FALSE),IF($E$8="Location",VLOOKUP(Q112,Landcost2,2,FALSE),"Error"))) -> 0 | T112: 0 | V112: =IFERROR(('General Input Sheet'!$G$38/(VLOOKUP(U112,'General Input Sheet'!$E$38:$G$44,3,FALSE))),1) -> 1 | W112: 33046.67011 | X112: Y | BC112: 4494 | CG112: 4494 | CI112: 33046.67011
C113: TI_GM 022 | D113: Gravity Main | I113: 21.6 | L113: 0 | M113: 18143.2397 | O113: 1 | P113: 18143.2397 | S113: =IF(Q113="",'Unit Rates - Land'!landcst,IF($E$8="Landuse",VLOOKUP(Q113,LAndcost3,2,FALSE),IF($E$8="Location",VLOOKUP(Q113,Landcost2,2,FALSE),"Error"))) -> 0 | T113: 0 | V113: =IFERROR(('General Input Sheet'!$G$38/(VLOOKUP(U113,'General Input Sheet'!$E$38:$G$44,3,FALSE))),1) -> 1 | W113: 18143.2397 | X113: Y | BC113: 4494 | CG113: 4494 | CI113: 18143.2397
C114: TI_GM 027 | D114: Gravity Main | I114: 21.3 | L114: 0 | M114: 4981.742319 | O114: 1 | P114: 4981.742319 | S114: =IF(Q114="",'Unit Rates - Land'!landcst,IF($E$8="Landuse",VLOOKUP(Q114,LAndcost3,2,FALSE),IF($E$8="Location",VLOOKUP(Q114,Landcost2,2,FALSE),"Error"))) -> 0 | T114: 0 | V114: =IFERROR(('General Input Sheet'!$G$38/(VLOOKUP(U114,'General Input Sheet'!$E$38:$G$44,3,FALSE))),1) -> 1 | W114: 4981.742319 | X114: Y | BC114: 4494 | CG114: 4494 | CI114: 4981.742319
C115: TI_GM 028 | D115: Gravity Main | I115: 35.3 | L115: 0 | M115: 8241.922692 | O115: 1 | P115: 8241.922692 | S115: =IF(Q115="",'Unit Rates - Land'!landcst,IF($E$8="Landuse",VLOOKUP(Q115,LAndcost3,2,FALSE),IF($E$8="Location",VLOOKUP(Q115,Landcost2,2,FALSE),"Error"))) -> 0 | T115: 0 | V115: =IFERROR(('General Input Sheet'!$G$38/(VLOOKUP(U115,'General Input Sheet'!$E$38:$G$44,3,FALSE))),1) -> 1 | W115: 8241.922692 | X115: Y | BC115: 4494 | CG115: 4494 | CI115: 8241.922692
C116: TI_GM 029 | D116: Gravity Main | I116: 46.8 | L116: 0 | M116: 10918.73099 | O116: 1 | P116: 10918.73099 | S116: =IF(Q116="",'Unit Rates - Land'!landcst,IF($E$8="Landuse",VLOOKUP(Q116,LAndcost3,2,FALSE),IF($E$8="Location",VLOOKUP(Q116,Landcost2,2,FALSE),"Error"))) -> 0 | T116: 0 | V116: =IFERROR(('General Input Sheet'!$G$38/(VLOOKUP(U116,'General Input Sheet'!$E$38:$G$44,3,FALSE))),1) -> 1 | W116: 10918.73099 | X116: Y | BC116: 4494 | CG116: 4494 | CI116: 10918.73099 | CL116: =IF(BF116="","",(BF116/$CG116)*$W116) ->  | DL116: =IF(CF116="","",(CF116/$CG116)*$W116) -> 
C117: TI_GM 030 | D117: Gravity Main | I117: 7.1 | L117: 0 | M117: 1641.794765 | O117: 1 | P117: 1641.794765 | S117: =IF(Q117="",'Unit Rates - Land'!landcst,IF($E$8="Landuse",VLOOKUP(Q117,LAndcost3,2,FALSE),IF($E$8="Location",VLOOKUP(Q117,Landcost2,2,FALSE),"Error"))) -> 0 | T117: 0 | V117: =IFERROR(('General Input Sheet'!$G$38/(VLOOKUP(U117,'General Input Sheet'!$E$38:$G$44,3,FALSE))),1) -> 1 | W117: 1641.794765 | X117: Y | BC117: 4494 | CG117: 4494 | CI117: =IF(BC117="","",(BC117/$CG117)*$W117) -> 1641.794765
C118: TI_GM 031 | D118: Gravity Main | I118: 31.4 | L118: 0 | M118: 7319.625559 | O118: 1 | P118: 7319.625559 | S118: =IF(Q118="",'Unit Rates - Land'!landcst,IF($E$8="Landuse",VLOOKUP(Q118,LAndcost3,2,FALSE),IF($E$8="Location",VLOOKUP(Q118,Landcost2,2,FALSE),"Error"))) -> 0 | T118: 0 | V118: =IFERROR(('General Input Sheet'!$G$38/(VLOOKUP(U118,'General Input Sheet'!$E$38:$G$44,3,FALSE))),1) -> 1 | W118: 7319.625559 | X118: Y | BC118: 4494 | CG118: 4494 | CI118: 7319.625559
C119: TI_GM 032 | D119: Gravity Main | I119: 20 | L119: 0 | M119: 4659.897309 | O119: 1 | P119: 4659.897309 | S119: =IF(Q119="",'Unit Rates - Land'!landcst,IF($E$8="Landuse",VLOOKUP(Q119,LAndcost3,2,FALSE),IF($E$8="Location",VLOOKUP(Q119,Landcost2,2,FALSE),"Error"))) -> 0 | T119: 0 | V119: =IFERROR(('General Input Sheet'!$G$38/(VLOOKUP(U119,'General Input Sheet'!$E$38:$G$44,3,FALSE))),1) -> 1 | W119: 4659.897309 | X119: Y | BC119: 4494 | BJ119: =IF(AE119="y",BJ$14,IF(AND(AE119>0,AE119<=1),AE119*BJ$14,"")) ->  | CG119: 4494 | CI119: 4659.897309
C120: TI_GM 033 | D120: Gravity Main | I120: 50.3 | L120: 0 | M120: 11703.62605 | O120: 1 | P120: 11703.62605 | S120: =IF(Q120="",'Unit Rates - Land'!landcst,IF($E$8="Landuse",VLOOKUP(Q120,LAndcost3,2,FALSE),IF($E$8="Location",VLOOKUP(Q120,Landcost2,2,FALSE),"Error"))) -> 0 | T120: 0 | V120: =IFERROR(('General Input Sheet'!$G$38/(VLOOKUP(U120,'General Input Sheet'!$E$38:$G$44,3,FALSE))),1) -> 1 | W120: 11703.62605 | X120: Y | BC120: 4494 | CG120: 4494 | CI120: 11703.62605
C121: TI_GM 035 | D121: Gravity Main | I121: 8.3 | L121: 0 | M121: 1924.427231 | O121: 1 | P121: 1924.427231 | S121: =IF(Q121="",'Unit Rates - Land'!landcst,IF($E$8="Landuse",VLOOKUP(Q121,LAndcost3,2,FALSE),IF($E$8="Location",VLOOKUP(Q121,Landcost2,2,FALSE),"Error"))) -> 0 | T121: 0 | V121: =IFERROR(('General Input Sheet'!$G$38/(VLOOKUP(U121,'General Input Sheet'!$E$38:$G$44,3,FALSE))),1) -> 1 | W121: 1924.427231 | X121: Y | BC121: 4494 | CG121: 4494 | CI121: 1924.427231
C122: TI_GM 036 | D122: Gravity Main | I122: 40 | L122: 0 | M122: 9358.898695 | O122: 1 | P122: 9358.898695 | S122: =IF(Q122="",'Unit Rates - Land'!landcst,IF($E$8="Landuse",VLOOKUP(Q122,LAndcost3,2,FALSE),IF($E$8="Location",VLOOKUP(Q122,Landcost2,2,FALSE),"Error"))) -> 0 | T122: 0 | V122: =IFERROR(('General Input Sheet'!$G$38/(VLOOKUP(U122,'General Input Sheet'!$E$38:$G$44,3,FALSE))),1) -> 1 | W122: 9358.898695 | X122: Y | BC122: 4494 | CG122: 4494 | CI122: 9358.898695
C123: TI_GM 037 | D123: Gravity Main | I123: 19.3 | L123: 0 | M123: 4496.875052 | O123: 1 | P123: 4496.875052 | S123: =IF(Q123="",'Unit Rates - Land'!landcst,IF($E$8="Landuse",VLOOKUP(Q123,LAndcost3,2,FALSE),IF($E$8="Location",VLOOKUP(Q123,Landcost2,2,FALSE),"Error"))) -> 0 | T123: 0 | V123: =IFERROR(('General Input Sheet'!$G$38/(VLOOKUP(U123,'General Input Sheet'!$E$38:$G$44,3,FALSE))),1) -> 1 | W123: 4496.875052 | X123: Y | BC123: 4494 | CG123: 4494 | CI123: 4496.875052
C124: TI_GM 055 | D124: Gravity Main | I124: 5.7 | L124: 0 | M124: 1831.091063 | O124: 1 | P124: 1831.091063 | S124: =IF(Q124="",'Unit Rates - Land'!landcst,IF($E$8="Landuse",VLOOKUP(Q124,LAndcost3,2,FALSE),IF($E$8="Location",VLOOKUP(Q124,Landcost2,2,FALSE),"Error"))) -> 0 | T124: 0 | V124: =IFERROR(('General Input Sheet'!$G$38/(VLOOKUP(U124,'General Input Sheet'!$E$38:$G$44,3,FALSE))),1) -> 1 | W124: 1831.091063 | X124: Y | BC124: 4494 | CG124: 4494 | CI124: 1831.091063
C125: TI_GM 056 | D125: Gravity Main | I125: 7.9 | L125: 0 | M125: 2533.323274 | O125: 1 | P125: 2533.323274 | S125: =IF(Q125="",'Unit Rates - Land'!landcst,IF($E$8="Landuse",VLOOKUP(Q125,LAndcost3,2,FALSE),IF($E$8="Location",VLOOKUP(Q125,Landcost2,2,FALSE),"Error"))) -> 0 | T125: 0 | V125: =IFERROR(('General Input Sheet'!$G$38/(VLOOKUP(U125,'General Input Sheet'!$E$38:$G$44,3,FALSE))),1) -> 1 | W125: 2533.323274 | X125: Y | BC125: 4494 | CG125: 4494 | CI125: 2533.323274
C126: TI_GM 057 | D126: Gravity Main | I126: 12.8 | L126: 0 | M126: 4102.810376 | O126: 1 | P126: 4102.810376 | S126: =IF(Q126="",'Unit Rates - Land'!landcst,IF($E$8="Landuse",VLOOKUP(Q126,LAndcost3,2,FALSE),IF($E$8="Location",VLOOKUP(Q126,Landcost2,2,FALSE),"Error"))) -> 0 | T126: 0 | V126: =IFERROR(('General Input Sheet'!$G$38/(VLOOKUP(U126,'General Input Sheet'!$E$38:$G$44,3,FALSE))),1) -> 1 | W126: 4102.810376 | X126: Y | BC126: 4494 | CG126: 4494 | CI126: 4102.810376
C127: TI_GM 065 | D127: Gravity Main | I127: 21.4 | L127: 0 | M127: 6868.405972 | O127: 1 | P127: 6868.405972 | S127: =IF(Q127="",'Unit Rates - Land'!landcst,IF($E$8="Landuse",VLOOKUP(Q127,LAndcost3,2,FALSE),IF($E$8="Location",VLOOKUP(Q127,Landcost2,2,FALSE),"Error"))) -> 0 | T127: 0 | V127: =IFERROR(('General Input Sheet'!$G$38/(VLOOKUP(U127,'General Input Sheet'!$E$38:$G$44,3,FALSE))),1) -> 1 | W127: 6868.405972 | X127: Y | BC127: 4494 | CG127: 4494 | CI127: 6868.405972
C128: TI_GM 066 | D128: Gravity Main | I128: 80.2 | L128: 0 | M128: 25651.05623 | O128: 1 | P128: 25651.05623 | S128: =IF(Q128="",'Unit Rates - Land'!landcst,IF($E$8="Landuse",VLOOKUP(Q128,LAndcost3,2,FALSE),IF($E$8="Location",VLOOKUP(Q128,Landcost2,2,FALSE),"Error"))) -> 0 | T128: 0 | V128: =IFERROR(('General Input Sheet'!$G$38/(VLOOKUP(U128,'General Input Sheet'!$E$38:$G$44,3,FALSE))),1) -> 1 | W128: 25651.05623 | X128: Y | BC128: 4494 | CG128: 4494 | CI128: 25651.05623
C129: TI_GM 094 | D129: Gravity Main | I129: 30 | L129: 0 | M129: 9574.189049 | O129: 1 | P129: 9574.189049 | S129: =IF(Q129="",'Unit Rates - Land'!landcst,IF($E$8="Landuse",VLOOKUP(Q129,LAndcost3,2,FALSE),IF($E$8="Location",VLOOKUP(Q129,Landcost2,2,FALSE),"Error"))) -> 0 | T129: 0 | V129: =IFERROR(('General Input Sheet'!$G$38/(VLOOKUP(U129,'General Input Sheet'!$E$38:$G$44,3,FALSE))),1) -> 1 | W129: 9574.189049 | X129: Y | BC129: 4494 | CG129: 4494 | CI129: 9574.189049
C130: TI_GM 116 | D130: Gravity Main | I130: 34.6 | L130: 0 | M130: 11124.95736 | O130: 1 | P130: 11124.95736 | S130: =IF(Q130="",'Unit Rates - Land'!landcst,IF($E$8="Landuse",VLOOKUP(Q130,LAndcost3,2,FALSE),IF($E$8="Location",VLOOKUP(Q130,Landcost2,2,FALSE),"Error"))) -> 0 | T130: 0 | V130: =IFERROR(('General Input Sheet'!$G$38/(VLOOKUP(U130,'General Input Sheet'!$E$38:$G$44,3,FALSE))),1) -> 1 | W130: 11124.95736 | X130: Y | BC130: 4494 | CG130: 4494 | CI130: 11124.95736
C131: TI_GM 117 | D131: Gravity Main | I131: 84.1 | L131: 0 | M131: 27036.51389 | O131: 1 | P131: 27036.51389 | S131: =IF(Q131="",'Unit Rates - Land'!landcst,IF($E$8="Landuse",VLOOKUP(Q131,LAndcost3,2,FALSE),IF($E$8="Location",VLOOKUP(Q131,Landcost2,2,FALSE),"Error"))) -> 0 | T131: 0 | V131: =IFERROR(('General Input Sheet'!$G$38/(VLOOKUP(U131,'General Input Sheet'!$E$38:$G$44,3,FALSE))),1) -> 1 | W131: 27036.51389 | X131: Y | BC131: 4494 | CG131: 4494 | CI131: 27036.51389
C132: TI_GM 125 | D132: Gravity Main | I132: 54.7 | L132: 0 | M132: 17471.80255 | O132: 1 | P132: 17471.80255 | S132: =IF(Q132="",'Unit Rates - Land'!landcst,IF($E$8="Landuse",VLOOKUP(Q132,LAndcost3,2,FALSE),IF($E$8="Location",VLOOKUP(Q132,Landcost2,2,FALSE),"Error"))) -> 0 | T132: 0 | V132: =IFERROR(('General Input Sheet'!$G$38/(VLOOKUP(U132,'General Input Sheet'!$E$38:$G$44,3,FALSE))),1) -> 1 | W132: 17471.80255 | X132: Y | BC132: 4494 | CG132: 4494 | CI132: 17471.80255
C133: TI_GM 126 | D133: Gravity Main | I133: 18.1 | L133: 0 | M133: 5765.888284 | O133: 1 | P133: 5765.888284 | S133: =IF(Q133="",'Unit Rates - Land'!landcst,IF($E$8="Landuse",VLOOKUP(Q133,LAndcost3,2,FALSE),IF($E$8="Location",VLOOKUP(Q133,Landcost2,2,FALSE),"Error"))) -> 0 | T133: 0 | V133: =IFERROR(('General Input Sheet'!$G$38/(VLOOKUP(U133,'General Input Sheet'!$E$38:$G$44,3,FALSE))),1) -> 1 | W133: 5765.888284 | X133: Y | BC133: 4494 | CG133: 4494 | CI133: 5765.888284
C134: TI_GM 127 | D134: Gravity Main | I134: 70.6 | L134: 0 | M134: 22637.8305 | O134: 1 | P134: 22637.8305 | S134: =IF(Q134="",'Unit Rates - Land'!landcst,IF($E$8="Landuse",VLOOKUP(Q134,LAndcost3,2,FALSE),IF($E$8="Location",VLOOKUP(Q134,Landcost2,2,FALSE),"Error"))) -> 0 | T134: 0 | V134: =IFERROR(('General Input Sheet'!$G$38/(VLOOKUP(U134,'General Input Sheet'!$E$38:$G$44,3,FALSE))),1) -> 1 | W134: 22637.8305 | X134: Y | BC134: 4494 | CG134: 4494 | CI134: 22637.8305
C135: TI_GM 129 | D135: Gravity Main | I135: 84.1 | L135: 0 | M135: 26981.63563 | O135: 1 | P135: 26981.63563 | S135: =IF(Q135="",'Unit Rates - Land'!landcst,IF($E$8="Landuse",VLOOKUP(Q135,LAndcost3,2,FALSE),IF($E$8="Location",VLOOKUP(Q135,Landcost2,2,FALSE),"Error"))) -> 0 | T135: 0 | V135: =IFERROR(('General Input Sheet'!$G$38/(VLOOKUP(U135,'General Input Sheet'!$E$38:$G$44,3,FALSE))),1) -> 1 | W135: 26981.63563 | X135: Y | BC135: 4494 | CG135: 4494 | CI135: 26981.63563
C136: TI_GM 130 | D136: Gravity Main | I136: 3.5 | L136: 0 | M136: 1133.631629 | O136: 1 | P136: 1133.631629 | S136: =IF(Q136="",'Unit Rates - Land'!landcst,IF($E$8="Landuse",VLOOKUP(Q136,LAndcost3,2,FALSE),IF($E$8="Location",VLOOKUP(Q136,Landcost2,2,FALSE),"Error"))) -> 0 | T136: 0 | V136: =IFERROR(('General Input Sheet'!$G$38/(VLOOKUP(U136,'General Input Sheet'!$E$38:$G$44,3,FALSE))),1) -> 1 | W136: 1133.631629 | X136: Y | BC136: 4494 | CG136: 4494 | CI136: 1133.631629
C137: TI_GM 131 | D137: Gravity Main | I137: 11.9 | L137: 0 | M137: 3815.712886 | O137: 1 | P137: 3815.712886 | S137: =IF(Q137="",'Unit Rates - Land'!landcst,IF($E$8="Landuse",VLOOKUP(Q137,LAndcost3,2,FALSE),IF($E$8="Location",VLOOKUP(Q137,Landcost2,2,FALSE),"Error"))) -> 0 | T137: 0 | V137: =IFERROR(('General Input Sheet'!$G$38/(VLOOKUP(U137,'General Input Sheet'!$E$38:$G$44,3,FALSE))),1) -> 1 | W137: 3815.712886 | X137: Y | BC137: 4494 | CG137: 4494 | CI137: 3815.712886
C138: TI_GM 132 | D138: Gravity Main | I138: 41.1 | L138: 0 | M138: 13159.14603 | O138: 1 | P138: 13159.14603 | S138: =IF(Q138="",'Unit Rates - Land'!landcst,IF($E$8="Landuse",VLOOKUP(Q138,LAndcost3,2,FALSE),IF($E$8="Location",VLOOKUP(Q138,Landcost2,2,FALSE),"Error"))) -> 0 | T138: 0 | V138: =IFERROR(('General Input Sheet'!$G$38/(VLOOKUP(U138,'General Input Sheet'!$E$38:$G$44,3,FALSE))),1) -> 1 | W138: 13159.14603 | X138: Y | BC138: 4494 | CG138: 4494 | CI138: 13159.14603 | CY138: =IF(BS138="","",(BS138/$CG138)*$W138) -> 
C139: TI_GM 133 | D139: Gravity Main | I139: 26.1 | L139: 0 | M139: 8377.340818 | O139: 1 | P139: 8377.340818 | S139: =IF(Q139="",'Unit Rates - Land'!landcst,IF($E$8="Landuse",VLOOKUP(Q139,LAndcost3,2,FALSE),IF($E$8="Location",VLOOKUP(Q139,Landcost2,2,FALSE),"Error"))) -> 0 | T139: 0 | V139: =IFERROR(('General Input Sheet'!$G$38/(VLOOKUP(U139,'General Input Sheet'!$E$38:$G$44,3,FALSE))),1) -> 1 | W139: 8377.340818 | X139: Y | BC139: 4494 | CG139: 4494 | CI139: 8377.340818
C140: TI_GM 147 | D140: Gravity Main | I140: 7.7 | L140: 0 | M140: 6511.157959 | O140: 1 | P140: 6511.157959 | S140: =IF(Q140="",'Unit Rates - Land'!landcst,IF($E$8="Landuse",VLOOKUP(Q140,LAndcost3,2,FALSE),IF($E$8="Location",VLOOKUP(Q140,Landcost2,2,FALSE),"Error"))) -> 0 | T140: 0 | V140: =IFERROR(('General Input Sheet'!$G$38/(VLOOKUP(U140,'General Input Sheet'!$E$38:$G$44,3,FALSE))),1) -> 1 | W140: 6511.157959 | X140: Y | BC140: 4494 | CG140: 4494 | CI140: 6511.157959
C141: TI_GM 148 | D141: Gravity Main | I141: 6.3 | L141: 0 | M141: 5303.341112 | O141: 1 | P141: 5303.341112 | S141: =IF(Q141="",'Unit Rates - Land'!landcst,IF($E$8="Landuse",VLOOKUP(Q141,LAndcost3,2,FALSE),IF($E$8="Location",VLOOKUP(Q141,Landcost2,2,FALSE),"Error"))) -> 0 | T141: 0 | V141: =IFERROR(('General Input Sheet'!$G$38/(VLOOKUP(U141,'General Input Sheet'!$E$38:$G$44,3,FALSE))),1) -> 1 | W141: 5303.341112 | X141: Y | BC141: 4494 | CG141: 4494 | CI141: 5303.341112
C142: TI_GM 150 | D142: Gravity Main | I142: 4.9 | L142: 0 | M142: 1137.106554 | O142: 1 | P142: 1137.106554 | S142: =IF(Q142="",'Unit Rates - Land'!landcst,IF($E$8="Landuse",VLOOKUP(Q142,LAndcost3,2,FALSE),IF($E$8="Location",VLOOKUP(Q142,Landcost2,2,FALSE),"Error"))) -> 0 | T142: 0 | V142: =IFERROR(('General Input Sheet'!$G$38/(VLOOKUP(U142,'General Input Sheet'!$E$38:$G$44,3,FALSE))),1) -> 1 | W142: 1137.106554 | X142: Y | BC142: 4494 | CG142: 4494 | CI142: 1137.106554
C143: TI_GM 151 | D143: Gravity Main | I143: 54.6 | L143: =IF(H143=SewerTYPE1,VLOOKUP(J143,SewerUnitrates1,2,FALSE),IF(H143=SEWERTYPE2,VLOOKUP((J143&"_"&K143),Sewerrates2,2,FALSE),0)) -> 0 | M143: 17440.10967 | O143: =IF(N143="",1,VLOOKUP(N143,Sewersitecond,2,FALSE)) -> 1 | P143: 17440.10967 | S143: =IF(Q143="",'Unit Rates - Land'!landcst,IF($E$8="Landuse",VLOOKUP(Q143,LAndcost3,2,FALSE),IF($E$8="Location",VLOOKUP(Q143,Landcost2,2,FALSE),"Error"))) -> 0 | T143: 0 | V143: =IFERROR(('General Input Sheet'!$G$38/(VLOOKUP(U143,'General Input Sheet'!$E$38:$G$44,3,FALSE))),1) -> 1 | W143: 17440.10967 | X143: Y | BC143: 4494 | CA143: =IF(AV143="y",CA$14,IF(AND(AV143>0,AV143<=1),AV143*CA$14,"")) ->  | CG143: 4494 | CI143: 17440.10967
C144: TI_GM 154 | D144: Gravity Main | I144: 18.1 | L144: 0 | M144: 5813.455243 | O144: 1 | P144: =IF(M144="","",M144*O144) -> 5813.455243 | S144: =IF(Q144="",'Unit Rates - Land'!landcst,IF($E$8="Landuse",VLOOKUP(Q144,LAndcost3,2,FALSE),IF($E$8="Location",VLOOKUP(Q144,Landcost2,2,FALSE),"Error"))) -> 0 | T144: =IF(S144="",0,S144*10000*R144) -> 0 | V144: =IFERROR(('General Input Sheet'!$G$38/(VLOOKUP(U144,'General Input Sheet'!$E$38:$G$44,3,FALSE))),1) -> 1 | W144: =IFERROR((P144+T144)*V144,0) -> 5813.455243 | X144: Y | BC144: 4494 | BF144: =IF(AA144="y",BF$14,IF(AND(AA144>0,AA144<=1),AA144*BF$14,"")) ->  | BV144: =IF(AQ144="y",BV$14,IF(AND(AQ144>0,AQ144<=1),AQ144*BV$14,"")) ->  | CG144: 4494 | CI144: 5813.455243
C145: TI_GM 217 | D145: Gravity Main | I145: 28.5 | L145: 0 | M145: 9109.174191 | O145: 1 | P145: 9109.174191 | S145: =IF(Q145="",'Unit Rates - Land'!landcst,IF($E$8="Landuse",VLOOKUP(Q145,LAndcost3,2,FALSE),IF($E$8="Location",VLOOKUP(Q145,Landcost2,2,FALSE),"Error"))) -> 0 | T145: 0 | V145: =IFERROR(('General Input Sheet'!$G$38/(VLOOKUP(U145,'General Input Sheet'!$E$38:$G$44,3,FALSE))),1) -> 1 | W145: 9109.174191 | X145: Y | BC145: =IF(X145="y",BC$14,IF(AND(X145>0,X145<=1),X145*BC$14,"")) -> 4494 | CG145: 4494 | CI145: 9109.174191
C146: TI_GM 218 | D146: Gravity Main | I146: 51.6 | L146: 0 | M146: 16479.19432 | O146: 1 | P146: 16479.19432 | S146: =IF(Q146="",'Unit Rates - Land'!landcst,IF($E$8="Landuse",VLOOKUP(Q146,LAndcost3,2,FALSE),IF($E$8="Location",VLOOKUP(Q146,Landcost2,2,FALSE),"Error"))) -> 0 | T146: 0 | V146: =IFERROR(('General Input Sheet'!$G$38/(VLOOKUP(U146,'General Input Sheet'!$E$38:$G$44,3,FALSE))),1) -> 1 | W146: 16479.19432 | X146: Y | BC146: 4494 | CG146: =SUM(BC146:CF146) -> 4494 | CI146: 16479.19432 | DM146: =IF(SUM(CI146:DL146)=W146,"","ERROR") -> 
C147: TI_GM 219 | D147: Gravity Main | I147: 53.5 | L147: 0 | M147: 17073.06222 | O147: 1 | P147: 17073.06222 | S147: =IF(Q147="",'Unit Rates - Land'!landcst,IF($E$8="Landuse",VLOOKUP(Q147,LAndcost3,2,FALSE),IF($E$8="Location",VLOOKUP(Q147,Landcost2,2,FALSE),"Error"))) -> 0 | T147: 0 | V147: =IFERROR(('General Input Sheet'!$G$38/(VLOOKUP(U147,'General Input Sheet'!$E$38:$G$44,3,FALSE))),1) -> 1 | W147: 17073.06222 | X147: Y | BC147: 4494 | CG147: 4494 | CI147: 17073.06222
C148: TI_GM 220 | D148: Gravity Main | I148: 88.9 | L148: 0 | M148: 28554.48195 | O148: 1 | P148: 28554.48195 | S148: =IF(Q148="",'Unit Rates - Land'!landcst,IF($E$8="Landuse",VLOOKUP(Q148,LAndcost3,2,FALSE),IF($E$8="Location",VLOOKUP(Q148,Landcost2,2,FALSE),"Error"))) -> 0 | T148: 0 | V148: =IFERROR(('General Input Sheet'!$G$38/(VLOOKUP(U148,'General Input Sheet'!$E$38:$G$44,3,FALSE))),1) -> 1 | W148: 28554.48195 | X148: Y | BC148: 4494 | CG148: 4494 | CI148: 28554.48195
C149: TI_GM 221 | D149: Gravity Main | I149: 55.3 | L149: 0 | M149: 17724.27426 | O149: 1 | P149: 17724.27426 | S149: =IF(Q149="",'Unit Rates - Land'!landcst,IF($E$8="Landuse",VLOOKUP(Q149,LAndcost3,2,FALSE),IF($E$8="Location",VLOOKUP(Q149,Landcost2,2,FALSE),"Error"))) -> 0 | T149: 0 | V149: =IFERROR(('General Input Sheet'!$G$38/(VLOOKUP(U149,'General Input Sheet'!$E$38:$G$44,3,FALSE))),1) -> 1 | W149: 17724.27426 | X149: Y | BC149: 4494 | CG149: 4494 | CI149: 17724.27426
C150: TI_GM 222 | D150: Gravity Main | I150: 57.2 | L150: 0 | M150: 13356.48352 | O150: 1 | P150: 13356.48352 | S150: =IF(Q150="",'Unit Rates - Land'!landcst,IF($E$8="Landuse",VLOOKUP(Q150,LAndcost3,2,FALSE),IF($E$8="Location",VLOOKUP(Q150,Landcost2,2,FALSE),"Error"))) -> 0 | T150: 0 | V150: =IFERROR(('General Input Sheet'!$G$38/(VLOOKUP(U150,'General Input Sheet'!$E$38:$G$44,3,FALSE))),1) -> 1 | W150: 13356.48352 | X150: Y | BC150: 4494 | CG150: 4494 | CI150: 13356.48352 | CV150: =IF(BP150="","",(BP150/$CG150)*$W150) -> 
C151: TI_GM 223 | D151: Gravity Main | I151: 66.7 | L151: 0 | M151: 15569.46324 | O151: 1 | P151: 15569.46324 | S151: =IF(Q151="",'Unit Rates - Land'!landcst,IF($E$8="Landuse",VLOOKUP(Q151,LAndcost3,2,FALSE),IF($E$8="Location",VLOOKUP(Q151,Landcost2,2,FALSE),"Error"))) -> 0 | T151: 0 | V151: =IFERROR(('General Input Sheet'!$G$38/(VLOOKUP(U151,'General Input Sheet'!$E$38:$G$44,3,FALSE))),1) -> 1 | W151: 15569.46324 | X151: Y | BC151: 4494 | CG151: 4494 | CI151: =IF(BC151="","",(BC151/$CG151)*$W151) -> 15569.46324
C152: TI_GM 224 | D152: Gravity Main | I152: 18.2 | L152: 0 | M152: 4249.516189 | O152: 1 | P152: 4249.516189 | S152: =IF(Q152="",'Unit Rates - Land'!landcst,IF($E$8="Landuse",VLOOKUP(Q152,LAndcost3,2,FALSE),IF($E$8="Location",VLOOKUP(Q152,Landcost2,2,FALSE),"Error"))) -> 0 | T152: 0 | V152: =IFERROR(('General Input Sheet'!$G$38/(VLOOKUP(U152,'General Input Sheet'!$E$38:$G$44,3,FALSE))),1) -> 1 | W152: 4249.516189 | X152: Y | BC152: 4494 | CG152: 4494 | CI152: 4249.516189
C153: TI_GM 225 | D153: Gravity Main | I153: 67.8 | L153: 0 | M153: 15853.51251 | O153: 1 | P153: 15853.51251 | S153: =IF(Q153="",'Unit Rates - Land'!landcst,IF($E$8="Landuse",VLOOKUP(Q153,LAndcost3,2,FALSE),IF($E$8="Location",VLOOKUP(Q153,Landcost2,2,FALSE),"Error"))) -> 0 | T153: 0 | V153: =IFERROR(('General Input Sheet'!$G$38/(VLOOKUP(U153,'General Input Sheet'!$E$38:$G$44,3,FALSE))),1) -> 1 | W153: 15853.51251 | X153: Y | BC153: 4494 | CG153: 4494 | CI153: 15853.51251
C154: TI_GM 226 | D154: Gravity Main | I154: 57.3 | L154: 0 | M154: 13384.91013 | O154: 1 | P154: 13384.91013 | S154: =IF(Q154="",'Unit Rates - Land'!landcst,IF($E$8="Landuse",VLOOKUP(Q154,LAndcost3,2,FALSE),IF($E$8="Location",VLOOKUP(Q154,Landcost2,2,FALSE),"Error"))) -> 0 | T154: 0 | V154: =IFERROR(('General Input Sheet'!$G$38/(VLOOKUP(U154,'General Input Sheet'!$E$38:$G$44,3,FALSE))),1) -> 1 | W154: 13384.91013 | X154: Y | BC154: 4494 | CG154: 4494 | CI154: 13384.91013
C155: TI_GM 227 | D155: Gravity Main | I155: 72.1 | L155: 0 | M155: 16867.57653 | O155: 1 | P155: 16867.57653 | S155: =IF(Q155="",'Unit Rates - Land'!landcst,IF($E$8="Landuse",VLOOKUP(Q155,LAndcost3,2,FALSE),IF($E$8="Location",VLOOKUP(Q155,Landcost2,2,FALSE),"Error"))) -> 0 | T155: 0 | V155: =IFERROR(('General Input Sheet'!$G$38/(VLOOKUP(U155,'General Input Sheet'!$E$38:$G$44,3,FALSE))),1) -> 1 | W155: 16867.57653 | X155: Y | BC155: 4494 | CG155: 4494 | CI155: 16867.57653
C156: TI_GM 228 | D156: Gravity Main | I156: 46.9 | L156: 0 | M156: 10937.3103 | O156: 1 | P156: 10937.3103 | S156: =IF(Q156="",'Unit Rates - Land'!landcst,IF($E$8="Landuse",VLOOKUP(Q156,LAndcost3,2,FALSE),IF($E$8="Location",VLOOKUP(Q156,Landcost2,2,FALSE),"Error"))) -> 0 | T156: 0 | V156: =IFERROR(('General Input Sheet'!$G$38/(VLOOKUP(U156,'General Input Sheet'!$E$38:$G$44,3,FALSE))),1) -> 1 | W156: 10937.3103 | X156: Y | BC156: 4494 | CG156: 4494 | CI156: 10937.3103
C157: TI_GM 229 | D157: Gravity Main | I157: 3.9 | L157: 0 | M157: 1244.498359 | O157: 1 | P157: 1244.498359 | S157: =IF(Q157="",'Unit Rates - Land'!landcst,IF($E$8="Landuse",VLOOKUP(Q157,LAndcost3,2,FALSE),IF($E$8="Location",VLOOKUP(Q157,Landcost2,2,FALSE),"Error"))) -> 0 | T157: 0 | V157: =IFERROR(('General Input Sheet'!$G$38/(VLOOKUP(U157,'General Input Sheet'!$E$38:$G$44,3,FALSE))),1) -> 1 | W157: 1244.498359 | X157: Y | BC157: 4494 | CG157: 4494 | CI157: 1244.498359 | DG157: =IF(CA157="","",(CA157/$CG157)*$W157) -> 
C158: TI_GM 240 | D158: Gravity Main | I158: 25.7 | L158: 0 | M158: 8249.6316 | O158: 1 | P158: 8249.6316 | S158: =IF(Q158="",'Unit Rates - Land'!landcst,IF($E$8="Landuse",VLOOKUP(Q158,LAndcost3,2,FALSE),IF($E$8="Location",VLOOKUP(Q158,Landcost2,2,FALSE),"Error"))) -> 0 | T158: 0 | V158: =IFERROR(('General Input Sheet'!$G$38/(VLOOKUP(U158,'General Input Sheet'!$E$38:$G$44,3,FALSE))),1) -> 1 | W158: 8249.6316 | X158: Y | BC158: 4494 | CG158: 4494 | CI158: 8249.6316
C159: TI_GM 241 | D159: Gravity Main | I159: 60.7 | L159: 0 | M159: 19384.68832 | O159: 1 | P159: 19384.68832 | S159: =IF(Q159="",'Unit Rates - Land'!landcst,IF($E$8="Landuse",VLOOKUP(Q159,LAndcost3,2,FALSE),IF($E$8="Location",VLOOKUP(Q159,Landcost2,2,FALSE),"Error"))) -> 0 | T159: 0 | V159: =IFERROR(('General Input Sheet'!$G$38/(VLOOKUP(U159,'General Input Sheet'!$E$38:$G$44,3,FALSE))),1) -> 1 | W159: 19384.68832 | X159: Y | BC159: 4494 | BU159: =IF(AP159="y",BU$14,IF(AND(AP159>0,AP159<=1),AP159*BU$14,"")) ->  | CG159: 4494 | CI159: 19384.68832
C160: TI_GM 242 | D160: Gravity Main | I160: 44.3 | L160: 0 | M160: 14248.52288 | O160: 1 | P160: 14248.52288 | S160: =IF(Q160="",'Unit Rates - Land'!landcst,IF($E$8="Landuse",VLOOKUP(Q160,LAndcost3,2,FALSE),IF($E$8="Location",VLOOKUP(Q160,Landcost2,2,FALSE),"Error"))) -> 0 | T160: 0 | V160: =IFERROR(('General Input Sheet'!$G$38/(VLOOKUP(U160,'General Input Sheet'!$E$38:$G$44,3,FALSE))),1) -> 1 | W160: 14248.52288 | X160: Y | BC160: 4494 | BS160: =IF(AN160="y",BS$14,IF(AND(AN160>0,AN160<=1),AN160*BS$14,"")) ->  | CG160: 4494 | CI160: 14248.52288
C161: TI_GM 243 | D161: Gravity Main | I161: 62.1 | L161: 0 | M161: 19946.00051 | O161: 1 | P161: 19946.00051 | S161: =IF(Q161="",'Unit Rates - Land'!landcst,IF($E$8="Landuse",VLOOKUP(Q161,LAndcost3,2,FALSE),IF($E$8="Location",VLOOKUP(Q161,Landcost2,2,FALSE),"Error"))) -> 0 | T161: 0 | V161: =IFERROR(('General Input Sheet'!$G$38/(VLOOKUP(U161,'General Input Sheet'!$E$38:$G$44,3,FALSE))),1) -> 1 | W161: 19946.00051 | X161: Y | BC161: 4494 | CG161: 4494 | CI161: 19946.00051
C162: TI_GM 257 | D162: Gravity Main | I162: 82.9 | L162: 0 | M162: 26491.94941 | O162: 1 | P162: 26491.94941 | S162: =IF(Q162="",'Unit Rates - Land'!landcst,IF($E$8="Landuse",VLOOKUP(Q162,LAndcost3,2,FALSE),IF($E$8="Location",VLOOKUP(Q162,Landcost2,2,FALSE),"Error"))) -> 0 | T162: 0 | V162: =IFERROR(('General Input Sheet'!$G$38/(VLOOKUP(U162,'General Input Sheet'!$E$38:$G$44,3,FALSE))),1) -> 1 | W162: 26491.94941 | X162: Y | BC162: 4494 | CG162: 4494 | CI162: 26491.94941
C163: TI_GM 258 | D163: Gravity Main | I163: 69.5 | L163: 0 | M163: 22349.74452 | O163: 1 | P163: 22349.74452 | S163: =IF(Q163="",'Unit Rates - Land'!landcst,IF($E$8="Landuse",VLOOKUP(Q163,LAndcost3,2,FALSE),IF($E$8="Location",VLOOKUP(Q163,Landcost2,2,FALSE),"Error"))) -> 0 | T163: 0 | V163: =IFERROR(('General Input Sheet'!$G$38/(VLOOKUP(U163,'General Input Sheet'!$E$38:$G$44,3,FALSE))),1) -> 1 | W163: 22349.74452 | X163: Y | BC163: 4494 | CG163: 4494 | CI163: 22349.74452
C164: TI_GM 260 | D164: Gravity Main | I164: 59.5 | L164: 0 | M164: 19001.92563 | O164: 1 | P164: 19001.92563 | S164: =IF(Q164="",'Unit Rates - Land'!landcst,IF($E$8="Landuse",VLOOKUP(Q164,LAndcost3,2,FALSE),IF($E$8="Location",VLOOKUP(Q164,Landcost2,2,FALSE),"Error"))) -> 0 | T164: 0 | V164: =IFERROR(('General Input Sheet'!$G$38/(VLOOKUP(U164,'General Input Sheet'!$E$38:$G$44,3,FALSE))),1) -> 1 | W164: 19001.92563 | X164: Y | BC164: 4494 | CG164: 4494 | CI164: 19001.92563
C165: TI_GM 261 | D165: Gravity Main | I165: 18.2 | L165: 0 | M165: 5840.449863 | O165: 1 | P165: 5840.449863 | S165: =IF(Q165="",'Unit Rates - Land'!landcst,IF($E$8="Landuse",VLOOKUP(Q165,LAndcost3,2,FALSE),IF($E$8="Location",VLOOKUP(Q165,Landcost2,2,FALSE),"Error"))) -> 0 | T165: 0 | V165: =IFERROR(('General Input Sheet'!$G$38/(VLOOKUP(U165,'General Input Sheet'!$E$38:$G$44,3,FALSE))),1) -> 1 | W165: 5840.449863 | X165: Y | BC165: 4494 | CG165: 4494 | CI165: 5840.449863
C166: TI_GM 264 | D166: Gravity Main | I166: 25.3 | L166: 0 | M166: 8129.987301 | O166: 1 | P166: 8129.987301 | S166: =IF(Q166="",'Unit Rates - Land'!landcst,IF($E$8="Landuse",VLOOKUP(Q166,LAndcost3,2,FALSE),IF($E$8="Location",VLOOKUP(Q166,Landcost2,2,FALSE),"Error"))) -> 0 | T166: 0 | V166: =IFERROR(('General Input Sheet'!$G$38/(VLOOKUP(U166,'General Input Sheet'!$E$38:$G$44,3,FALSE))),1) -> 1 | W166: 8129.987301 | X166: Y | BC166: 4494 | CG166: 4494 | CI166: 8129.987301
C167: TI_GM 265 | D167: Gravity Main | I167: 44.7 | L167: 0 | M167: 14377.20428 | O167: 1 | P167: 14377.20428 | S167: =IF(Q167="",'Unit Rates - Land'!landcst,IF($E$8="Landuse",VLOOKUP(Q167,LAndcost3,2,FALSE),IF($E$8="Location",VLOOKUP(Q167,Landcost2,2,FALSE),"Error"))) -> 0 | T167: 0 | V167: =IFERROR(('General Input Sheet'!$G$38/(VLOOKUP(U167,'General Input Sheet'!$E$38:$G$44,3,FALSE))),1) -> 1 | W167: 14377.20428 | X167: Y | BC167: 4494 | CG167: 4494 | CI167: 14377.20428
C168: TI_GM 266 | D168: Gravity Main | I168: 62.6 | L168: 0 | M168: 20098.08235 | O168: 1 | P168: 20098.08235 | S168: =IF(Q168="",'Unit Rates - Land'!landcst,IF($E$8="Landuse",VLOOKUP(Q168,LAndcost3,2,FALSE),IF($E$8="Location",VLOOKUP(Q168,Landcost2,2,FALSE),"Error"))) -> 0 | T168: 0 | V168: =IFERROR(('General Input Sheet'!$G$38/(VLOOKUP(U168,'General Input Sheet'!$E$38:$G$44,3,FALSE))),1) -> 1 | W168: 20098.08235 | X168: Y | BC168: 4494 | CG168: 4494 | CI168: 20098.08235
C169: TI_GM 267 | D169: Gravity Main | I169: 2.6 | L169: 0 | M169: 851.2207073 | O169: 1 | P169: 851.2207073 | S169: =IF(Q169="",'Unit Rates - Land'!landcst,IF($E$8="Landuse",VLOOKUP(Q169,LAndcost3,2,FALSE),IF($E$8="Location",VLOOKUP(Q169,Landcost2,2,FALSE),"Error"))) -> 0 | T169: 0 | V169: =IFERROR(('General Input Sheet'!$G$38/(VLOOKUP(U169,'General Input Sheet'!$E$38:$G$44,3,FALSE))),1) -> 1 | W169: 851.2207073 | X169: Y | BC169: 4494 | CG169: 4494 | CI169: 851.2207073
C170: TI_GM 268 | D170: Gravity Main | I170: 1.5 | L170: 0 | M170: 482.4305075 | O170: 1 | P170: 482.4305075 | S170: =IF(Q170="",'Unit Rates - Land'!landcst,IF($E$8="Landuse",VLOOKUP(Q170,LAndcost3,2,FALSE),IF($E$8="Location",VLOOKUP(Q170,Landcost2,2,FALSE),"Error"))) -> 0 | T170: 0 | V170: =IFERROR(('General Input Sheet'!$G$38/(VLOOKUP(U170,'General Input Sheet'!$E$38:$G$44,3,FALSE))),1) -> 1 | W170: 482.4305075 | X170: Y | BC170: 4494 | CG170: 4494 | CI170: 482.4305075 | CQ170: =IF(BK170="","",(BK170/$CG170)*$W170) -> 
C171: TI_GM 269 | D171: Gravity Main | I171: 11.2 | L171: 0 | M171: 3594.241849 | O171: 1 | P171: 3594.241849 | S171: =IF(Q171="",'Unit Rates - Land'!landcst,IF($E$8="Landuse",VLOOKUP(Q171,LAndcost3,2,FALSE),IF($E$8="Location",VLOOKUP(Q171,Landcost2,2,FALSE),"Error"))) -> 0 | T171: 0 | V171: =IFERROR(('General Input Sheet'!$G$38/(VLOOKUP(U171,'General Input Sheet'!$E$38:$G$44,3,FALSE))),1) -> 1 | W171: 3594.241849 | X171: Y | BC171: 4494 | CG171: 4494 | CI171: =IF(BC171="","",(BC171/$CG171)*$W171) -> 3594.241849
C172: TI_GM 270 | D172: Gravity Main | I172: 23.9 | L172: 0 | M172: 7668.063585 | O172: 1 | P172: 7668.063585 | S172: =IF(Q172="",'Unit Rates - Land'!landcst,IF($E$8="Landuse",VLOOKUP(Q172,LAndcost3,2,FALSE),IF($E$8="Location",VLOOKUP(Q172,Landcost2,2,FALSE),"Error"))) -> 0 | T172: 0 | V172: =IFERROR(('General Input Sheet'!$G$38/(VLOOKUP(U172,'General Input Sheet'!$E$38:$G$44,3,FALSE))),1) -> 1 | W172: 7668.063585 | X172: Y | BC172: 4494 | CG172: 4494 | CI172: 7668.063585
C173: TI_GM 273 | D173: Gravity Main | I173: 48.2 | L173: 0 | M173: 15379.57581 | O173: 1 | P173: 15379.57581 | S173: =IF(Q173="",'Unit Rates - Land'!landcst,IF($E$8="Landuse",VLOOKUP(Q173,LAndcost3,2,FALSE),IF($E$8="Location",VLOOKUP(Q173,Landcost2,2,FALSE),"Error"))) -> 0 | T173: 0 | V173: =IFERROR(('General Input Sheet'!$G$38/(VLOOKUP(U173,'General Input Sheet'!$E$38:$G$44,3,FALSE))),1) -> 1 | W173: 15379.57581 | X173: Y | BC173: 4494 | BE173: =IF(Z173="y",BE$14,IF(AND(Z173>0,Z173<=1),Z173*BE$14,"")) ->  | CG173: 4494 | CI173: 15379.57581
C174: TI_GM 274 | D174: Gravity Main | I174: 14.8 | L174: 0 | M174: 4761.033798 | O174: 1 | P174: 4761.033798 | S174: =IF(Q174="",'Unit Rates - Land'!landcst,IF($E$8="Landuse",VLOOKUP(Q174,LAndcost3,2,FALSE),IF($E$8="Location",VLOOKUP(Q174,Landcost2,2,FALSE),"Error"))) -> 0 | T174: 0 | V174: =IFERROR(('General Input Sheet'!$G$38/(VLOOKUP(U174,'General Input Sheet'!$E$38:$G$44,3,FALSE))),1) -> 1 | W174: 4761.033798 | X174: Y | BC174: =IF(X174="y",BC$14,IF(AND(X174>0,X174<=1),X174*BC$14,"")) -> 4494 | CG174: 4494 | CI174: 4761.033798
C175: TI_GM 278 | D175: Gravity Main | I175: 29.3 | L175: 0 | M175: 9404.526216 | O175: 1 | P175: 9404.526216 | S175: =IF(Q175="",'Unit Rates - Land'!landcst,IF($E$8="Landuse",VLOOKUP(Q175,LAndcost3,2,FALSE),IF($E$8="Location",VLOOKUP(Q175,Landcost2,2,FALSE),"Error"))) -> 0 | T175: 0 | V175: =IFERROR(('General Input Sheet'!$G$38/(VLOOKUP(U175,'General Input Sheet'!$E$38:$G$44,3,FALSE))),1) -> 1 | W175: 9404.526216 | X175: Y | BC175: 4494 | CG175: 4494 | CI175: 9404.526216
C176: TI_GM 279 | D176: Gravity Main | I176: 59.2 | L176: 0 | M176: 18978.15936 | O176: 1 | P176: 18978.15936 | S176: =IF(Q176="",'Unit Rates - Land'!landcst,IF($E$8="Landuse",VLOOKUP(Q176,LAndcost3,2,FALSE),IF($E$8="Location",VLOOKUP(Q176,Landcost2,2,FALSE),"Error"))) -> 0 | T176: 0 | V176: =IFERROR(('General Input Sheet'!$G$38/(VLOOKUP(U176,'General Input Sheet'!$E$38:$G$44,3,FALSE))),1) -> 1 | W176: 18978.15936 | X176: Y | BC176: 4494 | CG176: 4494 | CI176: 18978.15936
C177: TI_GM 281 | D177: Gravity Main | I177: 33 | L177: 0 | M177: 10585.94061 | O177: 1 | P177: 10585.94061 | S177: =IF(Q177="",'Unit Rates - Land'!landcst,IF($E$8="Landuse",VLOOKUP(Q177,LAndcost3,2,FALSE),IF($E$8="Location",VLOOKUP(Q177,Landcost2,2,FALSE),"Error"))) -> 0 | T177: 0 | V177: =IFERROR(('General Input Sheet'!$G$38/(VLOOKUP(U177,'General Input Sheet'!$E$38:$G$44,3,FALSE))),1) -> 1 | W177: 10585.94061 | X177: Y | BC177: 4494 | CG177: 4494 | CI177: 10585.94061
C178: TI_GM 282 | D178: Gravity Main | I178: 56.6 | L178: 0 | M178: 18103.75365 | O178: 1 | P178: 18103.75365 | S178: =IF(Q178="",'Unit Rates - Land'!landcst,IF($E$8="Landuse",VLOOKUP(Q178,LAndcost3,2,FALSE),IF($E$8="Location",VLOOKUP(Q178,Landcost2,2,FALSE),"Error"))) -> 0 | T178: 0 | V178: =IFERROR(('General Input Sheet'!$G$38/(VLOOKUP(U178,'General Input Sheet'!$E$38:$G$44,3,FALSE))),1) -> 1 | W178: 18103.75365 | X178: Y | BC178: 4494 | CG178: 4494 | CI178: 18103.75365
C179: TI_GM 286 | D179: Gravity Main | I179: 39.4 | L179: 0 | M179: 12651.40145 | O179: 1 | P179: 12651.40145 | S179: =IF(Q179="",'Unit Rates - Land'!landcst,IF($E$8="Landuse",VLOOKUP(Q179,LAndcost3,2,FALSE),IF($E$8="Location",VLOOKUP(Q179,Landcost2,2,FALSE),"Error"))) -> 0 | T179: 0 | V179: =IFERROR(('General Input Sheet'!$G$38/(VLOOKUP(U179,'General Input Sheet'!$E$38:$G$44,3,FALSE))),1) -> 1 | W179: 12651.40145 | X179: Y | BC179: 4494 | CG179: 4494 | CI179: 12651.40145
C180: TI_GM 287 | D180: Gravity Main | I180: 73.9 | L180: 0 | M180: 23698.78643 | O180: 1 | P180: 23698.78643 | S180: =IF(Q180="",'Unit Rates - Land'!landcst,IF($E$8="Landuse",VLOOKUP(Q180,LAndcost3,2,FALSE),IF($E$8="Location",VLOOKUP(Q180,Landcost2,2,FALSE),"Error"))) -> 0 | T180: 0 | V180: =IFERROR(('General Input Sheet'!$G$38/(VLOOKUP(U180,'General Input Sheet'!$E$38:$G$44,3,FALSE))),1) -> 1 | W180: 23698.78643 | X180: Y | BC180: 4494 | CG180: 4494 | CI180: 23698.78643
C181: TI_GM 288 | D181: Gravity Main | I181: 102.4 | L181: 0 | M181: 32819.2626 | O181: 1 | P181: 32819.2626 | S181: =IF(Q181="",'Unit Rates - Land'!landcst,IF($E$8="Landuse",VLOOKUP(Q181,LAndcost3,2,FALSE),IF($E$8="Location",VLOOKUP(Q181,Landcost2,2,FALSE),"Error"))) -> 0 | T181: 0 | V181: =IFERROR(('General Input Sheet'!$G$38/(VLOOKUP(U181,'General Input Sheet'!$E$38:$G$44,3,FALSE))),1) -> 1 | W181: 32819.2626 | X181: Y | BC181: 4494 | CG181: 4494 | CI181: 32819.2626
C182: TI_GM 289 | D182: Gravity Main | I182: 74.9 | L182: 0 | M182: 24013.79401 | O182: 1 | P182: 24013.79401 | S182: =IF(Q182="",'Unit Rates - Land'!landcst,IF($E$8="Landuse",VLOOKUP(Q182,LAndcost3,2,FALSE),IF($E$8="Location",VLOOKUP(Q182,Landcost2,2,FALSE),"Error"))) -> 0 | T182: 0 | V182: =IFERROR(('General Input Sheet'!$G$38/(VLOOKUP(U182,'General Input Sheet'!$E$38:$G$44,3,FALSE))),1) -> 1 | W182: 24013.79401 | X182: Y | BC182: 4494 | CG182: 4494 | CI182: 24013.79401
C183: TI_GM 290 | D183: Gravity Main | I183: 47.7 | L183: 0 | M183: 15313.85482 | O183: 1 | P183: 15313.85482 | S183: =IF(Q183="",'Unit Rates - Land'!landcst,IF($E$8="Landuse",VLOOKUP(Q183,LAndcost3,2,FALSE),IF($E$8="Location",VLOOKUP(Q183,Landcost2,2,FALSE),"Error"))) -> 0 | T183: 0 | V183: =IFERROR(('General Input Sheet'!$G$38/(VLOOKUP(U183,'General Input Sheet'!$E$38:$G$44,3,FALSE))),1) -> 1 | W183: 15313.85482 | X183: Y | BC183: 4494 | CG183: 4494 | CI183: 15313.85482
C184: TI_GM 291 | D184: Gravity Main | I184: 27.5 | L184: 0 | M184: 8845.126694 | O184: 1 | P184: 8845.126694 | S184: =IF(Q184="",'Unit Rates - Land'!landcst,IF($E$8="Landuse",VLOOKUP(Q184,LAndcost3,2,FALSE),IF($E$8="Location",VLOOKUP(Q184,Landcost2,2,FALSE),"Error"))) -> 0 | T184: 0 | V184: =IFERROR(('General Input Sheet'!$G$38/(VLOOKUP(U184,'General Input Sheet'!$E$38:$G$44,3,FALSE))),1) -> 1 | W184: 8845.126694 | X184: Y | BC184: 4494 | CG184: 4494 | CI184: 8845.126694
C185: TI_GM 325 | D185: Gravity Main | I185: 34.2 | L185: 0 | M185: 8002.787905 | O185: 1 | P185: 8002.787905 | S185: =IF(Q185="",'Unit Rates - Land'!landcst,IF($E$8="Landuse",VLOOKUP(Q185,LAndcost3,2,FALSE),IF($E$8="Location",VLOOKUP(Q185,Landcost2,2,FALSE),"Error"))) -> 0 | T185: 0 | V185: =IFERROR(('General Input Sheet'!$G$38/(VLOOKUP(U185,'General Input Sheet'!$E$38:$G$44,3,FALSE))),1) -> 1 | W185: 8002.787905 | X185: Y | BC185: 4494 | CD185: =IF(AY185="y",CD$14,IF(AND(AY185>0,AY185<=1),AY185*CD$14,"")) ->  | CG185: 4494 | CI185: 8002.787905
C186: TI_GM 336 | D186: Gravity Main | I186: 59.3 | L186: 0 | M186: 19005.80884 | O186: 1 | P186: 19005.80884 | S186: =IF(Q186="",'Unit Rates - Land'!landcst,IF($E$8="Landuse",VLOOKUP(Q186,LAndcost3,2,FALSE),IF($E$8="Location",VLOOKUP(Q186,Landcost2,2,FALSE),"Error"))) -> 0 | T186: 0 | V186: =IFERROR(('General Input Sheet'!$G$38/(VLOOKUP(U186,'General Input Sheet'!$E$38:$G$44,3,FALSE))),1) -> 1 | W186: 19005.80884 | X186: Y | BC186: 4494 | CG186: 4494 | CI186: 19005.80884
C187: TI_GM 337 | D187: Gravity Main | I187: 62.1 | L187: 0 | M187: 19955.34594 | O187: 1 | P187: 19955.34594 | S187: =IF(Q187="",'Unit Rates - Land'!landcst,IF($E$8="Landuse",VLOOKUP(Q187,LAndcost3,2,FALSE),IF($E$8="Location",VLOOKUP(Q187,Landcost2,2,FALSE),"Error"))) -> 0 | T187: 0 | V187: =IFERROR(('General Input Sheet'!$G$38/(VLOOKUP(U187,'General Input Sheet'!$E$38:$G$44,3,FALSE))),1) -> 1 | W187: 19955.34594 | X187: Y | BC187: 4494 | CG187: 4494 | CI187: 19955.34594
C188: TI_GM 338 | D188: Gravity Main | I188: 20.6 | L188: 0 | M188: 6576.946434 | O188: 1 | P188: 6576.946434 | S188: =IF(Q188="",'Unit Rates - Land'!landcst,IF($E$8="Landuse",VLOOKUP(Q188,LAndcost3,2,FALSE),IF($E$8="Location",VLOOKUP(Q188,Landcost2,2,FALSE),"Error"))) -> 0 | T188: 0 | V188: =IFERROR(('General Input Sheet'!$G$38/(VLOOKUP(U188,'General Input Sheet'!$E$38:$G$44,3,FALSE))),1) -> 1 | W188: 6576.946434 | X188: Y | BC188: 4494 | CG188: 4494 | CI188: 6576.946434
C189: TI_GM 339 | D189: Gravity Main | I189: 60.8 | L189: 0 | M189: 19532.677 | O189: 1 | P189: 19532.677 | S189: =IF(Q189="",'Unit Rates - Land'!landcst,IF($E$8="Landuse",VLOOKUP(Q189,LAndcost3,2,FALSE),IF($E$8="Location",VLOOKUP(Q189,Landcost2,2,FALSE),"Error"))) -> 0 | T189: 0 | V189: =IFERROR(('General Input Sheet'!$G$38/(VLOOKUP(U189,'General Input Sheet'!$E$38:$G$44,3,FALSE))),1) -> 1 | W189: 19532.677 | X189: Y | BC189: 4494 | CG189: 4494 | CI189: 19532.677
C190: TI_GM 340 | D190: Gravity Main | I190: 79.9 | L190: 0 | M190: 25688.48509 | O190: 1 | P190: 25688.48509 | S190: =IF(Q190="",'Unit Rates - Land'!landcst,IF($E$8="Landuse",VLOOKUP(Q190,LAndcost3,2,FALSE),IF($E$8="Location",VLOOKUP(Q190,Landcost2,2,FALSE),"Error"))) -> 0 | T190: 0 | V190: =IFERROR(('General Input Sheet'!$G$38/(VLOOKUP(U190,'General Input Sheet'!$E$38:$G$44,3,FALSE))),1) -> 1 | W190: 25688.48509 | X190: Y | BC190: 4494 | CG190: 4494 | CI190: 25688.48509
C191: TI_GM 341 | D191: Gravity Main | I191: 80.5 | L191: 0 | M191: 25841.88017 | O191: 1 | P191: 25841.88017 | S191: =IF(Q191="",'Unit Rates - Land'!landcst,IF($E$8="Landuse",VLOOKUP(Q191,LAndcost3,2,FALSE),IF($E$8="Location",VLOOKUP(Q191,Landcost2,2,FALSE),"Error"))) -> 0 | T191: 0 | V191: =IFERROR(('General Input Sheet'!$G$38/(VLOOKUP(U191,'General Input Sheet'!$E$38:$G$44,3,FALSE))),1) -> 1 | W191: 25841.88017 | X191: Y | BC191: 4494 | BH191: =IF(AC191="y",BH$14,IF(AND(AC191>0,AC191<=1),AC191*BH$14,"")) ->  | CA191: =IF(AV191="y",CA$14,IF(AND(AV191>0,AV191<=1),AV191*CA$14,"")) ->  | CG191: 4494 | CI191: 25841.88017
C192: TI_GM 342 | D192: Gravity Main | I192: 43.2 | L192: 0 | M192: 13785.58033 | O192: 1 | P192: 13785.58033 | S192: =IF(Q192="",'Unit Rates - Land'!landcst,IF($E$8="Landuse",VLOOKUP(Q192,LAndcost3,2,FALSE),IF($E$8="Location",VLOOKUP(Q192,Landcost2,2,FALSE),"Error"))) -> 0 | T192: 0 | V192: =IFERROR(('General Input Sheet'!$G$38/(VLOOKUP(U192,'General Input Sheet'!$E$38:$G$44,3,FALSE))),1) -> 1 | W192: 13785.58033 | X192: Y | BC192: 4494 | CG192: 4494 | CI192: 13785.58033 | CS192: =IF(BM192="","",(BM192/$CG192)*$W192) -> 
C193: TI_GM 346 | D193: Gravity Main | I193: 100.6 | L193: 0 | M193: 32115.80208 | O193: 1 | P193: 32115.80208 | S193: =IF(Q193="",'Unit Rates - Land'!landcst,IF($E$8="Landuse",VLOOKUP(Q193,LAndcost3,2,FALSE),IF($E$8="Location",VLOOKUP(Q193,Landcost2,2,FALSE),"Error"))) -> 0 | T193: 0 | V193: =IFERROR(('General Input Sheet'!$G$38/(VLOOKUP(U193,'General Input Sheet'!$E$38:$G$44,3,FALSE))),1) -> 1 | W193: 32115.80208 | X193: Y | BC193: 4494 | CG193: 4494 | CI193: 32115.80208
C194: TI_GM 347 | D194: Gravity Main | I194: 79.2 | L194: 0 | M194: 18494.69326 | O194: 1 | P194: 18494.69326 | S194: =IF(Q194="",'Unit Rates - Land'!landcst,IF($E$8="Landuse",VLOOKUP(Q194,LAndcost3,2,FALSE),IF($E$8="Location",VLOOKUP(Q194,Landcost2,2,FALSE),"Error"))) -> 0 | T194: 0 | V194: =IFERROR(('General Input Sheet'!$G$38/(VLOOKUP(U194,'General Input Sheet'!$E$38:$G$44,3,FALSE))),1) -> 1 | W194: 18494.69326 | X194: Y | BC194: 4494 | CG194: 4494 | CI194: 18494.69326
C195: TI_GM 348 | D195: Gravity Main | I195: 37.6 | L195: 0 | M195: 8803.522657 | O195: 1 | P195: 8803.522657 | S195: =IF(Q195="",'Unit Rates - Land'!landcst,IF($E$8="Landuse",VLOOKUP(Q195,LAndcost3,2,FALSE),IF($E$8="Location",VLOOKUP(Q195,Landcost2,2,FALSE),"Error"))) -> 0 | T195: 0 | V195: =IFERROR(('General Input Sheet'!$G$38/(VLOOKUP(U195,'General Input Sheet'!$E$38:$G$44,3,FALSE))),1) -> 1 | W195: 8803.522657 | X195: Y | BC195: 4494 | CG195: 4494 | CI195: 8803.522657
C196: TI_GM 349 | D196: Gravity Main | I196: 71.7 | L196: 0 | M196: 16728.89244 | O196: 1 | P196: 16728.89244 | S196: =IF(Q196="",'Unit Rates - Land'!landcst,IF($E$8="Landuse",VLOOKUP(Q196,LAndcost3,2,FALSE),IF($E$8="Location",VLOOKUP(Q196,Landcost2,2,FALSE),"Error"))) -> 0 | T196: 0 | V196: =IFERROR(('General Input Sheet'!$G$38/(VLOOKUP(U196,'General Input Sheet'!$E$38:$G$44,3,FALSE))),1) -> 1 | W196: 16728.89244 | X196: Y | BC196: 4494 | CG196: 4494 | CI196: 16728.89244
C197: TI_GM 351 | D197: Gravity Main | I197: 56.1 | L197: 0 | M197: 13073.77705 | O197: 1 | P197: 13073.77705 | S197: =IF(Q197="",'Unit Rates - Land'!landcst,IF($E$8="Landuse",VLOOKUP(Q197,LAndcost3,2,FALSE),IF($E$8="Location",VLOOKUP(Q197,Landcost2,2,FALSE),"Error"))) -> 0 | T197: 0 | V197: =IFERROR(('General Input Sheet'!$G$38/(VLOOKUP(U197,'General Input Sheet'!$E$38:$G$44,3,FALSE))),1) -> 1 | W197: 13073.77705 | X197: Y | BC197: 4494 | CG197: 4494 | CI197: 13073.77705
C198: TI_GM 352 | D198: Gravity Main | I198: 87.2 | L198: 0 | M198: 20336.59559 | O198: 1 | P198: 20336.59559 | S198: =IF(Q198="",'Unit Rates - Land'!landcst,IF($E$8="Landuse",VLOOKUP(Q198,LAndcost3,2,FALSE),IF($E$8="Location",VLOOKUP(Q198,Landcost2,2,FALSE),"Error"))) -> 0 | T198: 0 | V198: =IFERROR(('General Input Sheet'!$G$38/(VLOOKUP(U198,'General Input Sheet'!$E$38:$G$44,3,FALSE))),1) -> 1 | W198: 20336.59559 | X198: Y | BC198: 4494 | CG198: 4494 | CI198: 20336.59559
C199: TI_GM 353 | D199: Gravity Main | I199: 10 | L199: 0 | M199: 2324.593834 | O199: 1 | P199: 2324.593834 | S199: =IF(Q199="",'Unit Rates - Land'!landcst,IF($E$8="Landuse",VLOOKUP(Q199,LAndcost3,2,FALSE),IF($E$8="Location",VLOOKUP(Q199,Landcost2,2,FALSE),"Error"))) -> 0 | T199: 0 | V199: =IFERROR(('General Input Sheet'!$G$38/(VLOOKUP(U199,'General Input Sheet'!$E$38:$G$44,3,FALSE))),1) -> 1 | W199: 2324.593834 | X199: Y | BC199: 4494 | CG199: 4494 | CI199: 2324.593834
C200: TI_GM 355 | D200: Gravity Main | I200: 81.7 | L200: 0 | M200: 26232.64817 | O200: 1 | P200: 26232.64817 | S200: =IF(Q200="",'Unit Rates - Land'!landcst,IF($E$8="Landuse",VLOOKUP(Q200,LAndcost3,2,FALSE),IF($E$8="Location",VLOOKUP(Q200,Landcost2,2,FALSE),"Error"))) -> 0 | T200: 0 | V200: =IFERROR(('General Input Sheet'!$G$38/(VLOOKUP(U200,'General Input Sheet'!$E$38:$G$44,3,FALSE))),1) -> 1 | W200: 26232.64817 | X200: Y | BC200: 4494 | CG200: 4494 | CI200: 26232.64817 | CR200: =IF(BL200="","",(BL200/$CG200)*$W200) -> 
C201: TI_GM 356 | D201: Gravity Main | I201: 11.8 | L201: 0 | M201: 2765.721369 | O201: 1 | P201: 2765.721369 | S201: =IF(Q201="",'Unit Rates - Land'!landcst,IF($E$8="Landuse",VLOOKUP(Q201,LAndcost3,2,FALSE),IF($E$8="Location",VLOOKUP(Q201,Landcost2,2,FALSE),"Error"))) -> 0 | T201: 0 | V201: =IFERROR(('General Input Sheet'!$G$38/(VLOOKUP(U201,'General Input Sheet'!$E$38:$G$44,3,FALSE))),1) -> 1 | W201: 2765.721369 | X201: Y | BC201: 4494 | CG201: 4494 | CI201: =IF(BC201="","",(BC201/$CG201)*$W201) -> 2765.721369
C202: TI_GM 357 | D202: Gravity Main | I202: 91.5 | L202: 0 | M202: 21338.61256 | O202: 1 | P202: 21338.61256 | S202: =IF(Q202="",'Unit Rates - Land'!landcst,IF($E$8="Landuse",VLOOKUP(Q202,LAndcost3,2,FALSE),IF($E$8="Location",VLOOKUP(Q202,Landcost2,2,FALSE),"Error"))) -> 0 | T202: 0 | V202: =IFERROR(('General Input Sheet'!$G$38/(VLOOKUP(U202,'General Input Sheet'!$E$38:$G$44,3,FALSE))),1) -> 1 | W202: 21338.61256 | X202: Y | BC202: 4494 | CG202: 4494 | CI202: 21338.61256
C203: TI_GM 358 | D203: Gravity Main | I203: 20.4 | L203: 0 | M203: 4752.288902 | O203: 1 | P203: 4752.288902 | S203: =IF(Q203="",'Unit Rates - Land'!landcst,IF($E$8="Landuse",VLOOKUP(Q203,LAndcost3,2,FALSE),IF($E$8="Location",VLOOKUP(Q203,Landcost2,2,FALSE),"Error"))) -> 0 | T203: 0 | V203: =IFERROR(('General Input Sheet'!$G$38/(VLOOKUP(U203,'General Input Sheet'!$E$38:$G$44,3,FALSE))),1) -> 1 | W203: 4752.288902 | X203: Y | BC203: 4494 | CG203: 4494 | CI203: 4752.288902 | DI203: =IF(CC203="","",(CC203/$CG203)*$W203) -> 
C204: TI_GM 372 | D204: Gravity Main | I204: 63.3 | L204: 0 | M204: 20306.87416 | O204: 1 | P204: 20306.87416 | S204: =IF(Q204="",'Unit Rates - Land'!landcst,IF($E$8="Landuse",VLOOKUP(Q204,LAndcost3,2,FALSE),IF($E$8="Location",VLOOKUP(Q204,Landcost2,2,FALSE),"Error"))) -> 0 | T204: 0 | V204: =IFERROR(('General Input Sheet'!$G$38/(VLOOKUP(U204,'General Input Sheet'!$E$38:$G$44,3,FALSE))),1) -> 1 | W204: 20306.87416 | X204: Y | BC204: 4494 | CG204: 4494 | CI204: 20306.87416
... 224 more rows

Sheet Exist Trunk Assets - Transport
B2: ='Navigation Pane'!C2 -> Torres Shire Council
B3: Transport
A4: Return to "Existing Trunk Assets"
B5: EXISTING TRUNK ASSETS
B8: Land Valuation Type | D8: Location
H10: Asset Data | V10: Catchment Asset Allocation | BO10: Asset Usage | CU10: Cost Allocation
B11: Basic Asset Data | G11: Asset Attributes | J11: Basic Asset Valuation | O11: Land Attributes | S11: Refined Asset Value | V11: ='Catchment Demand Road Transport'!$C8 -> Thursday Island | W11: ='Catchment Demand Road Transport'!$C9 -> Horn Island | X11: ='Catchment Demand Road Transport'!$C10 -> Remainder of LGA | Y11: ='Catchment Demand Road Transport'!$C11 -> 0 | Z11: ='Catchment Demand Road Transport'!$C12 -> 0 | AA11: ='Catchment Demand Road Transport'!$C13 -> 0 | AB11: ='Catchment Demand Road Transport'!$C14 -> 0 | AC11: ='Catchment Demand Road Transport'!$C15 -> 0 | AD11: ='Catchment Demand Road Transport'!$C16 -> 0 | AE11: ='Catchment Demand Road Transport'!$C17 -> 0 | AF11: ='Catchment Demand Road Transport'!$C18 -> 0 | AG11: ='Catchment Demand Road Transport'!$C19 -> 0 | AH11: ='Catchment Demand Road Transport'!$C20 -> 0 | AI11: ='Catchment Demand Road Transport'!$C21 -> 0 | AJ11: ='Catchment Demand Road Transport'!$C22 -> 0 | AK11: ='Catchment Demand Road Transport'!$C23 -> 0 | AL11: ='Catchment Demand Road Transport'!$C24 -> 0 | AM11: ='Catchment Demand Road Transport'!$C25 -> 0 | AN11: ='Catchment Demand Road Transport'!$C26 -> 0 | AO11: ='Catchment Demand Road Transport'!$C27 -> 0 | AP11: ='Catchment Demand Road Transport'!$C28 -> 0 | AQ11: ='Catchment Demand Road Transport'!$C29 -> 0 | AR11: ='Catchment Demand Road Transport'!$C30 -> 0 | AS11: ='Catchment Demand Road Transport'!$C31 -> 0 | AT11: ='Catchment Demand Road Transport'!$C32 -> 0 | AU11: ='Catchment Demand Road Transport'!$C33 -> 0 | AV11: ='Catchment Demand Road Transport'!$C34 -> 0 | AW11: ='Catchment Demand Road Transport'!$C35 -> 0 | AX11: ='Catchment Demand Road Transport'!$C36 -> 0 | AY11: ='Catchment Demand Road Transport'!$C37 -> 0 | BA11: =V11 -> Thursday Island | BB11: =W11 -> Horn Island | BC11: Remainder of LGA | BD11: 0 | BE11: 0 | BF11: 0 | BG11: 0 | BH11: 0 | BI11: 0 | BJ11: 0 | BK11: 0 | BL11: 0 | BM11: 0 | BN11: 0 | BO11: 0 | BP11: 0 | BQ11: 0 | BR11: 0 | BS11: 0 | BT11: 0 | BU11: 0 | BV11: 0 | BW11: 0 | BX11: 0 | BY11: 0 | BZ11: 0 | CA11: 0 | CB11: 0 | CC11: 0 | CD11: 0 | CE11: TOTALS | CG11: =V11 -> Thursday Island | CH11: =W11 -> Horn Island | CI11: Remainder of LGA | CJ11: 0 | CK11: 0 | CL11: 0 | CM11: 0 | CN11: 0 | CO11: 0 | CP11: 0 | CQ11: 0 | CR11: 0 | CS11: 0 | CT11: 0 | CU11: 0 | CV11: 0 | CW11: 0 | CX11: 0 | CY11: 0 | CZ11: 0 | DA11: 0 | DB11: 0 | DC11: 0 | DD11: 0 | DE11: 0 | DF11: 0 | DG11: 0 | DH11: 0 | DI11: 0 | DJ11: 0 | DK11: Checksum 2
B12: Asset ID | C12: LGIP ID | D12: Asset Class | E12: Asset Name | F12: Description | G12: Unit Rate Type (*) | H12: Length/unit (*) | I12: Hiercahy/name | J12: Unit Rate | K12: Baseline Valuation | L12: Site/Condition | M12: Multiplier | N12: Gross Value | O12: Land Location/Type | P12: Size of land (ha) (*) | Q12: Unit Cost | R12: Land Value | S12: Valuation Year | T12: Escalation | U12: Current Replacement Cost
V13: 1 | W13: =V13+1 -> 2 | X13: =W13+1 -> 3 | Y13: 4 | Z13: 5 | AA13: 6 | AB13: 7 | AC13: 8 | AD13: 9 | AE13: 10 | AF13: 11 | AG13: 12 | AH13: 13 | AI13: 14 | AJ13: 15 | AK13: 16 | AL13: 17 | AM13: 18 | AN13: 19 | AO13: 20 | AP13: 21 | AQ13: 22 | AR13: 23 | AS13: 24 | AT13: 25 | AU13: 26 | AV13: 27 | AW13: 28 | AX13: 29 | AY13: 30
B14: Councils ID (from GIS, FAR, AMA etc.) | C14: ID from the LGIP drawings | D14: Arterial, Subarterial, Collector | K14: May be calculated from unit rates OR unique values can be direct entered | U14: CRC | V14: =IFERROR(VLOOKUP(V11,Roadcatch,6,FALSE),"") -> 9034 | W14: 2921 | X14: 1885 | BA14: =V14 -> 9034 | BB14: =W14 -> 2921 | BC14: 1885 | CG14: =SUM(CG15:CG401) -> 6306267.224 | CH14: 920057.1859 | CI14: 545753.1163 | CJ14: 0 | CK14: 0 | CL14: 0 | CM14: 0 | CN14: 0 | CO14: 0 | CP14: 0 | CQ14: 0 | CR14: 0 | CS14: 0 | CT14: 0 | CU14: 0 | CV14: 0 | CW14: 0 | CX14: 0 | CY14: 0 | CZ14: 0 | DA14: 0 | DB14: 0 | DC14: 0 | DD14: 0 | DE14: 0 | DF14: 0 | DG14: 0 | DH14: 0 | DI14: 0 | DJ14: 0 | DK14: 0
C15: HI_RD 018 | D15: Road | E15: Bitumen | F15: Airport Road | H15: 398.722 | J15: =IF(G15=RoadTYPE1,VLOOKUP(I15,Roadunitrates1,2,FALSE),IF(G15=ROADTYPE2,VLOOKUP(I15,Roadunitrates2,2,FALSE),0)) -> 0 | K15: 296091.568 | M15: =IF(L15="",1,VLOOKUP(L15,Roadsitecond,2,FALSE)) -> 1 | N15: =IF(K15="","",K15*M15) -> 296091.568 | Q15: =IF(O15="",'Unit Rates - Land'!landcst,IF($D$8="Landuse",VLOOKUP(O15,LAndcost3,2,FALSE),IF($D$8="Location",VLOOKUP(O15,Landcost2,2,FALSE),"Error"))) -> 0 | R15: =IF(Q15="",0,Q15*10000*P15) -> 0 | T15: =IFERROR(('General Input Sheet'!$G$38/(VLOOKUP(S15,'General Input Sheet'!$E$38:$G$44,3,FALSE))),1) -> 1 | U15: =IFERROR((N15+R15)*T15,0) -> 296091.568 | V15: Y | W15: Y | X15: Y | BA15: =IF(V15="y",BA$14,IF(AND(V15>0,V15<=1),V15*BA$14,"")) -> 9034 | BB15: =IF(W15="y",BB$14,IF(AND(W15>0,W15<=1),W15*BB$14,"")) -> 2921 | BC15: 1885 | CE15: =SUM(BA15:CD15) -> 13840 | CG15: =IF(BA15="","",(BA15/$CE15)*$U15) -> 193272.4874 | CH15: 62491.58021 | CI15: 40327.50041 | CW15: =IF(BQ15="","",(BQ15/$CE15)*$U15) ->  | DK15: =IF(SUM(CG15:DJ15)=U15,"","ERROR") -> 
C16: HI_RD 023 | D16: Road | E16: Bitumen | F16: Miskin Street | H16: 60.8734 | J16: 0 | K16: 54390.722 | M16: 1 | N16: =IF(K16="","",K16*M16) -> 54390.722 | Q16: =IF(O16="",'Unit Rates - Land'!landcst,IF($D$8="Landuse",VLOOKUP(O16,LAndcost3,2,FALSE),IF($D$8="Location",VLOOKUP(O16,Landcost2,2,FALSE),"Error"))) -> 0 | R16: =IF(Q16="",0,Q16*10000*P16) -> 0 | T16: =IFERROR(('General Input Sheet'!$G$38/(VLOOKUP(S16,'General Input Sheet'!$E$38:$G$44,3,FALSE))),1) -> 1 | U16: =IFERROR((N16+R16)*T16,0) -> 54390.722 | V16: Y | W16: Y | X16: Y | BA16: =IF(V16="y",BA$14,IF(AND(V16>0,V16<=1),V16*BA$14,"")) -> 9034 | BB16: 2921 | BC16: 1885 | CE16: =SUM(BA16:CD16) -> 13840 | CG16: 35503.30799 | CH16: 11479.42912 | CI16: 7407.984897 | DK16: =IF(SUM(CG16:DJ16)=U16,"","ERROR") -> 
C17: HI_RD 030 | D17: Road | E17: Bitumen | F17: Airport Road | H17: 677.635 | J17: 0 | K17: 503644.1758 | M17: 1 | N17: 503644.1758 | Q17: =IF(O17="",'Unit Rates - Land'!landcst,IF($D$8="Landuse",VLOOKUP(O17,LAndcost3,2,FALSE),IF($D$8="Location",VLOOKUP(O17,Landcost2,2,FALSE),"Error"))) -> 0 | R17: 0 | T17: =IFERROR(('General Input Sheet'!$G$38/(VLOOKUP(S17,'General Input Sheet'!$E$38:$G$44,3,FALSE))),1) -> 1 | U17: 503644.1758 | V17: Y | W17: Y | X17: Y | BA17: 9034 | BB17: 2921 | BC17: 1885 | CE17: =SUM(BA17:CD17) -> 13840 | CG17: 328751.5523 | CH17: 106296.5779 | CI17: 68596.04562 | DK17: =IF(SUM(CG17:DJ17)=U17,"","ERROR") -> 
C18: HI_RD 039 | D18: Road | E18: Bitumen | F18: Miskin Street | H18: 265.258 | J18: 0 | K18: 197070.7585 | M18: 1 | N18: 197070.7585 | Q18: =IF(O18="",'Unit Rates - Land'!landcst,IF($D$8="Landuse",VLOOKUP(O18,LAndcost3,2,FALSE),IF($D$8="Location",VLOOKUP(O18,Landcost2,2,FALSE),"Error"))) -> 0 | R18: 0 | T18: =IFERROR(('General Input Sheet'!$G$38/(VLOOKUP(S18,'General Input Sheet'!$E$38:$G$44,3,FALSE))),1) -> 1 | U18: 197070.7585 | V18: Y | W18: Y | X18: Y | BA18: 9034 | BB18: 2921 | BC18: 1885 | CE18: =SUM(BA18:CD18) -> 13840 | CG18: 128637.0833 | CH18: 41592.75185 | CI18: 26840.9234 | DK18: =IF(SUM(CG18:DJ18)=U18,"","ERROR") -> 
C19: HI_RD 040 | D19: Road | E19: Bitumen | F19: Airport Road | H19: 1045.55 | J19: 0 | K19: 776963.0139 | M19: 1 | N19: 776963.0139 | Q19: =IF(O19="",'Unit Rates - Land'!landcst,IF($D$8="Landuse",VLOOKUP(O19,LAndcost3,2,FALSE),IF($D$8="Location",VLOOKUP(O19,Landcost2,2,FALSE),"Error"))) -> 0 | R19: 0 | T19: =IFERROR(('General Input Sheet'!$G$38/(VLOOKUP(S19,'General Input Sheet'!$E$38:$G$44,3,FALSE))),1) -> 1 | U19: 776963.0139 | V19: Y | W19: Y | X19: Y | BA19: 9034 | BB19: 2921 | BC19: 1885 | CE19: 13840 | CG19: 507159.239 | CH19: 163981.8615 | CI19: 105821.9134
C20: HI_RD 041 | D20: Road | E20: Bitumen | F20: Airport Road | H20: 2931.9 | J20: 0 | K20: 2178854.685 | M20: 1 | N20: 2178854.685 | Q20: =IF(O20="",'Unit Rates - Land'!landcst,IF($D$8="Landuse",VLOOKUP(O20,LAndcost3,2,FALSE),IF($D$8="Location",VLOOKUP(O20,Landcost2,2,FALSE),"Error"))) -> 0 | R20: 0 | T20: =IFERROR(('General Input Sheet'!$G$38/(VLOOKUP(S20,'General Input Sheet'!$E$38:$G$44,3,FALSE))),1) -> 1 | U20: 2178854.685 | V20: Y | W20: Y | X20: Y | BA20: 9034 | BB20: 2921 | BC20: 1885 | CE20: 13840 | CG20: 1422237.95 | CH20: 459857.9866 | CI20: 296758.7486
C21: TI_RD 017 | D21: Road | E21: Bitumen | F21: Blackall Street | H21: 130.998 | J21: 0 | K21: 168029.8656 | M21: 1 | N21: 168029.8656 | Q21: =IF(O21="",'Unit Rates - Land'!landcst,IF($D$8="Landuse",VLOOKUP(O21,LAndcost3,2,FALSE),IF($D$8="Location",VLOOKUP(O21,Landcost2,2,FALSE),"Error"))) -> 0 | R21: 0 | T21: =IFERROR(('General Input Sheet'!$G$38/(VLOOKUP(S21,'General Input Sheet'!$E$38:$G$44,3,FALSE))),1) -> 1 | U21: 168029.8656 | V21: Y | BA21: 9034 | CE21: 9034 | CG21: 168029.8656
C22: TI_RD 018 | D22: Road | E22: Bitumen | F22: Victoria Parade | H22: 151.969 | J22: 0 | K22: 75677.69395 | M22: 1 | N22: 75677.69395 | Q22: =IF(O22="",'Unit Rates - Land'!landcst,IF($D$8="Landuse",VLOOKUP(O22,LAndcost3,2,FALSE),IF($D$8="Location",VLOOKUP(O22,Landcost2,2,FALSE),"Error"))) -> 0 | R22: 0 | T22: =IFERROR(('General Input Sheet'!$G$38/(VLOOKUP(S22,'General Input Sheet'!$E$38:$G$44,3,FALSE))),1) -> 1 | U22: 75677.69395 | V22: Y | BA22: 9034 | CE22: 9034 | CG22: 75677.69395
C23: TI_RD 023 | D23: Road | E23: Bitumen | F23: Upper Victoria Parade | H23: 241.36 | J23: 0 | K23: 130883.0673 | M23: 1 | N23: 130883.0673 | Q23: =IF(O23="",'Unit Rates - Land'!landcst,IF($D$8="Landuse",VLOOKUP(O23,LAndcost3,2,FALSE),IF($D$8="Location",VLOOKUP(O23,Landcost2,2,FALSE),"Error"))) -> 0 | R23: 0 | T23: =IFERROR(('General Input Sheet'!$G$38/(VLOOKUP(S23,'General Input Sheet'!$E$38:$G$44,3,FALSE))),1) -> 1 | U23: 130883.0673 | V23: Y | BA23: 9034 | BY23: =IF(AT23="y",BY$14,IF(AND(AT23>0,AT23<=1),AT23*BY$14,"")) ->  | CE23: 9034 | CG23: 130883.0673
C24: TI_RD 038 | D24: Road | E24: Bitumen | F24: Waiben Esplanade | H24: 94.2891 | J24: 0 | K24: 69722.67811 | M24: 1 | N24: 69722.67811 | Q24: =IF(O24="",'Unit Rates - Land'!landcst,IF($D$8="Landuse",VLOOKUP(O24,LAndcost3,2,FALSE),IF($D$8="Location",VLOOKUP(O24,Landcost2,2,FALSE),"Error"))) -> 0 | R24: 0 | T24: =IFERROR(('General Input Sheet'!$G$38/(VLOOKUP(S24,'General Input Sheet'!$E$38:$G$44,3,FALSE))),1) -> 1 | U24: 69722.67811 | V24: Y | BA24: 9034 | BQ24: =IF(AL24="y",BQ$14,IF(AND(AL24>0,AL24<=1),AL24*BQ$14,"")) ->  | CE24: 9034 | CG24: 69722.67811
C25: TI_RD 042 | D25: Road | E25: Bitumen | F25: Blackall Street | H25: 149.177 | J25: 0 | K25: 101787.0588 | M25: 1 | N25: 101787.0588 | Q25: =IF(O25="",'Unit Rates - Land'!landcst,IF($D$8="Landuse",VLOOKUP(O25,LAndcost3,2,FALSE),IF($D$8="Location",VLOOKUP(O25,Landcost2,2,FALSE),"Error"))) -> 0 | R25: 0 | T25: =IFERROR(('General Input Sheet'!$G$38/(VLOOKUP(S25,'General Input Sheet'!$E$38:$G$44,3,FALSE))),1) -> 1 | U25: 101787.0588 | V25: Y | BA25: 9034 | CE25: 9034 | CG25: 101787.0588
C26: TI_RD 054 | D26: Road | E26: Bitumen | F26: Summers Street | H26: 316.898 | J26: 0 | K26: 217461.1479 | M26: 1 | N26: 217461.1479 | Q26: =IF(O26="",'Unit Rates - Land'!landcst,IF($D$8="Landuse",VLOOKUP(O26,LAndcost3,2,FALSE),IF($D$8="Location",VLOOKUP(O26,Landcost2,2,FALSE),"Error"))) -> 0 | R26: 0 | T26: =IFERROR(('General Input Sheet'!$G$38/(VLOOKUP(S26,'General Input Sheet'!$E$38:$G$44,3,FALSE))),1) -> 1 | U26: 217461.1479 | V26: Y | BA26: 9034 | CE26: 9034 | CG26: 217461.1479
C27: TI_RD 062 | D27: Road | E27: Bitumen | F27: Hastings Street | H27: 134.891 | J27: 0 | K27: 126492.378 | M27: 1 | N27: 126492.378 | Q27: =IF(O27="",'Unit Rates - Land'!landcst,IF($D$8="Landuse",VLOOKUP(O27,LAndcost3,2,FALSE),IF($D$8="Location",VLOOKUP(O27,Landcost2,2,FALSE),"Error"))) -> 0 | R27: 0 | T27: =IFERROR(('General Input Sheet'!$G$38/(VLOOKUP(S27,'General Input Sheet'!$E$38:$G$44,3,FALSE))),1) -> 1 | U27: 126492.378 | V27: Y | BA27: 9034 | CE27: 9034 | CG27: 126492.378
C28: TI_RD 063 | D28: Road | E28: Bitumen | F28: Victoria Parade | H28: 246.494 | J28: 0 | K28: 207385.471 | M28: 1 | N28: 207385.471 | Q28: =IF(O28="",'Unit Rates - Land'!landcst,IF($D$8="Landuse",VLOOKUP(O28,LAndcost3,2,FALSE),IF($D$8="Location",VLOOKUP(O28,Landcost2,2,FALSE),"Error"))) -> 0 | R28: 0 | T28: =IFERROR(('General Input Sheet'!$G$38/(VLOOKUP(S28,'General Input Sheet'!$E$38:$G$44,3,FALSE))),1) -> 1 | U28: 207385.471 | V28: Y | BA28: 9034 | CE28: 9034 | CG28: 207385.471
C29: TI_RD 064 | D29: Road | E29: Bitumen | F29: Victoria Parade | H29: 170 | J29: 0 | K29: 143110.5501 | M29: 1 | N29: 143110.5501 | Q29: =IF(O29="",'Unit Rates - Land'!landcst,IF($D$8="Landuse",VLOOKUP(O29,LAndcost3,2,FALSE),IF($D$8="Location",VLOOKUP(O29,Landcost2,2,FALSE),"Error"))) -> 0 | R29: 0 | T29: =IFERROR(('General Input Sheet'!$G$38/(VLOOKUP(S29,'General Input Sheet'!$E$38:$G$44,3,FALSE))),1) -> 1 | U29: 143110.5501 | V29: Y | BA29: 9034 | CE29: 9034 | CG29: 143110.5501
C30: TI_RD 067 | D30: Road | E30: Bitumen | F30: Victoria Parade | H30: 139.72 | J30: 0 | K30: 117349.6645 | M30: 1 | N30: 117349.6645 | Q30: =IF(O30="",'Unit Rates - Land'!landcst,IF($D$8="Landuse",VLOOKUP(O30,LAndcost3,2,FALSE),IF($D$8="Location",VLOOKUP(O30,Landcost2,2,FALSE),"Error"))) -> 0 | R30: 0 | T30: =IFERROR(('General Input Sheet'!$G$38/(VLOOKUP(S30,'General Input Sheet'!$E$38:$G$44,3,FALSE))),1) -> 1 | U30: 117349.6645 | V30: Y | BA30: 9034 | CE30: 9034 | CG30: 117349.6645 | CV30: =IF(BP30="","",(BP30/$CE30)*$U30) -> 
C31: TI_RD 089 | D31: Road | E31: Bitumen | F31: Waiben Esplanade | H31: 424.551 | J31: 0 | K31: 315348.632 | M31: 1 | N31: 315348.632 | Q31: =IF(O31="",'Unit Rates - Land'!landcst,IF($D$8="Landuse",VLOOKUP(O31,LAndcost3,2,FALSE),IF($D$8="Location",VLOOKUP(O31,Landcost2,2,FALSE),"Error"))) -> 0 | R31: 0 | T31: =IFERROR(('General Input Sheet'!$G$38/(VLOOKUP(S31,'General Input Sheet'!$E$38:$G$44,3,FALSE))),1) -> 1 | U31: 315348.632 | V31: Y | BA31: 9034 | CE31: 9034 | CG31: =IF(BA31="","",(BA31/$CE31)*$U31) -> 315348.632
C32: TI_RD 090 | D32: Road | E32: Bitumen | F32: Waiben Esplanade | H32: 426.105 | J32: 0 | K32: 315274.9668 | M32: 1 | N32: 315274.9668 | Q32: =IF(O32="",'Unit Rates - Land'!landcst,IF($D$8="Landuse",VLOOKUP(O32,LAndcost3,2,FALSE),IF($D$8="Location",VLOOKUP(O32,Landcost2,2,FALSE),"Error"))) -> 0 | R32: 0 | T32: =IFERROR(('General Input Sheet'!$G$38/(VLOOKUP(S32,'General Input Sheet'!$E$38:$G$44,3,FALSE))),1) -> 1 | U32: 315274.9668 | V32: Y | BA32: =IF(V32="y",BA$14,IF(AND(V32>0,V32<=1),V32*BA$14,"")) -> 9034 | CE32: 9034 | CG32: 315274.9668
C33: TI_RD 097 | D33: Road | E33: Bitumen | F33: Blackall Street | H33: 87.8691 | J33: 0 | K33: 59954.08405 | M33: 1 | N33: 59954.08405 | Q33: =IF(O33="",'Unit Rates - Land'!landcst,IF($D$8="Landuse",VLOOKUP(O33,LAndcost3,2,FALSE),IF($D$8="Location",VLOOKUP(O33,Landcost2,2,FALSE),"Error"))) -> 0 | R33: 0 | T33: =IFERROR(('General Input Sheet'!$G$38/(VLOOKUP(S33,'General Input Sheet'!$E$38:$G$44,3,FALSE))),1) -> 1 | U33: 59954.08405 | V33: Y | BA33: 9034 | CE33: 9034 | CG33: 59954.08405
C34: TI_RD 119 | D34: Road | E34: Bitumen | F34: Victoria Parade | H34: 6.54618 | J34: 0 | K34: 5505.233693 | M34: 1 | N34: 5505.233693 | Q34: =IF(O34="",'Unit Rates - Land'!landcst,IF($D$8="Landuse",VLOOKUP(O34,LAndcost3,2,FALSE),IF($D$8="Location",VLOOKUP(O34,Landcost2,2,FALSE),"Error"))) -> 0 | R34: 0 | T34: =IFERROR(('General Input Sheet'!$G$38/(VLOOKUP(S34,'General Input Sheet'!$E$38:$G$44,3,FALSE))),1) -> 1 | U34: 5505.233693 | V34: Y | BA34: 9034 | CE34: 9034 | CG34: 5505.233693
C35: TI_RD 121 | D35: Road | E35: Bitumen | F35: Victoria Parade | H35: 34.3646 | J35: 0 | K35: 39230.84394 | M35: 1 | N35: 39230.84394 | Q35: =IF(O35="",'Unit Rates - Land'!landcst,IF($D$8="Landuse",VLOOKUP(O35,LAndcost3,2,FALSE),IF($D$8="Location",VLOOKUP(O35,Landcost2,2,FALSE),"Error"))) -> 0 | R35: 0 | T35: =IFERROR(('General Input Sheet'!$G$38/(VLOOKUP(S35,'General Input Sheet'!$E$38:$G$44,3,FALSE))),1) -> 1 | U35: 39230.84394 | V35: Y | BA35: 9034 | CE35: 9034 | CG35: 39230.84394
C36: TI_RD 124 | D36: Road | E36: Bitumen | F36: Victoria Parade | H36: 159.008 | J36: 0 | K36: 133504.9093 | M36: 1 | N36: 133504.9093 | Q36: =IF(O36="",'Unit Rates - Land'!landcst,IF($D$8="Landuse",VLOOKUP(O36,LAndcost3,2,FALSE),IF($D$8="Location",VLOOKUP(O36,Landcost2,2,FALSE),"Error"))) -> 0 | R36: 0 | T36: =IFERROR(('General Input Sheet'!$G$38/(VLOOKUP(S36,'General Input Sheet'!$E$38:$G$44,3,FALSE))),1) -> 1 | U36: 133504.9093 | V36: Y | BA36: 9034 | CE36: 9034 | CG36: 133504.9093
C37: TI_RD 133 | D37: Road | E37: Bitumen | F37: Victoria Parade | H37: 195.482 | J37: 0 | K37: 193461.4345 | M37: 1 | N37: 193461.4345 | Q37: =IF(O37="",'Unit Rates - Land'!landcst,IF($D$8="Landuse",VLOOKUP(O37,LAndcost3,2,FALSE),IF($D$8="Location",VLOOKUP(O37,Landcost2,2,FALSE),"Error"))) -> 0 | R37: 0 | T37: =IFERROR(('General Input Sheet'!$G$38/(VLOOKUP(S37,'General Input Sheet'!$E$38:$G$44,3,FALSE))),1) -> 1 | U37: 193461.4345 | V37: Y | BA37: 9034 | CE37: 9034 | CG37: 193461.4345
C38: TI_RD 149 | D38: Road | E38: Bitumen | F38: Blackall Street | H38: 136.979 | J38: 0 | K38: 93463.25396 | M38: 1 | N38: 93463.25396 | Q38: =IF(O38="",'Unit Rates - Land'!landcst,IF($D$8="Landuse",VLOOKUP(O38,LAndcost3,2,FALSE),IF($D$8="Location",VLOOKUP(O38,Landcost2,2,FALSE),"Error"))) -> 0 | R38: 0 | T38: =IFERROR(('General Input Sheet'!$G$38/(VLOOKUP(S38,'General Input Sheet'!$E$38:$G$44,3,FALSE))),1) -> 1 | U38: 93463.25396 | V38: Y | BA38: 9034 | CE38: 9034 | CG38: 93463.25396
C39: TI_RD_157 | D39: Road | E39: Bitumen | F39: Victoria Parade | H39: 152 | J39: 0 | K39: 158499 | M39: 1 | N39: 158499 | Q39: =IF(O39="",'Unit Rates - Land'!landcst,IF($D$8="Landuse",VLOOKUP(O39,LAndcost3,2,FALSE),IF($D$8="Location",VLOOKUP(O39,Landcost2,2,FALSE),"Error"))) -> 0 | R39: 0 | T39: =IFERROR(('General Input Sheet'!$G$38/(VLOOKUP(S39,'General Input Sheet'!$E$38:$G$44,3,FALSE))),1) -> 1 | U39: 158499 | CE39: 0 | DK39: ERROR
C40: PW01 | D40: Principal Network | E40: Concrete | F40: Aplin Road | H40: 235.3595714 | J40: 0 | K40: 0 | M40: 1 | N40: 0 | Q40: =IF(O40="",'Unit Rates - Land'!landcst,IF($D$8="Landuse",VLOOKUP(O40,LAndcost3,2,FALSE),IF($D$8="Location",VLOOKUP(O40,Landcost2,2,FALSE),"Error"))) -> 0 | R40: 0 | T40: =IFERROR(('General Input Sheet'!$G$38/(VLOOKUP(S40,'General Input Sheet'!$E$38:$G$44,3,FALSE))),1) -> 1 | U40: 0 | V40: Y | W40: Y | BA40: 9034 | BB40: 2921 | CE40: 11955 | CG40: 0 | CH40: 0
C41: PW02 | D41: Principal Network | E41: Concrete | F41: Aplin Road | H41: 366.002531 | J41: 0 | M41: 1 | Q41: =IF(O41="",'Unit Rates - Land'!landcst,IF($D$8="Landuse",VLOOKUP(O41,LAndcost3,2,FALSE),IF($D$8="Location",VLOOKUP(O41,Landcost2,2,FALSE),"Error"))) -> 0 | R41: 0 | T41: =IFERROR(('General Input Sheet'!$G$38/(VLOOKUP(S41,'General Input Sheet'!$E$38:$G$44,3,FALSE))),1) -> 1 | U41: 0 | V41: Y | W41: Y | BA41: 9034 | BB41: 2921 | CE41: 11955 | CG41: 0 | CH41: 0
C42: PW03 | D42: Principal Network | E42: Concrete | F42: Aplin Road | H42: 270.0382926 | J42: 0 | K42: 0 | M42: 1 | N42: 0 | Q42: =IF(O42="",'Unit Rates - Land'!landcst,IF($D$8="Landuse",VLOOKUP(O42,LAndcost3,2,FALSE),IF($D$8="Location",VLOOKUP(O42,Landcost2,2,FALSE),"Error"))) -> 0 | R42: 0 | T42: =IFERROR(('General Input Sheet'!$G$38/(VLOOKUP(S42,'General Input Sheet'!$E$38:$G$44,3,FALSE))),1) -> 1 | U42: 0 | V42: Y | W42: Y | BA42: 9034 | BB42: 2921 | CE42: 11955 | CG42: 0 | CH42: 0
C43: PW04 | D43: Principal Network | E43: Concrete | F43: Aplin Road | H43: 174.972917 | J43: 0 | K43: 0 | M43: 1 | N43: 0 | Q43: =IF(O43="",'Unit Rates - Land'!landcst,IF($D$8="Landuse",VLOOKUP(O43,LAndcost3,2,FALSE),IF($D$8="Location",VLOOKUP(O43,Landcost2,2,FALSE),"Error"))) -> 0 | R43: 0 | T43: =IFERROR(('General Input Sheet'!$G$38/(VLOOKUP(S43,'General Input Sheet'!$E$38:$G$44,3,FALSE))),1) -> 1 | U43: 0 | V43: Y | W43: Y | BA43: 9034 | BB43: 2921 | CE43: 11955 | CG43: 0 | CH43: 0
C44: PW05 | D44: Recreation Network | E44: Boardwalk | F44: Aplin Road Waterfront | H44: 438.6104328 | J44: 0 | K44: 0 | M44: 1 | N44: 0 | Q44: =IF(O44="",'Unit Rates - Land'!landcst,IF($D$8="Landuse",VLOOKUP(O44,LAndcost3,2,FALSE),IF($D$8="Location",VLOOKUP(O44,Landcost2,2,FALSE),"Error"))) -> 0 | R44: 0 | T44: =IFERROR(('General Input Sheet'!$G$38/(VLOOKUP(S44,'General Input Sheet'!$E$38:$G$44,3,FALSE))),1) -> 1 | U44: 0 | V44: Y | BA44: 9034 | CE44: 9034 | CG44: 0
C45: PW06 | D45: Recreation Network | E45: Boardwalk | F45: Aplin Road Waterfront | H45: 96.90033676 | J45: 0 | K45: 0 | M45: 1 | N45: 0 | Q45: =IF(O45="",'Unit Rates - Land'!landcst,IF($D$8="Landuse",VLOOKUP(O45,LAndcost3,2,FALSE),IF($D$8="Location",VLOOKUP(O45,Landcost2,2,FALSE),"Error"))) -> 0 | R45: 0 | T45: =IFERROR(('General Input Sheet'!$G$38/(VLOOKUP(S45,'General Input Sheet'!$E$38:$G$44,3,FALSE))),1) -> 1 | U45: 0 | V45: Y | BA45: 9034 | CE45: 9034 | CG45: 0
C46: PW09 | D46: Principal Network | E46: Concrete | F46: Aubrey Parade | H46: 724.5295298 | J46: =IF(G46=RoadTYPE1,VLOOKUP(I46,Roadunitrates1,2,FALSE),IF(G46=ROADTYPE2,VLOOKUP(I46,Roadunitrates2,2,FALSE),0)) -> 0 | K46: 0 | M46: 1 | N46: 0 | Q46: =IF(O46="",'Unit Rates - Land'!landcst,IF($D$8="Landuse",VLOOKUP(O46,LAndcost3,2,FALSE),IF($D$8="Location",VLOOKUP(O46,Landcost2,2,FALSE),"Error"))) -> 0 | R46: 0 | T46: =IFERROR(('General Input Sheet'!$G$38/(VLOOKUP(S46,'General Input Sheet'!$E$38:$G$44,3,FALSE))),1) -> 1 | U46: 0 | V46: Y | W46: Y | BA46: 9034 | BB46: 2921 | CE46: 11955 | CG46: 0 | CH46: 0
C47: PW10 | D47: Secondary Network | E47: Concrete | F47: Blackall Street | H47: 412.6189459 | J47: 0 | K47: 206309.473 | M47: 1 | N47: 206309.473 | Q47: =IF(O47="",'Unit Rates - Land'!landcst,IF($D$8="Landuse",VLOOKUP(O47,LAndcost3,2,FALSE),IF($D$8="Location",VLOOKUP(O47,Landcost2,2,FALSE),"Error"))) -> 0 | R47: 0 | T47: =IFERROR(('General Input Sheet'!$G$38/(VLOOKUP(S47,'General Input Sheet'!$E$38:$G$44,3,FALSE))),1) -> 1 | U47: 206309.473 | V47: Y | BA47: 9034 | BP47: =IF(AK47="y",BP$14,IF(AND(AK47>0,AK47<=1),AK47*BP$14,"")) ->  | CE47: 9034 | CG47: 206309.473 | DJ47: =IF(CD47="","",(CD47/$CE47)*$U47) -> 
C48: PW11 | D48: Secondary Network | E48: Concrete | F48: Cook Esplanade | H48: 236.3627566 | J48: 0 | K48: 118181.3783 | M48: 1 | N48: 118181.3783 | Q48: =IF(O48="",'Unit Rates - Land'!landcst,IF($D$8="Landuse",VLOOKUP(O48,LAndcost3,2,FALSE),IF($D$8="Location",VLOOKUP(O48,Landcost2,2,FALSE),"Error"))) -> 0 | R48: 0 | T48: =IFERROR(('General Input Sheet'!$G$38/(VLOOKUP(S48,'General Input Sheet'!$E$38:$G$44,3,FALSE))),1) -> 1 | U48: 118181.3783 | V48: Y | BA48: =IF(V48="y",BA$14,IF(AND(V48>0,V48<=1),V48*BA$14,"")) -> 9034 | BB48: =IF(W48="y",BB$14,IF(AND(W48>0,W48<=1),W48*BB$14,"")) ->  | BC48: =IF(X48="y",BC$14,IF(AND(X48>0,X48<=1),X48*BC$14,"")) ->  | CE48: 9034 | CG48: =IF(BA48="","",(BA48/$CE48)*$U48) -> 118181.3783 | CW48: =IF(BQ48="","",(BQ48/$CE48)*$U48) -> 
C49: PW12 | D49: Recreation Network | E49: Concrete | F49: Cook Esplanade | H49: 184.7482065 | J49: 0 | K49: 0 | M49: 1 | N49: 0 | Q49: =IF(O49="",'Unit Rates - Land'!landcst,IF($D$8="Landuse",VLOOKUP(O49,LAndcost3,2,FALSE),IF($D$8="Location",VLOOKUP(O49,Landcost2,2,FALSE),"Error"))) -> 0 | R49: 0 | T49: =IFERROR(('General Input Sheet'!$G$38/(VLOOKUP(S49,'General Input Sheet'!$E$38:$G$44,3,FALSE))),1) -> 1 | U49: 0 | V49: Y | BA49: 9034 | CE49: 9034 | CG49: 0
C50: PW13 | D50: Recreation Network | E50: Concrete | F50: Cook Esplanade | H50: 195.334548 | J50: 0 | K50: 0 | M50: 1 | N50: 0 | Q50: =IF(O50="",'Unit Rates - Land'!landcst,IF($D$8="Landuse",VLOOKUP(O50,LAndcost3,2,FALSE),IF($D$8="Location",VLOOKUP(O50,Landcost2,2,FALSE),"Error"))) -> 0 | R50: 0 | T50: =IFERROR(('General Input Sheet'!$G$38/(VLOOKUP(S50,'General Input Sheet'!$E$38:$G$44,3,FALSE))),1) -> 1 | U50: 0 | V50: Y | BA50: 9034 | CE50: 9034 | CG50: 0
C51: PW14 | D51: Recreation Network | E51: Concrete | F51: Cook Esplanade | H51: 582.7803156 | J51: 0 | K51: 0 | M51: 1 | N51: 0 | Q51: =IF(O51="",'Unit Rates - Land'!landcst,IF($D$8="Landuse",VLOOKUP(O51,LAndcost3,2,FALSE),IF($D$8="Location",VLOOKUP(O51,Landcost2,2,FALSE),"Error"))) -> 0 | R51: 0 | T51: =IFERROR(('General Input Sheet'!$G$38/(VLOOKUP(S51,'General Input Sheet'!$E$38:$G$44,3,FALSE))),1) -> 1 | U51: 0 | V51: Y | BA51: 9034 | CE51: 9034 | CG51: 0
C52: PW15 | D52: Principal Network | E52: Concrete | F52: Douglas Street | H52: 503.5715689 | J52: 0 | K52: 0 | M52: 1 | N52: 0 | Q52: =IF(O52="",'Unit Rates - Land'!landcst,IF($D$8="Landuse",VLOOKUP(O52,LAndcost3,2,FALSE),IF($D$8="Location",VLOOKUP(O52,Landcost2,2,FALSE),"Error"))) -> 0 | R52: 0 | T52: =IFERROR(('General Input Sheet'!$G$38/(VLOOKUP(S52,'General Input Sheet'!$E$38:$G$44,3,FALSE))),1) -> 1 | U52: 0 | V52: Y | W52: Y | BA52: 9034 | BB52: 2921 | CE52: 11955 | CG52: 0 | CH52: 0
C53: PW16 | D53: Principal Network | E53: Concrete | F53: Douglas Street | H53: 718.6495067 | J53: 0 | K53: 0 | M53: 1 | N53: 0 | Q53: =IF(O53="",'Unit Rates - Land'!landcst,IF($D$8="Landuse",VLOOKUP(O53,LAndcost3,2,FALSE),IF($D$8="Location",VLOOKUP(O53,Landcost2,2,FALSE),"Error"))) -> 0 | R53: 0 | T53: =IFERROR(('General Input Sheet'!$G$38/(VLOOKUP(S53,'General Input Sheet'!$E$38:$G$44,3,FALSE))),1) -> 1 | U53: 0 | V53: Y | W53: Y | BA53: 9034 | BB53: 2921 | CE53: 11955 | CG53: 0 | CH53: 0
C54: PW17 | D54: Principal Network | E54: Concrete | F54: Hastings Street | H54: 456.1410446 | J54: 0 | K54: 0 | M54: 1 | N54: 0 | Q54: =IF(O54="",'Unit Rates - Land'!landcst,IF($D$8="Landuse",VLOOKUP(O54,LAndcost3,2,FALSE),IF($D$8="Location",VLOOKUP(O54,Landcost2,2,FALSE),"Error"))) -> 0 | R54: 0 | T54: =IFERROR(('General Input Sheet'!$G$38/(VLOOKUP(S54,'General Input Sheet'!$E$38:$G$44,3,FALSE))),1) -> 1 | U54: 0 | V54: Y | W54: Y | BA54: 9034 | BB54: 2921 | CE54: 11955 | CG54: 0 | CH54: 0
C55: PW18 | D55: Principal Network | E55: Concrete | F55: Loban Road Pathway | H55: 608.6531466 | J55: 0 | K55: 0 | M55: 1 | N55: 0 | Q55: =IF(O55="",'Unit Rates - Land'!landcst,IF($D$8="Landuse",VLOOKUP(O55,LAndcost3,2,FALSE),IF($D$8="Location",VLOOKUP(O55,Landcost2,2,FALSE),"Error"))) -> 0 | R55: 0 | T55: =IFERROR(('General Input Sheet'!$G$38/(VLOOKUP(S55,'General Input Sheet'!$E$38:$G$44,3,FALSE))),1) -> 1 | U55: 0 | V55: Y | W55: Y | BA55: 9034 | BB55: 2921 | BX55: =IF(AS55="y",BX$14,IF(AND(AS55>0,AS55<=1),AS55*BX$14,"")) ->  | CE55: 11955 | CG55: 0 | CH55: 0
C56: PW19 | D56: Principal Network | E56: Concrete | F56: Stephen Street | H56: 141.7717855 | J56: 0 | K56: 0 | M56: 1 | N56: 0 | Q56: =IF(O56="",'Unit Rates - Land'!landcst,IF($D$8="Landuse",VLOOKUP(O56,LAndcost3,2,FALSE),IF($D$8="Location",VLOOKUP(O56,Landcost2,2,FALSE),"Error"))) -> 0 | R56: 0 | T56: =IFERROR(('General Input Sheet'!$G$38/(VLOOKUP(S56,'General Input Sheet'!$E$38:$G$44,3,FALSE))),1) -> 1 | U56: 0 | V56: Y | W56: Y | BA56: 9034 | BB56: 2921 | CE56: 11955 | CG56: 0 | CH56: 0
C57: PW21 | D57: Principal Network | E57: Concrete | F57: Stephen Street | H57: 244 | J57: 0 | M57: 1 | Q57: =IF(O57="",'Unit Rates - Land'!landcst,IF($D$8="Landuse",VLOOKUP(O57,LAndcost3,2,FALSE),IF($D$8="Location",VLOOKUP(O57,Landcost2,2,FALSE),"Error"))) -> 0 | R57: 0 | T57: =IFERROR(('General Input Sheet'!$G$38/(VLOOKUP(S57,'General Input Sheet'!$E$38:$G$44,3,FALSE))),1) -> 1 | U57: 0 | CE57: 0
C58: PW22 | D58: Secondary Network | E58: Concrete | F58: Victoria Parade | H58: 359.2182313 | J58: =IF(G58=RoadTYPE1,VLOOKUP(I58,Roadunitrates1,2,FALSE),IF(G58=ROADTYPE2,VLOOKUP(I58,Roadunitrates2,2,FALSE),0)) -> 0 | K58: 179609.1157 | M58: 1 | N58: 179609.1157 | Q58: =IF(O58="",'Unit Rates - Land'!landcst,IF($D$8="Landuse",VLOOKUP(O58,LAndcost3,2,FALSE),IF($D$8="Location",VLOOKUP(O58,Landcost2,2,FALSE),"Error"))) -> 0 | R58: 0 | T58: =IFERROR(('General Input Sheet'!$G$38/(VLOOKUP(S58,'General Input Sheet'!$E$38:$G$44,3,FALSE))),1) -> 1 | U58: 179609.1157 | V58: Y | BA58: 9034 | CE58: 9034 | CG58: 179609.1157
C59: PW23 | D59: Secondary Network | E59: Concrete | F59: Victoria Parade | H59: 264.7612883 | J59: 0 | K59: 132380.6441 | M59: 1 | N59: 132380.6441 | Q59: =IF(O59="",'Unit Rates - Land'!landcst,IF($D$8="Landuse",VLOOKUP(O59,LAndcost3,2,FALSE),IF($D$8="Location",VLOOKUP(O59,Landcost2,2,FALSE),"Error"))) -> 0 | R59: 0 | T59: =IFERROR(('General Input Sheet'!$G$38/(VLOOKUP(S59,'General Input Sheet'!$E$38:$G$44,3,FALSE))),1) -> 1 | U59: 132380.6441 | V59: Y | BA59: 9034 | CE59: 9034 | CG59: 132380.6441
C60: PW24 | D60: Secondary Network | E60: Concrete | F60: Victoria Parade | H60: 200.9289045 | J60: 0 | K60: 100464.4523 | M60: 1 | N60: 100464.4523 | Q60: =IF(O60="",'Unit Rates - Land'!landcst,IF($D$8="Landuse",VLOOKUP(O60,LAndcost3,2,FALSE),IF($D$8="Location",VLOOKUP(O60,Landcost2,2,FALSE),"Error"))) -> 0 | R60: 0 | T60: =IFERROR(('General Input Sheet'!$G$38/(VLOOKUP(S60,'General Input Sheet'!$E$38:$G$44,3,FALSE))),1) -> 1 | U60: 100464.4523 | V60: Y | BA60: 9034 | CE60: 9034 | CG60: 100464.4523
C61: PW25 | D61: Secondary Network | E61: Concrete | F61: Victoria Parade | H61: 259.170166 | J61: 0 | K61: 129585.083 | M61: 1 | N61: 129585.083 | Q61: =IF(O61="",'Unit Rates - Land'!landcst,IF($D$8="Landuse",VLOOKUP(O61,LAndcost3,2,FALSE),IF($D$8="Location",VLOOKUP(O61,Landcost2,2,FALSE),"Error"))) -> 0 | R61: 0 | T61: =IFERROR(('General Input Sheet'!$G$38/(VLOOKUP(S61,'General Input Sheet'!$E$38:$G$44,3,FALSE))),1) -> 1 | U61: 129585.083 | V61: Y | BA61: 9034 | CE61: 9034 | CG61: 129585.083
C62: PW26 | D62: Secondary Network | E62: Concrete | F62: Waiben Esplanade | H62: 474.3222776 | J62: 0 | K62: =J62*I62 -> 0 | M62: 1 | N62: 0 | Q62: =IF(O62="",'Unit Rates - Land'!landcst,IF($D$8="Landuse",VLOOKUP(O62,LAndcost3,2,FALSE),IF($D$8="Location",VLOOKUP(O62,Landcost2,2,FALSE),"Error"))) -> 0 | R62: 0 | T62: =IFERROR(('General Input Sheet'!$G$38/(VLOOKUP(S62,'General Input Sheet'!$E$38:$G$44,3,FALSE))),1) -> 1 | U62: 0 | V62: Y | BA62: 9034 | CE62: 9034 | CG62: 0
C63: PW27 | D63: Secondary Network | E63: Concrete | F63: Waiben Esplanade | H63: 392.7251249 | J63: 0 | K63: 0 | M63: 1 | N63: 0 | Q63: =IF(O63="",'Unit Rates - Land'!landcst,IF($D$8="Landuse",VLOOKUP(O63,LAndcost3,2,FALSE),IF($D$8="Location",VLOOKUP(O63,Landcost2,2,FALSE),"Error"))) -> 0 | R63: 0 | T63: =IFERROR(('General Input Sheet'!$G$38/(VLOOKUP(S63,'General Input Sheet'!$E$38:$G$44,3,FALSE))),1) -> 1 | U63: 0 | V63: Y | BA63: 9034 | CE63: 9034 | CG63: 0 | CV63: =IF(BP63="","",(BP63/$CE63)*$U63) -> 
C64: PW37 | D64: Principal Network | E64: Concrete | F64: Loban Road Pathway | H64: 608.6531466 | J64: 0 | K64: 304326.5733 | M64: 1 | N64: 304326.5733 | Q64: =IF(O64="",'Unit Rates - Land'!landcst,IF($D$8="Landuse",VLOOKUP(O64,LAndcost3,2,FALSE),IF($D$8="Location",VLOOKUP(O64,Landcost2,2,FALSE),"Error"))) -> 0 | R64: 0 | T64: =IFERROR(('General Input Sheet'!$G$38/(VLOOKUP(S64,'General Input Sheet'!$E$38:$G$44,3,FALSE))),1) -> 1 | U64: 304326.5733 | V64: Y | W64: Y | BA64: 9034 | BB64: 2921 | CE64: 11955 | CG64: =IF(BA64="","",(BA64/$CE64)*$U64) -> 229969.5745 | CH64: 74356.9988
C65: PW38 | D65: Secondary Network | E65: Concrete | F65: Victoria Parade | H65: 161.1259009 | J65: 0 | K65: 80562.95044 | M65: 1 | N65: 80562.95044 | Q65: =IF(O65="",'Unit Rates - Land'!landcst,IF($D$8="Landuse",VLOOKUP(O65,LAndcost3,2,FALSE),IF($D$8="Location",VLOOKUP(O65,Landcost2,2,FALSE),"Error"))) -> 0 | R65: 0 | T65: =IFERROR(('General Input Sheet'!$G$38/(VLOOKUP(S65,'General Input Sheet'!$E$38:$G$44,3,FALSE))),1) -> 1 | U65: 80562.95044 | V65: Y | BA65: =IF(V65="y",BA$14,IF(AND(V65>0,V65<=1),V65*BA$14,"")) -> 9034 | CB65: =IF(AW65="y",CB$14,IF(AND(AW65>0,AW65<=1),AW65*CB$14,"")) ->  | CE65: 9034 | CG65: 80562.95044
J66: 0 | K66: 0 | M66: 1 | N66: 0 | Q66: =IF(O66="",'Unit Rates - Land'!landcst,IF($D$8="Landuse",VLOOKUP(O66,LAndcost3,2,FALSE),IF($D$8="Location",VLOOKUP(O66,Landcost2,2,FALSE),"Error"))) -> 0 | R66: 0 | T66: =IFERROR(('General Input Sheet'!$G$38/(VLOOKUP(S66,'General Input Sheet'!$E$38:$G$44,3,FALSE))),1) -> 1 | U66: 0 | CE66: 0
J67: 0 | K67: 0 | M67: 1 | N67: 0 | Q67: =IF(O67="",'Unit Rates - Land'!landcst,IF($D$8="Landuse",VLOOKUP(O67,LAndcost3,2,FALSE),IF($D$8="Location",VLOOKUP(O67,Landcost2,2,FALSE),"Error"))) -> 0 | R67: 0 | T67: =IFERROR(('General Input Sheet'!$G$38/(VLOOKUP(S67,'General Input Sheet'!$E$38:$G$44,3,FALSE))),1) -> 1 | U67: 0 | CE67: 0 | DE67: =IF(BY67="","",(BY67/$CE67)*$U67) -> 
J68: 0 | K68: 0 | M68: 1 | N68: 0 | Q68: =IF(O68="",'Unit Rates - Land'!landcst,IF($D$8="Landuse",VLOOKUP(O68,LAndcost3,2,FALSE),IF($D$8="Location",VLOOKUP(O68,Landcost2,2,FALSE),"Error"))) -> 0 | R68: 0 | T68: =IFERROR(('General Input Sheet'!$G$38/(VLOOKUP(S68,'General Input Sheet'!$E$38:$G$44,3,FALSE))),1) -> 1 | U68: 0 | CE68: 0
J69: 0 | K69: 0 | M69: 1 | N69: 0 | Q69: =IF(O69="",'Unit Rates - Land'!landcst,IF($D$8="Landuse",VLOOKUP(O69,LAndcost3,2,FALSE),IF($D$8="Location",VLOOKUP(O69,Landcost2,2,FALSE),"Error"))) -> 0 | R69: 0 | T69: =IFERROR(('General Input Sheet'!$G$38/(VLOOKUP(S69,'General Input Sheet'!$E$38:$G$44,3,FALSE))),1) -> 1 | U69: 0 | CE69: 0
J70: 0 | K70: 0 | M70: 1 | N70: 0 | Q70: =IF(O70="",'Unit Rates - Land'!landcst,IF($D$8="Landuse",VLOOKUP(O70,LAndcost3,2,FALSE),IF($D$8="Location",VLOOKUP(O70,Landcost2,2,FALSE),"Error"))) -> 0 | R70: 0 | T70: =IFERROR(('General Input Sheet'!$G$38/(VLOOKUP(S70,'General Input Sheet'!$E$38:$G$44,3,FALSE))),1) -> 1 | U70: 0 | CE70: 0
J71: 0 | K71: 0 | M71: 1 | N71: 0 | Q71: =IF(O71="",'Unit Rates - Land'!landcst,IF($D$8="Landuse",VLOOKUP(O71,LAndcost3,2,FALSE),IF($D$8="Location",VLOOKUP(O71,Landcost2,2,FALSE),"Error"))) -> 0 | R71: 0 | T71: =IFERROR(('General Input Sheet'!$G$38/(VLOOKUP(S71,'General Input Sheet'!$E$38:$G$44,3,FALSE))),1) -> 1 | U71: 0 | CE71: 0
J72: 0 | K72: 0 | M72: 1 | N72: 0 | Q72: =IF(O72="",'Unit Rates - Land'!landcst,IF($D$8="Landuse",VLOOKUP(O72,LAndcost3,2,FALSE),IF($D$8="Location",VLOOKUP(O72,Landcost2,2,FALSE),"Error"))) -> 0 | R72: 0 | T72: =IFERROR(('General Input Sheet'!$G$38/(VLOOKUP(S72,'General Input Sheet'!$E$38:$G$44,3,FALSE))),1) -> 1 | U72: 0 | CE72: 0
J73: 0 | K73: 0 | M73: 1 | N73: 0 | Q73: =IF(O73="",'Unit Rates - Land'!landcst,IF($D$8="Landuse",VLOOKUP(O73,LAndcost3,2,FALSE),IF($D$8="Location",VLOOKUP(O73,Landcost2,2,FALSE),"Error"))) -> 0 | R73: 0 | T73: =IFERROR(('General Input Sheet'!$G$38/(VLOOKUP(S73,'General Input Sheet'!$E$38:$G$44,3,FALSE))),1) -> 1 | U73: 0 | CE73: 0
J74: 0 | K74: 0 | M74: 1 | N74: 0 | Q74: =IF(O74="",'Unit Rates - Land'!landcst,IF($D$8="Landuse",VLOOKUP(O74,LAndcost3,2,FALSE),IF($D$8="Location",VLOOKUP(O74,Landcost2,2,FALSE),"Error"))) -> 0 | R74: 0 | T74: =IFERROR(('General Input Sheet'!$G$38/(VLOOKUP(S74,'General Input Sheet'!$E$38:$G$44,3,FALSE))),1) -> 1 | U74: 0 | CE74: 0
J75: 0 | K75: 0 | M75: 1 | N75: 0 | Q75: =IF(O75="",'Unit Rates - Land'!landcst,IF($D$8="Landuse",VLOOKUP(O75,LAndcost3,2,FALSE),IF($D$8="Location",VLOOKUP(O75,Landcost2,2,FALSE),"Error"))) -> 0 | R75: 0 | T75: =IFERROR(('General Input Sheet'!$G$38/(VLOOKUP(S75,'General Input Sheet'!$E$38:$G$44,3,FALSE))),1) -> 1 | U75: 0 | CE75: 0
J76: 0 | K76: 0 | M76: 1 | N76: 0 | Q76: =IF(O76="",'Unit Rates - Land'!landcst,IF($D$8="Landuse",VLOOKUP(O76,LAndcost3,2,FALSE),IF($D$8="Location",VLOOKUP(O76,Landcost2,2,FALSE),"Error"))) -> 0 | R76: 0 | T76: =IFERROR(('General Input Sheet'!$G$38/(VLOOKUP(S76,'General Input Sheet'!$E$38:$G$44,3,FALSE))),1) -> 1 | U76: 0 | CE76: 0
J77: 0 | K77: 0 | M77: 1 | N77: 0 | Q77: =IF(O77="",'Unit Rates - Land'!landcst,IF($D$8="Landuse",VLOOKUP(O77,LAndcost3,2,FALSE),IF($D$8="Location",VLOOKUP(O77,Landcost2,2,FALSE),"Error"))) -> 0 | R77: 0 | T77: =IFERROR(('General Input Sheet'!$G$38/(VLOOKUP(S77,'General Input Sheet'!$E$38:$G$44,3,FALSE))),1) -> 1 | U77: 0 | CE77: 0
J78: 0 | K78: 0 | M78: 1 | N78: 0 | Q78: =IF(O78="",'Unit Rates - Land'!landcst,IF($D$8="Landuse",VLOOKUP(O78,LAndcost3,2,FALSE),IF($D$8="Location",VLOOKUP(O78,Landcost2,2,FALSE),"Error"))) -> 0 | R78: 0 | T78: =IFERROR(('General Input Sheet'!$G$38/(VLOOKUP(S78,'General Input Sheet'!$E$38:$G$44,3,FALSE))),1) -> 1 | U78: 0 | CE78: 0
J79: =IF(G79=RoadTYPE1,VLOOKUP(I79,Roadunitrates1,2,FALSE),IF(G79=ROADTYPE2,VLOOKUP(I79,Roadunitrates2,2,FALSE),0)) -> 0 | K79: 0 | M79: =IF(L79="",1,VLOOKUP(L79,Roadsitecond,2,FALSE)) -> 1 | N79: 0 | Q79: =IF(O79="",'Unit Rates - Land'!landcst,IF($D$8="Landuse",VLOOKUP(O79,LAndcost3,2,FALSE),IF($D$8="Location",VLOOKUP(O79,Landcost2,2,FALSE),"Error"))) -> 0 | R79: 0 | T79: =IFERROR(('General Input Sheet'!$G$38/(VLOOKUP(S79,'General Input Sheet'!$E$38:$G$44,3,FALSE))),1) -> 1 | U79: 0 | CE79: 0
J80: 0 | K80: 0 | M80: 1 | N80: =IF(K80="","",K80*M80) -> 0 | Q80: =IF(O80="",'Unit Rates - Land'!landcst,IF($D$8="Landuse",VLOOKUP(O80,LAndcost3,2,FALSE),IF($D$8="Location",VLOOKUP(O80,Landcost2,2,FALSE),"Error"))) -> 0 | R80: =IF(Q80="",0,Q80*10000*P80) -> 0 | T80: =IFERROR(('General Input Sheet'!$G$38/(VLOOKUP(S80,'General Input Sheet'!$E$38:$G$44,3,FALSE))),1) -> 1 | U80: =IFERROR((N80+R80)*T80,0) -> 0 | CE80: 0
J81: 0 | K81: 0 | M81: 1 | N81: 0 | Q81: =IF(O81="",'Unit Rates - Land'!landcst,IF($D$8="Landuse",VLOOKUP(O81,LAndcost3,2,FALSE),IF($D$8="Location",VLOOKUP(O81,Landcost2,2,FALSE),"Error"))) -> 0 | R81: 0 | T81: =IFERROR(('General Input Sheet'!$G$38/(VLOOKUP(S81,'General Input Sheet'!$E$38:$G$44,3,FALSE))),1) -> 1 | U81: 0 | CE81: 0 | CG81: =IF(BA81="","",(BA81/$CE81)*$U81) -> 
J82: 0 | K82: 0 | M82: 1 | N82: 0 | Q82: =IF(O82="",'Unit Rates - Land'!landcst,IF($D$8="Landuse",VLOOKUP(O82,LAndcost3,2,FALSE),IF($D$8="Location",VLOOKUP(O82,Landcost2,2,FALSE),"Error"))) -> 0 | R82: 0 | T82: =IFERROR(('General Input Sheet'!$G$38/(VLOOKUP(S82,'General Input Sheet'!$E$38:$G$44,3,FALSE))),1) -> 1 | U82: 0 | BA82: =IF(V82="y",BA$14,IF(AND(V82>0,V82<=1),V82*BA$14,"")) ->  | CE82: =SUM(BA82:CD82) -> 0 | DK82: =IF(SUM(CG82:DJ82)=U82,"","ERROR") -> 
J83: 0 | K83: 0 | M83: 1 | N83: 0 | Q83: =IF(O83="",'Unit Rates - Land'!landcst,IF($D$8="Landuse",VLOOKUP(O83,LAndcost3,2,FALSE),IF($D$8="Location",VLOOKUP(O83,Landcost2,2,FALSE),"Error"))) -> 0 | R83: 0 | T83: =IFERROR(('General Input Sheet'!$G$38/(VLOOKUP(S83,'General Input Sheet'!$E$38:$G$44,3,FALSE))),1) -> 1 | U83: 0 | CE83: 0
J84: 0 | K84: 0 | M84: 1 | N84: 0 | Q84: =IF(O84="",'Unit Rates - Land'!landcst,IF($D$8="Landuse",VLOOKUP(O84,LAndcost3,2,FALSE),IF($D$8="Location",VLOOKUP(O84,Landcost2,2,FALSE),"Error"))) -> 0 | R84: 0 | T84: =IFERROR(('General Input Sheet'!$G$38/(VLOOKUP(S84,'General Input Sheet'!$E$38:$G$44,3,FALSE))),1) -> 1 | U84: 0 | CE84: 0
J85: 0 | K85: 0 | M85: 1 | N85: 0 | Q85: =IF(O85="",'Unit Rates - Land'!landcst,IF($D$8="Landuse",VLOOKUP(O85,LAndcost3,2,FALSE),IF($D$8="Location",VLOOKUP(O85,Landcost2,2,FALSE),"Error"))) -> 0 | R85: 0 | T85: =IFERROR(('General Input Sheet'!$G$38/(VLOOKUP(S85,'General Input Sheet'!$E$38:$G$44,3,FALSE))),1) -> 1 | U85: 0 | CE85: 0
J86: 0 | K86: 0 | M86: 1 | N86: 0 | Q86: =IF(O86="",'Unit Rates - Land'!landcst,IF($D$8="Landuse",VLOOKUP(O86,LAndcost3,2,FALSE),IF($D$8="Location",VLOOKUP(O86,Landcost2,2,FALSE),"Error"))) -> 0 | R86: 0 | T86: =IFERROR(('General Input Sheet'!$G$38/(VLOOKUP(S86,'General Input Sheet'!$E$38:$G$44,3,FALSE))),1) -> 1 | U86: 0 | BV86: =IF(AQ86="y",BV$14,IF(AND(AQ86>0,AQ86<=1),AQ86*BV$14,"")) ->  | CE86: 0
J87: 0 | K87: 0 | M87: 1 | N87: 0 | Q87: =IF(O87="",'Unit Rates - Land'!landcst,IF($D$8="Landuse",VLOOKUP(O87,LAndcost3,2,FALSE),IF($D$8="Location",VLOOKUP(O87,Landcost2,2,FALSE),"Error"))) -> 0 | R87: 0 | T87: =IFERROR(('General Input Sheet'!$G$38/(VLOOKUP(S87,'General Input Sheet'!$E$38:$G$44,3,FALSE))),1) -> 1 | U87: 0 | BQ87: =IF(AL87="y",BQ$14,IF(AND(AL87>0,AL87<=1),AL87*BQ$14,"")) ->  | CE87: 0
J88: 0 | K88: 0 | M88: 1 | N88: 0 | Q88: =IF(O88="",'Unit Rates - Land'!landcst,IF($D$8="Landuse",VLOOKUP(O88,LAndcost3,2,FALSE),IF($D$8="Location",VLOOKUP(O88,Landcost2,2,FALSE),"Error"))) -> 0 | R88: 0 | T88: =IFERROR(('General Input Sheet'!$G$38/(VLOOKUP(S88,'General Input Sheet'!$E$38:$G$44,3,FALSE))),1) -> 1 | U88: 0 | CE88: 0
J89: 0 | K89: 0 | M89: 1 | N89: 0 | Q89: =IF(O89="",'Unit Rates - Land'!landcst,IF($D$8="Landuse",VLOOKUP(O89,LAndcost3,2,FALSE),IF($D$8="Location",VLOOKUP(O89,Landcost2,2,FALSE),"Error"))) -> 0 | R89: 0 | T89: =IFERROR(('General Input Sheet'!$G$38/(VLOOKUP(S89,'General Input Sheet'!$E$38:$G$44,3,FALSE))),1) -> 1 | U89: 0 | CE89: 0
J90: 0 | K90: 0 | M90: 1 | N90: 0 | Q90: =IF(O90="",'Unit Rates - Land'!landcst,IF($D$8="Landuse",VLOOKUP(O90,LAndcost3,2,FALSE),IF($D$8="Location",VLOOKUP(O90,Landcost2,2,FALSE),"Error"))) -> 0 | R90: 0 | T90: =IFERROR(('General Input Sheet'!$G$38/(VLOOKUP(S90,'General Input Sheet'!$E$38:$G$44,3,FALSE))),1) -> 1 | U90: 0 | CE90: 0
J91: 0 | K91: 0 | M91: 1 | N91: 0 | Q91: =IF(O91="",'Unit Rates - Land'!landcst,IF($D$8="Landuse",VLOOKUP(O91,LAndcost3,2,FALSE),IF($D$8="Location",VLOOKUP(O91,Landcost2,2,FALSE),"Error"))) -> 0 | R91: 0 | T91: =IFERROR(('General Input Sheet'!$G$38/(VLOOKUP(S91,'General Input Sheet'!$E$38:$G$44,3,FALSE))),1) -> 1 | U91: 0 | CE91: 0
J92: 0 | K92: 0 | M92: 1 | N92: 0 | Q92: =IF(O92="",'Unit Rates - Land'!landcst,IF($D$8="Landuse",VLOOKUP(O92,LAndcost3,2,FALSE),IF($D$8="Location",VLOOKUP(O92,Landcost2,2,FALSE),"Error"))) -> 0 | R92: 0 | T92: =IFERROR(('General Input Sheet'!$G$38/(VLOOKUP(S92,'General Input Sheet'!$E$38:$G$44,3,FALSE))),1) -> 1 | U92: 0 | CE92: 0
J93: 0 | K93: 0 | M93: 1 | N93: 0 | Q93: =IF(O93="",'Unit Rates - Land'!landcst,IF($D$8="Landuse",VLOOKUP(O93,LAndcost3,2,FALSE),IF($D$8="Location",VLOOKUP(O93,Landcost2,2,FALSE),"Error"))) -> 0 | R93: 0 | T93: =IFERROR(('General Input Sheet'!$G$38/(VLOOKUP(S93,'General Input Sheet'!$E$38:$G$44,3,FALSE))),1) -> 1 | U93: 0 | CE93: 0
J94: 0 | K94: 0 | M94: 1 | N94: 0 | Q94: =IF(O94="",'Unit Rates - Land'!landcst,IF($D$8="Landuse",VLOOKUP(O94,LAndcost3,2,FALSE),IF($D$8="Location",VLOOKUP(O94,Landcost2,2,FALSE),"Error"))) -> 0 | R94: 0 | T94: =IFERROR(('General Input Sheet'!$G$38/(VLOOKUP(S94,'General Input Sheet'!$E$38:$G$44,3,FALSE))),1) -> 1 | U94: 0 | CE94: 0
J95: 0 | K95: 0 | M95: 1 | N95: 0 | Q95: =IF(O95="",'Unit Rates - Land'!landcst,IF($D$8="Landuse",VLOOKUP(O95,LAndcost3,2,FALSE),IF($D$8="Location",VLOOKUP(O95,Landcost2,2,FALSE),"Error"))) -> 0 | R95: 0 | T95: =IFERROR(('General Input Sheet'!$G$38/(VLOOKUP(S95,'General Input Sheet'!$E$38:$G$44,3,FALSE))),1) -> 1 | U95: 0 | CE95: 0 | DC95: =IF(BW95="","",(BW95/$CE95)*$U95) -> 
J96: 0 | K96: 0 | M96: 1 | N96: 0 | Q96: =IF(O96="",'Unit Rates - Land'!landcst,IF($D$8="Landuse",VLOOKUP(O96,LAndcost3,2,FALSE),IF($D$8="Location",VLOOKUP(O96,Landcost2,2,FALSE),"Error"))) -> 0 | R96: 0 | T96: =IFERROR(('General Input Sheet'!$G$38/(VLOOKUP(S96,'General Input Sheet'!$E$38:$G$44,3,FALSE))),1) -> 1 | U96: 0 | CE96: 0 | CW96: =IF(BQ96="","",(BQ96/$CE96)*$U96) -> 
J97: 0 | K97: 0 | M97: 1 | N97: 0 | Q97: =IF(O97="",'Unit Rates - Land'!landcst,IF($D$8="Landuse",VLOOKUP(O97,LAndcost3,2,FALSE),IF($D$8="Location",VLOOKUP(O97,Landcost2,2,FALSE),"Error"))) -> 0 | R97: 0 | T97: =IFERROR(('General Input Sheet'!$G$38/(VLOOKUP(S97,'General Input Sheet'!$E$38:$G$44,3,FALSE))),1) -> 1 | U97: 0 | CE97: 0 | CU97: =IF(BO97="","",(BO97/$CE97)*$U97) -> 
J98: 0 | K98: 0 | M98: 1 | N98: 0 | Q98: =IF(O98="",'Unit Rates - Land'!landcst,IF($D$8="Landuse",VLOOKUP(O98,LAndcost3,2,FALSE),IF($D$8="Location",VLOOKUP(O98,Landcost2,2,FALSE),"Error"))) -> 0 | R98: 0 | T98: =IFERROR(('General Input Sheet'!$G$38/(VLOOKUP(S98,'General Input Sheet'!$E$38:$G$44,3,FALSE))),1) -> 1 | U98: 0 | BE98: =IF(Z98="y",BE$14,IF(AND(Z98>0,Z98<=1),Z98*BE$14,"")) ->  | CE98: 0 | CG98: =IF(BA98="","",(BA98/$CE98)*$U98) -> 
J99: 0 | K99: 0 | M99: 1 | N99: 0 | Q99: =IF(O99="",'Unit Rates - Land'!landcst,IF($D$8="Landuse",VLOOKUP(O99,LAndcost3,2,FALSE),IF($D$8="Location",VLOOKUP(O99,Landcost2,2,FALSE),"Error"))) -> 0 | R99: 0 | T99: =IFERROR(('General Input Sheet'!$G$38/(VLOOKUP(S99,'General Input Sheet'!$E$38:$G$44,3,FALSE))),1) -> 1 | U99: 0 | BA99: =IF(V99="y",BA$14,IF(AND(V99>0,V99<=1),V99*BA$14,"")) ->  | CE99: 0
J100: 0 | K100: 0 | M100: 1 | N100: 0 | Q100: =IF(O100="",'Unit Rates - Land'!landcst,IF($D$8="Landuse",VLOOKUP(O100,LAndcost3,2,FALSE),IF($D$8="Location",VLOOKUP(O100,Landcost2,2,FALSE),"Error"))) -> 0 | R100: 0 | T100: =IFERROR(('General Input Sheet'!$G$38/(VLOOKUP(S100,'General Input Sheet'!$E$38:$G$44,3,FALSE))),1) -> 1 | U100: 0 | CE100: 0
J101: 0 | K101: 0 | M101: 1 | N101: 0 | Q101: =IF(O101="",'Unit Rates - Land'!landcst,IF($D$8="Landuse",VLOOKUP(O101,LAndcost3,2,FALSE),IF($D$8="Location",VLOOKUP(O101,Landcost2,2,FALSE),"Error"))) -> 0 | R101: 0 | T101: =IFERROR(('General Input Sheet'!$G$38/(VLOOKUP(S101,'General Input Sheet'!$E$38:$G$44,3,FALSE))),1) -> 1 | U101: 0 | CE101: 0
J102: 0 | K102: 0 | M102: 1 | N102: 0 | Q102: =IF(O102="",'Unit Rates - Land'!landcst,IF($D$8="Landuse",VLOOKUP(O102,LAndcost3,2,FALSE),IF($D$8="Location",VLOOKUP(O102,Landcost2,2,FALSE),"Error"))) -> 0 | R102: 0 | T102: =IFERROR(('General Input Sheet'!$G$38/(VLOOKUP(S102,'General Input Sheet'!$E$38:$G$44,3,FALSE))),1) -> 1 | U102: 0 | CE102: 0
J103: 0 | K103: =J103*I103 -> 0 | M103: 1 | N103: 0 | Q103: =IF(O103="",'Unit Rates - Land'!landcst,IF($D$8="Landuse",VLOOKUP(O103,LAndcost3,2,FALSE),IF($D$8="Location",VLOOKUP(O103,Landcost2,2,FALSE),"Error"))) -> 0 | R103: 0 | T103: =IFERROR(('General Input Sheet'!$G$38/(VLOOKUP(S103,'General Input Sheet'!$E$38:$G$44,3,FALSE))),1) -> 1 | U103: 0 | CE103: 0
J104: 0 | K104: 0 | M104: 1 | N104: 0 | Q104: =IF(O104="",'Unit Rates - Land'!landcst,IF($D$8="Landuse",VLOOKUP(O104,LAndcost3,2,FALSE),IF($D$8="Location",VLOOKUP(O104,Landcost2,2,FALSE),"Error"))) -> 0 | R104: 0 | T104: =IFERROR(('General Input Sheet'!$G$38/(VLOOKUP(S104,'General Input Sheet'!$E$38:$G$44,3,FALSE))),1) -> 1 | U104: 0 | CE104: 0
J105: 0 | K105: 0 | M105: 1 | N105: 0 | Q105: =IF(O105="",'Unit Rates - Land'!landcst,IF($D$8="Landuse",VLOOKUP(O105,LAndcost3,2,FALSE),IF($D$8="Location",VLOOKUP(O105,Landcost2,2,FALSE),"Error"))) -> 0 | R105: 0 | T105: =IFERROR(('General Input Sheet'!$G$38/(VLOOKUP(S105,'General Input Sheet'!$E$38:$G$44,3,FALSE))),1) -> 1 | U105: 0 | CE105: 0
J106: 0 | K106: 0 | M106: 1 | N106: 0 | Q106: =IF(O106="",'Unit Rates - Land'!landcst,IF($D$8="Landuse",VLOOKUP(O106,LAndcost3,2,FALSE),IF($D$8="Location",VLOOKUP(O106,Landcost2,2,FALSE),"Error"))) -> 0 | R106: 0 | T106: =IFERROR(('General Input Sheet'!$G$38/(VLOOKUP(S106,'General Input Sheet'!$E$38:$G$44,3,FALSE))),1) -> 1 | U106: 0 | CE106: 0
J107: 0 | K107: 0 | M107: 1 | N107: 0 | Q107: =IF(O107="",'Unit Rates - Land'!landcst,IF($D$8="Landuse",VLOOKUP(O107,LAndcost3,2,FALSE),IF($D$8="Location",VLOOKUP(O107,Landcost2,2,FALSE),"Error"))) -> 0 | R107: 0 | T107: =IFERROR(('General Input Sheet'!$G$38/(VLOOKUP(S107,'General Input Sheet'!$E$38:$G$44,3,FALSE))),1) -> 1 | U107: 0 | CE107: 0
J108: 0 | K108: 0 | M108: 1 | N108: 0 | Q108: =IF(O108="",'Unit Rates - Land'!landcst,IF($D$8="Landuse",VLOOKUP(O108,LAndcost3,2,FALSE),IF($D$8="Location",VLOOKUP(O108,Landcost2,2,FALSE),"Error"))) -> 0 | R108: 0 | T108: =IFERROR(('General Input Sheet'!$G$38/(VLOOKUP(S108,'General Input Sheet'!$E$38:$G$44,3,FALSE))),1) -> 1 | U108: 0 | CE108: 0
J109: 0 | K109: 0 | M109: 1 | N109: 0 | Q109: =IF(O109="",'Unit Rates - Land'!landcst,IF($D$8="Landuse",VLOOKUP(O109,LAndcost3,2,FALSE),IF($D$8="Location",VLOOKUP(O109,Landcost2,2,FALSE),"Error"))) -> 0 | R109: 0 | T109: =IFERROR(('General Input Sheet'!$G$38/(VLOOKUP(S109,'General Input Sheet'!$E$38:$G$44,3,FALSE))),1) -> 1 | U109: 0 | CE109: 0
J110: 0 | K110: 0 | M110: 1 | N110: 0 | Q110: =IF(O110="",'Unit Rates - Land'!landcst,IF($D$8="Landuse",VLOOKUP(O110,LAndcost3,2,FALSE),IF($D$8="Location",VLOOKUP(O110,Landcost2,2,FALSE),"Error"))) -> 0 | R110: 0 | T110: =IFERROR(('General Input Sheet'!$G$38/(VLOOKUP(S110,'General Input Sheet'!$E$38:$G$44,3,FALSE))),1) -> 1 | U110: 0 | CE110: 0
J111: 0 | K111: 0 | M111: 1 | N111: 0 | Q111: =IF(O111="",'Unit Rates - Land'!landcst,IF($D$8="Landuse",VLOOKUP(O111,LAndcost3,2,FALSE),IF($D$8="Location",VLOOKUP(O111,Landcost2,2,FALSE),"Error"))) -> 0 | R111: 0 | T111: =IFERROR(('General Input Sheet'!$G$38/(VLOOKUP(S111,'General Input Sheet'!$E$38:$G$44,3,FALSE))),1) -> 1 | U111: 0 | CE111: 0
J112: 0 | K112: 0 | M112: 1 | N112: 0 | Q112: =IF(O112="",'Unit Rates - Land'!landcst,IF($D$8="Landuse",VLOOKUP(O112,LAndcost3,2,FALSE),IF($D$8="Location",VLOOKUP(O112,Landcost2,2,FALSE),"Error"))) -> 0 | R112: 0 | T112: =IFERROR(('General Input Sheet'!$G$38/(VLOOKUP(S112,'General Input Sheet'!$E$38:$G$44,3,FALSE))),1) -> 1 | U112: 0 | CE112: 0
J113: 0 | K113: 0 | M113: 1 | N113: 0 | Q113: =IF(O113="",'Unit Rates - Land'!landcst,IF($D$8="Landuse",VLOOKUP(O113,LAndcost3,2,FALSE),IF($D$8="Location",VLOOKUP(O113,Landcost2,2,FALSE),"Error"))) -> 0 | R113: 0 | T113: =IFERROR(('General Input Sheet'!$G$38/(VLOOKUP(S113,'General Input Sheet'!$E$38:$G$44,3,FALSE))),1) -> 1 | U113: 0 | CE113: 0
J114: 0 | K114: 0 | M114: 1 | N114: 0 | Q114: =IF(O114="",'Unit Rates - Land'!landcst,IF($D$8="Landuse",VLOOKUP(O114,LAndcost3,2,FALSE),IF($D$8="Location",VLOOKUP(O114,Landcost2,2,FALSE),"Error"))) -> 0 | R114: 0 | T114: =IFERROR(('General Input Sheet'!$G$38/(VLOOKUP(S114,'General Input Sheet'!$E$38:$G$44,3,FALSE))),1) -> 1 | U114: 0 | CE114: 0
J115: 0 | K115: 0 | M115: 1 | N115: 0 | Q115: =IF(O115="",'Unit Rates - Land'!landcst,IF($D$8="Landuse",VLOOKUP(O115,LAndcost3,2,FALSE),IF($D$8="Location",VLOOKUP(O115,Landcost2,2,FALSE),"Error"))) -> 0 | R115: 0 | T115: =IFERROR(('General Input Sheet'!$G$38/(VLOOKUP(S115,'General Input Sheet'!$E$38:$G$44,3,FALSE))),1) -> 1 | U115: 0 | CE115: 0
J116: 0 | K116: 0 | M116: 1 | N116: 0 | Q116: =IF(O116="",'Unit Rates - Land'!landcst,IF($D$8="Landuse",VLOOKUP(O116,LAndcost3,2,FALSE),IF($D$8="Location",VLOOKUP(O116,Landcost2,2,FALSE),"Error"))) -> 0 | R116: 0 | T116: =IFERROR(('General Input Sheet'!$G$38/(VLOOKUP(S116,'General Input Sheet'!$E$38:$G$44,3,FALSE))),1) -> 1 | U116: 0 | CE116: 0 | CJ116: =IF(BD116="","",(BD116/$CE116)*$U116) ->  | DJ116: =IF(CD116="","",(CD116/$CE116)*$U116) -> 
J117: 0 | K117: 0 | M117: 1 | N117: 0 | Q117: =IF(O117="",'Unit Rates - Land'!landcst,IF($D$8="Landuse",VLOOKUP(O117,LAndcost3,2,FALSE),IF($D$8="Location",VLOOKUP(O117,Landcost2,2,FALSE),"Error"))) -> 0 | R117: 0 | T117: =IFERROR(('General Input Sheet'!$G$38/(VLOOKUP(S117,'General Input Sheet'!$E$38:$G$44,3,FALSE))),1) -> 1 | U117: 0 | CE117: 0 | CG117: =IF(BA117="","",(BA117/$CE117)*$U117) -> 
J118: 0 | K118: 0 | M118: 1 | N118: 0 | Q118: =IF(O118="",'Unit Rates - Land'!landcst,IF($D$8="Landuse",VLOOKUP(O118,LAndcost3,2,FALSE),IF($D$8="Location",VLOOKUP(O118,Landcost2,2,FALSE),"Error"))) -> 0 | R118: 0 | T118: =IFERROR(('General Input Sheet'!$G$38/(VLOOKUP(S118,'General Input Sheet'!$E$38:$G$44,3,FALSE))),1) -> 1 | U118: 0 | CE118: 0
J119: 0 | K119: 0 | M119: 1 | N119: 0 | Q119: =IF(O119="",'Unit Rates - Land'!landcst,IF($D$8="Landuse",VLOOKUP(O119,LAndcost3,2,FALSE),IF($D$8="Location",VLOOKUP(O119,Landcost2,2,FALSE),"Error"))) -> 0 | R119: 0 | T119: =IFERROR(('General Input Sheet'!$G$38/(VLOOKUP(S119,'General Input Sheet'!$E$38:$G$44,3,FALSE))),1) -> 1 | U119: 0 | BH119: =IF(AC119="y",BH$14,IF(AND(AC119>0,AC119<=1),AC119*BH$14,"")) ->  | CE119: 0
J120: 0 | K120: 0 | M120: 1 | N120: 0 | Q120: =IF(O120="",'Unit Rates - Land'!landcst,IF($D$8="Landuse",VLOOKUP(O120,LAndcost3,2,FALSE),IF($D$8="Location",VLOOKUP(O120,Landcost2,2,FALSE),"Error"))) -> 0 | R120: 0 | T120: =IFERROR(('General Input Sheet'!$G$38/(VLOOKUP(S120,'General Input Sheet'!$E$38:$G$44,3,FALSE))),1) -> 1 | U120: 0 | CE120: 0
J121: 0 | K121: 0 | M121: 1 | N121: 0 | Q121: =IF(O121="",'Unit Rates - Land'!landcst,IF($D$8="Landuse",VLOOKUP(O121,LAndcost3,2,FALSE),IF($D$8="Location",VLOOKUP(O121,Landcost2,2,FALSE),"Error"))) -> 0 | R121: 0 | T121: =IFERROR(('General Input Sheet'!$G$38/(VLOOKUP(S121,'General Input Sheet'!$E$38:$G$44,3,FALSE))),1) -> 1 | U121: 0 | CE121: 0
J122: 0 | K122: 0 | M122: 1 | N122: 0 | Q122: =IF(O122="",'Unit Rates - Land'!landcst,IF($D$8="Landuse",VLOOKUP(O122,LAndcost3,2,FALSE),IF($D$8="Location",VLOOKUP(O122,Landcost2,2,FALSE),"Error"))) -> 0 | R122: 0 | T122: =IFERROR(('General Input Sheet'!$G$38/(VLOOKUP(S122,'General Input Sheet'!$E$38:$G$44,3,FALSE))),1) -> 1 | U122: 0 | CE122: 0
J123: 0 | K123: 0 | M123: 1 | N123: 0 | Q123: =IF(O123="",'Unit Rates - Land'!landcst,IF($D$8="Landuse",VLOOKUP(O123,LAndcost3,2,FALSE),IF($D$8="Location",VLOOKUP(O123,Landcost2,2,FALSE),"Error"))) -> 0 | R123: 0 | T123: =IFERROR(('General Input Sheet'!$G$38/(VLOOKUP(S123,'General Input Sheet'!$E$38:$G$44,3,FALSE))),1) -> 1 | U123: 0 | CE123: 0
J124: 0 | K124: 0 | M124: 1 | N124: 0 | Q124: =IF(O124="",'Unit Rates - Land'!landcst,IF($D$8="Landuse",VLOOKUP(O124,LAndcost3,2,FALSE),IF($D$8="Location",VLOOKUP(O124,Landcost2,2,FALSE),"Error"))) -> 0 | R124: 0 | T124: =IFERROR(('General Input Sheet'!$G$38/(VLOOKUP(S124,'General Input Sheet'!$E$38:$G$44,3,FALSE))),1) -> 1 | U124: 0 | CE124: 0
J125: 0 | K125: 0 | M125: 1 | N125: 0 | Q125: =IF(O125="",'Unit Rates - Land'!landcst,IF($D$8="Landuse",VLOOKUP(O125,LAndcost3,2,FALSE),IF($D$8="Location",VLOOKUP(O125,Landcost2,2,FALSE),"Error"))) -> 0 | R125: 0 | T125: =IFERROR(('General Input Sheet'!$G$38/(VLOOKUP(S125,'General Input Sheet'!$E$38:$G$44,3,FALSE))),1) -> 1 | U125: 0 | CE125: 0
J126: 0 | K126: 0 | M126: 1 | N126: 0 | Q126: =IF(O126="",'Unit Rates - Land'!landcst,IF($D$8="Landuse",VLOOKUP(O126,LAndcost3,2,FALSE),IF($D$8="Location",VLOOKUP(O126,Landcost2,2,FALSE),"Error"))) -> 0 | R126: 0 | T126: =IFERROR(('General Input Sheet'!$G$38/(VLOOKUP(S126,'General Input Sheet'!$E$38:$G$44,3,FALSE))),1) -> 1 | U126: 0 | CE126: 0
J127: 0 | K127: 0 | M127: 1 | N127: 0 | Q127: =IF(O127="",'Unit Rates - Land'!landcst,IF($D$8="Landuse",VLOOKUP(O127,LAndcost3,2,FALSE),IF($D$8="Location",VLOOKUP(O127,Landcost2,2,FALSE),"Error"))) -> 0 | R127: 0 | T127: =IFERROR(('General Input Sheet'!$G$38/(VLOOKUP(S127,'General Input Sheet'!$E$38:$G$44,3,FALSE))),1) -> 1 | U127: 0 | CE127: 0
J128: 0 | K128: 0 | M128: 1 | N128: 0 | Q128: =IF(O128="",'Unit Rates - Land'!landcst,IF($D$8="Landuse",VLOOKUP(O128,LAndcost3,2,FALSE),IF($D$8="Location",VLOOKUP(O128,Landcost2,2,FALSE),"Error"))) -> 0 | R128: 0 | T128: =IFERROR(('General Input Sheet'!$G$38/(VLOOKUP(S128,'General Input Sheet'!$E$38:$G$44,3,FALSE))),1) -> 1 | U128: 0 | CE128: 0
J129: 0 | K129: 0 | M129: 1 | N129: 0 | Q129: =IF(O129="",'Unit Rates - Land'!landcst,IF($D$8="Landuse",VLOOKUP(O129,LAndcost3,2,FALSE),IF($D$8="Location",VLOOKUP(O129,Landcost2,2,FALSE),"Error"))) -> 0 | R129: 0 | T129: =IFERROR(('General Input Sheet'!$G$38/(VLOOKUP(S129,'General Input Sheet'!$E$38:$G$44,3,FALSE))),1) -> 1 | U129: 0 | CE129: 0
J130: 0 | K130: 0 | M130: 1 | N130: 0 | Q130: =IF(O130="",'Unit Rates - Land'!landcst,IF($D$8="Landuse",VLOOKUP(O130,LAndcost3,2,FALSE),IF($D$8="Location",VLOOKUP(O130,Landcost2,2,FALSE),"Error"))) -> 0 | R130: 0 | T130: =IFERROR(('General Input Sheet'!$G$38/(VLOOKUP(S130,'General Input Sheet'!$E$38:$G$44,3,FALSE))),1) -> 1 | U130: 0 | CE130: 0
J131: 0 | K131: 0 | M131: 1 | N131: 0 | Q131: =IF(O131="",'Unit Rates - Land'!landcst,IF($D$8="Landuse",VLOOKUP(O131,LAndcost3,2,FALSE),IF($D$8="Location",VLOOKUP(O131,Landcost2,2,FALSE),"Error"))) -> 0 | R131: 0 | T131: =IFERROR(('General Input Sheet'!$G$38/(VLOOKUP(S131,'General Input Sheet'!$E$38:$G$44,3,FALSE))),1) -> 1 | U131: 0 | CE131: 0
J132: 0 | K132: 0 | M132: 1 | N132: 0 | Q132: =IF(O132="",'Unit Rates - Land'!landcst,IF($D$8="Landuse",VLOOKUP(O132,LAndcost3,2,FALSE),IF($D$8="Location",VLOOKUP(O132,Landcost2,2,FALSE),"Error"))) -> 0 | R132: 0 | T132: =IFERROR(('General Input Sheet'!$G$38/(VLOOKUP(S132,'General Input Sheet'!$E$38:$G$44,3,FALSE))),1) -> 1 | U132: 0 | CE132: 0
J133: 0 | K133: 0 | M133: 1 | N133: 0 | Q133: =IF(O133="",'Unit Rates - Land'!landcst,IF($D$8="Landuse",VLOOKUP(O133,LAndcost3,2,FALSE),IF($D$8="Location",VLOOKUP(O133,Landcost2,2,FALSE),"Error"))) -> 0 | R133: 0 | T133: =IFERROR(('General Input Sheet'!$G$38/(VLOOKUP(S133,'General Input Sheet'!$E$38:$G$44,3,FALSE))),1) -> 1 | U133: 0 | CE133: 0
J134: 0 | K134: 0 | M134: 1 | N134: 0 | Q134: =IF(O134="",'Unit Rates - Land'!landcst,IF($D$8="Landuse",VLOOKUP(O134,LAndcost3,2,FALSE),IF($D$8="Location",VLOOKUP(O134,Landcost2,2,FALSE),"Error"))) -> 0 | R134: 0 | T134: =IFERROR(('General Input Sheet'!$G$38/(VLOOKUP(S134,'General Input Sheet'!$E$38:$G$44,3,FALSE))),1) -> 1 | U134: 0 | CE134: 0
J135: 0 | K135: 0 | M135: 1 | N135: 0 | Q135: =IF(O135="",'Unit Rates - Land'!landcst,IF($D$8="Landuse",VLOOKUP(O135,LAndcost3,2,FALSE),IF($D$8="Location",VLOOKUP(O135,Landcost2,2,FALSE),"Error"))) -> 0 | R135: 0 | T135: =IFERROR(('General Input Sheet'!$G$38/(VLOOKUP(S135,'General Input Sheet'!$E$38:$G$44,3,FALSE))),1) -> 1 | U135: 0 | CE135: 0
J136: 0 | K136: 0 | M136: 1 | N136: 0 | Q136: =IF(O136="",'Unit Rates - Land'!landcst,IF($D$8="Landuse",VLOOKUP(O136,LAndcost3,2,FALSE),IF($D$8="Location",VLOOKUP(O136,Landcost2,2,FALSE),"Error"))) -> 0 | R136: 0 | T136: =IFERROR(('General Input Sheet'!$G$38/(VLOOKUP(S136,'General Input Sheet'!$E$38:$G$44,3,FALSE))),1) -> 1 | U136: 0 | CE136: 0
J137: 0 | K137: 0 | M137: 1 | N137: 0 | Q137: =IF(O137="",'Unit Rates - Land'!landcst,IF($D$8="Landuse",VLOOKUP(O137,LAndcost3,2,FALSE),IF($D$8="Location",VLOOKUP(O137,Landcost2,2,FALSE),"Error"))) -> 0 | R137: 0 | T137: =IFERROR(('General Input Sheet'!$G$38/(VLOOKUP(S137,'General Input Sheet'!$E$38:$G$44,3,FALSE))),1) -> 1 | U137: 0 | CE137: 0
J138: 0 | K138: 0 | M138: 1 | N138: 0 | Q138: =IF(O138="",'Unit Rates - Land'!landcst,IF($D$8="Landuse",VLOOKUP(O138,LAndcost3,2,FALSE),IF($D$8="Location",VLOOKUP(O138,Landcost2,2,FALSE),"Error"))) -> 0 | R138: 0 | T138: =IFERROR(('General Input Sheet'!$G$38/(VLOOKUP(S138,'General Input Sheet'!$E$38:$G$44,3,FALSE))),1) -> 1 | U138: 0 | CE138: 0 | CW138: =IF(BQ138="","",(BQ138/$CE138)*$U138) -> 
J139: 0 | K139: 0 | M139: 1 | N139: 0 | Q139: =IF(O139="",'Unit Rates - Land'!landcst,IF($D$8="Landuse",VLOOKUP(O139,LAndcost3,2,FALSE),IF($D$8="Location",VLOOKUP(O139,Landcost2,2,FALSE),"Error"))) -> 0 | R139: 0 | T139: =IFERROR(('General Input Sheet'!$G$38/(VLOOKUP(S139,'General Input Sheet'!$E$38:$G$44,3,FALSE))),1) -> 1 | U139: 0 | CE139: 0
J140: 0 | K140: 0 | M140: 1 | N140: 0 | Q140: =IF(O140="",'Unit Rates - Land'!landcst,IF($D$8="Landuse",VLOOKUP(O140,LAndcost3,2,FALSE),IF($D$8="Location",VLOOKUP(O140,Landcost2,2,FALSE),"Error"))) -> 0 | R140: 0 | T140: =IFERROR(('General Input Sheet'!$G$38/(VLOOKUP(S140,'General Input Sheet'!$E$38:$G$44,3,FALSE))),1) -> 1 | U140: 0 | CE140: 0
J141: 0 | K141: 0 | M141: 1 | N141: 0 | Q141: =IF(O141="",'Unit Rates - Land'!landcst,IF($D$8="Landuse",VLOOKUP(O141,LAndcost3,2,FALSE),IF($D$8="Location",VLOOKUP(O141,Landcost2,2,FALSE),"Error"))) -> 0 | R141: 0 | T141: =IFERROR(('General Input Sheet'!$G$38/(VLOOKUP(S141,'General Input Sheet'!$E$38:$G$44,3,FALSE))),1) -> 1 | U141: 0 | CE141: 0
J142: 0 | K142: 0 | M142: 1 | N142: 0 | Q142: =IF(O142="",'Unit Rates - Land'!landcst,IF($D$8="Landuse",VLOOKUP(O142,LAndcost3,2,FALSE),IF($D$8="Location",VLOOKUP(O142,Landcost2,2,FALSE),"Error"))) -> 0 | R142: 0 | T142: =IFERROR(('General Input Sheet'!$G$38/(VLOOKUP(S142,'General Input Sheet'!$E$38:$G$44,3,FALSE))),1) -> 1 | U142: 0 | CE142: 0
J143: =IF(G143=RoadTYPE1,VLOOKUP(I143,Roadunitrates1,2,FALSE),IF(G143=ROADTYPE2,VLOOKUP(I143,Roadunitrates2,2,FALSE),0)) -> 0 | K143: 0 | M143: =IF(L143="",1,VLOOKUP(L143,Roadsitecond,2,FALSE)) -> 1 | N143: 0 | Q143: =IF(O143="",'Unit Rates - Land'!landcst,IF($D$8="Landuse",VLOOKUP(O143,LAndcost3,2,FALSE),IF($D$8="Location",VLOOKUP(O143,Landcost2,2,FALSE),"Error"))) -> 0 | R143: 0 | T143: =IFERROR(('General Input Sheet'!$G$38/(VLOOKUP(S143,'General Input Sheet'!$E$38:$G$44,3,FALSE))),1) -> 1 | U143: 0 | BY143: =IF(AT143="y",BY$14,IF(AND(AT143>0,AT143<=1),AT143*BY$14,"")) ->  | CE143: 0
J144: 0 | K144: 0 | M144: 1 | N144: =IF(K144="","",K144*M144) -> 0 | Q144: =IF(O144="",'Unit Rates - Land'!landcst,IF($D$8="Landuse",VLOOKUP(O144,LAndcost3,2,FALSE),IF($D$8="Location",VLOOKUP(O144,Landcost2,2,FALSE),"Error"))) -> 0 | R144: =IF(Q144="",0,Q144*10000*P144) -> 0 | T144: =IFERROR(('General Input Sheet'!$G$38/(VLOOKUP(S144,'General Input Sheet'!$E$38:$G$44,3,FALSE))),1) -> 1 | U144: =IFERROR((N144+R144)*T144,0) -> 0 | BD144: =IF(Y144="y",BD$14,IF(AND(Y144>0,Y144<=1),Y144*BD$14,"")) ->  | BT144: =IF(AO144="y",BT$14,IF(AND(AO144>0,AO144<=1),AO144*BT$14,"")) ->  | CE144: 0
J145: 0 | K145: 0 | M145: 1 | N145: 0 | Q145: =IF(O145="",'Unit Rates - Land'!landcst,IF($D$8="Landuse",VLOOKUP(O145,LAndcost3,2,FALSE),IF($D$8="Location",VLOOKUP(O145,Landcost2,2,FALSE),"Error"))) -> 0 | R145: 0 | T145: =IFERROR(('General Input Sheet'!$G$38/(VLOOKUP(S145,'General Input Sheet'!$E$38:$G$44,3,FALSE))),1) -> 1 | U145: 0 | BA145: =IF(V145="y",BA$14,IF(AND(V145>0,V145<=1),V145*BA$14,"")) ->  | CE145: 0
J146: 0 | K146: 0 | M146: 1 | N146: 0 | Q146: =IF(O146="",'Unit Rates - Land'!landcst,IF($D$8="Landuse",VLOOKUP(O146,LAndcost3,2,FALSE),IF($D$8="Location",VLOOKUP(O146,Landcost2,2,FALSE),"Error"))) -> 0 | R146: 0 | T146: =IFERROR(('General Input Sheet'!$G$38/(VLOOKUP(S146,'General Input Sheet'!$E$38:$G$44,3,FALSE))),1) -> 1 | U146: 0 | CE146: =SUM(BA146:CD146) -> 0 | DK146: =IF(SUM(CG146:DJ146)=U146,"","ERROR") -> 
J147: 0 | K147: 0 | M147: 1 | N147: 0 | Q147: =IF(O147="",'Unit Rates - Land'!landcst,IF($D$8="Landuse",VLOOKUP(O147,LAndcost3,2,FALSE),IF($D$8="Location",VLOOKUP(O147,Landcost2,2,FALSE),"Error"))) -> 0 | R147: 0 | T147: =IFERROR(('General Input Sheet'!$G$38/(VLOOKUP(S147,'General Input Sheet'!$E$38:$G$44,3,FALSE))),1) -> 1 | U147: 0 | CE147: 0
J148: 0 | K148: 0 | M148: 1 | N148: 0 | Q148: =IF(O148="",'Unit Rates - Land'!landcst,IF($D$8="Landuse",VLOOKUP(O148,LAndcost3,2,FALSE),IF($D$8="Location",VLOOKUP(O148,Landcost2,2,FALSE),"Error"))) -> 0 | R148: 0 | T148: =IFERROR(('General Input Sheet'!$G$38/(VLOOKUP(S148,'General Input Sheet'!$E$38:$G$44,3,FALSE))),1) -> 1 | U148: 0 | CE148: 0
J149: 0 | K149: 0 | M149: 1 | N149: 0 | Q149: =IF(O149="",'Unit Rates - Land'!landcst,IF($D$8="Landuse",VLOOKUP(O149,LAndcost3,2,FALSE),IF($D$8="Location",VLOOKUP(O149,Landcost2,2,FALSE),"Error"))) -> 0 | R149: 0 | T149: =IFERROR(('General Input Sheet'!$G$38/(VLOOKUP(S149,'General Input Sheet'!$E$38:$G$44,3,FALSE))),1) -> 1 | U149: 0 | CE149: 0
J150: 0 | K150: 0 | M150: 1 | N150: 0 | Q150: =IF(O150="",'Unit Rates - Land'!landcst,IF($D$8="Landuse",VLOOKUP(O150,LAndcost3,2,FALSE),IF($D$8="Location",VLOOKUP(O150,Landcost2,2,FALSE),"Error"))) -> 0 | R150: 0 | T150: =IFERROR(('General Input Sheet'!$G$38/(VLOOKUP(S150,'General Input Sheet'!$E$38:$G$44,3,FALSE))),1) -> 1 | U150: 0 | CE150: 0 | CT150: =IF(BN150="","",(BN150/$CE150)*$U150) -> 
J151: 0 | K151: 0 | M151: 1 | N151: 0 | Q151: =IF(O151="",'Unit Rates - Land'!landcst,IF($D$8="Landuse",VLOOKUP(O151,LAndcost3,2,FALSE),IF($D$8="Location",VLOOKUP(O151,Landcost2,2,FALSE),"Error"))) -> 0 | R151: 0 | T151: =IFERROR(('General Input Sheet'!$G$38/(VLOOKUP(S151,'General Input Sheet'!$E$38:$G$44,3,FALSE))),1) -> 1 | U151: 0 | CE151: 0 | CG151: =IF(BA151="","",(BA151/$CE151)*$U151) -> 
J152: 0 | K152: 0 | M152: 1 | N152: 0 | Q152: =IF(O152="",'Unit Rates - Land'!landcst,IF($D$8="Landuse",VLOOKUP(O152,LAndcost3,2,FALSE),IF($D$8="Location",VLOOKUP(O152,Landcost2,2,FALSE),"Error"))) -> 0 | R152: 0 | T152: =IFERROR(('General Input Sheet'!$G$38/(VLOOKUP(S152,'General Input Sheet'!$E$38:$G$44,3,FALSE))),1) -> 1 | U152: 0 | CE152: 0
J153: 0 | K153: 0 | M153: 1 | N153: 0 | Q153: =IF(O153="",'Unit Rates - Land'!landcst,IF($D$8="Landuse",VLOOKUP(O153,LAndcost3,2,FALSE),IF($D$8="Location",VLOOKUP(O153,Landcost2,2,FALSE),"Error"))) -> 0 | R153: 0 | T153: =IFERROR(('General Input Sheet'!$G$38/(VLOOKUP(S153,'General Input Sheet'!$E$38:$G$44,3,FALSE))),1) -> 1 | U153: 0 | CE153: 0
J154: 0 | K154: 0 | M154: 1 | N154: 0 | Q154: =IF(O154="",'Unit Rates - Land'!landcst,IF($D$8="Landuse",VLOOKUP(O154,LAndcost3,2,FALSE),IF($D$8="Location",VLOOKUP(O154,Landcost2,2,FALSE),"Error"))) -> 0 | R154: 0 | T154: =IFERROR(('General Input Sheet'!$G$38/(VLOOKUP(S154,'General Input Sheet'!$E$38:$G$44,3,FALSE))),1) -> 1 | U154: 0 | CE154: 0
J155: 0 | K155: 0 | M155: 1 | N155: 0 | Q155: =IF(O155="",'Unit Rates - Land'!landcst,IF($D$8="Landuse",VLOOKUP(O155,LAndcost3,2,FALSE),IF($D$8="Location",VLOOKUP(O155,Landcost2,2,FALSE),"Error"))) -> 0 | R155: 0 | T155: =IFERROR(('General Input Sheet'!$G$38/(VLOOKUP(S155,'General Input Sheet'!$E$38:$G$44,3,FALSE))),1) -> 1 | U155: 0 | CE155: 0
J156: 0 | K156: 0 | M156: 1 | N156: 0 | Q156: =IF(O156="",'Unit Rates - Land'!landcst,IF($D$8="Landuse",VLOOKUP(O156,LAndcost3,2,FALSE),IF($D$8="Location",VLOOKUP(O156,Landcost2,2,FALSE),"Error"))) -> 0 | R156: 0 | T156: =IFERROR(('General Input Sheet'!$G$38/(VLOOKUP(S156,'General Input Sheet'!$E$38:$G$44,3,FALSE))),1) -> 1 | U156: 0 | CE156: 0
J157: 0 | K157: 0 | M157: 1 | N157: 0 | Q157: =IF(O157="",'Unit Rates - Land'!landcst,IF($D$8="Landuse",VLOOKUP(O157,LAndcost3,2,FALSE),IF($D$8="Location",VLOOKUP(O157,Landcost2,2,FALSE),"Error"))) -> 0 | R157: 0 | T157: =IFERROR(('General Input Sheet'!$G$38/(VLOOKUP(S157,'General Input Sheet'!$E$38:$G$44,3,FALSE))),1) -> 1 | U157: 0 | CE157: 0 | DE157: =IF(BY157="","",(BY157/$CE157)*$U157) -> 
J158: 0 | K158: 0 | M158: 1 | N158: 0 | Q158: =IF(O158="",'Unit Rates - Land'!landcst,IF($D$8="Landuse",VLOOKUP(O158,LAndcost3,2,FALSE),IF($D$8="Location",VLOOKUP(O158,Landcost2,2,FALSE),"Error"))) -> 0 | R158: 0 | T158: =IFERROR(('General Input Sheet'!$G$38/(VLOOKUP(S158,'General Input Sheet'!$E$38:$G$44,3,FALSE))),1) -> 1 | U158: 0 | CE158: 0
J159: 0 | K159: 0 | M159: 1 | N159: 0 | Q159: =IF(O159="",'Unit Rates - Land'!landcst,IF($D$8="Landuse",VLOOKUP(O159,LAndcost3,2,FALSE),IF($D$8="Location",VLOOKUP(O159,Landcost2,2,FALSE),"Error"))) -> 0 | R159: 0 | T159: =IFERROR(('General Input Sheet'!$G$38/(VLOOKUP(S159,'General Input Sheet'!$E$38:$G$44,3,FALSE))),1) -> 1 | U159: 0 | BS159: =IF(AN159="y",BS$14,IF(AND(AN159>0,AN159<=1),AN159*BS$14,"")) ->  | CE159: 0
J160: 0 | K160: 0 | M160: 1 | N160: 0 | Q160: =IF(O160="",'Unit Rates - Land'!landcst,IF($D$8="Landuse",VLOOKUP(O160,LAndcost3,2,FALSE),IF($D$8="Location",VLOOKUP(O160,Landcost2,2,FALSE),"Error"))) -> 0 | R160: 0 | T160: =IFERROR(('General Input Sheet'!$G$38/(VLOOKUP(S160,'General Input Sheet'!$E$38:$G$44,3,FALSE))),1) -> 1 | U160: 0 | BQ160: =IF(AL160="y",BQ$14,IF(AND(AL160>0,AL160<=1),AL160*BQ$14,"")) ->  | CE160: 0
J161: 0 | K161: 0 | M161: 1 | N161: 0 | Q161: =IF(O161="",'Unit Rates - Land'!landcst,IF($D$8="Landuse",VLOOKUP(O161,LAndcost3,2,FALSE),IF($D$8="Location",VLOOKUP(O161,Landcost2,2,FALSE),"Error"))) -> 0 | R161: 0 | T161: =IFERROR(('General Input Sheet'!$G$38/(VLOOKUP(S161,'General Input Sheet'!$E$38:$G$44,3,FALSE))),1) -> 1 | U161: 0 | CE161: 0
